Workbook

Sheet Changelog
B1: Change | C1: Location | D1: Details
B2: Approach F added | C2: Sheet 'Working | Approach F' plus various others | D2: Approach added to target nominal RoR through applying only forecast inflation
B3: Future revenue change | C3: Working XXX'!X546:BU551 | D3: Done for each 5 year period so that pricing approach can be accounded for post-PTRM periods.
B4: Added switch for CPI-X | D4: Done.
B5: Approach G added | C5: Based on CPI weighting | D5: Hybrid approach based on weighted inflation
B6: Tax capex | C6: In RFM for Approach F and G | D6: Should reflect actual inflation, not forecast.
B7: Hybrid based on 'true-up' approach | C7: To Do | D7: Take RoD outside of smoothing. Pricing = CPI-X + RoD
B8: Cut out unneeded scenarios
B13: Questions
B14: Does hybrid result in gearing issues?
B15: Define inflation risk | C15: If inflation is higher/lower than expected where is the cost borne? RMSE of difference between actual and expected.
B21: Name | C21: Range
B22: ISmooth1_NPVdiff | C22: ='Working | Approach I'!$C$107 -> 0.000102672903
B23: ISmooth1_X1 | C23: ='Working | Approach I'!$D$105 -> 0.2649364871
B24: ISmooth1_X2 | C24: ='Working | Approach I'!$E$105 -> -0.01778864757
B25: ISmooth1_y1diff | C25: ='Working | Approach I'!$D$107 -> 0
B26: ISmooth2_NPVdiff | C26: ='Working | Approach I'!$H$243 -> -5.095067536e-06
B27: ISmooth2_X1 | C27: ='Working | Approach I'!$I$241 -> -0.02437109004
B28: ISmooth2_X2 | C28: ='Working | Approach I'!$J$241 -> -0.02126646751
B29: ISmooth2_y1diff | C29: ='Working | Approach I'!$I$243 -> 0
B30: ISmooth3_NPVdiff | C30: ='Working | Approach I'!$M$379 -> -2.725280865e-06
B31: ISmooth3_X1 | C31: ='Working | Approach I'!$N$377 -> -0.02403467657
B32: ISmooth3_X2 | C32: ='Working | Approach I'!$O$377 -> -0.02449980502
B33: ISmooth3_y1diff | C33: ='Working | Approach I'!$N$379 -> 0
B34: ISmooth4_NPVdiff | C34: ='Working | Approach I'!$R$515 -> -2.775677785e-06
B35: ISmooth4_X1 | C35: ='Working | Approach I'!$S$513 -> -0.02768548899
B36: ISmooth4_X2 | C36: ='Working | Approach I'!$T$513 -> -0.02580269267
B37: ISmooth4_y1diff | C37: ='Working | Approach I'!$S$515 -> 0
B38: ITaxDest1 | C38: ='Working | Approach I'!$D$69:$BU$69 -> 
B39: ITaxDest2 | C39: ='Working | Approach I'!$D$205:$BU$205 -> 
B40: ITaxDest3 | C40: ='Working | Approach I'!$D$341:$BU$341 -> 
B41: ITaxDest4 | C41: ='Working | Approach I'!$D$477:$BU$477 -> 
B42: ITaxSrc1 | C42: ='Working | Approach I'!$D$75:$BU$75 -> 
B43: ITaxSrc2 | C43: ='Working | Approach I'!$D$211:$BU$211 -> 
B44: ITaxSrc3 | C44: ='Working | Approach I'!$D$347:$BU$347 -> 
B45: ITaxSrc4 | C45: ='Working | Approach I'!$D$483:$BU$483 -> 

Sheet Overview
A1: Overview of the model
V2: Change from adjacent cell
B3: 'Inputs' sheet | H3: Working sheets | N3: 'Output' sheets | V3: Change of input from base
V4: Change of formulae from base
U5: Change from V1
H35: * the 'unindexed RAB approach' is one option to target a nominal rate of return as opposed to the current AER approach to target the real rate of return.
B36: Notes: | H36: ** the 'all-lagged approach' applies a consistent one-year lagged inflation value to all aspects of the RAB, and updates year 1 allowed revenue for actual (lagged) inflation.
B37: - no revenue adjustments (e.g. incentive schemes)
B38: - no debt raising costs
B39: - no equity raising costs
B40: - asset lives must be whole numbers between 1 and 50 years.

Sheet Guide
A1: Guide to the model
B2: What does this model do?
C3: This model simulates the key calculations of the RFM, PTRM and Annual pricing processes over a 4 period (20 year) timeframe.
C4: Different expected inflation estimates can be modelled to show the different outcomes on Revenue, RAB, cash flows and returns.
D5: - 'Approach B' and 'Approach C' allow for different expected inflation estimates to be modelled).
C6: Two approaches that are changes to the current workings of the RFMs and PTRMs can also be modelled to show the outcomes of these changged
D7: - 'Approach D - unindexed RAB' models the impact of an unindexed RAB - equivalent to targetting a nominal rate of return.
D8: - 'Approach E - all lagged' models the impact of applying a consistent (one-year lagged) inflation observation to all components of the framework.
C9: Different actual inflation outcomes can be modelled to show how they impact the outcomes of each case.
C10: This simulator model avoids requiring multiple versions of the RFM and PTRM to be opened and adjusted to perform this analysis.
B13: How to use this model?
C14: 1. Input desired values into the blue cells on the input sheet.
D15: Inputs to be changed are (key inputs in bold):
D16: - Inflation estimates for each approach. Generally these would be the same for each period, but each period can be different if required.
D17: - Allowed rate of returns (gearing level, return on debt, and return on equity) for each approach. Generally these would be the same for each period, but each period can be different if required.
D18: - Opening RAB and remaining lives. Default values for capex aim to maintain the RAB in $real over time.
D19: - Opex. Annual opex values can be inserted. Note: changing this has little impact on the returns.
D20: - Actual inflation outcomes. May be a constant value each year (to see how approaches perform with systemic under/over-estimation, or may differ every year.
C21: 2. Run scenario
D22: Any time a change to inputs is made a red warning will show that the scenario needs updating.
D23: Press the 'Run scenario' button to update the calculations and outputs.
D24: - Pressing this button performs iterative tax calculations and runs the revenue smoothing process consistent with the default smoothing in the PTRM
C25: 3. Check outputs
D26: Key outputs over the long term (such as allowed revenue, RAB, cashflows, and consumer impact) are displayed in the 'Output | General' sheet.
D27: Charts of these key outputs are displayed on the 'Outputs | Charts' sheet, including comparisons of expected and actual rates of return.
B29: What are some things to try?
C30: 1. How does the framework perform if the estimate of expected inflation persistently over-estimates actual inflation?
C31: How to:
D32: 1. Leave inputs as default (2.50% base-case expected inflation estimate)
D33: 2. Overide each year's actual inflation value with 2.00%.
D34: 3. Run scenario
D35: 4. Check outputs
D36: It should show that (in the base case):
D37: - the achieved real rate of return is very close to the expected real rate of return (target is being achieved)
D38: - but the nominal rate achieved is lower than expected (target real rate + actual inflation)
C40: 2. How does the framework perform if the estimate of expected inflation persistently under-estimates actual inflation?
C41: How to:
D42: 1. Leave inputs as default (2.50% base-case expected inflation estimate)
D43: 2. Override each year's actual inflation value with 3.00%.
D44: 3. Run scenario
D45: 4. Check outputs
D46: It should show that (in the base case):
D47: - the achieved real rate of return is very close to the expected real rate of return (target is being achieved)
D48: - but the nominal rate achieved is higher than expected (target real rate + actual inflation)
C50: 3. What is the impact of a lower estimate of expected inflation on revenues and returns?
C51: How to:
D52: 1. Leave inputs as default (2.50% base-case expected inflation estimate)
D53: 2. Input a lower value for expected inflation in Approach B (name it something like 'low expectation')
D54: 3. Input actual inflation value for each year (whatever values you want constant or varying).
D55: 4. Run scenario
D56: 5. Check outputs
D57: It should show that:
D58: - the achieved real rate of return for both Approach B and the base case is very close to the expected real rate of return for that approach.
D59: - the expected real and nominal rates of return for Approach B are higher than the base case.
D60: - the achieved real and nominal rates of return for Approach B are higher than the base case.
D61: - allowed revenues for Approach B are consistently above the base case.
C63: 4. Why is the expected real rate of return not perfectly achieved?
C64: How to:
D65: 1. Ensure Approach E inflation estimate equals base case (as default)
D66: 2. Override each year's actual inflation value with anything (constant or varying)
D67: 3. Run scenario
D68: 4. Check outputs
D69: It should show that:
D70: - the real rate of return achieved in the base case is 'close' to the expected rate.
D71: - the real rate of return achieved in 'Approach E - all lagged' is equal to the expected rate.
D72: - The difference observed in the base case is the impact of the 'inflation lags' applied.
D73: - Particularly the fact that year 1 revenues in each reset are not updated for actual inflation like future years are.
D74: - Also that unlagged actual inflation is used to escalate some parts of the RAB roll-forward, but lagged observations are used for others.
D75: - Where actual inflation in year 0, 5, 10, and 15 are above (below) expected inflation, achieved returns will be lower (higher) than otherwise. As revenues are not escalcated by these higher (lower) values of inflation.
C77: 5. What might a 'nominal framework' look like?
C78: How to:
D79: 1. Ensure Approach D inflation estimate equals base case (as default)
D80: 2. Override each year's actual inflation value with anything (constant or varying)
D81: 3. Run scenario
D82: 4. Check outputs
D83: The outputs for Approach D show the result of an nominal return applied to an unindexed RAB.
D84: This is an approach that targets the expected nominal rate of return you should see:
D85: - the real rate of return may not match the expected real rate.
D86: - the nominal rate of return achieved should be very close to the expected nominal rate.
D87: - the difference observed should relate to the inflation lags (as per the difference in the real return for the base case).

Sheet Inputs
A1: Inputs | C1: Year | D1: 1 | E1: 2 | F1: 3 | G1: 4 | H1: 5 | I1: 6 | J1: 7 | K1: 8 | L1: 9 | M1: 10 | N1: 11 | O1: 12 | P1: 13 | Q1: 14 | R1: 15 | S1: 16 | T1: 17 | U1: 18 | V1: 19 | W1: 20 | X1: 21 | Y1: 22 | Z1: 23 | AA1: 24 | AB1: 25 | AC1: 26 | AD1: 27 | AE1: 28 | AF1: 29 | AG1: 30 | AH1: 31 | AI1: 32 | AJ1: 33 | AK1: 34 | AL1: 35 | AM1: 36 | AN1: 37 | AO1: 38 | AP1: 39 | AQ1: 40 | AR1: 41 | AS1: 42 | AT1: 43 | AU1: 44 | AV1: 45 | AW1: 46 | AX1: 47 | AY1: 48 | AZ1: 49 | BA1: 50 | BB1: 51 | BC1: 52 | BD1: 53 | BE1: 54 | BF1: 55 | BG1: 56 | BH1: 57 | BI1: 58 | BJ1: 59 | BK1: 60 | BL1: 61 | BM1: 62 | BN1: 63 | BO1: 64 | BP1: 65 | BQ1: 66 | BR1: 67 | BS1: 68 | BT1: 69 | BU1: 70
A2: Expected inflation | B2: Name | C2: CPI-X | D2: Period 1 | I2: Period 2 | N2: Period 3 | S2: Period 4
A3: Base case | B3: base | C3: y2-5 | D3: =F51 -> 0.0224870915 | E3: =D3 -> 0.0224870915 | F3: 0.0224870915 | G3: 0.0224870915 | H3: 0.0224870915 | I3: =D3 -> 0.0224870915 | J3: =I3 -> 0.0224870915 | K3: 0.0224870915 | L3: 0.0224870915 | M3: 0.0224870915 | N3: =I3 -> 0.0224870915 | O3: =N3 -> 0.0224870915 | P3: 0.0224870915 | Q3: 0.0224870915 | R3: 0.0224870915 | S3: =N3 -> 0.0224870915 | T3: =S3 -> 0.0224870915 | U3: =T3 -> 0.0224870915 | V3: =U3 -> 0.0224870915 | W3: =V3 -> 0.0224870915 | X3: =W3 -> 0.0224870915 | Y3: =X3 -> 0.0224870915 | Z3: 0.0224870915 | AA3: 0.0224870915 | AB3: 0.0224870915 | AC3: 0.0224870915 | AD3: 0.0224870915 | AE3: 0.0224870915 | AF3: 0.0224870915 | AG3: 0.0224870915 | AH3: 0.0224870915 | AI3: 0.0224870915 | AJ3: 0.0224870915 | AK3: 0.0224870915 | AL3: 0.0224870915 | AM3: 0.0224870915 | AN3: 0.0224870915 | AO3: 0.0224870915 | AP3: 0.0224870915 | AQ3: 0.0224870915 | AR3: 0.0224870915 | AS3: 0.0224870915 | AT3: 0.0224870915 | AU3: 0.0224870915 | AV3: 0.0224870915 | AW3: 0.0224870915 | AX3: 0.0224870915 | AY3: 0.0224870915 | AZ3: 0.0224870915 | BA3: 0.0224870915 | BB3: 0.0224870915 | BC3: 0.0224870915 | BD3: 0.0224870915 | BE3: 0.0224870915 | BF3: 0.0224870915 | BG3: 0.0224870915 | BH3: 0.0224870915 | BI3: 0.0224870915 | BJ3: 0.0224870915 | BK3: 0.0224870915 | BL3: 0.0224870915 | BM3: 0.0224870915 | BN3: 0.0224870915 | BO3: 0.0224870915 | BP3: 0.0224870915 | BQ3: 0.0224870915 | BR3: 0.0224870915 | BS3: 0.0224870915 | BT3: 0.0224870915 | BU3: 0.0224870915
A4: - Approach B | B4: 5 year estimate | C4: y2-5 | D4: =K51 -> 0.0199803437 | E4: 0.0199803437 | F4: 0.0199803437 | G4: 0.0199803437 | H4: 0.0199803437 | I4: 0.0199803437 | J4: 0.0199803437 | K4: 0.0199803437 | L4: 0.0199803437 | M4: 0.0199803437 | N4: 0.0199803437 | O4: 0.0199803437 | P4: 0.0199803437 | Q4: 0.0199803437 | R4: 0.0199803437 | S4: 0.0199803437 | T4: =S4 -> 0.0199803437 | U4: =T4 -> 0.0199803437 | V4: =U4 -> 0.0199803437 | W4: =V4 -> 0.0199803437 | X4: =W4 -> 0.0199803437 | Y4: 0.0199803437 | Z4: 0.0199803437 | AA4: 0.0199803437 | AB4: 0.0199803437 | AC4: 0.0199803437 | AD4: 0.0199803437 | AE4: 0.0199803437 | AF4: 0.0199803437 | AG4: 0.0199803437 | AH4: 0.0199803437 | AI4: 0.0199803437 | AJ4: 0.0199803437 | AK4: 0.0199803437 | AL4: 0.0199803437 | AM4: 0.0199803437 | AN4: 0.0199803437 | AO4: 0.0199803437 | AP4: 0.0199803437 | AQ4: 0.0199803437 | AR4: 0.0199803437 | AS4: 0.0199803437 | AT4: 0.0199803437 | AU4: 0.0199803437 | AV4: 0.0199803437 | AW4: 0.0199803437 | AX4: 0.0199803437 | AY4: 0.0199803437 | AZ4: 0.0199803437 | BA4: 0.0199803437 | BB4: 0.0199803437 | BC4: 0.0199803437 | BD4: 0.0199803437 | BE4: 0.0199803437 | BF4: 0.0199803437 | BG4: 0.0199803437 | BH4: 0.0199803437 | BI4: 0.0199803437 | BJ4: 0.0199803437 | BK4: 0.0199803437 | BL4: 0.0199803437 | BM4: 0.0199803437 | BN4: 0.0199803437 | BO4: 0.0199803437 | BP4: 0.0199803437 | BQ4: 0.0199803437 | BR4: 0.0199803437 | BS4: 0.0199803437 | BT4: 0.0199803437 | BU4: 0.0199803437
A5: - Approach C | B5: linear glide path | C5: y2-5 | D5: =P51 -> 0.02098759381 | E5: =D5 -> 0.02098759381 | F5: 0.02098759381 | G5: 0.02098759381 | H5: 0.02098759381 | I5: 0.02098759381 | J5: =I5 -> 0.02098759381 | K5: 0.02098759381 | L5: 0.02098759381 | M5: 0.02098759381 | N5: 0.02098759381 | O5: =N5 -> 0.02098759381 | P5: 0.02098759381 | Q5: 0.02098759381 | R5: 0.02098759381 | S5: 0.02098759381 | T5: =S5 -> 0.02098759381 | U5: 0.02098759381 | V5: 0.02098759381 | W5: 0.02098759381 | X5: 0.02098759381 | Y5: 0.02098759381 | Z5: 0.02098759381 | AA5: 0.02098759381 | AB5: 0.02098759381 | AC5: 0.02098759381 | AD5: 0.02098759381 | AE5: 0.02098759381 | AF5: 0.02098759381 | AG5: 0.02098759381 | AH5: 0.02098759381 | AI5: 0.02098759381 | AJ5: 0.02098759381 | AK5: 0.02098759381 | AL5: 0.02098759381 | AM5: 0.02098759381 | AN5: 0.02098759381 | AO5: 0.02098759381 | AP5: 0.02098759381 | AQ5: 0.02098759381 | AR5: 0.02098759381 | AS5: 0.02098759381 | AT5: 0.02098759381 | AU5: 0.02098759381 | AV5: 0.02098759381 | AW5: 0.02098759381 | AX5: 0.02098759381 | AY5: 0.02098759381 | AZ5: =AY5 -> 0.02098759381 | BA5: 0.02098759381 | BB5: 0.02098759381 | BC5: 0.02098759381 | BD5: 0.02098759381 | BE5: 0.02098759381 | BF5: 0.02098759381 | BG5: 0.02098759381 | BH5: 0.02098759381 | BI5: 0.02098759381 | BJ5: 0.02098759381 | BK5: 0.02098759381 | BL5: 0.02098759381 | BM5: 0.02098759381 | BN5: 0.02098759381 | BO5: 0.02098759381 | BP5: 0.02098759381 | BQ5: 0.02098759381 | BR5: 0.02098759381 | BS5: 0.02098759381 | BT5: 0.02098759381 | BU5: 0.02098759381
A6: - Approach D | B6: unindexed RAB | C6: y2-5 | D6: =D3 -> 0.0224870915 | E6: 0.0224870915 | F6: 0.0224870915 | G6: 0.0224870915 | H6: 0.0224870915 | I6: =I3 -> 0.0224870915 | J6: 0.0224870915 | K6: 0.0224870915 | L6: 0.0224870915 | M6: 0.0224870915 | N6: =N3 -> 0.0224870915 | O6: 0.0224870915 | P6: 0.0224870915 | Q6: 0.0224870915 | R6: 0.0224870915 | S6: =S3 -> 0.0224870915 | T6: =S6 -> 0.0224870915 | U6: 0.0224870915 | V6: 0.0224870915 | W6: 0.0224870915 | X6: 0.0224870915 | Y6: 0.0224870915 | Z6: 0.0224870915 | AA6: 0.0224870915 | AB6: 0.0224870915 | AC6: 0.0224870915 | AD6: 0.0224870915 | AE6: 0.0224870915 | AF6: 0.0224870915 | AG6: 0.0224870915 | AH6: 0.0224870915 | AI6: 0.0224870915 | AJ6: 0.0224870915 | AK6: 0.0224870915 | AL6: 0.0224870915 | AM6: 0.0224870915 | AN6: 0.0224870915 | AO6: 0.0224870915 | AP6: 0.0224870915 | AQ6: 0.0224870915 | AR6: 0.0224870915 | AS6: 0.0224870915 | AT6: 0.0224870915 | AU6: 0.0224870915 | AV6: 0.0224870915 | AW6: 0.0224870915 | AX6: 0.0224870915 | AY6: 0.0224870915 | AZ6: =AY6 -> 0.0224870915 | BA6: 0.0224870915 | BB6: 0.0224870915 | BC6: 0.0224870915 | BD6: 0.0224870915 | BE6: 0.0224870915 | BF6: 0.0224870915 | BG6: 0.0224870915 | BH6: 0.0224870915 | BI6: 0.0224870915 | BJ6: 0.0224870915 | BK6: 0.0224870915 | BL6: 0.0224870915 | BM6: 0.0224870915 | BN6: 0.0224870915 | BO6: 0.0224870915 | BP6: 0.0224870915 | BQ6: 0.0224870915 | BR6: 0.0224870915 | BS6: 0.0224870915 | BT6: 0.0224870915 | BU6: 0.0224870915
A7: - Approach E | B7: nominal - updated | C7: None | D7: =C34 -> 0.0297699594 | E7: =D34 -> 0.03285151117 | F7: 0.0203562341 | G7: 0.02369077307 | H7: 0.02923264312 | I7: 0.02485207101 | J7: 0.04272517321 | K7: 0.02436323367 | L7: 0.02918918919 | M7: 0.03256302521 | N7: 0.01627670397 | O7: 0.02502502503 | P7: 0.029296875 | Q7: 0.01328273245 | R7: 0.01310861423 | S7: 0.02125693161 | T7: 0.01900452489 | U7: 0.01332149201 | V7: 0.02191060473 | W7: 0.02191060473 | X7: 0.01332149201 | Y7: 0.01900452489 | Z7: 0.02125693161 | AA7: 0.01310861423 | AB7: 0.01328273245 | AC7: 0.029296875 | AD7: 0.02502502503 | AE7: 0.01627670397 | AF7: 0.03256302521 | AG7: 0.02918918919 | AH7: 0.02436323367 | AI7: 0.04272517321 | AJ7: 0.02485207101 | AK7: 0.02923264312 | AL7: 0.02369077307 | AM7: 0.0203562341 | AN7: 0.03285151117 | AO7: 0.0297699594 | AP7: 0.0297699594 | AQ7: 0.03285151117 | AR7: 0.0203562341 | AS7: 0.02369077307 | AT7: 0.02923264312 | AU7: 0.02485207101 | AV7: 0.04272517321 | AW7: 0.02436323367 | AX7: 0.02918918919 | AY7: 0.03256302521 | AZ7: 0.01627670397 | BA7: 0.02502502503 | BB7: 0.029296875 | BC7: 0.01328273245 | BD7: 0.01310861423 | BE7: 0.02125693161 | BF7: 0.01900452489 | BG7: 0.01332149201 | BH7: 0.02191060473 | BI7: 0.02191060473 | BJ7: 0.01332149201 | BK7: 0.01900452489 | BL7: 0.02125693161 | BM7: 0.01310861423 | BN7: 0.01328273245 | BO7: 0.029296875 | BP7: 0.02502502503 | BQ7: =BP34 -> 0.01627670397 | BR7: 0.03256302521 | BS7: 0.02918918919 | BT7: 0.02436323367 | BU7: 0.04272517321
A8: - Approach F | B8: nominal - indexed | C8: y2-5 | D8: =D3 -> 0.0224870915 | E8: =E3 -> 0.0224870915 | F8: 0.0224870915 | G8: 0.0224870915 | H8: 0.0224870915 | I8: 0.0224870915 | J8: 0.0224870915 | K8: 0.0224870915 | L8: 0.0224870915 | M8: 0.0224870915 | N8: 0.0224870915 | O8: 0.0224870915 | P8: 0.0224870915 | Q8: 0.0224870915 | R8: 0.0224870915 | S8: 0.0224870915 | T8: 0.0224870915 | U8: 0.0224870915 | V8: 0.0224870915 | W8: 0.0224870915 | X8: 0.0224870915 | Y8: 0.0224870915 | Z8: 0.0224870915 | AA8: 0.0224870915 | AB8: 0.0224870915 | AC8: 0.0224870915 | AD8: 0.0224870915 | AE8: 0.0224870915 | AF8: 0.0224870915 | AG8: 0.0224870915 | AH8: 0.0224870915 | AI8: 0.0224870915 | AJ8: 0.0224870915 | AK8: 0.0224870915 | AL8: 0.0224870915 | AM8: 0.0224870915 | AN8: 0.0224870915 | AO8: 0.0224870915 | AP8: 0.0224870915 | AQ8: 0.0224870915 | AR8: 0.0224870915 | AS8: 0.0224870915 | AT8: 0.0224870915 | AU8: 0.0224870915 | AV8: 0.0224870915 | AW8: 0.0224870915 | AX8: 0.0224870915 | AY8: 0.0224870915 | AZ8: 0.0224870915 | BA8: 0.0224870915 | BB8: 0.0224870915 | BC8: 0.0224870915 | BD8: 0.0224870915 | BE8: 0.0224870915 | BF8: 0.0224870915 | BG8: 0.0224870915 | BH8: 0.0224870915 | BI8: 0.0224870915 | BJ8: 0.0224870915 | BK8: 0.0224870915 | BL8: 0.0224870915 | BM8: 0.0224870915 | BN8: 0.0224870915 | BO8: 0.0224870915 | BP8: 0.0224870915 | BQ8: =BQ3 -> 0.0224870915 | BR8: =BR3 -> 0.0224870915 | BS8: =BS3 -> 0.0224870915 | BT8: =BT3 -> 0.0224870915 | BU8: =BU3 -> 0.0224870915
A9: - Approach G | B9: hybrid - weighted CPI | C9: y2-5 | D9: =D3 -> 0.0224870915 | E9: =E3 -> 0.0224870915 | F9: 0.0224870915 | G9: 0.0224870915 | H9: 0.0224870915 | I9: 0.0224870915 | J9: 0.0224870915 | K9: 0.0224870915 | L9: 0.0224870915 | M9: 0.0224870915 | N9: 0.0224870915 | O9: 0.0224870915 | P9: 0.0224870915 | Q9: 0.0224870915 | R9: 0.0224870915 | S9: 0.0224870915 | T9: 0.0224870915 | U9: 0.0224870915 | V9: 0.0224870915 | W9: 0.0224870915 | X9: 0.0224870915 | Y9: 0.0224870915 | Z9: 0.0224870915 | AA9: 0.0224870915 | AB9: 0.0224870915 | AC9: 0.0224870915 | AD9: 0.0224870915 | AE9: 0.0224870915 | AF9: 0.0224870915 | AG9: 0.0224870915 | AH9: 0.0224870915 | AI9: 0.0224870915 | AJ9: 0.0224870915 | AK9: 0.0224870915 | AL9: 0.0224870915 | AM9: 0.0224870915 | AN9: 0.0224870915 | AO9: 0.0224870915 | AP9: 0.0224870915 | AQ9: 0.0224870915 | AR9: 0.0224870915 | AS9: 0.0224870915 | AT9: 0.0224870915 | AU9: 0.0224870915 | AV9: 0.0224870915 | AW9: 0.0224870915 | AX9: 0.0224870915 | AY9: 0.0224870915 | AZ9: 0.0224870915 | BA9: 0.0224870915 | BB9: 0.0224870915 | BC9: 0.0224870915 | BD9: 0.0224870915 | BE9: 0.0224870915 | BF9: 0.0224870915 | BG9: 0.0224870915 | BH9: 0.0224870915 | BI9: 0.0224870915 | BJ9: 0.0224870915 | BK9: 0.0224870915 | BL9: 0.0224870915 | BM9: 0.0224870915 | BN9: 0.0224870915 | BO9: 0.0224870915 | BP9: 0.0224870915 | BQ9: =BQ3 -> 0.0224870915 | BR9: 0.0224870915 | BS9: 0.0224870915 | BT9: 0.0224870915 | BU9: 0.0224870915
A10: - Approach H | B10: hybrid - separate | C10: y2-5 | D10: =D3 -> 0.0224870915 | E10: =E3 -> 0.0224870915 | F10: 0.0224870915 | G10: 0.0224870915 | H10: 0.0224870915 | I10: 0.0224870915 | J10: 0.0224870915 | K10: 0.0224870915 | L10: 0.0224870915 | M10: 0.0224870915 | N10: 0.0224870915 | O10: 0.0224870915 | P10: 0.0224870915 | Q10: 0.0224870915 | R10: 0.0224870915 | S10: 0.0224870915 | T10: 0.0224870915 | U10: 0.0224870915 | V10: 0.0224870915 | W10: 0.0224870915 | X10: 0.0224870915 | Y10: 0.0224870915 | Z10: 0.0224870915 | AA10: 0.0224870915 | AB10: 0.0224870915 | AC10: 0.0224870915 | AD10: 0.0224870915 | AE10: 0.0224870915 | AF10: 0.0224870915 | AG10: 0.0224870915 | AH10: 0.0224870915 | AI10: 0.0224870915 | AJ10: 0.0224870915 | AK10: 0.0224870915 | AL10: 0.0224870915 | AM10: 0.0224870915 | AN10: 0.0224870915 | AO10: 0.0224870915 | AP10: 0.0224870915 | AQ10: 0.0224870915 | AR10: 0.0224870915 | AS10: 0.0224870915 | AT10: 0.0224870915 | AU10: 0.0224870915 | AV10: 0.0224870915 | AW10: 0.0224870915 | AX10: 0.0224870915 | AY10: 0.0224870915 | AZ10: 0.0224870915 | BA10: 0.0224870915 | BB10: 0.0224870915 | BC10: 0.0224870915 | BD10: 0.0224870915 | BE10: 0.0224870915 | BF10: 0.0224870915 | BG10: 0.0224870915 | BH10: 0.0224870915 | BI10: 0.0224870915 | BJ10: 0.0224870915 | BK10: 0.0224870915 | BL10: 0.0224870915 | BM10: 0.0224870915 | BN10: 0.0224870915 | BO10: 0.0224870915 | BP10: 0.0224870915 | BQ10: =BQ3 -> 0.0224870915 | BR10: 0.0224870915 | BS10: 0.0224870915 | BT10: 0.0224870915 | BU10: 0.0224870915
A11: - Approach I | B11: hybrid + swaps | C11: y2-5 | D11: =$U$51 -> 0.01798667446 | E11: =$U$51 -> 0.01798667446 | F11: 0.01798667446 | G11: 0.01798667446 | H11: 0.01798667446 | I11: 0.01798667446 | J11: 0.01798667446 | K11: 0.01798667446 | L11: 0.01798667446 | M11: 0.01798667446 | N11: 0.01798667446 | O11: 0.01798667446 | P11: 0.01798667446 | Q11: 0.01798667446 | R11: 0.01798667446 | S11: 0.01798667446 | T11: 0.01798667446 | U11: 0.01798667446 | V11: 0.01798667446 | W11: 0.01798667446 | X11: 0.01798667446 | Y11: 0.01798667446 | Z11: 0.01798667446 | AA11: 0.01798667446 | AB11: 0.01798667446 | AC11: 0.01798667446 | AD11: 0.01798667446 | AE11: 0.01798667446 | AF11: 0.01798667446 | AG11: 0.01798667446 | AH11: 0.01798667446 | AI11: 0.01798667446 | AJ11: 0.01798667446 | AK11: 0.01798667446 | AL11: 0.01798667446 | AM11: 0.01798667446 | AN11: 0.01798667446 | AO11: 0.01798667446 | AP11: 0.01798667446 | AQ11: 0.01798667446 | AR11: 0.01798667446 | AS11: 0.01798667446 | AT11: 0.01798667446 | AU11: 0.01798667446 | AV11: 0.01798667446 | AW11: 0.01798667446 | AX11: 0.01798667446 | AY11: 0.01798667446 | AZ11: 0.01798667446 | BA11: 0.01798667446 | BB11: 0.01798667446 | BC11: 0.01798667446 | BD11: 0.01798667446 | BE11: 0.01798667446 | BF11: 0.01798667446 | BG11: 0.01798667446 | BH11: 0.01798667446 | BI11: 0.01798667446 | BJ11: 0.01798667446 | BK11: 0.01798667446 | BL11: 0.01798667446 | BM11: 0.01798667446 | BN11: 0.01798667446 | BO11: 0.01798667446 | BP11: 0.01798667446 | BQ11: =$U$51 -> 0.01798667446 | BR11: 0.01798667446 | BS11: 0.01798667446 | BT11: 0.01798667446 | BU11: 0.01798667446
A12: Rate of return
A13: RoD | C13: 0.6 | D13: 0.043 | E13: =D13 -> 0.043 | F13: =E13 -> 0.043 | G13: 0.043 | H13: 0.043 | I13: =D13 -> 0.043 | J13: =I13 -> 0.043 | K13: =J13 -> 0.043 | L13: 0.043 | M13: 0.043 | N13: =I13 -> 0.043 | O13: =N13 -> 0.043 | P13: =O13 -> 0.043 | Q13: 0.043 | R13: 0.043 | S13: =N13 -> 0.043 | T13: =S13 -> 0.043 | U13: =T13 -> 0.043 | V13: 0.043 | W13: 0.043
A14: RoE | C14: =1-C13 -> 0.4 | D14: 0.05 | E14: =D14 -> 0.05 | F14: 0.05 | G14: 0.05 | H14: 0.05 | I14: =D14 -> 0.05 | J14: =I14 -> 0.05 | K14: 0.05 | L14: 0.05 | M14: 0.05 | N14: =I14 -> 0.05 | O14: =N14 -> 0.05 | P14: 0.05 | Q14: 0.05 | R14: 0.05 | S14: =N14 -> 0.05 | T14: =S14 -> 0.05 | U14: 0.05 | V14: 0.05 | W14: 0.05
A15: Nominal rate of return | D15: =(D13*$C$13)+(D14*$C$14) -> 0.0458 | E15: =(E13*$C$13)+(E14*$C$14) -> 0.0458 | F15: 0.0458 | G15: 0.0458 | H15: 0.0458 | I15: 0.0458 | J15: 0.0458 | K15: 0.0458 | L15: 0.0458 | M15: 0.0458 | N15: 0.0458 | O15: 0.0458 | P15: 0.0458 | Q15: 0.0458 | R15: 0.0458 | S15: 0.0458 | T15: 0.0458 | U15: 0.0458 | V15: 0.0458 | W15: 0.0458
A16: ="Real rate or return ("&A3&")" -> Real rate or return (Base case) | D16: =(1+D$15)/(1+D3)-1 -> 0.02280019835 | E16: 0.02280019835 | F16: 0.02280019835 | G16: 0.02280019835 | H16: 0.02280019835 | I16: 0.02280019835 | J16: 0.02280019835 | K16: 0.02280019835 | L16: 0.02280019835 | M16: 0.02280019835 | N16: 0.02280019835 | O16: 0.02280019835 | P16: 0.02280019835 | Q16: 0.02280019835 | R16: 0.02280019835 | S16: 0.02280019835 | T16: 0.02280019835 | U16: 0.02280019835 | V16: 0.02280019835 | W16: 0.02280019835
A17: =A4&" ("&B4&")" -> - Approach B (5 year estimate) | D17: =(1+D$15)/(1+D4)-1 -> 0.02531387635 | E17: 0.02531387635 | F17: 0.02531387635 | G17: 0.02531387635 | H17: 0.02531387635 | I17: 0.02531387635 | J17: 0.02531387635 | K17: 0.02531387635 | L17: 0.02531387635 | M17: 0.02531387635 | N17: 0.02531387635 | O17: 0.02531387635 | P17: 0.02531387635 | Q17: 0.02531387635 | R17: 0.02531387635 | S17: 0.02531387635 | T17: 0.02531387635 | U17: 0.02531387635 | V17: 0.02531387635 | W17: 0.02531387635
A18: - Approach C (linear glide path) | D18: =(1+D$15)/(1+D5)-1 -> 0.02430235817 | E18: 0.02430235817 | F18: 0.02430235817 | G18: 0.02430235817 | H18: 0.02430235817 | I18: 0.02430235817 | J18: 0.02430235817 | K18: 0.02430235817 | L18: 0.02430235817 | M18: 0.02430235817 | N18: 0.02430235817 | O18: 0.02430235817 | P18: 0.02430235817 | Q18: 0.02430235817 | R18: 0.02430235817 | S18: 0.02430235817 | T18: 0.02430235817 | U18: 0.02430235817 | V18: 0.02430235817 | W18: 0.02430235817
A19: - Approach D (unindexed RAB) | D19: =(1+D$15)/(1+D6)-1 -> 0.02280019835 | E19: 0.02280019835 | F19: 0.02280019835 | G19: 0.02280019835 | H19: 0.02280019835 | I19: 0.02280019835 | J19: 0.02280019835 | K19: 0.02280019835 | L19: 0.02280019835 | M19: 0.02280019835 | N19: 0.02280019835 | O19: 0.02280019835 | P19: 0.02280019835 | Q19: 0.02280019835 | R19: 0.02280019835 | S19: 0.02280019835 | T19: 0.02280019835 | U19: 0.02280019835 | V19: 0.02280019835 | W19: 0.02280019835
A20: - Approach E (nominal - updated) | D20: =(1+D$15)/(1+D7)-1 -> 0.01556662286 | E20: 0.01253664122 | F20: 0.0249361596 | G20: 0.02159756395 | H20: 0.01609680473 | I20: 0.02043995381 | J20: 0.002948837209 | K20: 0.02092691892 | L20: 0.01613970588 | M20: 0.01281953204 | N20: 0.02905045045 | O20: 0.02026777344 | P20: 0.01603339658 | Q20: 0.03209101124 | R20: 0.03226839187 | S20: 0.02403221719 | T20: 0.02629573712 | U20: 0.03205153374 | V20: 0.02337718696 | W20: 0.02337718696
A21: - Approach F (nominal - indexed) | D21: =(1+D$15)/(1+D8)-1 -> 0.02280019835 | E21: 0.02280019835 | F21: 0.02280019835 | G21: 0.02280019835 | H21: 0.02280019835 | I21: 0.02280019835 | J21: 0.02280019835 | K21: 0.02280019835 | L21: 0.02280019835 | M21: 0.02280019835 | N21: 0.02280019835 | O21: 0.02280019835 | P21: 0.02280019835 | Q21: 0.02280019835 | R21: 0.02280019835 | S21: 0.02280019835 | T21: 0.02280019835 | U21: 0.02280019835 | V21: 0.02280019835 | W21: 0.02280019835
A22: - Approach G (hybrid - weighted CPI) | D22: =(1+D$15)/(1+D9)-1 -> 0.02280019835 | E22: 0.02280019835 | F22: 0.02280019835 | G22: 0.02280019835 | H22: 0.02280019835 | I22: 0.02280019835 | J22: 0.02280019835 | K22: 0.02280019835 | L22: 0.02280019835 | M22: 0.02280019835 | N22: 0.02280019835 | O22: 0.02280019835 | P22: 0.02280019835 | Q22: 0.02280019835 | R22: 0.02280019835 | S22: 0.02280019835 | T22: 0.02280019835 | U22: 0.02280019835 | V22: 0.02280019835 | W22: 0.02280019835
A23: - Approach H (hybrid - separate) | D23: =(1+D$15)/(1+D10)-1 -> 0.02280019835 | E23: 0.02280019835 | F23: 0.02280019835 | G23: 0.02280019835 | H23: 0.02280019835 | I23: 0.02280019835 | J23: 0.02280019835 | K23: 0.02280019835 | L23: 0.02280019835 | M23: 0.02280019835 | N23: 0.02280019835 | O23: 0.02280019835 | P23: 0.02280019835 | Q23: 0.02280019835 | R23: 0.02280019835 | S23: 0.02280019835 | T23: 0.02280019835 | U23: 0.02280019835 | V23: 0.02280019835 | W23: 0.02280019835
A24: - Approach I (hybrid + swaps) | D24: =(1+D$15)/(1+D11)-1 -> 0.0273218955 | E24: 0.0273218955 | F24: 0.0273218955 | G24: 0.0273218955 | H24: 0.0273218955 | I24: 0.0273218955 | J24: 0.0273218955 | K24: 0.0273218955 | L24: 0.0273218955 | M24: 0.0273218955 | N24: 0.0273218955 | O24: 0.0273218955 | P24: 0.0273218955 | Q24: 0.0273218955 | R24: 0.0273218955 | S24: 0.0273218955 | T24: 0.0273218955 | U24: 0.0273218955 | V24: 0.0273218955 | W24: 0.0273218955
A25: RAB/capex
A26: Opening RAB | D26: 6000
A27: Remaining life (years) | D27: 30
A28: Capex (actual and forecast) ($real - EOY) | D28: =($D$26/$D$27)/((1+D16)^0.5) -> 197.7582425 | E28: =D28+(D28/D29) -> 204.350184 | F28: =E28+(E28/E29) -> 211.1618567 | G28: 218.2005853 | H28: 225.4739382 | I28: 232.9897361 | J28: 240.7560606 | K28: 248.7812626 | L28: 257.0739714 | M28: 265.6431038 | N28: 274.4978739 | O28: 283.647803 | P28: 293.1027298 | Q28: 302.8728208 | R28: 312.9685815 | S28: 323.4008675 | T28: 334.1808965 | U28: 345.3202597 | V28: 356.830935 | W28: 368.7252995
A29: Standard life (years) | D29: 30 | E29: =D29 -> 30 | F29: =E29 -> 30 | G29: 30 | H29: 30 | I29: 30 | J29: 30 | K29: 30 | L29: 30 | M29: 30 | N29: 30 | O29: 30 | P29: 30 | Q29: 30 | R29: 30 | S29: 30 | T29: 30 | U29: 30 | V29: 30 | W29: 30
A30: Opex
A31: Opex ($real) | D31: 0 | E31: 0 | F31: 0 | G31: 0 | H31: 0 | I31: 0 | J31: 0 | K31: 0 | L31: 0 | M31: 0 | N31: 0 | O31: 0 | P31: 0 | Q31: 0 | R31: 0 | S31: 0 | T31: 0 | U31: 0 | V31: 0 | W31: 0
A33: Actual inflation
A34: Actual inflation | C34: 0.0297699594 | D34: 0.03285151117 | E34: 0.0203562341 | F34: 0.02369077307 | G34: 0.02923264312 | H34: 0.02485207101 | I34: 0.04272517321 | J34: 0.02436323367 | K34: 0.02918918919 | L34: 0.03256302521 | M34: 0.01627670397 | N34: 0.02502502503 | O34: 0.029296875 | P34: 0.01328273245 | Q34: 0.01310861423 | R34: 0.02125693161 | S34: 0.01900452489 | T34: 0.01332149201 | U34: 0.02191060473 | V34: 0.02191060473 | W34: 0.01332149201 | X34: 0.01900452489 | Y34: 0.02125693161 | Z34: 0.01310861423 | AA34: 0.01328273245 | AB34: 0.029296875 | AC34: 0.02502502503 | AD34: 0.01627670397 | AE34: 0.03256302521 | AF34: 0.02918918919 | AG34: 0.02436323367 | AH34: 0.04272517321 | AI34: 0.02485207101 | AJ34: 0.02923264312 | AK34: 0.02369077307 | AL34: 0.0203562341 | AM34: 0.03285151117 | AN34: 0.0297699594 | AO34: 0.0297699594 | AP34: 0.03285151117 | AQ34: 0.0203562341 | AR34: 0.02369077307 | AS34: 0.02923264312 | AT34: 0.02485207101 | AU34: 0.04272517321 | AV34: 0.02436323367 | AW34: 0.02918918919 | AX34: 0.03256302521 | AY34: 0.01627670397 | AZ34: 0.02502502503 | BA34: 0.029296875 | BB34: 0.01328273245 | BC34: 0.01310861423 | BD34: 0.02125693161 | BE34: 0.01900452489 | BF34: 0.01332149201 | BG34: 0.02191060473 | BH34: 0.02191060473 | BI34: 0.01332149201 | BJ34: 0.01900452489 | BK34: 0.02125693161 | BL34: 0.01310861423 | BM34: 0.01328273245 | BN34: 0.029296875 | BO34: 0.02502502503 | BP34: 0.01627670397 | BQ34: 0.03256302521 | BR34: 0.02918918919 | BS34: 0.02436323367 | BT34: 0.04272517321 | BU34: 0.02485207101
A35: Actual inflation index (lagged) | C35: 1 | D35: =C35*(1+C34) -> 1.029769959 | E35: =D35*(1+D34) -> 1.063599459 | F35: 1.085250338 | G35: 1.110960758 | H35: 1.143437077 | I35: 1.171853857 | J35: 1.221921516 | K35: 1.251691475 | L35: 1.288227334 | M35: 1.330175913 | N35: 1.351826793 | O35: 1.385656292 | P35: 1.426251691 | Q35: 1.445196211 | R35: 1.464140731 | S35: 1.49526387 | T35: 1.52368065 | U35: 1.543978349 | V35: 1.577807848 | W35: 1.612378573 | X35: =W35*(1+W34) -> 1.633857861 | Y35: 1.664908553 | Z35: 1.7002994 | AA35: 1.722587969 | AB35: 1.745468644 | AC35: 1.796605421 | AD35: 1.841565517 | AE35: 1.871540134 | AF35: 1.932483142 | AG35: 1.988890758 | AH35: 2.037346568 | AI35: 2.124392553 | AJ35: 2.177188108 | AK35: 2.240833071 | AL35: 2.293920139 | AM35: 2.340615714 | AN35: 2.417508477 | AO35: 2.489477607 | AP35: 2.563589254 | AQ35: 2.647807035 | AR35: 2.701706415 | AS35: 2.765711928 | AT35: 2.846560998 | AU35: 2.917303934 | AV35: 3.04194625 | AW35: 3.116057897 | AX35: 3.207013101 | AY35: 3.311443149 | AZ35: 3.365342529 | BA35: 3.44956031 | BB35: 3.550621647 | BC35: 3.597783605 | BD35: =BC35*(1+BC34) -> 3.644945562 | BE35: 3.722425921 | BF35: 3.793168857 | BG35: 3.843699525 | BH35: 3.927917306 | BI35: 4.01398035 | BJ35: 4.067452557 | BK35: 4.14475256 | BL35: 4.232857282 | BM35: 4.288344175 | BN35: 4.345305103 | BO35: 4.472608964 | BP35: 4.584536115 | BQ35: 4.659157252 | BR35: 4.810873507 | BS35: 4.951299004 | BT35: 5.071928659 | BU35: 5.288627689
A37: Nominal RoR (fixed real time varying) | D37: =(1+D16)*(1+D$34)-1 -> 0.05640073049 | E37: 0.04362055862 | F37: 0.04703112574 | G37: 0.05269935153 | H37: 0.04821890151 | I37: 0.06649951399 | J37: 0.04771891858 | K37: 0.05265490684 | L37: 0.056105667 | M37: 0.0394480144 | N37: 0.04839579891 | O37: 0.05276504791 | P37: 0.03638577973 | Q37: 0.03620769159 | R37: 0.04454179222 | S37: 0.04223803018 | T37: 0.03642542302 | U37: 0.04521036922 | V37: 0.04521036922 | W37: 0.03642542302
A38: =A4&" ("&B4&")" -> - Approach B (5 year estimate) | D38: =(1+D17)*(1+D$34)-1 -> 0.05899698662 | E38: 0.04618540564 | F38: 0.04960435472 | G38: 0.05528651099 | H38: 0.05079504961 | I38: 0.06912058932 | J38: 0.0502938379 | K38: 0.05524195707 | L38: 0.05870119796 | M38: 0.04200260679 | N38: 0.05097238177 | O38: 0.05535236883 | P38: 0.03893284625 | Q38: 0.03875432043 | R38: 0.0471089033 | S38: 0.04479947943 | T38: 0.03897258696 | U38: 0.04777912343 | V38: 0.04777912343 | W38: 0.03897258696
A39: - Approach C (linear glide path) | D39: =(1+D18)*(1+D$34)-1 -> 0.05795223853 | E39: 0.04515329676 | F39: 0.04856887289 | G39: 0.05424542345 | H39: 0.04975839311 | I39: 0.06806585384 | J39: 0.04925767587 | K39: 0.05420091349 | L39: 0.05765674168 | M39: 0.04097462443 | N39: 0.04993555032 | O39: 0.05431121632 | P39: 0.03790789234 | Q39: 0.03772954264 | R39: 0.04607588335 | S39: 0.04376873783 | T39: 0.03794759385 | U39: 0.04674544227 | V39: 0.04674544227 | W39: 0.03794759385
A40: - Approach D (unindexed RAB) | D40: =(1+D19)*(1+D$34)-1 -> 0.05640073049 | E40: 0.04362055862 | F40: 0.04703112574 | G40: 0.05269935153 | H40: 0.04821890151 | I40: 0.06649951399 | J40: 0.04771891858 | K40: 0.05265490684 | L40: 0.056105667 | M40: 0.0394480144 | N40: 0.04839579891 | O40: 0.05276504791 | P40: 0.03638577973 | Q40: 0.03620769159 | R40: 0.04454179222 | S40: 0.04223803018 | T40: 0.03642542302 | U40: 0.04521036922 | V40: 0.04521036922 | W40: 0.03642542302
A41: - Approach E (nominal - updated) | D41: =(1+D20)*(1+D$34)-1 -> 0.04892952112 | E41: 0.03314807412 | F41: 0.04921768957 | G41: 0.05146156094 | H41: 0.04134891467 | I41: 0.06403842759 | J41: 0.02738391408 | K41: 0.0507269479 | L41: 0.04922828874 | M41: 0.02930489574 | N41: 0.05480246372 | O41: 0.05015843086 | P41: 0.02952909635 | Q41: 0.04562029415 | R41: 0.05421125047 | S41: 0.04349346295 | T41: 0.03996752758 | U41: 0.05466440696 | V41: 0.0458 | W41: 0.03701009798
A42: - Approach F (nominal - indexed) | D42: =(1+D21)*(1+D$34)-1 -> 0.05640073049 | E42: 0.04362055862 | F42: 0.04703112574 | G42: 0.05269935153 | H42: 0.04821890151 | I42: 0.06649951399 | J42: 0.04771891858 | K42: 0.05265490684 | L42: 0.056105667 | M42: 0.0394480144 | N42: 0.04839579891 | O42: 0.05276504791 | P42: 0.03638577973 | Q42: 0.03620769159 | R42: 0.04454179222 | S42: 0.04223803018 | T42: 0.03642542302 | U42: 0.04521036922 | V42: 0.04521036922 | W42: 0.03642542302
A43: - Approach G (hybrid - weighted CPI) | D43: =(1+D22)*(1+D$34)-1 -> 0.05640073049 | E43: 0.04362055862 | F43: 0.04703112574 | G43: 0.05269935153 | H43: 0.04821890151 | I43: 0.06649951399 | J43: 0.04771891858 | K43: 0.05265490684 | L43: 0.056105667 | M43: 0.0394480144 | N43: 0.04839579891 | O43: 0.05276504791 | P43: 0.03638577973 | Q43: 0.03620769159 | R43: 0.04454179222 | S43: 0.04223803018 | T43: 0.03642542302 | U43: 0.04521036922 | V43: 0.04521036922 | W43: 0.03642542302
A44: - Approach H (hybrid - separate) | D44: =(1+D23)*(1+D$34)-1 -> 0.05640073049 | E44: 0.04362055862 | F44: 0.04703112574 | G44: 0.05269935153 | H44: 0.04821890151 | I44: 0.06649951399 | J44: 0.04771891858 | K44: 0.05265490684 | L44: 0.056105667 | M44: 0.0394480144 | N44: 0.04839579891 | O44: 0.05276504791 | P44: 0.03638577973 | Q44: 0.03620769159 | R44: 0.04454179222 | S44: 0.04223803018 | T44: 0.03642542302 | U44: 0.04521036922 | V44: 0.04521036922 | W44: 0.03642542302
A45: - Approach I (hybrid + swaps) | D45: 0.06107097222 | E45: 0.0482343005 | F45: 0.05165994539 | G45: 0.05735322984 | H45: 0.05285297219 | I45: 0.07121440143 | J45: 0.05235077889 | K45: 0.05730858866 | L45: 0.06077460428 | M45: 0.04404330987 | N45: 0.05303065164 | O45: 0.05741921666 | P45: 0.04096753737 | Q45: 0.04078866192 | R45: 0.04915960677 | S45: 0.04684566003 | T45: 0.04100735592 | U45: 0.04983113948 | V45: 0.04983113948 | W45: 0.04100735592
C47: Randomised inflation formula -> | F47: =_xlfn.NORM.INV(RAND(),'Actual CPI'!$E$7,'Actual CPI'!$E$8) -> 0.03481354297
A49: =IF(ROUND(SUM(BaseSmooth1_NPVdiff,BaseSmooth2_NPVdiff,BaseSmooth3_NPVdiff,BaseSmooth4_NPVdiff, BSmooth1_NPVdiff,BSmooth2_NPVdiff,BSmooth3_NPVdiff,BSmooth4_NPVdiff, CSmooth1_NPVdiff,CSmooth2_NPVdiff,CSmooth3_NPVdiff,CSmooth4_NPVdiff, DSmooth1_NPVdiff,DSmooth2_NPVdiff,DSmooth3_NPVdiff,DSmooth4_NPVdiff, ESmooth1_NPVdiff,ESmooth2_NPVdiff,ESmooth3_NPVdiff,ESmooth4_NPVdiff, FSmooth1_NPVdiff,FSmooth2_NPVdiff,FSmooth3_NPVdiff,FSmooth4_NPVdiff, GSmooth1_NPVdiff,GSmooth2_NPVdiff,GSmooth3_NPVdiff,GSmooth4_NPVdiff),0)=0,"Scenario updated","Scenario changed - update") -> Scenario updated | C49: Current AER estimation approach | H49: 5 year RBA approach | M49: Linear glide path (2.5 @y6) | R49: 5 year + glide/swaps
A50: Check outputs | C50: Year | D50: Estimate | E50: Source | F50: Outcome | H50: Year | I50: Estimate | J50: Source | K50: Outcome | M50: Year | N50: Estimate | O50: Source | P50: Outcome | R50: Year | S50: Estimate | T50: Source | U50: Outcome
C51: 1 | D51: 0.01 | E51: RBA SMP | F51: =GEOMEAN(1+D51:D60)-1 -> 0.0224870915 | H51: 1 | I51: =D51 -> 0.01 | J51: RBA SMP | K51: =GEOMEAN(1+I51:I55)-1 -> 0.0199803437 | M51: 1 | N51: =I51 -> 0.01 | O51: RBA SMP | P51: =GEOMEAN(1+N51:N60)-1 -> 0.02098759381 | R51: 1 | S51: =N51 -> 0.01 | T51: RBA SMP | U51: =GEOMEAN(1+S51:S55)-1 -> 0.01798667446
C52: 2 | D52: 0.015 | E52: RBA SMP | H52: 2 | I52: =D52 -> 0.015 | J52: RBA SMP | M52: 2 | N52: =I52 -> 0.015 | O52: RBA SMP | R52: 2 | S52: =N52 -> 0.015 | T52: RBA SMP
C53: 3 | D53: 0.025 | E53: RBA mid-band | H53: 3 | I53: 0.025 | J53: RBA mid-band | M53: 3 | N53: =N52+($N$56-$N$52)/4 -> 0.0175 | O53: glide | R53: 3 | S53: =S52+($S$55-$S$52)/3 -> 0.01833333333 | T53: glide
C54: 4 | D54: =D53 -> 0.025 | E54: RBA mid-band | H54: 4 | I54: =I53 -> 0.025 | J54: RBA mid-band | M54: 4 | N54: =N53+($N$56-$N$52)/4 -> 0.02 | O54: glide | R54: 4 | S54: =S53+($S$55-$S$52)/3 -> 0.02166666667 | T54: glide
C55: 5 | D55: =D54 -> 0.025 | E55: RBA mid-band | H55: 5 | I55: =I54 -> 0.025 | J55: RBA mid-band | M55: 5 | N55: 0.0225 | O55: glide | R55: 5 | S55: 0.025 | T55: RBA mid-band
C56: 6 | D56: 0.025 | E56: RBA mid-band | M56: 6 | N56: 0.025 | O56: RBA mid-band
C57: 7 | D57: 0.025 | E57: RBA mid-band | M57: 7 | N57: =N56 -> 0.025 | O57: RBA mid-band
C58: 8 | D58: 0.025 | E58: RBA mid-band | M58: 8 | N58: =N57 -> 0.025 | O58: RBA mid-band
C59: 9 | D59: 0.025 | E59: RBA mid-band | M59: 9 | N59: 0.025 | O59: RBA mid-band
C60: 10 | D60: 0.025 | E60: RBA mid-band | M60: 10 | N60: 0.025 | O60: RBA mid-band
C61: ="Ex-ante rate of return = "&ROUND(D16*100,2)&"%" -> Ex-ante rate of return = 2.28% | H61: ="Ex-ante rate of return = "&ROUND(D17*100,2)&"%" -> Ex-ante rate of return = 2.53% | M61: ="Ex-ante rate of return = "&ROUND(D18*100,2)&"%" -> Ex-ante rate of return = 2.43% | R61: ="Ex-ante rate of return = "&ROUND(I18*100,2)&"%" -> Ex-ante rate of return = 2.43%
C63: =GEOMEAN(1+Actual_Inflation)-1 -> 0.02408990953
B65: Historical | C65: 0.0297699594 | D65: 0.03285151117 | E65: 0.0203562341 | F65: 0.02369077307 | G65: 0.02923264312 | H65: 0.02485207101 | I65: 0.04272517321 | J65: 0.02436323367 | K65: 0.02918918919 | L65: 0.03256302521 | M65: 0.01627670397 | N65: 0.02502502503 | O65: 0.029296875 | P65: 0.01328273245 | Q65: 0.01310861423 | R65: 0.02125693161 | S65: 0.01900452489 | T65: 0.01332149201 | U65: 0.02191060473 | V65: 0.02191060473 | W65: 0.01332149201 | X65: 0.01900452489 | Y65: 0.02125693161 | Z65: 0.01310861423 | AA65: 0.01328273245 | AB65: 0.029296875 | AC65: 0.02502502503 | AD65: 0.01627670397 | AE65: 0.03256302521 | AF65: 0.02918918919 | AG65: 0.02436323367 | AH65: 0.04272517321 | AI65: 0.02485207101 | AJ65: 0.02923264312 | AK65: 0.02369077307 | AL65: 0.0203562341 | AM65: 0.03285151117 | AN65: 0.0297699594 | AO65: 0.0297699594 | AP65: 0.03285151117 | AQ65: 0.0203562341 | AR65: 0.02369077307 | AS65: 0.02923264312 | AT65: 0.02485207101 | AU65: 0.04272517321 | AV65: 0.02436323367 | AW65: 0.02918918919 | AX65: 0.03256302521 | AY65: 0.01627670397 | AZ65: 0.02502502503 | BA65: 0.029296875 | BB65: 0.01328273245 | BC65: 0.01310861423 | BD65: 0.02125693161 | BE65: 0.01900452489 | BF65: 0.01332149201 | BG65: 0.02191060473 | BH65: 0.02191060473 | BI65: 0.01332149201 | BJ65: 0.01900452489 | BK65: 0.02125693161 | BL65: 0.01310861423 | BM65: 0.01328273245 | BN65: 0.029296875 | BO65: 0.02502502503 | BP65: 0.01627670397 | BQ65: 0.03256302521 | BR65: 0.02918918919 | BS65: 0.02436323367 | BT65: 0.04272517321 | BU65: 0.02485207101
C74: 0.0297699594 | D74: 7 | E74: 0.0297699594
C75: 0.03285151117 | D75: 8 | E75: 0.03285151117
C76: 0.0203562341 | D76: 9 | E76: 0.0203562341
C77: 0.02369077307 | D77: 10 | E77: 0.02369077307
C78: 0.02923264312 | D78: 11 | E78: 0.02923264312
C79: 0.02485207101 | D79: 12 | E79: 0.02485207101
C80: 0.04272517321 | D80: 13 | E80: 0.04272517321
C81: 0.02436323367 | D81: 14 | E81: 0.02436323367
C82: 0.02918918919 | D82: 15 | E82: 0.02918918919
C83: 0.03256302521 | D83: 16 | E83: 0.03256302521
C84: 0.01627670397 | D84: 17 | E84: 0.01627670397
C85: 0.02502502503 | D85: 18 | E85: 0.02502502503
C86: 0.029296875 | D86: 19 | E86: 0.029296875
C87: 0.01328273245 | D87: 20 | E87: 0.01328273245
C88: 0.01310861423 | D88: 21 | E88: 0.01310861423
C89: 0.02125693161 | D89: 22 | E89: 0.02125693161
C90: 0.01900452489 | D90: 23 | E90: 0.01900452489
C91: 0.01332149201 | D91: 24 | E91: 0.01332149201
C92: 0.02191060473 | D92: 25 | E92: 0.02191060473

Sheet For Tech workshop
A1: Random inflation
A2: Estimation method | C2: 0 | D2: 1 | E2: 2 | F2: 3 | G2: 4 | H2: 5 | I2: 6 | J2: 7 | K2: 8 | L2: 9 | M2: 10 | N2: 11 | O2: 12 | P2: 13 | Q2: 14 | R2: 15 | S2: 16 | T2: 17 | U2: 18 | V2: 19 | W2: 20 | X2: 21 | Y2: 22 | Z2: 23 | AA2: 24 | AB2: 25 | AC2: 26 | AD2: 27 | AE2: 28 | AF2: 29 | AG2: 30 | AH2: 31 | AI2: 32 | AJ2: 33 | AK2: 34 | AL2: 35 | AM2: 36 | AN2: 37 | AO2: 38 | AP2: 39 | AQ2: 40 | AR2: 41 | AS2: 42 | AT2: 43 | AU2: 44 | AV2: 45 | AW2: 46 | AX2: 47 | AY2: 48 | AZ2: 49 | BA2: 50 | BB2: 51 | BC2: 52 | BD2: 53 | BE2: 54 | BF2: 55 | BG2: 56 | BH2: 57 | BI2: 58 | BJ2: 59 | BK2: 60 | BL2: 61 | BM2: 62 | BN2: 63 | BO2: 64 | BP2: 65 | BQ2: 66 | BR2: 67 | BS2: 68 | BT2: 69 | BU2: 70
A3: Nominal revenue
A4: Base case | D4: ='Output | General'!D50 -> 344.3748693 | E4: ='Output | General'!E50 -> 362.8216772 | F4: ='Output | General'!F50 -> 377.632127 | G4: ='Output | General'!G50 -> 394.3316259 | H4: ='Output | General'!H50 -> 413.9987666 | I4: ='Output | General'!I50 -> 433.3493319 | J4: ='Output | General'!J50 -> 461.5827457 | K4: ='Output | General'!K50 -> 482.9977696 | L4: ='Output | General'!L50 -> 507.7873968 | M4: ='Output | General'!M50 -> 535.5993775 | N4: ='Output | General'!N50 -> 558.8557019 | O4: ='Output | General'!O50 -> 586.7097921 | P4: ='Output | General'!P50 -> 618.5191817 | Q4: ='Output | General'!Q50 -> 641.9083075 | R4: ='Output | General'!R50 -> 666.0674124 | S4: ='Output | General'!S50 -> 697.3401397 | T4: ='Output | General'!T50 -> 728.6459523 | U4: ='Output | General'!U50 -> 757.1110599 | V4: ='Output | General'!V50 -> 793.3563026 | W4: ='Output | General'!W50 -> 831.3367169 | X4: ='Output | General'!X50 -> 871.5225312 | Y4: ='Output | General'!Y50 -> 878.1604039 | Z4: ='Output | General'!Z50 -> 886.3289078 | AA4: ='Output | General'!AA50 -> 886.975161 | AB4: ='Output | General'!AB50 -> 887.3267169 | AC4: ='Output | General'!AC50 -> 887.2756915 | AD4: ='Output | General'!AD50 -> 897.0394852 | AE4: ='Output | General'!AE50 -> 898.7446058 | AF4: ='Output | General'!AF50 -> 914.455479 | AG4: ='Output | General'!AG50 -> 926.9713076 | AH4: ='Output | General'!AH50 -> 506.2868773 | AI4: ='Output | General'!AI50 -> 501.7421023 | AJ4: ='Output | General'!AJ50 -> 490.4484056 | AK4: ='Output | General'!AK50 -> 479.9816214 | AL4: ='Output | General'!AL50 -> 465.5286717 | AM4: ='Output | General'!AM50 -> 449.946042 | AN4: ='Output | General'!AN50 -> 436.4469659 | AO4: ='Output | General'!AO50 -> 419.6995204 | AP4: ='Output | General'!AP50 -> 401.2604683 | AQ4: ='Output | General'!AQ50 -> 381.9881786 | AR4: ='Output | General'!AR50 -> 356.0867212 | AS4: ='Output | General'!AS50 -> 329.4827058 | AT4: ='Output | General'!AT50 -> 302.4564323 | AU4: ='Output | General'!AU50 -> 271.7642811 | AV4: ='Output | General'!AV50 -> 309.2201434 | AW4: ='Output | General'!AW50 -> 206.5000664 | AX4: ='Output | General'!AX50 -> 169.0897873 | AY4: ='Output | General'!AY50 -> 129.1984664 | AZ4: ='Output | General'!AZ50 -> 84.98875785 | BA4: ='Output | General'!BA50 -> 43.7759401
A5: 5 year | B5: =SUM(D5:AG5)/SUM(D$4:AG$4)-1 -> 0.02954816799 | D5: ='Output | General'!D66 -> 359.4990366 | E5: ='Output | General'!E66 -> 378.2353592 | F5: ='Output | General'!F66 -> 393.1338636 | G5: ='Output | General'!G66 -> 409.9545863 | H5: ='Output | General'!H66 -> 429.809299 | I5: ='Output | General'!I66 -> 450.5829487 | J5: ='Output | General'!J66 -> 479.9040091 | K5: ='Output | General'!K66 -> 502.1322639 | L5: ='Output | General'!L66 -> 527.865295 | M5: ='Output | General'!M66 -> 556.7361811 | N5: ='Output | General'!N66 -> 580.6141708 | O5: ='Output | General'!O66 -> 608.9205041 | P5: ='Output | General'!P66 -> 641.2682692 | Q5: ='Output | General'!Q66 -> 664.8273714 | R5: ='Output | General'!R66 -> 689.1335567 | S5: ='Output | General'!S66 -> 721.421563 | T5: ='Output | General'!T66 -> 753.0635057 | U5: ='Output | General'!U66 -> 781.7092045 | V5: ='Output | General'!V66 -> 818.3225179 | W5: ='Output | General'!W66 -> 856.6507078 | X5: ='Output | General'!X66 -> 897.2910372 | Y5: ='Output | General'!Y66 -> 902.4741456 | Z5: ='Output | General'!Z66 -> 909.1914057 | AA5: ='Output | General'!AA66 -> 908.1592769 | AB5: ='Output | General'!AB66 -> 906.801928 | AC5: ='Output | General'!AC66 -> 905.0060468 | AD5: ='Output | General'!AD66 -> 913.1703295 | AE5: ='Output | General'!AE66 -> 913.0715388 | AF5: ='Output | General'!AF66 -> 927.1242165 | AG5: ='Output | General'!AG66 -> 937.8312183 | AH5: ='Output | General'!AH66 -> 517.3977303 | AI5: ='Output | General'!AI66 -> 512.1157979 | AJ5: ='Output | General'!AJ66 -> 500.0128688 | AK5: ='Output | General'!AK66 -> 488.7771257 | AL5: ='Output | General'!AL66 -> 473.5072992 | AM5: ='Output | General'!AM66 -> 457.1173135 | AN5: ='Output | General'!AN66 -> 442.8761999 | AO5: ='Output | General'!AO66 -> 425.3607576 | AP5: ='Output | General'!AP66 -> 406.1701368 | AQ5: ='Output | General'!AQ66 -> 386.1704063 | AR5: ='Output | General'!AR66 -> 359.5087496 | AS5: ='Output | General'!AS66 -> 332.2021418 | AT5: ='Output | General'!AT66 -> 304.5191337 | AU5: ='Output | General'!AU66 -> 273.1957216 | AV5: ='Output | General'!AV66 -> 314.9738797 | AW5: ='Output | General'!AW66 -> 206.8638153 | AX5: ='Output | General'!AX66 -> 169.0178637 | AY5: ='Output | General'!AY66 -> 128.7721806 | AZ5: ='Output | General'!AZ66 -> 85.19562322 | BA5: ='Output | General'!BA66 -> 43.82969992
A6: Glide path | B6: =SUM(D6:AG6)/SUM(D$4:AG$4)-1 -> 0.01742459674 | D6: ='Output | General'!D82 -> 353.0719559 | E6: ='Output | General'!E82 -> 371.8062782 | F6: ='Output | General'!F82 -> 386.7979353 | G6: ='Output | General'!G82 -> 403.709103 | H6: ='Output | General'!H82 -> 423.6407226 | I6: ='Output | General'!I82 -> 443.2369163 | J6: ='Output | General'!J82 -> 471.8963444 | K6: ='Output | General'!K82 -> 493.5616705 | L6: ='Output | General'!L82 -> 518.6536889 | M6: ='Output | General'!M82 -> 546.8080135 | N6: ='Output | General'!N82 -> 571.8690399 | O6: ='Output | General'!O82 -> 599.9936577 | P6: ='Output | General'!P82 -> 632.1249321 | Q6: ='Output | General'!Q82 -> 655.6154325 | R6: ='Output | General'!R82 -> 679.8620226 | S6: ='Output | General'!S82 -> 711.7415595 | T6: ='Output | General'!T82 -> 743.2484325 | U6: ='Output | General'!U82 -> 771.8214068 | V6: ='Output | General'!V82 -> 808.2864337 | W6: ='Output | General'!W82 -> 846.4742662 | X6: ='Output | General'!X82 -> 886.932582 | Y6: ='Output | General'!Y82 -> 892.7008574 | Z6: ='Output | General'!Z82 -> 900.0019336 | AA6: ='Output | General'!AA82 -> 899.6449717 | AB6: ='Output | General'!AB82 -> 898.9751004 | AC6: ='Output | General'!AC82 -> 897.8811826 | AD6: ='Output | General'!AD82 -> 906.6890659 | AE6: ='Output | General'!AE82 -> 907.3160478 | AF6: ='Output | General'!AF82 -> 922.0360164 | AG6: ='Output | General'!AG82 -> 933.4708872 | AH6: ='Output | General'!AH82 -> 512.9327715 | AI6: ='Output | General'!AI82 -> 507.9481762 | AJ6: ='Output | General'!AJ82 -> 496.1709623 | AK6: ='Output | General'!AK82 -> 485.2447372 | AL6: ='Output | General'!AL82 -> 470.3036688 | AM6: ='Output | General'!AM82 -> 454.2386216 | AN6: ='Output | General'!AN82 -> 440.2961992 | AO6: ='Output | General'!AO82 -> 423.0899294 | AP6: ='Output | General'!AP82 -> 404.2018283 | AQ6: ='Output | General'!AQ82 -> 384.4949492 | AR6: ='Output | General'!AR82 -> 358.1392821 | AS6: ='Output | General'!AS82 -> 331.1154434 | AT6: ='Output | General'!AT82 -> 303.6968423 | AU6: ='Output | General'!AU82 -> 272.6276351 | AV6: ='Output | General'!AV82 -> 312.6263637 | AW6: ='Output | General'!AW82 -> 206.7257098 | AX6: ='Output | General'!AX82 -> 169.0549998 | AY6: ='Output | General'!AY82 -> 128.9518173 | AZ6: ='Output | General'!AZ82 -> 85.11242506 | BA6: ='Output | General'!BA82 -> 43.8080746
A7: Swaps | B7: =SUM(D7:AG7)/SUM(D$4:AG$4)-1 -> 0.05358768317 | D7: 372.7066016 | E7: 391.7983269 | F7: 406.8853017 | G7: 423.9341407 | H7: 444.0885208 | I7: 465.8778198 | J7: 495.6749152 | K7: 518.090909 | L7: 544.0718241 | M7: 573.2286039 | N7: 597.9325131 | O7: 626.5985255 | P7: 659.3754202 | Q7: 683.0714386 | R7: 707.4974282 | S7: 740.5961756 | T7: 772.5054494 | U7: 801.2956401 | V7: 838.2038665 | W7: 876.8121112 | X7: 917.8106633 | Y7: 921.8330535 | Z7: 927.3920083 | AA7: 925.020423 | AB7: 922.2990596 | AC7: 919.1103234 | AD7: 925.9971016 | AE7: 924.4579914 | AF7: 937.1858113 | AG7: 946.4478329 | AH7: 526.2368279 | AI7: 520.3617505 | AJ7: 507.6118755 | AK7: 495.7613006 | AL7: 479.8386152 | AM7: 462.8033029 | AN7: 447.968813 | AO7: 429.8390388 | AP7: 410.0474622 | AQ7: 389.465798 | AR7: 362.1963008 | AS7: 334.3281099 | AT7: 306.1195923 | AU7: 274.2907189 | AV7: 319.7678072 | AW7: 207.1036956 | AX7: 168.9101406 | AY7: 128.3819447 | AZ7: 85.36060277 | BA7: 43.87259792
A8: Real revenue
A9: Base case | D9: =D4/Inputs!D$35 -> 334.4192226 | E9: =E4/Inputs!E$35 -> 341.1262334 | F9: =F4/Inputs!F$35 -> 347.9677579 | G9: =G4/Inputs!G$35 -> 354.946494 | H9: =H4/Inputs!H$35 -> 362.0651935 | I9: =I4/Inputs!I$35 -> 369.7981019 | J9: =J4/Inputs!J$35 -> 377.7515494 | K9: =K4/Inputs!K$35 -> 385.876056 | L9: =L4/Inputs!L$35 -> 394.1753007 | M9: =M4/Inputs!M$35 -> 402.6530417 | N9: =N4/Inputs!N$35 -> 413.4077715 | O9: =O4/Inputs!O$35 -> 423.4165394 | P9: =P4/Inputs!P$35 -> 433.6676236 | Q9: =Q4/Inputs!Q$35 -> 444.1668906 | R9: =R4/Inputs!R$35 -> 454.9203492 | S9: =S4/Inputs!S$35 -> 466.3659396 | T9: =T4/Inputs!T$35 -> 478.2143506 | U9: =U4/Inputs!U$35 -> 490.3637802 | V9: =V4/Inputs!V$35 -> 502.8218762 | W9: =W4/Inputs!W$35 -> 515.5964803 | X9: =X4/Inputs!X$35 -> 533.413923 | Y9: =Y4/Inputs!Y$35 -> 527.4526353 | Z9: =Z4/Inputs!Z$35 -> 521.2781394 | AA9: =AA4/Inputs!AA$35 -> 514.9084846 | AB9: =AB4/Inputs!AB$35 -> 508.3601586 | AC9: =AC4/Inputs!AC$35 -> 493.8623033 | AD9: =AD4/Inputs!AD$35 -> 487.1070169 | AE9: =AE4/Inputs!AE$35 -> 480.2165819 | AF9: =AF4/Inputs!AF$35 -> 473.2023059 | AG9: =AG4/Inputs!AG$35 -> 466.0745211 | AH9: =AH4/Inputs!AH$35 -> 248.5030702 | AI9: =AI4/Inputs!AI$35 -> 236.1814446 | AJ9: =AJ4/Inputs!AJ$35 -> 225.2668953 | AK9: =AK4/Inputs!AK$35 -> 214.1978479 | AL9: =AL4/Inputs!AL$35 -> 202.9402261 | AM9: =AM4/Inputs!AM$35 -> 192.2340516 | AN9: =AN4/Inputs!AN$35 -> 180.5358575 | AO9: =AO4/Inputs!AO$35 -> 168.5893937 | AP9: =AP4/Inputs!AP$35 -> 156.5229171 | AQ9: =AQ4/Inputs!AQ$35 -> 144.2658674 | AR9: =AR4/Inputs!AR$35 -> 131.8006721 | AS9: =AS4/Inputs!AS$35 -> 119.1312452 | AT9: =AT4/Inputs!AT$35 -> 106.2532763 | AU9: =AU4/Inputs!AU$35 -> 93.15597115 | AV9: =AV4/Inputs!AV$35 -> 101.6520734 | AW9: =AW4/Inputs!AW$35 -> 66.26965006 | AX9: =AX4/Inputs!AX$35 -> 52.72500673 | AY9: =AY4/Inputs!AY$35 -> 39.01575855 | AZ9: =AZ4/Inputs!AZ$35 -> 25.25411815 | BA9: =BA4/Inputs!BA$35 -> 12.69029562
A10: 5 year | B10: =SUM(D10:BA10)-SUM(D$9:BA$9) -> 451.6890435 | C10: =SUM(D10:AG10)/SUM(D$9:AG$9)-1 -> 0.03102836374 | D10: =D5/Inputs!D$35 -> 349.1061604 | E10: =E5/Inputs!E$35 -> 355.6182321 | F10: =F5/Inputs!F$35 -> 362.2517771 | G10: =G5/Inputs!G$35 -> 369.0090613 | H10: =H5/Inputs!H$35 -> 375.8923928 | I10: =I5/Inputs!I$35 -> 384.504387 | J10: =J5/Inputs!J$35 -> 392.7453629 | K10: =K5/Inputs!K$35 -> 401.1629654 | L10: =L5/Inputs!L$35 -> 409.76098 | M10: =M5/Inputs!M$35 -> 418.5432735 | N10: =N5/Inputs!N$35 -> 429.5033756 | O10: =O5/Inputs!O$35 -> 439.4455591 | P10: =P5/Inputs!P$35 -> 449.6178852 | Q10: =Q5/Inputs!Q$35 -> 460.0256812 | R10: =R5/Inputs!R$35 -> 470.6743978 | S10: =S5/Inputs!S$35 -> 482.4710725 | T10: =T5/Inputs!T$35 -> 494.2397253 | U10: =U5/Inputs!U$35 -> 506.2954445 | V10: =V5/Inputs!V$35 -> 518.6452322 | W10: =W5/Inputs!W$35 -> 531.2962615 | X10: =X5/Inputs!X$35 -> 549.1854945 | Y10: =Y5/Inputs!Y$35 -> 542.0562852 | Z10: =Z5/Inputs!Z$35 -> 534.7242994 | AA10: =AA5/Inputs!AA$35 -> 527.2063273 | AB10: =AB5/Inputs!AB$35 -> 519.5177415 | AC10: =AC5/Inputs!AC$35 -> 503.7311121 | AD10: =AD5/Inputs!AD$35 -> 495.8663274 | AE10: =AE5/Inputs!AE$35 -> 487.8717386 | AF10: =AF5/Inputs!AF$35 -> 479.7579841 | AG10: =AG5/Inputs!AG$35 -> 471.5348063 | AH10: =AH5/Inputs!AH$35 -> 253.9566602 | AI10: =AI5/Inputs!AI$35 -> 241.0645796 | AJ10: =AJ5/Inputs!AJ$35 -> 229.6599302 | AK10: =AK5/Inputs!AK$35 -> 218.1229526 | AL10: =AL5/Inputs!AL$35 -> 206.4183888 | AM10: =AM5/Inputs!AM$35 -> 195.2978914 | AN10: =AN5/Inputs!AN$35 -> 183.1953038 | AO10: =AO5/Inputs!AO$35 -> 170.86346 | AP10: =AP5/Inputs!AP$35 -> 158.4380712 | AQ10: =AQ5/Inputs!AQ$35 -> 145.8453736 | AR10: =AR5/Inputs!AR$35 -> 133.0672895 | AS10: =AS5/Inputs!AS$35 -> 120.1145132 | AT10: =AT5/Inputs!AT$35 -> 106.9779056 | AU10: =AU5/Inputs!AU$35 -> 93.64664354 | AV10: =AV5/Inputs!AV$35 -> 103.5435388 | AW10: =AW5/Inputs!AW$35 -> 66.38638374 | AX10: =AX5/Inputs!AX$35 -> 52.70257975 | AY10: =AY5/Inputs!AY$35 -> 38.88702742 | AZ10: =AZ5/Inputs!AZ$35 -> 25.31558749 | BA10: =BA5/Inputs!BA$35 -> 12.70588016
A11: Glide path | B11: =SUM(D11:BA11)-SUM(D$9:BA$9) -> 266.1515778 | C11: =SUM(D11:AG11)/SUM(D$9:AG$9)-1 -> 0.01825563784 | D11: =D6/Inputs!D$35 -> 342.8648823 | E11: =E6/Inputs!E$35 -> 349.5735873 | F11: =F6/Inputs!F$35 -> 356.4135589 | G11: =G6/Inputs!G$35 -> 363.3873656 | H11: =H6/Inputs!H$35 -> 370.4976261 | I11: =I6/Inputs!I$35 -> 378.2356596 | J11: =J6/Inputs!J$35 -> 386.1920249 | K11: =K6/Inputs!K$35 -> 394.3157562 | L11: =L6/Inputs!L$35 -> 402.610374 | M11: =M6/Inputs!M$35 -> 411.079473 | N11: =N6/Inputs!N$35 -> 423.0342548 | O11: =O6/Inputs!O$35 -> 433.0032354 | P11: =P6/Inputs!P$35 -> 443.2071393 | Q11: =Q6/Inputs!Q$35 -> 453.6515024 | R11: =R6/Inputs!R$35 -> 464.3419914 | S11: =S6/Inputs!S$35 -> 475.9972963 | T11: =T6/Inputs!T$35 -> 487.7980387 | U11: =U6/Inputs!U$35 -> 499.8913406 | V11: =V6/Inputs!V$35 -> 512.284455 | W11: =W6/Inputs!W$35 -> 524.9848147 | X11: =X6/Inputs!X$35 -> 542.8456191 | Y11: =Y6/Inputs!Y$35 -> 536.18612 | Z11: =Z6/Inputs!Z$35 -> 529.3196794 | AA11: =AA6/Inputs!AA$35 -> 522.2635869 | AB11: =AB6/Inputs!AB$35 -> 515.0336577 | AC11: =AC6/Inputs!AC$35 -> 499.7653753 | AD11: =AD6/Inputs!AD$35 -> 492.3468959 | AE11: =AE6/Inputs!AE$35 -> 484.7964687 | AF11: =AF6/Inputs!AF$35 -> 477.1249986 | AG11: =AG6/Inputs!AG$35 -> 469.3424631 | AH11: =AH6/Inputs!AH$35 -> 251.7651044 | AI11: =AI6/Inputs!AI$35 -> 239.1027851 | AJ11: =AJ6/Inputs!AJ$35 -> 227.8953116 | AK11: =AK6/Inputs!AK$35 -> 216.5465797 | AL11: =AL6/Inputs!AL$35 -> 205.0218143 | AM11: =AM6/Inputs!AM$35 -> 194.0680048 | AN11: =AN6/Inputs!AN$35 -> 182.128089 | AO11: =AO6/Inputs!AO$35 -> 169.9512895 | AP11: =AP6/Inputs!AP$35 -> 157.6702772 | AQ11: =AQ6/Inputs!AQ$35 -> 145.212602 | AR11: =AR6/Inputs!AR$35 -> 132.5603997 | AS11: =AS6/Inputs!AS$35 -> 119.721595 | AT11: =AT6/Inputs!AT$35 -> 106.6890337 | AU11: =AU6/Inputs!AU$35 -> 93.45191355 | AV11: =AV6/Inputs!AV$35 -> 102.7718237 | AW11: =AW6/Inputs!AW$35 -> 66.34206314 | AX11: =AX6/Inputs!AX$35 -> 52.71415941 | AY11: =AY6/Inputs!AY$35 -> 38.9412747 | AZ11: =AZ6/Inputs!AZ$35 -> 25.29086544 | BA11: =BA6/Inputs!BA$35 -> 12.69961116
A12: Swaps | B12: 820.4439242 | C12: 0.05642843151 | D12: 361.9319036 | E12: 368.3701826 | F12: 374.92299 | G12: 381.5923629 | H12: 388.380375 | I12: 397.5562204 | J12: 405.6519774 | K12: 413.9125948 | L12: 422.3414299 | M12: 430.9419081 | N12: 442.3144792 | O12: 452.2034714 | P12: 462.3135556 | Q12: 472.6496748 | R12: 483.2168825 | S12: 495.2946979 | T12: 506.9996494 | U12: 518.9812158 | V12: 531.2459342 | W12: 543.800496 | X12: 561.7445805 | Y12: 553.6839967 | Z12: 545.4287698 | AA12: 536.9947273 | AB12: 528.3963868 | AC12: 511.5817917 | AD12: 502.8316534 | AE12: 493.9559347 | AF12: 484.9647559 | AG12: 475.867401 | AH12: 258.2952748 | AI12: 244.9462207 | AJ12: 233.1502992 | AK12: 221.2398143 | AL12: 209.1785171 | AM12: 197.7272479 | AN12: 185.3019431 | AO12: 172.6624252 | AP12: 159.9506096 | AQ12: 147.0900226 | AR12: 134.0621197 | AS12: 120.8832657 | AT12: 107.5402075 | AU12: 94.02204004 | AV12: 105.1196333 | AW12: 66.463402 | AX12: 52.66901685 | AY12: 38.76919987 | AZ12: 25.3646106 | BA12: 12.71831595
B14: Nominal return to capital | C14: Nominal return to capital
A15: Nominal return | B15: ex-ante | C15: ex-post
A16: Base case | B16: =Inputs!$D$15 -> 0.0458 | C16: ='Output | General'!B60 -> 0.04696775489
A17: 5 year | B17: =Inputs!$D$15 -> 0.0458 | C17: ='Output | General'!B76 -> 0.04936836283 | D17: =C17-$C$16 -> 0.002400607944
A18: Glide path | B18: =Inputs!$D$15 -> 0.0458 | C18: ='Output | General'!B92 -> 0.04840331023 | D18: =C18-$C$16 -> 0.001435555339
A19: Swaps | B19: 0.0458 | C19: 0.05128023236 | D19: =C19-$C$16 -> 0.004312477465
B20: Real return to capital | C20: Real return to capital
A21: Real return | B21: ex-ante | C21: ex-post
A22: Base case | B22: =Inputs!D16 -> 0.02280019835 | C22: ='Output | General'!B61 -> 0.0224634908
A23: 5 year | B23: =Inputs!D17 -> 0.02531387635 | C23: ='Output | General'!B77 -> 0.0247630698 | D23: =C23-$C$22 -> 0.002299578999
A24: Glide path | B24: =Inputs!D18 -> 0.02430235817 | C24: ='Output | General'!B93 -> 0.02383876931 | D24: =C24-$C$22 -> 0.001375278504
A25: Swaps | B25: 0.0273218955 | C25: 0.02659368441 | D25: =C25-$C$16 -> -0.02037407048
B26: Nominal return to equity | C26: Nominal return to equity
A27: Nominal return to Equity | B27: ex-ante | C27: ex-post
A28: Base case | B28: =Inputs!$D$14 -> 0.05 | C28: ='Output | General'!B57 -> 0.05317812981
A29: 5 year | B29: =Inputs!$D$14 -> 0.05 | C29: ='Output | General'!B73 -> 0.05936361551
A30: Glide path | B30: =Inputs!$D$14 -> 0.05 | C30: ='Output | General'!B89 -> 0.0568748118
A31: Swaps | B31: 0.05 | C31: 0.06430158865
B32: Real return to equity | C32: Real return to equity
A33: Real return to Equity | B33: ex-ante | C33: ex-post
A34: Base case | B34: =(1+Inputs!$D$14)/(1+Inputs!D3)-1 -> 0.02690782967 | C34: ='Output | General'!B58 -> 0.02842130648
A35: 5 year | B35: =(1+Inputs!$D$14)/(1+Inputs!D4)-1 -> 0.02943160277 | C35: ='Output | General'!B74 -> 0.03433202959
A36: Glide path | B36: =(1+Inputs!$D$14)/(1+Inputs!D5)-1 -> 0.02841602226 | C36: ='Output | General'!B90 -> 0.03195452769
A37: Swaps | B37: 0.03144768624 | C37: 0.03904657043
A48: $real customer bill
A49: Base case | C49: ='Output | General'!C232 -> 2000 | D49: ='Output | General'!D232 -> 1818.024028 | E49: ='Output | General'!E232 -> 1826.407792 | F49: ='Output | General'!F232 -> 1834.959697 | G49: ='Output | General'!G232 -> 1843.683117 | H49: ='Output | General'!H232 -> 1852.581492 | I49: ='Output | General'!I232 -> 1862.247627 | J49: ='Output | General'!J232 -> 1872.189437 | K49: ='Output | General'!K232 -> 1882.34507 | L49: ='Output | General'!L232 -> 1892.719126 | M49: ='Output | General'!M232 -> 1903.316302 | N49: ='Output | General'!N232 -> 1916.759714 | O49: ='Output | General'!O232 -> 1929.270674 | P49: ='Output | General'!P232 -> 1942.084529 | Q49: ='Output | General'!Q232 -> 1955.208613 | R49: ='Output | General'!R232 -> 1968.650436 | S49: ='Output | General'!S232 -> 1982.957424 | T49: ='Output | General'!T232 -> 1997.767938 | U49: ='Output | General'!U232 -> 2012.954725 | V49: ='Output | General'!V232 -> 2028.527345 | W49: ='Output | General'!W232 -> 2044.4956 | X49: ='Output | General'!X232 -> 2066.767404 | Y49: ='Output | General'!Y232 -> 2059.315794 | Z49: ='Output | General'!Z232 -> 2051.597674 | AA49: ='Output | General'!AA232 -> 2043.635606 | AB49: ='Output | General'!AB232 -> 2035.450198 | AC49: ='Output | General'!AC232 -> 2017.327879 | AD49: ='Output | General'!AD232 -> 2008.883771 | AE49: ='Output | General'!AE232 -> 2000.270727 | AF49: ='Output | General'!AF232 -> 1991.502882 | AG49: ='Output | General'!AG232 -> 1982.593151 | AH49: ='Output | General'!AH232 -> 1710.628838 | AI49: ='Output | General'!AI232 -> 1695.226806 | AJ49: ='Output | General'!AJ232 -> 1681.583619 | AK49: ='Output | General'!AK232 -> 1667.74731 | AL49: ='Output | General'!AL232 -> 1653.675283 | AM49: ='Output | General'!AM232 -> 1640.292565 | AN49: ='Output | General'!AN232 -> 1625.669822 | AO49: ='Output | General'!AO232 -> 1610.736742 | AP49: ='Output | General'!AP232 -> 1595.653646 | AQ49: ='Output | General'!AQ232 -> 1580.332334 | AR49: ='Output | General'!AR232 -> 1564.75084 | AS49: ='Output | General'!AS232 -> 1548.914056 | AT49: ='Output | General'!AT232 -> 1532.816595 | AU49: ='Output | General'!AU232 -> 1516.444964 | AV49: ='Output | General'!AV232 -> 1527.065092 | AW49: ='Output | General'!AW232 -> 1482.837063 | AX49: ='Output | General'!AX232 -> 1465.906258 | AY49: ='Output | General'!AY232 -> 1448.769698 | AZ49: ='Output | General'!AZ232 -> 1431.567648 | BA49: ='Output | General'!BA232 -> 1415.86287
A50: 5 year | B50: =AVERAGE(C50:AG50-C$49:AG$49) -> 16.63970651 | C50: ='Output | General'!C233 -> 2000 | D50: ='Output | General'!D233 -> 1836.382701 | E50: ='Output | General'!E233 -> 1844.52279 | F50: ='Output | General'!F233 -> 1852.814721 | G50: ='Output | General'!G233 -> 1861.261327 | H50: ='Output | General'!H233 -> 1869.865491 | I50: ='Output | General'!I233 -> 1880.630484 | J50: ='Output | General'!J233 -> 1890.931704 | K50: ='Output | General'!K233 -> 1901.453707 | L50: ='Output | General'!L233 -> 1912.201225 | M50: ='Output | General'!M233 -> 1923.179092 | N50: ='Output | General'!N233 -> 1936.87922 | O50: ='Output | General'!O233 -> 1949.306949 | P50: ='Output | General'!P233 -> 1962.022356 | Q50: ='Output | General'!Q233 -> 1975.032101 | R50: ='Output | General'!R233 -> 1988.342997 | S50: ='Output | General'!S233 -> 2003.088841 | T50: ='Output | General'!T233 -> 2017.799657 | U50: ='Output | General'!U233 -> 2032.869306 | V50: ='Output | General'!V233 -> 2048.30654 | W50: ='Output | General'!W233 -> 2064.120327 | X50: ='Output | General'!X233 -> 2086.481868 | Y50: ='Output | General'!Y233 -> 2077.570357 | Z50: ='Output | General'!Z233 -> 2068.405374 | AA50: ='Output | General'!AA233 -> 2059.007909 | AB50: ='Output | General'!AB233 -> 2049.397177 | AC50: ='Output | General'!AC233 -> 2029.66389 | AD50: ='Output | General'!AD233 -> 2019.832909 | AE50: ='Output | General'!AE233 -> 2009.839673 | AF50: ='Output | General'!AF233 -> 1999.69748 | AG50: ='Output | General'!AG233 -> 1989.418508 | AH50: ='Output | General'!AH233 -> 1717.445825 | AI50: ='Output | General'!AI233 -> 1701.330725 | AJ50: ='Output | General'!AJ233 -> 1687.074913 | AK50: ='Output | General'!AK233 -> 1672.653691 | AL50: ='Output | General'!AL233 -> 1658.022986 | AM50: ='Output | General'!AM233 -> 1644.122364 | AN50: ='Output | General'!AN233 -> 1628.99413 | AO50: ='Output | General'!AO233 -> 1613.579325 | AP50: ='Output | General'!AP233 -> 1598.047589 | AQ50: ='Output | General'!AQ233 -> 1582.306717 | AR50: ='Output | General'!AR233 -> 1566.334112 | AS50: ='Output | General'!AS233 -> 1550.143141 | AT50: ='Output | General'!AT233 -> 1533.722382 | AU50: ='Output | General'!AU233 -> 1517.058304 | AV50: ='Output | General'!AV233 -> 1529.429424 | AW50: ='Output | General'!AW233 -> 1482.98298 | AX50: ='Output | General'!AX233 -> 1465.878225 | AY50: ='Output | General'!AY233 -> 1448.608784 | AZ50: ='Output | General'!AZ233 -> 1431.644484 | BA50: ='Output | General'!BA233 -> 1415.88235
A51: Glide path | B51: =AVERAGE(C51:AG51-C$49:AG$49) -> 9.790024973 | C51: ='Output | General'!C234 -> 2000 | D51: ='Output | General'!D234 -> 1828.581103 | E51: ='Output | General'!E234 -> 1836.966984 | F51: ='Output | General'!F234 -> 1845.516949 | G51: ='Output | General'!G234 -> 1854.234207 | H51: ='Output | General'!H234 -> 1863.122033 | I51: ='Output | General'!I234 -> 1872.794574 | J51: ='Output | General'!J234 -> 1882.740031 | K51: ='Output | General'!K234 -> 1892.894695 | L51: ='Output | General'!L234 -> 1903.262968 | M51: ='Output | General'!M234 -> 1913.849341 | N51: ='Output | General'!N234 -> 1928.792818 | O51: ='Output | General'!O234 -> 1941.254044 | P51: ='Output | General'!P234 -> 1954.008924 | Q51: ='Output | General'!Q234 -> 1967.064378 | R51: ='Output | General'!R234 -> 1980.427489 | S51: ='Output | General'!S234 -> 1994.99662 | T51: ='Output | General'!T234 -> 2009.747548 | U51: ='Output | General'!U234 -> 2024.864176 | V51: ='Output | General'!V234 -> 2040.355569 | W51: ='Output | General'!W234 -> 2056.231018 | X51: ='Output | General'!X234 -> 2078.557024 | Y51: ='Output | General'!Y234 -> 2070.23265 | Z51: ='Output | General'!Z234 -> 2061.649599 | AA51: ='Output | General'!AA234 -> 2052.829484 | AB51: ='Output | General'!AB234 -> 2043.792072 | AC51: ='Output | General'!AC234 -> 2024.706719 | AD51: ='Output | General'!AD234 -> 2015.43362 | AE51: ='Output | General'!AE234 -> 2005.995586 | AF51: ='Output | General'!AF234 -> 1996.406248 | AG51: ='Output | General'!AG234 -> 1986.678079 | AH51: ='Output | General'!AH234 -> 1714.70638 | AI51: ='Output | General'!AI234 -> 1698.878481 | AJ51: ='Output | General'!AJ234 -> 1684.86914 | AK51: ='Output | General'!AK234 -> 1670.683225 | AL51: ='Output | General'!AL234 -> 1656.277268 | AM51: ='Output | General'!AM234 -> 1642.585006 | AN51: ='Output | General'!AN234 -> 1627.660111 | AO51: ='Output | General'!AO234 -> 1612.439112 | AP51: ='Output | General'!AP234 -> 1597.087846 | AQ51: ='Output | General'!AQ234 -> 1581.515753 | AR51: ='Output | General'!AR234 -> 1565.7005 | AS51: ='Output | General'!AS234 -> 1549.651994 | AT51: ='Output | General'!AT234 -> 1533.361292 | AU51: ='Output | General'!AU234 -> 1516.814892 | AV51: ='Output | General'!AV234 -> 1528.46478 | AW51: ='Output | General'!AW234 -> 1482.927579 | AX51: ='Output | General'!AX234 -> 1465.892699 | AY51: ='Output | General'!AY234 -> 1448.676593 | AZ51: ='Output | General'!AZ234 -> 1431.613582 | BA51: ='Output | General'!BA234 -> 1415.874514
A52: Swaps | B52: =AVERAGE(C52:AG52-C$49:AG$49) -> 34.12260788 | C52: 2000 | D52: 1858.998278 | E52: 1867.163236 | F52: 1875.473439 | G52: 1883.931468 | H52: 1892.539954 | I52: 1902.234926 | J52: 1912.465923 | K52: 1922.905336 | L52: 1933.55741 | M52: 1944.426476 | N52: 1956.125242 | O52: 1968.531947 | P52: 1981.215436 | Q52: 1994.181884 | R52: 2007.437602 | S52: 2021.381716 | T52: 2036.185467 | U52: 2051.3419 | V52: 2066.85942 | W52: 2082.746627 | X52: 2099.863453 | Y52: 2089.862771 | Z52: 2079.613317 | AA52: 2069.135252 | AB52: 2058.447074 | AC52: 2047.565748 | AD52: 2036.506841 | AE52: 2025.284631 | AF52: 2013.91222 | AG52: 2002.401626 | AH52: 1725.814461 | AI52: 1708.562721 | AJ52: 1693.680924 | AK52: 1678.605025 | AL52: 1663.340498 | AM52: 1647.892008 | AN52: 1632.263464 | AO52: 1616.458072 | AP52: 1600.478378 | AQ52: 1584.326313 | AR52: 1568.003228 | AS52: 1551.509929 | AT52: 1534.846709 | AU52: 1518.013375 | AV52: 1531.940539 | AW52: 1483.833307 | AX52: 1466.443601 | AY52: 1448.90855 | AZ52: 1431.998244 | BA52: 1416.044551
A54: Alternate targets | C54: 0 | D54: 1 | E54: 2 | F54: 3 | G54: 4 | H54: 5 | I54: 6 | J54: 7 | K54: 8 | L54: 9 | M54: 10 | N54: 11 | O54: 12 | P54: 13 | Q54: 14 | R54: 15 | S54: 16 | T54: 17 | U54: 18 | V54: 19 | W54: 20 | X54: 21 | Y54: 22 | Z54: 23 | AA54: 24 | AB54: 25 | AC54: 26 | AD54: 27 | AE54: 28 | AF54: 29 | AG54: 30 | AH54: 31 | AI54: 32 | AJ54: 33 | AK54: 34 | AL54: 35 | AM54: 36 | AN54: 37 | AO54: 38 | AP54: 39 | AQ54: 40 | AR54: 41 | AS54: 42 | AT54: 43 | AU54: 44 | AV54: 45 | AW54: 46 | AX54: 47 | AY54: 48 | AZ54: 49 | BA54: 50 | BB54: 51 | BC54: 52 | BD54: 53 | BE54: 54 | BF54: 55 | BG54: 56 | BH54: 57 | BI54: 58 | BJ54: 59 | BK54: 60 | BL54: 61 | BM54: 62 | BN54: 63 | BO54: 64 | BP54: 65 | BQ54: 66 | BR54: 67 | BS54: 68 | BT54: 69 | BU54: 70
A55: Nominal revenue
A56: Base case | D56: =D4 -> 344.3748693 | E56: 362.8216772 | F56: 377.632127 | G56: 394.3316259 | H56: 413.9987666 | I56: 433.3493319 | J56: 461.5827457 | K56: 482.9977696 | L56: 507.7873968 | M56: 535.5993775 | N56: 558.8557019 | O56: 586.7097921 | P56: 618.5191817 | Q56: 641.9083075 | R56: 666.0674124 | S56: 697.3401397 | T56: 728.6459523 | U56: 757.1110599 | V56: 793.3563026 | W56: 831.3367169 | X56: 871.5225312 | Y56: 878.1604039 | Z56: 886.3289078 | AA56: 886.975161 | AB56: 887.3267169 | AC56: 887.2756915 | AD56: 897.0394852 | AE56: 898.7446058 | AF56: 914.455479 | AG56: 926.9713076 | AH56: 506.2868773 | AI56: 501.7421023 | AJ56: =AJ4 -> 490.4484056 | AK56: 479.9816214 | AL56: 465.5286717 | AM56: 449.946042 | AN56: 436.4469659 | AO56: 419.6995204 | AP56: 401.2604683 | AQ56: 381.9881786 | AR56: 356.0867212 | AS56: 329.4827058 | AT56: 302.4564323 | AU56: 271.7642811 | AV56: 309.2201434 | AW56: 206.5000664 | AX56: 169.0897873 | AY56: 129.1984664 | AZ56: 84.98875785 | BA56: 43.7759401
A57: Hybrid (weighted CPI) | B57: =SUM(D57:AG57)/SUM(D$56:AG$56)-1 -> -0.01492267887 | D57: ='Output | General'!D146 -> 344.3748693 | E57: ='Output | General'!E146 -> 360.6371795 | F57: ='Output | General'!F146 -> 375.8287849 | G57: ='Output | General'!G146 -> 392.1716666 | H57: ='Output | General'!H146 -> 410.1119981 | I57: ='Output | General'!I146 -> 428.6865205 | J57: ='Output | General'!J146 -> 451.4663011 | K57: ='Output | General'!K146 -> 472.0680724 | L57: ='Output | General'!L146 -> 494.5411814 | M57: ='Output | General'!M146 -> 518.7661451 | N57: ='Output | General'!N146 -> 542.1452021 | O57: ='Output | General'!O146 -> 568.9507461 | P57: ='Output | General'!P146 -> 598.0784789 | Q57: ='Output | General'!Q146 -> 624.7692348 | R57: ='Output | General'!R146 -> 652.6065164 | S57: ='Output | General'!S146 -> 684.736721 | T57: ='Output | General'!T146 -> 717.4469057 | U57: ='Output | General'!U146 -> 750.0461531 | V57: ='Output | General'!V146 -> 786.7708548 | W57: ='Output | General'!W146 -> 825.2937175 | X57: ='Output | General'!X146 -> 858.6889474 | Y57: ='Output | General'!Y146 -> 868.2533294 | Z57: ='Output | General'!Z146 -> 877.4494542 | AA57: ='Output | General'!AA146 -> 886.2792583 | AB57: ='Output | General'!AB146 -> 894.7433957 | AC57: ='Output | General'!AC146 -> 874.5150207 | AD57: ='Output | General'!AD146 -> 882.0023576 | AE57: ='Output | General'!AE146 -> 889.1303646 | AF57: ='Output | General'!AF146 -> 895.8951032 | AG57: ='Output | General'!AG146 -> 902.2915726 | AH57: ='Output | General'!AH146 -> 503.7454577 | AI57: ='Output | General'!AI146 -> 489.8188592 | AJ57: ='Output | General'!AJ146 -> 478.0133769 | AK57: ='Output | General'!AK146 -> 465.0981765 | AL57: ='Output | General'!AL146 -> 450.9461735 | AM57: ='Output | General'!AM146 -> 449.4055157 | AN57: ='Output | General'!AN146 -> 431.7969953 | AO57: ='Output | General'!AO146 -> 412.5655463 | AP57: ='Output | General'!AP146 -> 391.9545454 | AQ57: ='Output | General'!AQ146 -> 369.7246285 | AR57: ='Output | General'!AR146 -> 357.099706 | AS57: ='Output | General'!AS146 -> 329.9290711 | AT57: ='Output | General'!AT146 -> 300.7642859 | AU57: ='Output | General'!AU146 -> 269.4848385 | AV57: ='Output | General'!AV146 -> 300.4099025 | AW57: ='Output | General'!AW146 -> 206.5000664 | AX57: ='Output | General'!AX146 -> 167.9886717 | AY57: ='Output | General'!AY146 -> 127.1045921 | AZ57: ='Output | General'!AZ146 -> 84.1223174 | BA57: ='Output | General'!BA146 -> 43.22237164
A58: Hybrid + swaps | B58: =SUM(D58:AG58)/SUM(D$56:AG$56)-1 -> 0.0113062727 | D58: ='Output | General'!D178 -> 372.7066683 | E58: ='Output | General'!E178 -> 388.4151309 | F58: ='Output | General'!F178 -> 402.809782 | G58: ='Output | General'!G178 -> 418.2847298 | H58: ='Output | General'!H178 -> 435.2979125 | I58: ='Output | General'!I178 -> 453.9269739 | J58: ='Output | General'!J178 -> 476.5059801 | K58: ='Output | General'!K178 -> 496.6338412 | L58: ='Output | General'!L178 -> 518.5909947 | M58: ='Output | General'!M178 -> 542.2336569 | N58: ='Output | General'!N178 -> 565.2534574 | O58: ='Output | General'!O178 -> 591.1485464 | P58: ='Output | General'!P178 -> 619.2647943 | Q58: ='Output | General'!Q178 -> 644.6543254 | R58: ='Output | General'!R178 -> 671.0388155 | S58: ='Output | General'!S178 -> 702.0207671 | T58: ='Output | General'!T178 -> 733.3808191 | U58: ='Output | General'!U178 -> 764.4316122 | V58: ='Output | General'!V178 -> 799.4911544 | W58: ='Output | General'!W178 -> 836.1586514 | X58: ='Output | General'!X178 -> 874.9700273 | Y58: ='Output | General'!Y178 -> 883.0308461 | Z58: ='Output | General'!Z178 -> 887.6412055 | AA58: ='Output | General'!AA178 -> 882.7004194 | AB58: ='Output | General'!AB178 -> 884.4991505 | AC58: ='Output | General'!AC178 -> 890.8557676 | AD58: ='Output | General'!AD178 -> 897.6799875 | AE58: ='Output | General'!AE178 -> 896.3323882 | AF58: ='Output | General'!AF178 -> 908.815566 | AG58: ='Output | General'!AG178 -> 917.9379669 | AH58: ='Output | General'!AH178 -> 518.6288578 | AI58: ='Output | General'!AI178 -> 513.4672042 | AJ58: ='Output | General'!AJ178 -> 501.6756634 | AK58: ='Output | General'!AK178 -> 490.7594862 | AL58: ='Output | General'!AL178 -> 475.8897418 | AM58: ='Output | General'!AM178 -> 458.1949715 | AN58: ='Output | General'!AN178 -> 444.0415849 | AO58: ='Output | General'!AO178 -> 426.8109878 | AP58: ='Output | General'!AP178 -> 407.8170778 | AQ58: ='Output | General'!AQ178 -> 388.1615505 | AR58: ='Output | General'!AR178 -> 361.9537607 | AS58: ='Output | General'!AS178 -> 334.13507 | AT58: ='Output | General'!AT178 -> 306.0890023 | AU58: ='Output | General'!AU178 -> 274.4960018 | AV58: ='Output | General'!AV178 -> 320.242122 | AW58: ='Output | General'!AW178 -> 208.3609719 | AX58: ='Output | General'!AX178 -> 169.9681756 | AY58: ='Output | General'!AY178 -> 129.1861154 | AZ58: ='Output | General'!AZ178 -> 85.89529242 | BA58: ='Output | General'!BA178 -> 44.14741116
A59: Nominal (updated) | B59: 0.004819468786 | D59: ='Output | General'!D114 -> 302.1342355 | E59: ='Output | General'!E114 -> 326.8860445 | F59: ='Output | General'!F114 -> 349.3870099 | G59: ='Output | General'!G114 -> 374.6572099 | H59: ='Output | General'!H114 -> 403.9300825 | I59: ='Output | General'!I114 -> 419.6938298 | J59: ='Output | General'!J114 -> 425.6068064 | K59: ='Output | General'!K114 -> 424.0027458 | L59: ='Output | General'!L114 -> 424.3947537 | M59: ='Output | General'!M114 -> 426.1796398 | N59: ='Output | General'!N114 -> 619.8025089 | O59: ='Output | General'!O114 -> 633.7647709 | P59: ='Output | General'!P114 -> 650.7423102 | Q59: ='Output | General'!Q114 -> 657.7789674 | R59: ='Output | General'!R114 -> 664.7774617 | S59: ='Output | General'!S114 -> 712.6999688 | T59: ='Output | General'!T114 -> 753.148432 | U59: ='Output | General'!U114 -> 791.4537736 | V59: ='Output | General'!V114 -> 838.757051 | W59: ='Output | General'!W114 -> 888.8875309 | X59: ='Output | General'!X114 -> 969.4711721 | Y59: ='Output | General'!Y114 -> 909.8145065 | Z59: ='Output | General'!Z114 -> 893.1716948 | AA59: ='Output | General'!AA114 -> 970.7727068 | AB59: ='Output | General'!AB114 -> 963.0129758 | AC59: ='Output | General'!AC114 -> 838.6010329 | AD59: ='Output | General'!AD114 -> 885.4747947 | AE59: ='Output | General'!AE114 -> 950.5069108 | AF59: ='Output | General'!AF114 -> 858.8625814 | AG59: ='Output | General'!AG114 -> 897.7647328 | AH59: ='Output | General'!AH114 -> 497.7134719 | AI59: ='Output | General'!AI114 -> 408.59281 | AJ59: ='Output | General'!AJ114 -> 481.104856 | AK59: ='Output | General'!AK114 -> 453.4238682 | AL59: ='Output | General'!AL114 -> 461.8322933 | AM59: ='Output | General'!AM114 -> 456.2173036 | AN59: ='Output | General'!AN114 -> 403.2517069 | AO59: ='Output | General'!AO114 -> 398.6193293 | AP59: ='Output | General'!AP114 -> 382.4081331 | AQ59: ='Output | General'!AQ114 -> 358.6890706 | AR59: ='Output | General'!AR114 -> 359.8460491 | AS59: ='Output | General'!AS114 -> 327.2219721 | AT59: ='Output | General'!AT114 -> 293.4329944 | AU59: ='Output | General'!AU114 -> 269.6299922 | AV59: ='Output | General'!AV114 -> 288.6301567 | AW59: ='Output | General'!AW114 -> 206.849121 | AX59: ='Output | General'!AX114 -> 167.7097085 | AY59: ='Output | General'!AY114 -> 127.9815157 | AZ59: ='Output | General'!AZ114 -> 86.61059968 | BA59: ='Output | General'!BA114 -> 43.76001472
A60: Real revenue
A61: Base case | D61: =D56/Inputs!D$35 -> 334.4192226 | E61: =E56/Inputs!E$35 -> 341.1262334 | F61: =F56/Inputs!F$35 -> 347.9677579 | G61: =G56/Inputs!G$35 -> 354.946494 | H61: =H56/Inputs!H$35 -> 362.0651935 | I61: =I56/Inputs!I$35 -> 369.7981019 | J61: =J56/Inputs!J$35 -> 377.7515494 | K61: =K56/Inputs!K$35 -> 385.876056 | L61: =L56/Inputs!L$35 -> 394.1753007 | M61: =M56/Inputs!M$35 -> 402.6530417 | N61: =N56/Inputs!N$35 -> 413.4077715 | O61: =O56/Inputs!O$35 -> 423.4165394 | P61: =P56/Inputs!P$35 -> 433.6676236 | Q61: =Q56/Inputs!Q$35 -> 444.1668906 | R61: =R56/Inputs!R$35 -> 454.9203492 | S61: =S56/Inputs!S$35 -> 466.3659396 | T61: =T56/Inputs!T$35 -> 478.2143506 | U61: =U56/Inputs!U$35 -> 490.3637802 | V61: =V56/Inputs!V$35 -> 502.8218762 | W61: =W56/Inputs!W$35 -> 515.5964803 | X61: =X56/Inputs!X$35 -> 533.413923 | Y61: =Y56/Inputs!Y$35 -> 527.4526353 | Z61: =Z56/Inputs!Z$35 -> 521.2781394 | AA61: =AA56/Inputs!AA$35 -> 514.9084846 | AB61: =AB56/Inputs!AB$35 -> 508.3601586 | AC61: =AC56/Inputs!AC$35 -> 493.8623033 | AD61: =AD56/Inputs!AD$35 -> 487.1070169 | AE61: =AE56/Inputs!AE$35 -> 480.2165819 | AF61: =AF56/Inputs!AF$35 -> 473.2023059 | AG61: =AG56/Inputs!AG$35 -> 466.0745211 | AH61: =AH56/Inputs!AH$35 -> 248.5030702 | AI61: =AI56/Inputs!AI$35 -> 236.1814446 | AJ61: =AJ56/Inputs!AJ$35 -> 225.2668953 | AK61: =AK56/Inputs!AK$35 -> 214.1978479 | AL61: =AL56/Inputs!AL$35 -> 202.9402261 | AM61: =AM56/Inputs!AM$35 -> 192.2340516 | AN61: =AN56/Inputs!AN$35 -> 180.5358575 | AO61: =AO56/Inputs!AO$35 -> 168.5893937 | AP61: =AP56/Inputs!AP$35 -> 156.5229171 | AQ61: =AQ56/Inputs!AQ$35 -> 144.2658674 | AR61: =AR56/Inputs!AR$35 -> 131.8006721 | AS61: =AS56/Inputs!AS$35 -> 119.1312452 | AT61: =AT56/Inputs!AT$35 -> 106.2532763 | AU61: =AU56/Inputs!AU$35 -> 93.15597115 | AV61: =AV56/Inputs!AV$35 -> 101.6520734 | AW61: =AW56/Inputs!AW$35 -> 66.26965006 | AX61: =AX56/Inputs!AX$35 -> 52.72500673 | AY61: =AY56/Inputs!AY$35 -> 39.01575855 | AZ61: =AZ56/Inputs!AZ$35 -> 25.25411815 | BA61: =BA56/Inputs!BA$35 -> 12.69029562
A62: Hybrid (weighted CPI) | B62: =SUM(D62:BA62)-SUM(D$61:BA$61) -> -243.4075958 | D62: =D57/Inputs!D$35 -> 334.4192226 | E62: =E57/Inputs!E$35 -> 339.0723609 | F62: =F57/Inputs!F$35 -> 346.3060748 | G62: =G57/Inputs!G$35 -> 353.0022675 | H62: =H57/Inputs!H$35 -> 358.665996 | I62: =I57/Inputs!I$35 -> 365.8190978 | J62: =J57/Inputs!J$35 -> 369.4724214 | K62: =K57/Inputs!K$35 -> 377.144114 | L62: =L57/Inputs!L$35 -> 383.8927868 | M62: =M57/Inputs!M$35 -> 389.9981498 | N62: =N57/Inputs!N$35 -> 401.0463507 | O62: =O57/Inputs!O$35 -> 410.6001967 | P62: =P57/Inputs!P$35 -> 419.3358595 | Q62: =Q57/Inputs!Q$35 -> 432.307551 | R62: =R57/Inputs!R$35 -> 445.7266318 | S62: =S57/Inputs!S$35 -> 457.9370469 | T62: =T57/Inputs!T$35 -> 470.8643546 | U62: =U57/Inputs!U$35 -> 485.7879993 | V62: =V57/Inputs!V$35 -> 498.6480804 | W62: =W57/Inputs!W$35 -> 511.8486015 | X62: =X57/Inputs!X$35 -> 525.5591493 | Y62: =Y57/Inputs!Y$35 -> 521.5021136 | Z62: =Z57/Inputs!Z$35 -> 516.0558511 | AA62: =AA57/Inputs!AA$35 -> 514.5044979 | AB62: =AB57/Inputs!AB$35 -> 512.6092631 | AC62: =AC57/Inputs!AC$35 -> 486.759647 | AD62: =AD57/Inputs!AD$35 -> 478.9416122 | AE62: =AE57/Inputs!AE$35 -> 475.0795073 | AF62: =AF57/Inputs!AF$35 -> 463.597888 | AG62: =AG57/Inputs!AG$35 -> 453.6657275 | AH62: =AH57/Inputs!AH$35 -> 247.2556537 | AI62: =AI57/Inputs!AI$35 -> 230.5689023 | AJ62: =AJ57/Inputs!AJ$35 -> 219.5553867 | AK62: =AK57/Inputs!AK$35 -> 207.5559231 | AL62: =AL57/Inputs!AL$35 -> 196.5832053 | AM62: =AM57/Inputs!AM$35 -> 192.0031183 | AN62: =AN57/Inputs!AN$35 -> 178.6124017 | AO62: =AO57/Inputs!AO$35 -> 165.7237427 | AP62: =AP57/Inputs!AP$35 -> 152.8928805 | AQ62: =AQ57/Inputs!AQ$35 -> 139.6342799 | AR62: =AR57/Inputs!AR$35 -> 132.1756147 | AS62: =AS57/Inputs!AS$35 -> 119.2926377 | AT62: =AT57/Inputs!AT$35 -> 105.6588234 | AU62: =AU57/Inputs!AU$35 -> 92.37461869 | AV62: =AV57/Inputs!AV$35 -> 98.75582205 | AW62: =AW57/Inputs!AW$35 -> 66.26965006 | AX62: =AX57/Inputs!AX$35 -> 52.38166058 | AY62: =AY57/Inputs!AY$35 -> 38.38344382 | AZ62: =AZ57/Inputs!AZ$35 -> 24.99665834 | BA62: =BA57/Inputs!BA$35 -> 12.52982054
A63: Hybrid + swaps | B63: =SUM(D63:BA63)-SUM(D$61:BA$61) -> 247.3196583 | D63: =D58/Inputs!D$35 -> 361.9319683 | E63: =E58/Inputs!E$35 -> 365.1892897 | F63: =F58/Inputs!F$35 -> 371.1676171 | G63: =G58/Inputs!G$35 -> 376.507205 | H63: =H58/Inputs!H$35 -> 380.6924939 | I63: =I58/Inputs!I$35 -> 387.3580066 | J63: =J58/Inputs!J$35 -> 389.9644732 | K63: =K58/Inputs!K$35 -> 396.7701715 | L63: =L58/Inputs!L$35 -> 402.5617071 | M63: =M58/Inputs!M$35 -> 407.640562 | N63: =N58/Inputs!N$35 -> 418.1404455 | O63: =O58/Inputs!O$35 -> 426.6198983 | P63: =P58/Inputs!P$35 -> 434.1904013 | Q63: =Q58/Inputs!Q$35 -> 446.0669911 | R63: =R58/Inputs!R$35 -> 458.3157899 | S63: =S58/Inputs!S$35 -> 469.4962415 | T63: =T58/Inputs!T$35 -> 481.3218697 | U63: =U58/Inputs!U$35 -> 495.1051371 | V63: =V58/Inputs!V$35 -> 506.7100884 | W63: =W58/Inputs!W$35 -> 518.5870524 | X63: =X58/Inputs!X$35 -> 535.5239573 | Y63: =Y58/Inputs!Y$35 -> 530.3779865 | Z63: =Z58/Inputs!Z$35 -> 522.0499433 | AA63: =AA58/Inputs!AA$35 -> 512.4269036 | AB63: =AB58/Inputs!AB$35 -> 506.7402117 | AC63: =AC58/Inputs!AC$35 -> 495.8549925 | AD63: =AD58/Inputs!AD$35 -> 487.45482 | AE63: =AE58/Inputs!AE$35 -> 478.9276875 | AF63: =AF58/Inputs!AF$35 -> 470.2838261 | AG63: =AG58/Inputs!AG$35 -> 461.5326222 | AH63: =AH58/Inputs!AH$35 -> 254.5609401 | AI63: =AI58/Inputs!AI$35 -> 241.7007174 | AJ63: =AJ58/Inputs!AJ$35 -> 230.4236651 | AK63: =AK58/Inputs!AK$35 -> 219.0076059 | AL63: =AL58/Inputs!AL$35 -> 207.4569789 | AM63: =AM58/Inputs!AM$35 -> 195.7583078 | AN63: =AN58/Inputs!AN$35 -> 183.6773641 | AO63: =AO58/Inputs!AO$35 -> 171.446004 | AP63: =AP58/Inputs!AP$35 -> 159.0805068 | AQ63: =AQ58/Inputs!AQ$35 -> 146.5973711 | AR63: =AR58/Inputs!AR$35 -> 133.9722772 | AS63: =AS58/Inputs!AS$35 -> 120.8134031 | AT63: =AT58/Inputs!AT$35 -> 107.5294021 | AU63: =AU58/Inputs!AU$35 -> 94.0923565 | AV63: =AV58/Inputs!AV$35 -> 105.2754045 | AW63: =AW58/Inputs!AW$35 -> 66.8668487 | AX63: =AX58/Inputs!AX$35 -> 52.99890278 | AY63: =AY58/Inputs!AY$35 -> 39.01202876 | AZ63: =AZ58/Inputs!AZ$35 -> 25.52349179 | BA63: =BA58/Inputs!BA$35 -> 12.79798212
A64: Nominal (updated) | B64: -123.7288148 | D64: =D59/Inputs!D$35 -> 293.3997372 | E64: =E59/Inputs!E$35 -> 307.3394235 | F64: =F59/Inputs!F$35 -> 321.9413969 | G64: =G59/Inputs!G$35 -> 337.2371232 | H64: =H59/Inputs!H$35 -> 353.2595632 | I64: =I59/Inputs!I$35 -> 358.1451965 | J64: =J59/Inputs!J$35 -> 348.3094462 | K64: =K59/Inputs!K$35 -> 338.7438153 | L64: =L59/Inputs!L$35 -> 329.4408855 | M64: =M59/Inputs!M$35 -> 320.3934423 | N64: =N59/Inputs!N$35 -> 458.4925466 | O64: =O59/Inputs!O$35 -> 457.3751618 | P64: =P59/Inputs!P$35 -> 456.2605002 | Q64: =Q59/Inputs!Q$35 -> 455.1485551 | R64: =R59/Inputs!R$35 -> 454.0393199 | S64: =S59/Inputs!S$35 -> 476.6382597 | T64: =T59/Inputs!T$35 -> 494.2954629 | U64: =U59/Inputs!U$35 -> 512.6067824 | V64: =V59/Inputs!V$35 -> 531.59645 | W64: =W59/Inputs!W$35 -> 551.2895954 | X64: =X59/Inputs!X$35 -> 593.3632266 | Y64: =Y59/Inputs!Y$35 -> 546.4651526 | Z64: =Z59/Inputs!Z$35 -> 525.3025994 | AA64: =AA59/Inputs!AA$35 -> 563.5547932 | AB64: =AB59/Inputs!AB$35 -> 551.7217275 | AC64: =AC59/Inputs!AC$35 -> 466.7697331 | AD64: =AD59/Inputs!AD$35 -> 480.827202 | AE64: =AE59/Inputs!AE$35 -> 507.8741801 | AF64: =AF59/Inputs!AF$35 -> 444.4347082 | AG64: =AG59/Inputs!AG$35 -> 451.3896649 | AH64: =AH59/Inputs!AH$35 -> 244.294947 | AI64: =AI59/Inputs!AI$35 -> 192.3339494 | AJ64: =AJ59/Inputs!AJ$35 -> 220.9753279 | AK64: =AK59/Inputs!AK$35 -> 202.3461159 | AL64: =AL59/Inputs!AL$35 -> 201.3288455 | AM64: =AM59/Inputs!AM$35 -> 194.9133729 | AN64: =AN59/Inputs!AN$35 -> 166.8046713 | AO64: =AO59/Inputs!AO$35 -> 160.121677 | AP64: =AP59/Inputs!AP$35 -> 149.1690342 | AQ64: =AQ59/Inputs!AQ$35 -> 135.4664694 | AR64: =AR59/Inputs!AR$35 -> 133.1921363 | AS64: =AS59/Inputs!AS$35 -> 118.3138304 | AT64: =AT59/Inputs!AT$35 -> 103.0833327 | AU64: =AU59/Inputs!AU$35 -> 92.42437481 | AV64: =AV59/Inputs!AV$35 -> 94.88338483 | AW64: =AW59/Inputs!AW$35 -> 66.38166807 | AX64: =AX59/Inputs!AX$35 -> 52.29467521 | AY64: =AY59/Inputs!AY$35 -> 38.64825997 | AZ64: =AZ59/Inputs!AZ$35 -> 25.73604289 | BA64: =BA59/Inputs!BA$35 -> 12.68567898
B66: =A67 -> Nominal return | C66: =A67 -> Nominal return
A67: Nominal return | B67: ex-ante | C67: ex-post
A68: Base case | B68: =B16 -> 0.0458 | C68: =C16 -> 0.04696775489
A69: Hybrid (weighted CPI) | B69: =Inputs!$D$15 -> 0.0458 | C69: ='Output | General'!B156 -> 0.04574149696 | D69: =C69-C$68 -> -0.001226257934
A70: Hybrid + swaps | B70: =Inputs!$D$15 -> 0.0458 | C70: ='Output | General'!B188 -> 0.04836727542 | D70: =C70-C$68 -> 0.001399520526
A71: Nominal (updated) | B71: =Inputs!$D$15 -> 0.0458 | C71: ='Output | General'!B124 -> 0.04580000013 | D71: =C71-C$68 -> -0.001167754756
B72: =A73 -> Real return | C72: =A73 -> Real return
A73: Real return | B73: ex-ante | C73: ex-post
A74: Base case | B74: =B22 -> 0.02280019835 | C74: =C22 -> 0.0224634908
A75: Hybrid (weighted CPI) | B75: =Inputs!D22 -> 0.02280019835 | C75: ='Output | General'!B157 -> 0.02129541816 | D75: =C75-C$74 -> -0.001168072648
A76: Hybrid + swaps | B76: =Inputs!D24 -> 0.0273218955 | C76: ='Output | General'!B189 -> 0.02380442757 | D76: =C76-C$74 -> 0.001340936763
A77: Nominal (updated) | B77: =Inputs!D20 -> 0.01556662286 | C77: ='Output | General'!B125 -> 0.02137904141 | D77: =C77-C$74 -> -0.001084449395
B78: =A79 -> Nominal return to Equity | C78: =A79 -> Nominal return to Equity
A79: Nominal return to Equity | B79: ex-ante | C79: ex-post
A80: Base case | B80: =B28 -> 0.05 | C80: =C28 -> 0.05317812981
A81: Hybrid (weighted CPI) | B81: =Inputs!$D$14 -> 0.05 | C81: ='Output | General'!B153 -> 0.05001731601
A82: Hybrid + swaps | B82: =Inputs!$D$14 -> 0.05 | C82: ='Output | General'!B185 -> 0.05612233976
A83: Nominal (updated) | B83: =Inputs!$D$14 -> 0.05 | C83: ='Output | General'!B121 -> 0.05007931494
B84: =A85 -> Real return to Equity | C84: =A85 -> Real return to Equity
A85: Real return to Equity | B85: ex-ante | C85: ex-post
A86: Base case | B86: =B34 -> 0.02690782967 | C86: =C34 -> 0.02842130648
A87: Hybrid (weighted CPI) | B87: =(1+Inputs!$D$14)/(1+Inputs!D9)-1 -> 0.02690782967 | C87: ='Output | General'!B154 -> 0.02540666252
A88: Hybrid + swaps | B88: =(1+Inputs!$D$14)/(1+Inputs!D11)-1 -> 0.03144768624 | C88: ='Output | General'!B186 -> 0.03122854561
A89: Nominal (updated) | B89: =(1+Inputs!$D$14)/(1+Inputs!D7)-1 -> 0.01964520368 | C89: ='Output | General'!B125 -> 0.02137904141
A99: $real customer bill
A100: Base case | C100: ='Output | General'!C232 -> 2000 | D100: ='Output | General'!D232 -> 1818.024028 | E100: ='Output | General'!E232 -> 1826.407792 | F100: ='Output | General'!F232 -> 1834.959697 | G100: ='Output | General'!G232 -> 1843.683117 | H100: ='Output | General'!H232 -> 1852.581492 | I100: ='Output | General'!I232 -> 1862.247627 | J100: ='Output | General'!J232 -> 1872.189437 | K100: ='Output | General'!K232 -> 1882.34507 | L100: ='Output | General'!L232 -> 1892.719126 | M100: ='Output | General'!M232 -> 1903.316302 | N100: ='Output | General'!N232 -> 1916.759714 | O100: ='Output | General'!O232 -> 1929.270674 | P100: ='Output | General'!P232 -> 1942.084529 | Q100: ='Output | General'!Q232 -> 1955.208613 | R100: ='Output | General'!R232 -> 1968.650436 | S100: ='Output | General'!S232 -> 1982.957424 | T100: ='Output | General'!T232 -> 1997.767938 | U100: ='Output | General'!U232 -> 2012.954725 | V100: ='Output | General'!V232 -> 2028.527345 | W100: ='Output | General'!W232 -> 2044.4956 | X100: ='Output | General'!X232 -> 2066.767404 | Y100: ='Output | General'!Y232 -> 2059.315794 | Z100: ='Output | General'!Z232 -> 2051.597674 | AA100: ='Output | General'!AA232 -> 2043.635606 | AB100: ='Output | General'!AB232 -> 2035.450198 | AC100: ='Output | General'!AC232 -> 2017.327879 | AD100: ='Output | General'!AD232 -> 2008.883771 | AE100: ='Output | General'!AE232 -> 2000.270727 | AF100: ='Output | General'!AF232 -> 1991.502882 | AG100: ='Output | General'!AG232 -> 1982.593151 | AH100: ='Output | General'!AH232 -> 1710.628838 | AI100: ='Output | General'!AI232 -> 1695.226806 | AJ100: ='Output | General'!AJ232 -> 1681.583619 | AK100: ='Output | General'!AK232 -> 1667.74731 | AL100: ='Output | General'!AL232 -> 1653.675283 | AM100: ='Output | General'!AM232 -> 1640.292565 | AN100: ='Output | General'!AN232 -> 1625.669822 | AO100: ='Output | General'!AO232 -> 1610.736742 | AP100: ='Output | General'!AP232 -> 1595.653646 | AQ100: ='Output | General'!AQ232 -> 1580.332334 | AR100: ='Output | General'!AR232 -> 1564.75084 | AS100: ='Output | General'!AS232 -> 1548.914056 | AT100: ='Output | General'!AT232 -> 1532.816595 | AU100: ='Output | General'!AU232 -> 1516.444964 | AV100: ='Output | General'!AV232 -> 1527.065092 | AW100: ='Output | General'!AW232 -> 1482.837063 | AX100: ='Output | General'!AX232 -> 1465.906258 | AY100: ='Output | General'!AY232 -> 1448.769698 | AZ100: ='Output | General'!AZ232 -> 1431.567648 | BA100: ='Output | General'!BA232 -> 1415.86287
A101: Hybrid (weighted CPI) | B101: =AVERAGE(C101:AG101-C$100:AG$100) -> -8.041379075 | C101: ='Output | General'!C238 -> 2000 | D101: ='Output | General'!D238 -> 1818.024028 | E101: ='Output | General'!E238 -> 1823.840451 | F101: ='Output | General'!F238 -> 1832.882594 | G101: ='Output | General'!G238 -> 1841.252834 | H101: ='Output | General'!H238 -> 1848.332495 | I101: ='Output | General'!I238 -> 1857.273872 | J101: ='Output | General'!J238 -> 1861.840527 | K101: ='Output | General'!K238 -> 1871.430143 | L101: ='Output | General'!L238 -> 1879.865984 | M101: ='Output | General'!M238 -> 1887.497687 | N101: ='Output | General'!N238 -> 1901.307938 | O101: ='Output | General'!O238 -> 1913.250246 | P101: ='Output | General'!P238 -> 1924.169824 | Q101: ='Output | General'!Q238 -> 1940.384439 | R101: ='Output | General'!R238 -> 1957.15829 | S101: ='Output | General'!S238 -> 1972.421309 | T101: ='Output | General'!T238 -> 1988.580443 | U101: ='Output | General'!U238 -> 2007.234999 | V101: ='Output | General'!V238 -> 2023.3101 | W101: ='Output | General'!W238 -> 2039.810752 | X101: ='Output | General'!X238 -> 2056.948937 | Y101: ='Output | General'!Y238 -> 2051.877642 | Z101: ='Output | General'!Z238 -> 2045.069814 | AA101: ='Output | General'!AA238 -> 2043.130622 | AB101: ='Output | General'!AB238 -> 2040.761579 | AC101: ='Output | General'!AC238 -> 2008.449559 | AD101: ='Output | General'!AD238 -> 1998.677015 | AE101: ='Output | General'!AE238 -> 1993.849384 | AF101: ='Output | General'!AF238 -> 1979.49736 | AG101: ='Output | General'!AG238 -> 1967.082159 | AH101: ='Output | General'!AH238 -> 1709.069567 | AI101: ='Output | General'!AI238 -> 1688.211128 | AJ101: ='Output | General'!AJ238 -> 1674.444233 | AK101: ='Output | General'!AK238 -> 1659.444904 | AL101: ='Output | General'!AL238 -> 1645.729007 | AM101: ='Output | General'!AM238 -> 1640.003898 | AN101: ='Output | General'!AN238 -> 1623.265502 | AO101: ='Output | General'!AO238 -> 1607.154678 | AP101: ='Output | General'!AP238 -> 1591.116101 | AQ101: ='Output | General'!AQ238 -> 1574.54285 | AR101: ='Output | General'!AR238 -> 1565.219518 | AS101: ='Output | General'!AS238 -> 1549.115797 | AT101: ='Output | General'!AT238 -> 1532.073529 | AU101: ='Output | General'!AU238 -> 1515.468273 | AV101: ='Output | General'!AV238 -> 1523.444778 | AW101: ='Output | General'!AW238 -> 1482.837063 | AX101: ='Output | General'!AX238 -> 1465.477076 | AY101: ='Output | General'!AY238 -> 1447.979305 | AZ101: ='Output | General'!AZ238 -> 1431.245823 | BA101: ='Output | General'!BA238 -> 1415.662276
A102: Hybrid + swaps | B102: =AVERAGE(C102:AG102-C$100:AG$100) -> 7.899747504 | C102: ='Output | General'!C240 -> 2000 | D102: ='Output | General'!D240 -> 1852.41496 | E102: ='Output | General'!E240 -> 1856.486612 | F102: ='Output | General'!F240 -> 1863.959521 | G102: ='Output | General'!G240 -> 1870.634006 | H102: ='Output | General'!H240 -> 1875.865617 | I102: ='Output | General'!I240 -> 1884.197508 | J102: ='Output | General'!J240 -> 1887.455592 | K102: ='Output | General'!K240 -> 1895.962714 | L102: ='Output | General'!L240 -> 1903.202134 | M102: ='Output | General'!M240 -> 1909.550702 | N102: ='Output | General'!N240 -> 1922.675557 | O102: ='Output | General'!O240 -> 1933.274873 | P102: ='Output | General'!P240 -> 1942.738002 | Q102: ='Output | General'!Q240 -> 1957.583739 | R102: ='Output | General'!R240 -> 1972.894737 | S102: ='Output | General'!S240 -> 1986.870302 | T102: ='Output | General'!T240 -> 2001.652337 | U102: ='Output | General'!U240 -> 2018.881421 | V102: ='Output | General'!V240 -> 2033.387611 | W102: ='Output | General'!W240 -> 2048.233816 | X102: ='Output | General'!X240 -> 2069.404947 | Y102: ='Output | General'!Y240 -> 2062.972483 | Z102: ='Output | General'!Z240 -> 2052.562429 | AA102: ='Output | General'!AA240 -> 2040.53363 | AB102: ='Output | General'!AB240 -> 2033.425265 | AC102: ='Output | General'!AC240 -> 2019.818741 | AD102: ='Output | General'!AD240 -> 2009.318525 | AE102: ='Output | General'!AE240 -> 1998.659609 | AF102: ='Output | General'!AF240 -> 1987.854783 | AG102: ='Output | General'!AG240 -> 1976.915778 | AH102: ='Output | General'!AH240 -> 1718.201175 | AI102: ='Output | General'!AI240 -> 1702.125897 | AJ102: ='Output | General'!AJ240 -> 1688.029581 | AK102: ='Output | General'!AK240 -> 1673.759507 | AL102: ='Output | General'!AL240 -> 1659.321224 | AM102: ='Output | General'!AM240 -> 1644.697885 | AN102: ='Output | General'!AN240 -> 1629.596705 | AO102: ='Output | General'!AO240 -> 1614.307505 | AP102: ='Output | General'!AP240 -> 1598.850634 | AQ102: ='Output | General'!AQ240 -> 1583.246714 | AR102: ='Output | General'!AR240 -> 1567.465346 | AS102: ='Output | General'!AS240 -> 1551.016754 | AT102: ='Output | General'!AT240 -> 1534.411753 | AU102: ='Output | General'!AU240 -> 1517.615446 | AV102: ='Output | General'!AV240 -> 1531.594256 | AW102: ='Output | General'!AW240 -> 1483.583561 | AX102: ='Output | General'!AX240 -> 1466.248628 | AY102: ='Output | General'!AY240 -> 1448.765036 | AZ102: ='Output | General'!AZ240 -> 1431.904365 | BA102: ='Output | General'!BA240 -> 1415.997478
A103: Nominal (updated) | B103: =AVERAGE(C103:AG103-C$100:AG$100) -> -0.48149076 | C103: ='Output | General'!C236 -> 2000 | D103: ='Output | General'!D236 -> 1766.749671 | E103: ='Output | General'!E236 -> 1784.174279 | F103: ='Output | General'!F236 -> 1802.426746 | G103: ='Output | General'!G236 -> 1821.546404 | H103: ='Output | General'!H236 -> 1841.574454 | I103: ='Output | General'!I236 -> 1847.681496 | J103: ='Output | General'!J236 -> 1835.386808 | K103: ='Output | General'!K236 -> 1823.429769 | L103: ='Output | General'!L236 -> 1811.801107 | M103: ='Output | General'!M236 -> 1800.491803 | N103: ='Output | General'!N236 -> 1973.115683 | O103: ='Output | General'!O236 -> 1971.718952 | P103: ='Output | General'!P236 -> 1970.325625 | Q103: ='Output | General'!Q236 -> 1968.935694 | R103: ='Output | General'!R236 -> 1967.54915 | S103: ='Output | General'!S236 -> 1995.797825 | T103: ='Output | General'!T236 -> 2017.869329 | U103: ='Output | General'!U236 -> 2040.758478 | V103: ='Output | General'!V236 -> 2064.495563 | W103: ='Output | General'!W236 -> 2089.111994 | X103: ='Output | General'!X236 -> 2141.704033 | Y103: ='Output | General'!Y236 -> 2083.081441 | Z103: ='Output | General'!Z236 -> 2056.628249 | AA103: ='Output | General'!AA236 -> 2104.443491 | AB103: ='Output | General'!AB236 -> 2089.652159 | AC103: ='Output | General'!AC236 -> 1983.462166 | AD103: ='Output | General'!AD236 -> 2001.034002 | AE103: ='Output | General'!AE236 -> 2034.842725 | AF103: ='Output | General'!AF236 -> 1955.543385 | AG103: ='Output | General'!AG236 -> 1964.237081 | AH103: ='Output | General'!AH236 -> 1705.368684 | AI103: ='Output | General'!AI236 -> 1640.417437 | AJ103: ='Output | General'!AJ236 -> 1676.21916 | AK103: ='Output | General'!AK236 -> 1652.932645 | AL103: ='Output | General'!AL236 -> 1651.661057 | AM103: ='Output | General'!AM236 -> 1643.641716 | AN103: ='Output | General'!AN236 -> 1608.505839 | AO103: ='Output | General'!AO236 -> 1600.152096 | AP103: ='Output | General'!AP236 -> 1586.461293 | AQ103: ='Output | General'!AQ236 -> 1569.333087 | AR103: ='Output | General'!AR236 -> 1566.49017 | AS103: ='Output | General'!AS236 -> 1547.892288 | AT103: ='Output | General'!AT236 -> 1528.854166 | AU103: ='Output | General'!AU236 -> 1515.530469 | AV103: ='Output | General'!AV236 -> 1518.604231 | AW103: ='Output | General'!AW236 -> 1482.977085 | AX103: ='Output | General'!AX236 -> 1465.368344 | AY103: ='Output | General'!AY236 -> 1448.310325 | AZ103: ='Output | General'!AZ236 -> 1432.170054 | BA103: ='Output | General'!BA236 -> 1415.857099
B104: =AVERAGE(E104:AG104) -> 30.1280262 | E104: =ABS(E103-D103) -> 17.42460788 | F104: =ABS(F103-E103) -> 18.25246672 | G104: 19.11965789 | H104: 20.02805009 | I104: 6.107041623 | J104: 12.29468796 | K104: 11.95703864 | L104: 11.6286622 | M104: 11.30930396 | N104: 172.6238803 | O104: 1.396730962 | P104: 1.393327011 | Q104: 1.389931357 | R104: 1.386543977 | S104: 28.24867466 | T104: 22.07150403 | U104: 22.88914933 | V104: 23.73708454 | W104: 24.61643175 | X104: 52.59203899 | Y104: 58.62259254 | Z104: 26.45319148 | AA104: 47.81524224 | AB104: 14.7913321 | AC104: 106.189993 | AD104: 17.57183613 | AE104: 33.8087226 | AF104: 79.29933982 | AG104: 8.693695859 | AH104: 258.8683974 | AI104: 64.95124692 | AJ104: 35.80172303 | AK104: 23.28651502 | AL104: 1.271587902 | AM104: 8.019340754 | AN104: 35.13587708 | AO104: 8.35374282 | AP104: 13.69080351 | AQ104: 17.12820603 | AR104: 2.842916321 | AS104: 18.5978824 | AT104: 19.03812217 | AU104: 13.32369734 | AV104: 3.073762525 | AW104: 35.62714596 | AX104: 17.60874107 | AY104: 17.05801906 | AZ104: 16.14027134 | BA104: 16.31295489
A106: 1.5% inflation
A107: Estimation method | C107: 0 | D107: 1 | E107: 2 | F107: 3 | G107: 4 | H107: 5 | I107: 6 | J107: 7 | K107: 8 | L107: 9 | M107: 10 | N107: 11 | O107: 12 | P107: 13 | Q107: 14 | R107: 15 | S107: 16 | T107: 17 | U107: 18 | V107: 19 | W107: 20 | X107: 21 | Y107: 22 | Z107: 23 | AA107: 24 | AB107: 25 | AC107: 26 | AD107: 27 | AE107: 28 | AF107: 29 | AG107: 30 | AH107: 31 | AI107: 32 | AJ107: 33 | AK107: 34 | AL107: 35 | AM107: 36 | AN107: 37 | AO107: 38 | AP107: 39 | AQ107: 40 | AR107: 41 | AS107: 42 | AT107: 43 | AU107: 44 | AV107: 45 | AW107: 46 | AX107: 47 | AY107: 48 | AZ107: 49 | BA107: 50 | BB107: 51 | BC107: 52 | BD107: 53 | BE107: 54 | BF107: 55 | BG107: 56 | BH107: 57 | BI107: 58 | BJ107: 59 | BK107: 60 | BL107: 61 | BM107: 62 | BN107: 63 | BO107: 64 | BP107: 65 | BQ107: 66 | BR107: 67 | BS107: 68 | BT107: 69 | BU107: 70
A108: Nominal revenue
A109: Base case | D109: 344.3748693 | E109: 356.5507707 | F109: 369.1571698 | G109: 382.2092874 | H109: 395.7228826 | I109: 410.2372643 | J109: 425.2769781 | K109: 440.8680631 | L109: 457.030733 | M109: 473.7859429 | N109: 491.7555255 | O109: 510.396552 | P109: 529.7442058 | Q109: 549.8252731 | R109: 570.6675555 | S109: 592.9839751 | T109: 617.4309331 | U109: 642.8857661 | V109: 669.3900258 | W109: 696.9869771 | X109: 726.7329626 | Y109: 729.4714892 | Z109: 731.821179 | AA109: 733.7914468 | AB109: 735.390489 | AC109: 736.6253618 | AD109: 737.5020537 | AE109: 738.0255514 | AF109: 738.1999015 | AG109: 738.0282673 | AH109: 397.8840169 | AI109: 383.3288496 | AJ109: 371.069622 | AK109: 358.0354011 | AL109: 344.2071879 | AM109: 329.5644009 | AN109: 314.0848698 | AO109: 297.7448104 | AP109: 280.5188276 | AQ109: 262.3798667 | AR109: 243.2992004 | AS109: 223.2463998 | AT109: 202.1892791 | AU109: 180.0938692 | AV109: 199.4749427 | AW109: 132.6430965 | AX109: 107.1294268 | AY109: 80.46335973 | AZ109: 52.86353709 | BA109: 26.96260143
A110: 5 year | B110: =SUM(D110:AG110)/SUM(D$4:AG$4)-1 -> -0.1164893243 | D110: 359.4990366 | E110: 371.698047 | F110: 384.3110108 | G110: 397.3519748 | H110: 410.8354626 | I110: 425.8860634 | J110: 441.1630992 | K110: 456.9881403 | L110: 473.3808444 | M110: 490.361574 | N110: 508.7742398 | O110: 528.3531942 | P110: 548.6855976 | Q110: 569.8004447 | R110: 591.727846 | S110: 614.3746309 | T110: 638.9407184 | U110: 664.4890937 | V110: 691.0590339 | W110: 718.6913869 | X110: 748.2610083 | Y110: 749.6876065 | Z110: 750.6964494 | AA110: 751.2947665 | AB110: 751.4886718 | AC110: 751.2832294 | AD110: 750.6825157 | AE110: 749.6896759 | AF110: 748.3069768 | AG110: 746.5358551 | AH110: 406.5984386 | AI110: 391.2296224 | AJ110: 378.2825787 | AK110: 364.5733319 | AL110: 350.0845456 | AM110: 334.7974839 | AN110: 318.6920089 | AO110: 301.7465582 | AP110: 283.9381546 | AQ110: 265.2423606 | AR110: 245.6332729 | AS110: 225.0835002 | AT110: 203.5641147 | AU110: 181.0446349 | AV110: 203.1828991 | AW110: 132.8754611 | AX110: 107.0838535 | AY110: 80.19786859 | AZ110: 52.99220864 | BA110: 26.99571332
A111: Glide path | B111: =SUM(D111:AG111)/SUM(D$4:AG$4)-1 -> -0.1267266919 | D111: 353.0719559 | E111: 365.3800845 | F111: 378.1172757 | G111: 391.298487 | H111: 404.9391967 | I111: 419.5973288 | J111: 434.7788964 | K111: 450.5097525 | L111: 466.8097711 | M111: 483.6995451 | N111: 501.8235718 | O111: 520.963146 | P111: 540.8327044 | Q111: 561.4600887 | R111: 582.8742024 | S111: 606.0725189 | T111: 630.5626267 | U111: 656.0423279 | V111: 682.55161 | W111: 710.132076 | X111: 739.6072373 | Y111: 741.5615582 | Z111: 743.1098033 | AA111: 744.2600728 | AB111: 745.0193109 | AC111: 745.3933773 | AD111: 745.387112 | AE111: 745.0043967 | AF111: 744.2482103 | AG111: 743.1206809 | AH111: 403.0965588 | AI111: 388.0556454 | AJ111: 375.3853879 | AK111: 361.9477738 | AL111: 347.7247983 | AM111: 332.6969839 | AN111: 316.8433762 | AO111: 300.1415203 | AP111: 282.5674678 | AQ111: 264.09573 | AR111: 244.6992695 | AS111: 224.3494748 | AT111: 203.0161097 | AU111: 180.6672918 | AV111: 201.6700785 | AW111: 132.7872798 | AX111: 107.1073837 | AY111: 80.30974647 | AZ111: 52.94045887 | BA111: 26.9823938
A112: Swaps | B112: =SUM(D112:AG112)/SUM(D$4:AG$4)-1 -> -0.09556950665 | D112: 372.7066016 | E112: 385.0265963 | F112: 397.7538342 | G112: 410.901777 | H112: 424.4843313 | I112: 439.332317 | J112: 455.0061585 | K112: 471.2391878 | L112: 488.0513549 | M112: 505.4633214 | N112: 524.06971 | O112: 543.7977017 | P112: 564.2683305 | Q112: 585.5095522 | R112: 607.5503749 | S112: 630.819534 | T112: 655.5358521 | U112: 681.2205873 | V112: 707.9116833 | W112: 735.6485707 | X112: 765.4030515 | Y112: 765.7828312 | Z112: 765.7214954 | AA112: 765.2245796 | AB112: 764.2965779 | AC112: 762.9410013 | AD112: 761.1604312 | AE112: 758.9565693 | AF112: 756.3302841 | AG112: 753.2816532 | AH112: 413.5306016 | AI112: 397.508843 | AJ112: 384.0122864 | AK112: 369.7637809 | AL112: 354.747316 | AM112: 338.9456253 | AN112: 322.3401836 | AO112: 304.9112006 | AP112: 286.6376109 | AQ112: 267.4970606 | AR112: 247.4658905 | AS112: 226.5191157 | AT112: 204.6304018 | AU112: 181.772038 | AV112: 206.2719343 | AW112: 133.0284488 | AX112: 107.0156115 | AY112: 79.95484876 | AZ112: 53.09482696 | BA112: 27.02213518
A113: Real revenue
A114: Base case | D114: 339.2855855 | E114: 346.0901946 | F114: 353.0312748 | G114: 360.1115632 | H114: 367.3338518 | I114: 375.1792871 | J114: 383.1859507 | K114: 391.3634837 | L114: 399.7155326 | M114: 408.2458218 | N114: 417.4676082 | O114: 426.8892563 | P114: 436.5235375 | Q114: 446.3752507 | R114: 456.4493031 | S114: 467.2897782 | T114: 479.3642757 | U114: 491.7507713 | V114: 504.4573268 | W114: 517.4922124 | X114: 531.6036716 | Y114: 525.7210819 | Z114: 519.6201718 | AA114: 513.3193448 | AB114: 506.8354138 | AC114: 500.1837393 | AD114: 493.3783557 | AE114: 486.4320869 | AF114: 479.3566512 | AG114: 472.1627576 | AH114: 250.7894044 | AI114: 238.0445013 | AJ114: 227.0262145 | AK114: 215.8144569 | AL114: 204.4129739 | AM114: 192.8247481 | AN114: 181.0520526 | AO114: 169.0964909 | AP114: 156.9590521 | AQ114: 144.6401345 | AR114: 132.1395883 | AS114: 119.4567485 | AT114: 106.5904528 | AU114: 93.53907475 | AV114: 102.0743088 | AW114: 66.87236893 | AX114: 53.21141349 | AY114: 39.37568613 | AZ114: 25.48708387 | BA114: 12.80736183
A115: 5 year | B115: =SUM(D115:BA115)-SUM(D$9:BA$9) -> 560.8749575 | C115: =SUM(D115:AG115)/SUM(D$9:AG$9)-1 -> 0.03809984696 | D115: 354.186243 | E115: 360.7930763 | F115: 367.5231505 | G115: 374.3787646 | H115: 381.3622602 | I115: 389.4907741 | J115: 397.4997714 | K115: 405.6734556 | L115: 414.0152131 | M115: 422.5285 | N115: 431.9153604 | O115: 441.9079659 | P115: 452.131756 | Q115: 462.5920793 | R115: 473.2944081 | S115: 484.1462789 | T115: 496.0641561 | U115: 508.2754069 | V115: 520.7872533 | W115: 533.6070946 | X115: 547.3513929 | Y115: 540.2905877 | Z115: 533.0223136 | AA115: 525.5636857 | AB115: 517.9303753 | AC115: 510.1367322 | AD115: 502.1958968 | AE115: 494.1199027 | AF115: 485.9197702 | AG115: 477.6055927 | AH115: 256.2821725 | AI115: 242.9508252 | AJ115: 231.4392145 | AK115: 219.755352 | AL115: 207.9033372 | AM115: 195.8865713 | AN115: 183.707806 | AO115: 171.3691804 | AP115: 158.8722725 | AQ115: 146.2181196 | AR115: 133.4072595 | AS115: 120.4397612 | AT115: 107.3152407 | AU115: 94.03289356 | AV115: 103.9717255 | AW115: 66.98951615 | AX115: 53.18877711 | AY115: 39.24576494 | AZ115: 25.54912026 | BA115: 12.82309014
A116: Glide path | B116: =SUM(D116:BA116)-SUM(D$9:BA$9) -> 379.7767216 | C116: =SUM(D116:AG116)/SUM(D$9:AG$9)-1 -> 0.02566414117 | D116: 347.8541438 | E116: 354.6604717 | F116: 361.5999764 | G116: 368.6752637 | H116: 375.8889905 | I116: 383.7394611 | J116: 391.7474337 | K116: 399.9225187 | L116: 408.2682034 | M116: 416.788048 | N116: 426.0147073 | O116: 435.7270226 | P116: 445.6607599 | Q116: 455.8209673 | R116: 466.212808 | S116: 477.603957 | T116: 489.5595291 | U116: 501.8143779 | V116: 514.375995 | W116: 527.2520594 | X116: 541.0211771 | Y116: 534.4342452 | Z116: 527.6355136 | AA116: 520.6426084 | AB116: 513.4716541 | AC116: 506.1374018 | AD116: 498.6533473 | AE116: 491.0318386 | AF116: 483.2841741 | AG116: 475.4206925 | AH116: 254.0749103 | AI116: 240.9798079 | AJ116: 229.6666677 | AK116: 218.1727337 | AL116: 206.5019633 | AM116: 194.6575903 | AN116: 182.6421745 | AO116: 170.4576405 | AP116: 158.1053304 | AQ116: 145.5860254 | AR116: 132.8999877 | AS116: 120.0469921 | AT116: 107.0263426 | AU116: 93.83690509 | AV116: 103.1975926 | AW116: 66.94505932 | AX116: 53.20046463 | AY116: 39.30051368 | AZ116: 25.52417015 | BA116: 12.8167633
A117: Swaps | B117: 931.4261559 | C117: 0.06362904822 | D117: 367.1986223 | E117: 373.7305892 | F117: 380.3787509 | G117: 387.1451745 | H117: 394.0319635 | I117: 401.7879404 | J117: 409.9727387 | K117: 418.324269 | L117: 426.8459278 | M117: 435.5411809 | N117: 444.9001934 | O117: 454.8255577 | P117: 464.972349 | Q117: 475.3455069 | R117: 485.9500816 | S117: 497.105373 | T117: 508.9483733 | U117: 521.0735203 | V117: 533.4875358 | W117: 546.197302 | X117: 559.8907623 | Y117: 551.8902172 | Z117: 543.6906534 | AA117: 535.3082017 | AB117: 526.7576589 | AC117: 518.0525986 | AD117: 509.2054728 | AE117: 500.2277051 | AF117: 491.1297758 | AG117: 481.9213008 | AH117: 260.651569 | AI117: 246.8501767 | AJ117: 234.9447395 | AK117: 222.8840201 | AL117: 210.6723984 | AM117: 198.3136062 | AN117: 185.8107712 | AO117: 173.1664575 | AP117: 160.3827026 | AQ117: 147.4610507 | AR117: 134.4025826 | AS117: 121.2079436 | AT117: 107.8773676 | AU117: 94.41069997 | AV117: 105.552431 | AW117: 67.06664533 | AX117: 53.15488119 | AY117: 39.12684034 | AZ117: 25.5985956 | BA117: 12.83564064
B119: Nominal return to capital | C119: Nominal return to capital
A120: Nominal return | B120: ex-ante | C120: ex-post
A121: Base case | B121: 0.0458 | C121: 0.03874774487
A122: 5 year | B122: 0.0458 | C122: 0.04110615004 | D122: =C122-$C$16 -> -0.005861604853
A123: Glide path | B123: 0.0458 | C123: 0.04015816185 | D123: =C123-$C$16 -> -0.00680959304
A124: Swaps | B124: 0.0458 | C124: 0.04298385698 | D124: =C124-$C$16 -> -0.00398389791
B125: Real return to capital | C125: Real return to capital
A126: Real return | B126: ex-ante | C126: ex-post
A127: Base case | B127: 0.02280019835 | C127: 0.02339679298
A128: 5 year | B128: 0.02531387635 | C128: 0.02572034486 | D128: =C128-$C$22 -> 0.003256854061
A129: Glide path | B129: 0.02430235817 | C129: 0.02478636636 | D129: =C129-$C$22 -> 0.002322875552
A130: Swaps | B130: 0.0273218955 | C130: 0.02757030244 | D130: =C130-$C$16 -> -0.01939745245
B131: Nominal return to equity | C131: Nominal return to equity
A132: Nominal return to Equity | B132: ex-ante | C132: ex-post
A133: Base case | B133: 0.05 | C133: 0.0323982485
A134: 5 year | B134: 0.05 | C134: 0.03827352821
A135: Glide path | B135: 0.05 | C135: 0.03591037655
A136: Swaps | B136: 0.05 | C136: 0.04295968203
B137: Real return to equity | C137: Real return to equity
A138: Real return to Equity | B138: ex-ante | C138: ex-post
A139: Base case | B139: 0.02690782967 | C139: 0.01714113153
A140: 5 year | B140: 0.02943160277 | C140: 0.02292958445
A141: Glide path | B141: 0.02841602226 | C141: 0.0206013562
A142: Swaps | B142: 0.03144768624 | C142: 0.02754648476
A153: $real customer bill
A154: Base case | C154: 2000 | D154: 1824.106982 | E154: 1832.612743 | F154: 1841.289094 | G154: 1850.139454 | H154: 1859.167315 | I154: 1868.974109 | J154: 1878.982438 | K154: 1889.204355 | L154: 1899.644416 | M154: 1910.307277 | N154: 1921.83451 | O154: 1933.61157 | P154: 1945.654422 | Q154: 1957.969063 | R154: 1970.561629 | S154: 1984.112223 | T154: 1999.205345 | U154: 2014.688464 | V154: 2030.571659 | W154: 2046.865265 | X154: 2064.50459 | Y154: 2057.151352 | Z154: 2049.525215 | AA154: 2041.649181 | AB154: 2033.544267 | AC154: 2025.229674 | AD154: 2016.722945 | AE154: 2008.040109 | AF154: 1999.195814 | AG154: 1990.203447 | AH154: 1713.486756 | AI154: 1697.555627 | AJ154: 1683.782768 | AK154: 1669.768071 | AL154: 1655.516217 | AM154: 1641.030935 | AN154: 1626.315066 | AO154: 1611.370614 | AP154: 1596.198815 | AQ154: 1580.800168 | AR154: 1565.174485 | AS154: 1549.320936 | AT154: 1533.238066 | AU154: 1516.923843 | AV154: 1527.592886 | AW154: 1483.590461 | AX154: 1466.514267 | AY154: 1449.219608 | AZ154: 1431.858855 | BA154: 1416.009202
A155: 5 year | B155: =AVERAGE(C155:AG155-C$49:AG$49) -> 20.43195952 | C155: 2000 | D155: 1842.732804 | E155: 1850.991345 | F155: 1859.403938 | G155: 1867.973456 | H155: 1876.702825 | I155: 1886.863468 | J155: 1896.874714 | K155: 1907.09182 | L155: 1917.519016 | M155: 1928.160625 | N155: 1939.8942 | O155: 1952.384957 | P155: 1965.164695 | Q155: 1978.240099 | R155: 1991.61801 | S155: 2005.182849 | T155: 2020.080195 | U155: 2035.344259 | V155: 2050.984067 | W155: 2067.008868 | X155: 2084.189241 | Y155: 2075.363235 | Z155: 2066.277892 | AA155: 2056.954607 | AB155: 2047.412969 | AC155: 2037.670915 | AD155: 2027.744871 | AE155: 2017.649878 | AF155: 2007.399713 | AG155: 1997.006991 | AH155: 1720.352716 | AI155: 1703.688531 | AJ155: 1689.299018 | AK155: 1674.69419 | AL155: 1659.879172 | AM155: 1644.858214 | AN155: 1629.634758 | AO155: 1614.211476 | AP155: 1598.590341 | AQ155: 1582.772649 | AR155: 1566.759074 | AS155: 1550.549701 | AT155: 1534.144051 | AU155: 1517.541117 | AV155: 1529.964657 | AW155: 1483.736895 | AX155: 1466.485971 | AY155: 1449.057206 | AZ155: 1431.9364 | BA155: 1416.028863
A156: Glide path | B156: =AVERAGE(C156:AG156-C$49:AG$49) -> 13.76301311 | C156: 2000 | D156: 1834.81768 | E156: 1843.32559 | F156: 1851.999971 | G156: 1860.84408 | H156: 1869.861238 | I156: 1879.674326 | J156: 1889.684292 | K156: 1899.903148 | L156: 1910.335254 | M156: 1920.98506 | N156: 1932.518384 | O156: 1944.658778 | P156: 1957.07595 | Q156: 1969.776209 | R156: 1982.76601 | S156: 1997.004946 | T156: 2011.949411 | U156: 2027.267972 | V156: 2042.969994 | W156: 2059.065074 | X156: 2076.276471 | Y156: 2068.042806 | Z156: 2059.544392 | AA156: 2050.803261 | AB156: 2041.839568 | AC156: 2032.671752 | AD156: 2023.316684 | AE156: 2013.789798 | AF156: 2004.105218 | AG156: 1994.275866 | AH156: 1717.593638 | AI156: 1701.22476 | AJ156: 1687.083335 | AK156: 1672.715917 | AL156: 1658.127454 | AM156: 1643.321988 | AN156: 1628.302718 | AO156: 1613.072051 | AP156: 1597.631663 | AQ156: 1581.982532 | AR156: 1566.124985 | AS156: 1550.05874 | AT156: 1533.782928 | AU156: 1517.296131 | AV156: 1528.996991 | AW156: 1483.681324 | AX156: 1466.500581 | AY156: 1449.125642 | AZ156: 1431.905213 | BA156: 1416.020954
A157: Swaps | B157: =AVERAGE(C157:AG157-C$49:AG$49) -> 34.12260785 | C157: 2000 | D157: 1858.998278 | E157: 1867.163236 | F157: 1875.473439 | G157: 1883.931468 | H157: 1892.539954 | I157: 1902.234926 | J157: 1912.465923 | K157: 1922.905336 | L157: 1933.55741 | M157: 1944.426476 | N157: 1956.125242 | O157: 1968.531947 | P157: 1981.215436 | Q157: 1994.181884 | R157: 2007.437602 | S157: 2021.381716 | T157: 2036.185467 | U157: 2051.3419 | V157: 2066.85942 | W157: 2082.746627 | X157: 2099.863453 | Y157: 2089.862771 | Z157: 2079.613317 | AA157: 2069.135252 | AB157: 2058.447074 | AC157: 2047.565748 | AD157: 2036.506841 | AE157: 2025.284631 | AF157: 2013.91222 | AG157: 2002.401626 | AH157: 1725.814461 | AI157: 1708.562721 | AJ157: 1693.680924 | AK157: 1678.605025 | AL157: 1663.340498 | AM157: 1647.892008 | AN157: 1632.263464 | AO157: 1616.458072 | AP157: 1600.478378 | AQ157: 1584.326313 | AR157: 1568.003228 | AS157: 1551.509929 | AT157: 1534.846709 | AU157: 1518.013375 | AV157: 1531.940539 | AW157: 1483.833307 | AX157: 1466.443601 | AY157: 1448.90855 | AZ157: 1431.998244 | BA157: 1416.044551
A159: Alternate targets | C159: 0 | D159: 1 | E159: 2 | F159: 3 | G159: 4 | H159: 5 | I159: 6 | J159: 7 | K159: 8 | L159: 9 | M159: 10 | N159: 11 | O159: 12 | P159: 13 | Q159: 14 | R159: 15 | S159: 16 | T159: 17 | U159: 18 | V159: 19 | W159: 20 | X159: 21 | Y159: 22 | Z159: 23 | AA159: 24 | AB159: 25 | AC159: 26 | AD159: 27 | AE159: 28 | AF159: 29 | AG159: 30 | AH159: 31 | AI159: 32 | AJ159: 33 | AK159: 34 | AL159: 35 | AM159: 36 | AN159: 37 | AO159: 38 | AP159: 39 | AQ159: 40 | AR159: 41 | AS159: 42 | AT159: 43 | AU159: 44 | AV159: 45 | AW159: 46 | AX159: 47 | AY159: 48 | AZ159: 49 | BA159: 50 | BB159: 51 | BC159: 52 | BD159: 53 | BE159: 54 | BF159: 55 | BG159: 56 | BH159: 57 | BI159: 58 | BJ159: 59 | BK159: 60 | BL159: 61 | BM159: 62 | BN159: 63 | BO159: 64 | BP159: 65 | BQ159: 66 | BR159: 67 | BS159: 68 | BT159: 69 | BU159: 70
A160: Nominal revenue
A161: Base case | D161: 344.3748693 | E161: 356.5507707 | F161: 369.1571698 | G161: 382.2092874 | H161: 395.7228826 | I161: 410.2372643 | J161: 425.2769781 | K161: 440.8680631 | L161: 457.030733 | M161: 473.7859429 | N161: 491.7555255 | O161: 510.396552 | P161: 529.7442058 | Q161: 549.8252731 | R161: 570.6675555 | S161: 592.9839751 | T161: 617.4309331 | U161: 642.8857661 | V161: 669.3900258 | W161: 696.9869771 | X161: 726.7329626 | Y161: 729.4714892 | Z161: 731.821179 | AA161: 733.7914468 | AB161: 735.390489 | AC161: 736.6253618 | AD161: 737.5020537 | AE161: 738.0255514 | AF161: 738.1999015 | AG161: 738.0282673 | AH161: 397.8840169 | AI161: 383.3288496 | AJ161: 371.069622 | AK161: 358.0354011 | AL161: 344.2071879 | AM161: 329.5644009 | AN161: 314.0848698 | AO161: 297.7448104 | AP161: 280.5188276 | AQ161: 262.3798667 | AR161: 243.2992004 | AS161: 223.2463998 | AT161: 202.1892791 | AU161: 180.0938692 | AV161: 199.4749427 | AW161: 132.6430965 | AX161: 107.1294268 | AY161: 80.46335973 | AZ161: 52.86353709 | BA161: 26.96260143
A162: Hybrid (weighted CPI) | B162: =SUM(D162:AG162)/SUM(D$56:AG$56)-1 -> -0.09604194355 | D162: 344.3748693 | E162: 358.1288169 | F162: 372.4320819 | G162: 387.3066033 | H162: 402.7751965 | I162: 419.3962568 | J162: 436.371441 | K162: 454.0337006 | L162: 472.4108453 | M162: 491.5318102 | N162: 512.1230616 | O162: 533.7487777 | P162: 556.2876955 | Q162: 579.7783771 | R162: 604.2610134 | S162: 631.0872397 | T162: 658.4148105 | U162: 686.9257299 | V162: 716.6712395 | W162: 747.7048 | X162: 764.0189781 | Y162: 772.369922 | Z162: 780.3980713 | AA162: 788.1045637 | AB162: 795.489426 | AC162: 773.5956394 | AD162: 780.0899786 | AE162: 786.2682924 | AF162: 792.1266544 | AG162: 797.6602166 | AH162: 409.1932203 | AI162: 396.6650044 | AJ162: 386.2183835 | AK162: 374.7606055 | AL162: 362.2498793 | AM162: 336.0628225 | AN162: 322.2110661 | AO162: 307.2296315 | AP162: 291.0686097 | AQ162: 273.6751984 | AR162: 245.7934614 | AS162: 226.9461701 | AT162: 206.7675078 | AU162: 185.195629 | AV162: 205.9853667 | AW162: 132.6430965 | AX162: 107.9196611 | AY162: 81.65480497 | AZ162: 54.04202243 | BA162: 27.76699989
A163: Hybrid + swaps | B163: =SUM(D163:AG163)/SUM(D$56:AG$56)-1 -> -0.0790826083 | D163: 372.7066683 | E163: 385.7064381 | F163: 399.1596316 | G163: 413.0820638 | H163: 427.4901015 | I163: 443.5566228 | J163: 460.0446032 | K163: 477.1454782 | L163: 494.8820306 | M163: 513.2778898 | N163: 533.3769062 | O163: 554.0805223 | P163: 575.5877722 | Q163: 597.9298499 | R163: 621.13916 | S163: 646.2227875 | T163: 672.106909 | U163: 699.0278056 | V163: 727.0270049 | W163: 756.1476977 | X163: 778.2844358 | Y163: 780.8932241 | Z163: 783.0629491 | AA163: 784.7951107 | AB163: 786.0901957 | AC163: 775.4711191 | AD163: 773.6072018 | AE163: 771.3152538 | AF163: 768.5959815 | AG163: 765.4492995 | AH163: 416.8553089 | AI163: 400.5233426 | AJ163: 386.6943625 | AK163: 372.1003203 | AL163: 356.7247196 | AM163: 340.5497903 | AN163: 323.697093 | AO163: 306.0112195 | AP163: 287.4707458 | AQ163: 268.0529475 | AR163: 247.733779 | AS163: 226.6649303 | AT163: 204.6495424 | AU163: 181.6597244 | AV163: 205.8815812 | AW163: 132.6381515 | AX163: 106.7016261 | AY163: 79.72024994 | AZ163: 52.93905187 | BA163: 26.94285485
A164: Nominal (updated) | B164: -0.06410520827 | D164: 392.4926066 | E164: 405.0311671 | F164: 417.9702841 | G164: 431.3227539 | H164: 445.1017815 | I164: 460.6399308 | J164: 476.5339531 | K164: 492.9763863 | L164: 509.9861528 | M164: 527.5828281 | N164: 547.0036278 | O164: 566.9544406 | P164: 587.6329175 | Q164: 609.0655986 | R164: 631.2799919 | S164: 655.4874405 | T164: 680.428597 | U164: 706.3187591 | V164: 733.1940363 | W164: 761.091912 | X164: 791.1182832 | Y164: 789.9238735 | Z164: 788.2528755 | AA164: 786.108551 | AB164: 783.4923658 | AC164: 780.4054297 | AD164: 776.8491882 | AE164: 772.8226586 | AF164: 768.3239927 | AG164: 763.3523111 | AH164: 423.9174865 | AI164: 406.9072066 | AJ164: 392.5834335 | AK164: 377.5228448 | AL164: 361.7119166 | AM164: 345.1353988 | AN164: 327.777061 | AO164: 309.620108 | AP164: 290.6461292 | AQ164: 270.835896 | AR164: 250.1692221 | AS164: 228.6245155 | AT164: 206.1794302 | AU164: 182.810438 | AV164: 211.1511036 | AW164: 133.2006626 | AX164: 106.8560472 | AY164: 79.53364679 | AZ164: 53.24902947 | BA164: 27.06186279
A165: Real revenue
A166: Base case | D166: 339.2855855 | E166: 346.0901946 | F166: 353.0312748 | G166: 360.1115632 | H166: 367.3338518 | I166: 375.1792871 | J166: 383.1859507 | K166: 391.3634837 | L166: 399.7155326 | M166: 408.2458218 | N166: 417.4676082 | O166: 426.8892563 | P166: 436.5235375 | Q166: 446.3752507 | R166: 456.4493031 | S166: 467.2897782 | T166: 479.3642757 | U166: 491.7507713 | V166: 504.4573268 | W166: 517.4922124 | X166: 531.6036716 | Y166: 525.7210819 | Z166: 519.6201718 | AA166: 513.3193448 | AB166: 506.8354138 | AC166: 500.1837393 | AD166: 493.3783557 | AE166: 486.4320869 | AF166: 479.3566512 | AG166: 472.1627576 | AH166: 250.7894044 | AI166: 238.0445013 | AJ166: 227.0262145 | AK166: 215.8144569 | AL166: 204.4129739 | AM166: 192.8247481 | AN166: 181.0520526 | AO166: 169.0964909 | AP166: 156.9590521 | AQ166: 144.6401345 | AR166: 132.1395883 | AS166: 119.4567485 | AT166: 106.5904528 | AU166: 93.53907475 | AV166: 102.0743088 | AW166: 66.87236893 | AX166: 53.21141349 | AY166: 39.37568613 | AZ166: 25.48708387 | BA166: 12.80736183
A167: Hybrid (weighted CPI) | B167: =SUM(D167:BA167)-SUM(D$61:BA$61) -> 880.9532628 | D167: 339.2855855 | E167: 347.6219437 | F167: 356.163129 | G167: 364.9141739 | H167: 373.880235 | I167: 383.5555723 | J167: 393.182359 | K167: 403.0507666 | L167: 413.1668595 | M167: 423.5368542 | N167: 434.7582865 | O167: 446.4207642 | P167: 458.3960901 | Q167: 470.6926566 | R167: 483.3190809 | S167: 497.3163334 | T167: 511.1835541 | U167: 525.4374499 | V167: 540.0888028 | W167: 555.1486956 | X167: 558.8783155 | Y167: 556.637452 | Z167: 554.1115664 | AA167: 551.3137555 | AB167: 548.2559517 | AC167: 525.2873165 | AD167: 521.8690701 | AE167: 518.2288413 | AF167: 514.3744663 | AG167: 510.3130384 | AH167: 257.9176837 | AI167: 246.3261589 | AJ167: 236.2944644 | AK167: 225.8959764 | AL167: 215.1279163 | AM167: 196.6269079 | AN167: 185.7363422 | AO167: 174.4831505 | AP167: 162.861985 | AQ167: 150.8668253 | AR167: 133.4942604 | AS167: 121.4364558 | AT167: 109.0040104 | AU167: 96.18888118 | AV167: 105.40579 | AW167: 66.87236893 | AX167: 53.60392455 | AY167: 39.95873379 | AZ167: 26.05526671 | BA167: 13.18945486
A168: Hybrid + swaps | B168: =SUM(D168:BA168)-SUM(D$61:BA$61) -> 1192.431064 | D168: 367.198688 | E168: 374.3904857 | F168: 381.7231389 | G168: 389.1994063 | H168: 396.8221007 | I168: 405.6512463 | J168: 414.5125123 | K168: 423.5673487 | L168: 432.8199838 | M168: 442.2747384 | N168: 452.8013815 | O168: 463.4259796 | P168: 474.2998748 | Q168: 485.4289166 | R168: 496.8190919 | S168: 509.2436149 | T168: 521.8138976 | U168: 534.6944679 | V168: 547.8929851 | W168: 561.4172974 | X168: 569.3134685 | Y168: 562.7800905 | Z168: 556.0037285 | AA168: 548.9986477 | AB168: 541.7779474 | AC168: 526.5608058 | AD168: 517.5321849 | AE168: 508.3733048 | AF168: 499.0946153 | AG168: 489.7057038 | AH168: 262.747158 | AI168: 248.7221596 | AJ168: 236.5856757 | AK168: 224.2924255 | AL168: 211.8467113 | AM168: 199.2521867 | AN168: 186.5929522 | AO168: 173.7911849 | AP168: 160.8488677 | AQ168: 147.7674902 | AR168: 134.5480771 | AS168: 121.2859674 | AT168: 107.8874582 | AU168: 94.35236535 | AV168: 105.3526815 | AW168: 66.86987593 | AX168: 52.99892396 | AY168: 39.01203666 | AZ168: 25.52349179 | BA168: 12.79798212
A169: Nominal (updated) | B169: 1488.641272 | D169: 386.6922233 | E169: 393.1482609 | F169: 399.7120856 | G169: 406.3854969 | H169: 413.1703245 | I169: 421.2746523 | J169: 429.3698584 | K169: 437.6206219 | L169: 446.0299319 | M169: 454.600835 | N169: 464.3695583 | O169: 474.1935629 | P169: 484.2253999 | Q169: 494.4694662 | R169: 504.9302516 | S169: 516.544449 | T169: 528.2747335 | U169: 540.2714027 | V169: 552.540506 | W169: 565.0882302 | X169: 578.7014016 | Y169: 569.2883678 | Z169: 559.6887687 | AA169: 549.9174569 | AB169: 539.9875078 | AC169: 529.9113039 | AD169: 519.7010275 | AE169: 509.3668342 | AF169: 498.9179969 | AG169: 488.3641294 | AH169: 267.1985037 | AI169: 252.686494 | AJ169: 240.1887018 | AK169: 227.5609827 | AL169: 214.8084385 | AM169: 201.9351791 | AN169: 188.9448216 | AO169: 175.8407601 | AP169: 162.625594 | AQ169: 149.3016249 | AR169: 135.8708042 | AS169: 122.3345204 | AT169: 108.6939868 | AU169: 94.95003525 | AV169: 108.0491748 | AW169: 67.15346738 | AX169: 53.07562527 | AY169: 38.92072023 | AZ169: 25.67294121 | BA169: 12.85451144
B171: Nominal return | C171: Nominal return
A172: Nominal return | B172: ex-ante | C172: ex-post
A173: Base case | B173: 0.0458 | C173: 0.03874774487
A174: Hybrid (weighted CPI) | B174: 0.0458 | C174: 0.04221381757 | D174: =C174-C$68 -> -0.004753937325
A175: Hybrid + swaps | B175: 0.0458 | C175: 0.04420432527 | D175: =C175-C$68 -> -0.00276342962
A176: Nominal (updated) | B176: 0.0458 | C176: 0.04580000219 | D176: =C176-C$68 -> -0.001167752704
B177: Real return | C177: Real return
A178: Real return | B178: ex-ante | C178: ex-post
A179: Base case | B179: 0.02280019835 | C179: 0.02339679298
A180: Hybrid (weighted CPI) | B180: 0.02280019835 | C180: 0.02681164292 | D180: =C180-C$74 -> 0.004348152118
A181: Hybrid + swaps | B181: 0.0273218955 | C181: 0.02877273426 | D181: =C181-C$74 -> 0.006309243453
A182: Nominal (updated) | B182: 0.03034482759 | C182: 0.03034482974 | D182: =C182-C$74 -> 0.007881338937
B183: Nominal return to Equity | C183: Nominal return to Equity
A184: Nominal return to Equity | B184: ex-ante | C184: ex-post
A185: Base case | B185: 0.05 | C185: 0.0323982485
A186: Hybrid (weighted CPI) | B186: 0.05 | C186: 0.04089364711
A187: Hybrid + swaps | B187: 0.05 | C187: 0.04609784142
A188: Nominal (updated) | B188: 0.05 | C188: 0.05000025387
B189: Real return to Equity | C189: Real return to Equity
A190: Real return to Equity | B190: ex-ante | C190: ex-post
A191: Base case | B191: 0.02690782967 | C191: 0.01714113153
A192: Hybrid (weighted CPI) | B192: 0.02690782967 | C192: 0.02551098238
A193: Hybrid + swaps | B193: 0.03144768624 | C193: 0.03063826741
A194: Nominal (updated) | B194: 0.03448275862 | C194: 0.03034482974
A204: $real customer bill
A205: Base case | C205: 2000 | D205: 1824.106982 | E205: 1832.612743 | F205: 1841.289094 | G205: 1850.139454 | H205: 1859.167315 | I205: 1868.974109 | J205: 1878.982438 | K205: 1889.204355 | L205: 1899.644416 | M205: 1910.307277 | N205: 1921.83451 | O205: 1933.61157 | P205: 1945.654422 | Q205: 1957.969063 | R205: 1970.561629 | S205: 1984.112223 | T205: 1999.205345 | U205: 2014.688464 | V205: 2030.571659 | W205: 2046.865265 | X205: 2064.50459 | Y205: 2057.151352 | Z205: 2049.525215 | AA205: 2041.649181 | AB205: 2033.544267 | AC205: 2025.229674 | AD205: 2016.722945 | AE205: 2008.040109 | AF205: 1999.195814 | AG205: 1990.203447 | AH205: 1713.486756 | AI205: 1697.555627 | AJ205: 1683.782768 | AK205: 1669.768071 | AL205: 1655.516217 | AM205: 1641.030935 | AN205: 1626.315066 | AO205: 1611.370614 | AP205: 1596.198815 | AQ205: 1580.800168 | AR205: 1565.174485 | AS205: 1549.320936 | AT205: 1533.238066 | AU205: 1516.923843 | AV205: 1527.592886 | AW205: 1483.590461 | AX205: 1466.514267 | AY205: 1449.219608 | AZ205: 1431.858855 | BA205: 1416.009202
A206: Hybrid (weighted CPI) | B206: =AVERAGE(C206:AG206-C$100:AG$100) -> 31.48356227 | C206: 2000 | D206: 1824.106982 | E206: 1834.52743 | F206: 1845.203911 | G206: 1856.142717 | H206: 1867.350294 | I206: 1879.444465 | J206: 1891.477949 | K206: 1903.813458 | L206: 1916.458574 | M206: 1929.421068 | N206: 1943.447858 | O206: 1958.025955 | P206: 1972.995113 | Q206: 1988.365821 | R206: 2004.148851 | S206: 2021.645417 | T206: 2038.979443 | U206: 2056.796812 | V206: 2075.111004 | W206: 2093.935869 | X206: 2098.597894 | Y206: 2095.796815 | Z206: 2092.639458 | AA206: 2089.142194 | AB206: 2085.31994 | AC206: 2056.609146 | AD206: 2052.336338 | AE206: 2047.786052 | AF206: 2042.968083 | AG206: 2037.891298 | AH206: 1722.397105 | AI206: 1707.907699 | AJ206: 1695.36808 | AK206: 1682.369971 | AL206: 1668.909895 | AM206: 1645.783635 | AN206: 1632.170428 | AO206: 1618.103938 | AP206: 1603.577481 | AQ206: 1588.583532 | AR206: 1566.867825 | AS206: 1551.79557 | AT206: 1536.255013 | AU206: 1520.236101 | AV206: 1531.757238 | AW206: 1483.590461 | AX206: 1467.004906 | AY206: 1449.948417 | AZ206: 1432.569083 | BA206: 1416.486819
A207: Hybrid + swaps | B207: =AVERAGE(C207:AG207-C$100:AG$100) -> 44.21536416 | C207: 2000 | D207: 1858.99836 | E207: 1867.988107 | F207: 1877.153924 | G207: 1886.499258 | H207: 1896.027626 | I207: 1907.064058 | J207: 1918.14064 | K207: 1929.459186 | L207: 1941.02498 | M207: 1952.843423 | N207: 1966.001727 | O207: 1979.282474 | P207: 1992.874843 | Q207: 2006.786146 | R207: 2021.023865 | S207: 2036.554519 | T207: 2052.267372 | U207: 2068.368085 | V207: 2084.866231 | W207: 2101.771622 | X207: 2111.641836 | Y207: 2103.475113 | Z207: 2095.004661 | AA207: 2086.24831 | AB207: 2077.222434 | AC207: 2058.201007 | AD207: 2046.915231 | AE207: 2035.466631 | AF207: 2023.868269 | AG207: 2012.13213 | AH207: 1728.433948 | AI207: 1710.9027 | AJ207: 1695.732095 | AK207: 1680.365532 | AL207: 1664.808389 | AM207: 1649.065233 | AN207: 1633.24119 | AO207: 1617.238981 | AP207: 1601.061085 | AQ207: 1584.709363 | AR207: 1568.185096 | AS207: 1551.607459 | AT207: 1534.859323 | AU207: 1517.940457 | AV207: 1531.690852 | AW207: 1483.587345 | AX207: 1466.248655 | AY207: 1448.765046 | AZ207: 1431.904365 | BA207: 1415.997478
A208: Nominal (updated) | B208: =AVERAGE(C208:AG208-C$100:AG$100) -> 54.7241945 | C208: 2000 | D208: 1883.365279 | E208: 1891.435326 | F208: 1899.640107 | G208: 1907.981871 | H208: 1916.462906 | I208: 1926.593315 | J208: 1936.712323 | K208: 1947.025777 | L208: 1957.537415 | M208: 1968.251044 | N208: 1980.461948 | O208: 1992.741954 | P208: 2005.28175 | Q208: 2018.086833 | R208: 2031.162814 | S208: 2045.680561 | T208: 2060.343417 | U208: 2075.339253 | V208: 2090.675633 | W208: 2106.360288 | X208: 2123.376752 | Y208: 2111.61046 | Z208: 2099.610961 | AA208: 2087.396821 | AB208: 2074.984385 | AC208: 2062.38913 | AD208: 2049.626284 | AE208: 2036.708543 | AF208: 2023.647496 | AG208: 2010.455162 | AH208: 1733.99813 | AI208: 1715.858117 | AJ208: 1700.235877 | AK208: 1684.451228 | AL208: 1668.510548 | AM208: 1652.418974 | AN208: 1636.181027 | AO208: 1619.80095 | AP208: 1603.281992 | AQ208: 1586.627031 | AR208: 1569.838505 | AS208: 1552.91815 | AT208: 1535.867483 | AU208: 1518.687544 | AV208: 1535.061469 | AW208: 1483.941834 | AX208: 1466.344532 | AY208: 1448.6509 | AZ208: 1432.091177 | BA208: 1416.068139
B209: =AVERAGE(E209:AG209) -> 12.17010562 | E209: =ABS(E208-D208) -> 8.070047028 | F209: =ABS(F208-E208) -> 8.204780865 | G209: =ABS(G208-F208) -> 8.341764158 | H209: =ABS(H208-G208) -> 8.481034461 | I209: =ABS(I208-H208) -> 10.13040975 | J209: =ABS(J208-I208) -> 10.11900766 | K209: =ABS(K208-J208) -> 10.31345433 | L209: =ABS(L208-K208) -> 10.51163748 | M209: =ABS(M208-L208) -> 10.71362891 | N209: =ABS(N208-M208) -> 12.21090418 | O209: =ABS(O208-N208) -> 12.2800057 | P209: =ABS(P208-O208) -> 12.53979627 | Q209: =ABS(Q208-P208) -> 12.80508286 | R209: =ABS(R208-Q208) -> 13.07598173 | S209: =ABS(S208-R208) -> 14.5177468 | T209: =ABS(T208-S208) -> 14.66285555 | U209: =ABS(U208-T208) -> 14.99583651 | V209: =ABS(V208-U208) -> 15.33637918 | W209: =ABS(W208-V208) -> 15.68465529 | X209: =ABS(X208-W208) -> 17.01646416 | Y209: =ABS(Y208-X208) -> 11.76629219 | Z209: =ABS(Z208-Y208) -> 11.99949892 | AA209: =ABS(AA208-Z208) -> 12.21413972 | AB209: =ABS(AB208-AA208) -> 12.41243632 | AC209: =ABS(AC208-AB208) -> 12.59525492 | AD209: =ABS(AD208-AC208) -> 12.76284545 | AE209: =ABS(AE208-AD208) -> 12.91774174 | AF209: =ABS(AF208-AE208) -> 13.06104654 | AG209: =ABS(AG208-AF208) -> 13.19233439 | AH209: =ABS(AH208-AG208) -> 276.4570322 | AI209: =ABS(AI208-AH208) -> 18.14001212 | AJ209: =ABS(AJ208-AI208) -> 15.62224022 | AK209: =ABS(AK208-AJ208) -> 15.78464889 | AL209: =ABS(AL208-AK208) -> 15.94068027 | AM209: =ABS(AM208-AL208) -> 16.0915742 | AN209: =ABS(AN208-AM208) -> 16.23794695 | AO209: =ABS(AO208-AN208) -> 16.38007685 | AP209: =ABS(AP208-AO208) -> 16.51895764 | AQ209: =ABS(AQ208-AP208) -> 16.65496134 | AR209: =ABS(AR208-AQ208) -> 16.78852588 | AS209: =ABS(AS208-AR208) -> 16.92035477 | AT209: =ABS(AT208-AS208) -> 17.05066702 | AU209: =ABS(AU208-AT208) -> 17.17993939 | AV209: =ABS(AV208-AU208) -> 16.37392445 | AW209: =ABS(AW208-AV208) -> 51.11963429 | AX209: =ABS(AX208-AW208) -> 17.59730263 | AY209: =ABS(AY208-AX208) -> 17.69363131 | AZ209: =ABS(AZ208-AY208) -> 16.55972377 | BA209: =ABS(BA208-AZ208) -> 16.02303722
A213: Other
A214: At decision | B214: Expected revenue - at decision (RHS) | D214: ='Working | Base case'!D106 -> 344.3748693 | E214: ='Working | Base case'!E106 -> 359.1808478 | F214: ='Working | Base case'!F106 -> 374.6233913 | G214: ='Working | Base case'!G106 -> 390.7298682 | H214: ='Working | Base case'!H106 -> 407.5288235
B215: Forecast RAB - at decision (RHS) | D215: ='Working | Base case'!C38 -> 6000 | E215: ='Working | Base case'!D38 -> 6134.922549 | F215: ='Working | Base case'!E38 -> 6272.879114 | G215: ='Working | Base case'!F38 -> 6413.93792 | H215: ='Working | Base case'!G38 -> 6558.168729
A216: At pricing | B216: Actual revenue - after pricing (LHS) | D216: ='Working | Base case'!D111 -> 344.3748693 | E216: ='Working | Base case'!E111 -> 362.8216772 | F216: ='Working | Base case'!F111 -> 377.632127 | G216: ='Working | Base case'!G111 -> 394.3316259 | H216: ='Working | Base case'!H111 -> 413.9987666
A217: At roll forward | B217: Actual RAB - after roll forward (LHS) | D217: ='Working | Base case'!D121 -> 6000 | E217: ='Working | Base case'!E121 -> 6197.109067 | F217: ='Working | Base case'!F121 -> 6323.25887 | G217: ='Working | Base case'!G121 -> 6473.061761 | H217: ='Working | Base case'!H121 -> 6662.286465

Sheet Output | General
A2: Regulatory asset base | B2: Year | C2: 0 | D2: 1 | E2: 2 | F2: 3 | G2: 4 | H2: 5 | I2: 6 | J2: 7 | K2: 8 | L2: 9 | M2: 10 | N2: 11 | O2: 12 | P2: 13 | Q2: 14 | R2: 15 | S2: 16 | T2: 17 | U2: 18 | V2: 19 | W2: 20
A3: Nominal (actual) opening RAB
A4: =Inputs!A3 -> Base case | D4: ='Working | Base case'!D121 -> 6000 | E4: ='Working | Base case'!E121 -> 6197.109067 | F4: ='Working | Base case'!F121 -> 6323.25887 | G4: ='Working | Base case'!G121 -> 6473.061761 | H4: ='Working | Base case'!H121 -> 6662.286465 | I4: ='Working | Base case'!I257 -> 6827.858081 | J4: ='Working | Base case'!J257 -> 7120.898195 | K4: ='Working | Base case'!K257 -> 7295.761337 | L4: ='Working | Base case'!L257 -> 7510.127231 | M4: ='Working | Base case'!M257 -> 7756.129343 | N4: ='Working | Base case'!N393 -> 7883.87042 | O4: ='Working | Base case'!O393 -> 8085.814479 | P4: ='Working | Base case'!P393 -> 8327.469946 | Q4: ='Working | Base case'!Q393 -> 8442.987512 | R4: ='Working | Base case'!R393 -> 8558.634554 | S4: ='Working | Base case'!S529 -> 8745.601205 | T4: ='Working | Base case'!T529 -> 8914.584848 | U4: ='Working | Base case'!U529 -> 9036.170854 | V4: ='Working | Base case'!V529 -> 9237.026962 | W4: ='Working | Base case'!W529 -> 9442.346792
A5: =RIGHT(Inputs!A4,LEN(Inputs!A4)-3)&" ("&Inputs!B4&")" -> Approach B (5 year estimate) | D5: ='Working | Approach B'!D121 -> 6000 | E5: ='Working | Approach B'!E121 -> 6197.361992 | F5: ='Working | Approach B'!F121 -> 6323.778178 | G5: ='Working | Approach B'!G121 -> 6473.859924 | H5: ='Working | Approach B'!H121 -> 6663.380828 | I5: ='Working | Approach B'!I257 -> 6829.260485 | J5: ='Working | Approach B'!J257 -> 7122.648387 | K5: ='Working | Approach B'!K257 -> 7297.854341 | L5: ='Working | Approach B'!L257 -> 7512.588811 | M5: ='Working | Approach B'!M257 -> 7758.987539 | N5: ='Working | Approach B'!N393 -> 7887.101901 | O5: ='Working | Approach B'!O393 -> 8089.460291 | P5: ='Working | Approach B'!P393 -> 8331.564377 | Q5: ='Working | Approach B'!Q393 -> 8447.48815 | R5: ='Working | Approach B'!R393 -> 8563.550684 | S5: ='Working | Approach B'!S529 -> 8750.983005 | T5: ='Working | Approach B'!T529 -> 8920.437039 | U5: ='Working | Approach B'!U529 -> 9042.476113 | V5: ='Working | Approach B'!V529 -> 9243.850478 | W5: ='Working | Approach B'!W529 -> 9449.708249
A6: =RIGHT(Inputs!A5,LEN(Inputs!A5)-3)&" ("&Inputs!B5&")" -> Approach C (linear glide path) | D6: ='Working | Approach C'!D121 -> 6000 | E6: ='Working | Approach C'!E121 -> 6197.260251 | F6: ='Working | Approach C'!F121 -> 6323.569282 | G6: ='Working | Approach C'!G121 -> 6473.538857 | H6: ='Working | Approach C'!H121 -> 6662.940612 | I6: ='Working | Approach C'!I257 -> 6828.696357 | J6: ='Working | Approach C'!J257 -> 7121.944358 | K6: ='Working | Approach C'!K257 -> 7297.012413 | L6: ='Working | Approach C'!L257 -> 7511.598621 | M6: ='Working | Approach C'!M257 -> 7757.837807 | N6: ='Working | Approach C'!N393 -> 7885.802011 | O6: ='Working | Approach C'!O393 -> 8087.993733 | P6: ='Working | Approach C'!P393 -> 8329.917359 | Q6: ='Working | Approach C'!Q393 -> 8445.677732 | R6: ='Working | Approach C'!R393 -> 8561.573131 | S6: ='Working | Approach C'!S529 -> 8748.818132 | T6: ='Working | Approach C'!T529 -> 8918.082948 | U6: ='Working | Approach C'!U529 -> 9039.939771 | V6: ='Working | Approach C'!V529 -> 9241.105664 | W6: ='Working | Approach C'!W529 -> 9446.747044
A7: =RIGHT(Inputs!A6,LEN(Inputs!A6)-3)&" ("&Inputs!B6&")" -> Approach D (unindexed RAB) | D7: ='Working | Approach D'!D121 -> 6000 | E7: ='Working | Approach D'!E121 -> 6005.953992 | F7: ='Working | Approach D'!F121 -> 6018.947966 | G7: ='Working | Approach D'!G121 -> 6036.69043 | H7: ='Working | Approach D'!H121 -> 6060.222269 | I7: ='Working | Approach D'!I257 -> 6091.291587 | J7: ='Working | Approach D'!J257 -> 6128.526744 | K7: ='Working | Approach D'!K257 -> 6177.973876 | L7: ='Working | Approach D'!L257 -> 6235.126098 | M7: ='Working | Approach D'!M257 -> 6302.023518 | N7: ='Working | Approach D'!N393 -> 6380.523554 | O7: ='Working | Approach D'!O393 -> 6463.739645 | P7: ='Working | Approach D'!P393 -> 6556.58373 | Q7: ='Working | Approach D'!Q393 -> 6661.413357 | R7: ='Working | Approach D'!R393 -> 6772.088367 | S7: ='Working | Approach D'!S529 -> 6888.670559 | T7: ='Working | Approach D'!T529 -> 7015.83803 | U7: ='Working | Approach D'!U529 -> 7152.589859 | V7: ='Working | Approach D'!V529 -> 7296.350938 | W7: ='Working | Approach D'!W529 -> 7452.073792
A8: =RIGHT(Inputs!A7,LEN(Inputs!A7)-3)&" ("&Inputs!B7&")" -> Approach E (nominal - updated) | D8: ='Working | Approach E'!D121 -> 6000 | E8: ='Working | Approach E'!E121 -> 6177.890177 | F8: ='Working | Approach E'!F121 -> 6379.76267 | G8: ='Working | Approach E'!G121 -> 6509.93572 | H8: ='Working | Approach E'!H121 -> 6664.073434 | I8: ='Working | Approach E'!I257 -> 6858.089154 | J8: ='Working | Approach E'!J257 -> 7028.301973 | K8: ='Working | Approach E'!K257 -> 7325.79496 | L8: ='Working | Approach E'!L257 -> 7504.197182 | M8: ='Working | Approach E'!M257 -> 7722.373063 | N8: ='Working | Approach E'!N393 -> 7972.360762 | O8: ='Working | Approach E'!O393 -> 8103.604783 | P8: ='Working | Approach E'!P393 -> 8306.20993 | Q8: ='Working | Approach E'!Q393 -> 8548.485516 | R8: ='Working | Approach E'!R393 -> 8664.420924 | S8: ='Working | Approach E'!S529 -> 8780.458945 | T8: ='Working | Approach E'!T529 -> 8967.652376 | U8: ='Working | Approach E'!U529 -> 9139.205734 | V8: ='Working | Approach E'!V529 -> 9263.608491 | W8: ='Working | Approach E'!W529 -> 9466.884097
A9: =RIGHT(Inputs!A8,LEN(Inputs!A8)-3)&" ("&Inputs!B8&")" -> Approach F (nominal - indexed) | D9: ='Working | Approach F'!D121 -> 6000 | E9: ='Working | Approach F'!E121 -> 6197.109067 | F9: ='Working | Approach F'!F121 -> 6323.25887 | G9: ='Working | Approach F'!G121 -> 6473.061761 | H9: ='Working | Approach F'!H121 -> 6662.286465 | I9: ='Working | Approach F'!I257 -> 6827.858081 | J9: ='Working | Approach F'!J257 -> 7125.817088 | K9: ='Working | Approach F'!K257 -> 7305.929124 | L9: ='Working | Approach F'!L257 -> 7525.845822 | M9: ='Working | Approach F'!M257 -> 7777.767153 | N9: ='Working | Approach F'!N393 -> 7911.443877 | O9: ='Working | Approach F'!O393 -> 8131.047127 | P9: ='Working | Approach F'!P393 -> 8391.421589 | Q9: ='Working | Approach F'!Q393 -> 8525.692011 | R9: ='Working | Approach F'!R393 -> 8660.564404 | S9: ='Working | Approach F'!S529 -> 8868.076786 | T9: ='Working | Approach F'!T529 -> 9053.420511 | U9: ='Working | Approach F'!U529 -> 9191.155187 | V9: ='Working | Approach F'!V529 -> 9409.896755 | W9: ='Working | Approach F'!W529 -> 9633.811402
A10: =RIGHT(Inputs!A9,LEN(Inputs!A9)-3)&" ("&Inputs!B9&")" -> Approach G (hybrid - weighted CPI) | D10: ='Working | Approach G'!D121 -> 6000 | E10: ='Working | Approach G'!E121 -> 6159.797156 | F10: ='Working | Approach G'!F121 -> 6293.062819 | G10: ='Working | Approach G'!G121 -> 6437.605436 | H10: ='Working | Approach G'!H121 -> 6599.738538 | I10: ='Working | Approach G'!I257 -> 6754.390761 | J10: ='Working | Approach G'!J257 -> 6965.231321 | K10: ='Working | Approach G'!K257 -> 7131.544488 | L10: ='Working | Approach G'!L257 -> 7315.59759 | M10: ='Working | Approach G'!M257 -> 7514.288882 | N10: ='Working | Approach G'!N393 -> 7669.449967 | O10: ='Working | Approach G'!O393 -> 7864.606788 | P10: ='Working | Approach G'!P393 -> 8078.161863 | Q10: ='Working | Approach G'!Q393 -> 8245.802611 | R10: ='Working | Approach G'!R393 -> 8416.230516 | S10: ='Working | Approach G'!S529 -> 8617.491665 | T10: ='Working | Approach G'!T529 -> 8810.496388 | U10: ='Working | Approach G'!U529 -> 8987.757589 | V10: ='Working | Approach G'!V529 -> 9199.386142 | W10: ='Working | Approach G'!W529 -> 9415.978804
A11: =RIGHT(Inputs!A10,LEN(Inputs!A10)-3)&" ("&Inputs!B10&")" -> Approach H (hybrid - separate) | D11: ='Working | Approach H'!D133 -> 6000 | E11: ='Working | Approach H'!E133 -> 6159.797156 | F11: ='Working | Approach H'!F133 -> 6293.031016 | G11: ='Working | Approach H'!G133 -> 6437.587457 | H11: ='Working | Approach H'!H133 -> 6599.815824 | I11: ='Working | Approach H'!I282 -> 6754.528954 | J11: ='Working | Approach H'!J282 -> 6965.955883 | K11: ='Working | Approach H'!K282 -> 7132.340684 | L11: ='Working | Approach H'!L282 -> 7316.798134 | M11: ='Working | Approach H'!M282 -> 7516.248352 | N11: ='Working | Approach H'!N431 -> 7670.699905 | O11: ='Working | Approach H'!O431 -> 7866.114677 | P11: ='Working | Approach H'!P431 -> 8080.352691 | Q11: ='Working | Approach H'!Q431 -> 8246.892709 | R11: ='Working | Approach H'!R431 -> 8416.413399 | S11: ='Working | Approach H'!S580 -> 8617.662592 | T11: ='Working | Approach H'!T580 -> 8810.381968 | U11: ='Working | Approach H'!U580 -> 8986.968251 | V11: ='Working | Approach H'!V580 -> 9198.624792 | W11: ='Working | Approach H'!W580 -> 9415.251855
A12: =RIGHT(Inputs!A11,LEN(Inputs!A11)-3)&" ("&Inputs!B11&")" -> Approach I (hybrid + swaps) | D12: ='Working | Approach I'!D121 -> 6000 | E12: ='Working | Approach I'!E121 -> 6144.050404 | F12: ='Working | Approach I'!F121 -> 6260.854604 | G12: ='Working | Approach I'!G121 -> 6388.23082 | H12: ='Working | Approach I'!H121 -> 6532.361188 | I12: ='Working | Approach I'!I257 -> 6668.300487 | J12: ='Working | Approach I'!J257 -> 6862.585911 | K12: ='Working | Approach I'!K257 -> 7012.241416 | L12: ='Working | Approach I'!L257 -> 7178.71911 | M12: ='Working | Approach I'!M257 -> 7358.885728 | N12: ='Working | Approach I'!N393 -> 7495.70298 | O12: ='Working | Approach I'!O393 -> 7675.783786 | P12: ='Working | Approach I'!P393 -> 7873.331037 | Q12: ='Working | Approach I'!Q393 -> 8025.616745 | R12: ='Working | Approach I'!R393 -> 8180.134576 | S12: ='Working | Approach I'!S529 -> 8364.130413 | T12: ='Working | Approach I'!T529 -> 8545.652758 | U12: ='Working | Approach I'!U529 -> 8711.613834 | V12: ='Working | Approach I'!V529 -> 8910.555981 | W12: ='Working | Approach I'!W529 -> 9114.014801
A14: Real (actual) opening RAB ($y1)
A15: =A4 -> Base case | D15: =D4/(Inputs!D$35/Inputs!$D$35) -> 6000 | E15: =E4/(Inputs!E$35/Inputs!$D$35) -> 6000 | F15: =F4/(Inputs!F$35/Inputs!$D$35) -> 6000 | G15: =G4/(Inputs!G$35/Inputs!$D$35) -> 6000 | H15: =H4/(Inputs!H$35/Inputs!$D$35) -> 6000 | I15: =I4/(Inputs!I$35/Inputs!$D$35) -> 6000 | J15: =J4/(Inputs!J$35/Inputs!$D$35) -> 6001.111325 | K15: =K4/(Inputs!K$35/Inputs!$D$35) -> 6002.24257 | L15: =L4/(Inputs!L$35/Inputs!$D$35) -> 6003.368511 | M15: =M4/(Inputs!M$35/Inputs!$D$35) -> 6004.490773 | N15: =N4/(Inputs!N$35/Inputs!$D$35) -> 6005.63102 | O15: =O4/(Inputs!O$35/Inputs!$D$35) -> 6009.086737 | P15: =P4/(Inputs!P$35/Inputs!$D$35) -> 6012.528111 | Q15: =Q4/(Inputs!Q$35/Inputs!$D$35) -> 6016.023873 | R15: =R4/(Inputs!R$35/Inputs!$D$35) -> 6019.520236 | S15: =S4/(Inputs!S$35/Inputs!$D$35) -> 6022.988703 | T15: =T4/(Inputs!T$35/Inputs!$D$35) -> 6024.865958 | U15: =U4/(Inputs!U$35/Inputs!$D$35) -> 6026.753742 | V15: =V4/(Inputs!V$35/Inputs!$D$35) -> 6028.625659 | W15: =W4/(Inputs!W$35/Inputs!$D$35) -> 6030.497576
A16: Approach B (5 year estimate) | D16: =D5/(Inputs!D$35/Inputs!$D$35) -> 6000 | E16: =E5/(Inputs!E$35/Inputs!$D$35) -> 6000.244881 | F16: =F5/(Inputs!F$35/Inputs!$D$35) -> 6000.49276 | G16: =G5/(Inputs!G$35/Inputs!$D$35) -> 6000.739832 | H16: =H5/(Inputs!H$35/Inputs!$D$35) -> 6000.985574 | I16: =I5/(Inputs!I$35/Inputs!$D$35) -> 6001.232366 | J16: =J5/(Inputs!J$35/Inputs!$D$35) -> 6002.586293 | K16: =K5/(Inputs!K$35/Inputs!$D$35) -> 6003.96449 | L16: =L5/(Inputs!L$35/Inputs!$D$35) -> 6005.336224 | M16: =M5/(Inputs!M$35/Inputs!$D$35) -> 6006.703476 | N16: =N5/(Inputs!N$35/Inputs!$D$35) -> 6008.092639 | O16: =O5/(Inputs!O$35/Inputs!$D$35) -> 6011.796173 | P16: =P5/(Inputs!P$35/Inputs!$D$35) -> 6015.484336 | Q16: =Q5/(Inputs!Q$35/Inputs!$D$35) -> 6019.230788 | R16: =R5/(Inputs!R$35/Inputs!$D$35) -> 6022.977884 | S16: =S5/(Inputs!S$35/Inputs!$D$35) -> 6026.695083 | T16: =T5/(Inputs!T$35/Inputs!$D$35) -> 6028.821125 | U16: =U5/(Inputs!U$35/Inputs!$D$35) -> 6030.95909 | V16: =V5/(Inputs!V$35/Inputs!$D$35) -> 6033.079086 | W16: =W5/(Inputs!W$35/Inputs!$D$35) -> 6035.199081
A17: Approach C (linear glide path) | D17: =D6/(Inputs!D$35/Inputs!$D$35) -> 6000 | E17: =E6/(Inputs!E$35/Inputs!$D$35) -> 6000.146375 | F17: =F6/(Inputs!F$35/Inputs!$D$35) -> 6000.294543 | G17: =G6/(Inputs!G$35/Inputs!$D$35) -> 6000.442229 | H17: =H6/(Inputs!H$35/Inputs!$D$35) -> 6000.589119 | I17: =I6/(Inputs!I$35/Inputs!$D$35) -> 6000.736637 | J17: =J6/(Inputs!J$35/Inputs!$D$35) -> 6001.992975 | K17: =K6/(Inputs!K$35/Inputs!$D$35) -> 6003.271834 | L17: =L6/(Inputs!L$35/Inputs!$D$35) -> 6004.544696 | M17: =M6/(Inputs!M$35/Inputs!$D$35) -> 6005.813399 | N17: =N6/(Inputs!N$35/Inputs!$D$35) -> 6007.102433 | O17: =O6/(Inputs!O$35/Inputs!$D$35) -> 6010.70628 | P17: =P6/(Inputs!P$35/Inputs!$D$35) -> 6014.295171 | Q17: =Q6/(Inputs!Q$35/Inputs!$D$35) -> 6017.940781 | R17: =R6/(Inputs!R$35/Inputs!$D$35) -> 6021.587017 | S17: =S6/(Inputs!S$35/Inputs!$D$35) -> 6025.204162 | T17: =T6/(Inputs!T$35/Inputs!$D$35) -> 6027.230127 | U17: =U6/(Inputs!U$35/Inputs!$D$35) -> 6029.267455 | V17: =V6/(Inputs!V$35/Inputs!$D$35) -> 6031.287659 | W17: =W6/(Inputs!W$35/Inputs!$D$35) -> 6033.307863
A18: Approach D (unindexed RAB) | D18: =D7/(Inputs!D$35/Inputs!$D$35) -> 6000 | E18: =E7/(Inputs!E$35/Inputs!$D$35) -> 5814.924921 | F18: =F7/(Inputs!F$35/Inputs!$D$35) -> 5711.246137 | G18: =G7/(Inputs!G$35/Inputs!$D$35) -> 5595.519387 | H18: =H7/(Inputs!H$35/Inputs!$D$35) -> 5457.785972 | I18: =I7/(Inputs!I$35/Inputs!$D$35) -> 5352.740067 | J18: =J7/(Inputs!J$35/Inputs!$D$35) -> 5164.793856 | K18: =K7/(Inputs!K$35/Inputs!$D$35) -> 5082.635805 | L18: =L7/(Inputs!L$35/Inputs!$D$35) -> 4984.171177 | M18: =M7/(Inputs!M$35/Inputs!$D$35) -> 4878.779143 | N18: =N7/(Inputs!N$35/Inputs!$D$35) -> 4860.438863 | O18: =O7/(Inputs!O$35/Inputs!$D$35) -> 4803.619013 | P18: =P7/(Inputs!P$35/Inputs!$D$35) -> 4733.928101 | Q18: =Q7/(Inputs!Q$35/Inputs!$D$35) -> 4746.568881 | R18: =R7/(Inputs!R$35/Inputs!$D$35) -> 4762.993759 | S18: =S7/(Inputs!S$35/Inputs!$D$35) -> 4744.143254 | T18: =T7/(Inputs!T$35/Inputs!$D$35) -> 4741.609894 | U18: =U7/(Inputs!U$35/Inputs!$D$35) -> 4770.482807 | V18: =V7/(Inputs!V$35/Inputs!$D$35) -> 4762.026641 | W18: =W7/(Inputs!W$35/Inputs!$D$35) -> 4759.379625
A19: Approach E (nominal - updated) | D19: =D8/(Inputs!D$35/Inputs!$D$35) -> 6000 | E19: =E8/(Inputs!E$35/Inputs!$D$35) -> 5981.392398 | F19: =F8/(Inputs!F$35/Inputs!$D$35) -> 6053.615202 | G19: =G8/(Inputs!G$35/Inputs!$D$35) -> 6034.179151 | H19: =H8/(Inputs!H$35/Inputs!$D$35) -> 6001.609329 | I19: =I8/(Inputs!I$35/Inputs!$D$35) -> 6026.565642 | J19: =J8/(Inputs!J$35/Inputs!$D$35) -> 5923.076192 | K19: =K8/(Inputs!K$35/Inputs!$D$35) -> 6026.951313 | L19: =L8/(Inputs!L$35/Inputs!$D$35) -> 5998.628209 | M19: =M8/(Inputs!M$35/Inputs!$D$35) -> 5978.357986 | N19: =N8/(Inputs!N$35/Inputs!$D$35) -> 6073.03958 | O19: =O8/(Inputs!O$35/Inputs!$D$35) -> 6022.307851 | P19: =P8/(Inputs!P$35/Inputs!$D$35) -> 5997.178137 | Q19: =Q8/(Inputs!Q$35/Inputs!$D$35) -> 6091.19614 | R19: =R8/(Inputs!R$35/Inputs!$D$35) -> 6093.922665 | S19: =S8/(Inputs!S$35/Inputs!$D$35) -> 6046.994803 | T19: =T8/(Inputs!T$35/Inputs!$D$35) -> 6060.731313 | U19: =U8/(Inputs!U$35/Inputs!$D$35) -> 6095.473763 | V19: =V8/(Inputs!V$35/Inputs!$D$35) -> 6045.974324 | W19: =W8/(Inputs!W$35/Inputs!$D$35) -> 6046.168697
A20: Approach F (nominal - indexed) | D20: =D9/(Inputs!D$35/Inputs!$D$35) -> 6000 | E20: =E9/(Inputs!E$35/Inputs!$D$35) -> 6000 | F20: =F9/(Inputs!F$35/Inputs!$D$35) -> 6000 | G20: =G9/(Inputs!G$35/Inputs!$D$35) -> 6000 | H20: =H9/(Inputs!H$35/Inputs!$D$35) -> 6000 | I20: =I9/(Inputs!I$35/Inputs!$D$35) -> 6000 | J20: =J9/(Inputs!J$35/Inputs!$D$35) -> 6005.256704 | K20: =K9/(Inputs!K$35/Inputs!$D$35) -> 6010.607636 | L20: =L9/(Inputs!L$35/Inputs!$D$35) -> 6015.933477 | M20: =M9/(Inputs!M$35/Inputs!$D$35) -> 6021.241916 | N20: =N9/(Inputs!N$35/Inputs!$D$35) -> 6026.635425 | O20: =O9/(Inputs!O$35/Inputs!$D$35) -> 6042.702015 | P20: =P9/(Inputs!P$35/Inputs!$D$35) -> 6058.701925 | Q20: =Q9/(Inputs!Q$35/Inputs!$D$35) -> 6074.9547 | R20: =R9/(Inputs!R$35/Inputs!$D$35) -> 6091.210269 | S20: =S9/(Inputs!S$35/Inputs!$D$35) -> 6107.33614 | T20: =T9/(Inputs!T$35/Inputs!$D$35) -> 6118.697166 | U20: =U9/(Inputs!U$35/Inputs!$D$35) -> 6130.121908 | V20: =V9/(Inputs!V$35/Inputs!$D$35) -> 6141.450626 | W20: =W9/(Inputs!W$35/Inputs!$D$35) -> 6152.779344
A21: Approach G (hybrid - weighted CPI) | D21: =D10/(Inputs!D$35/Inputs!$D$35) -> 6000 | E21: =E10/(Inputs!E$35/Inputs!$D$35) -> 5963.874855 | F21: =F10/(Inputs!F$35/Inputs!$D$35) -> 5971.347637 | G21: =G10/(Inputs!G$35/Inputs!$D$35) -> 5967.13488 | H21: =H10/(Inputs!H$35/Inputs!$D$35) -> 5943.669855 | I21: =I10/(Inputs!I$35/Inputs!$D$35) -> 5935.44038 | J21: =J10/(Inputs!J$35/Inputs!$D$35) -> 5869.923627 | K21: =K10/(Inputs!K$35/Inputs!$D$35) -> 5867.140925 | L21: =L10/(Inputs!L$35/Inputs!$D$35) -> 5847.867401 | M21: =M10/(Inputs!M$35/Inputs!$D$35) -> 5817.267385 | N21: =N10/(Inputs!N$35/Inputs!$D$35) -> 5842.293718 | O21: =O10/(Inputs!O$35/Inputs!$D$35) -> 5844.693131 | P21: =P10/(Inputs!P$35/Inputs!$D$35) -> 5832.524837 | Q21: =Q10/(Inputs!Q$35/Inputs!$D$35) -> 5875.5204 | R21: =R10/(Inputs!R$35/Inputs!$D$35) -> 5919.363607 | S21: =S10/(Inputs!S$35/Inputs!$D$35) -> 5934.761228 | T21: =T10/(Inputs!T$35/Inputs!$D$35) -> 5954.518429 | U21: =U10/(Inputs!U$35/Inputs!$D$35) -> 5994.464089 | V21: =V10/(Inputs!V$35/Inputs!$D$35) -> 6004.059051 | W21: =W10/(Inputs!W$35/Inputs!$D$35) -> 6013.657261
A22: Approach H (hybrid - separate) | D22: =D11/(Inputs!D$35/Inputs!$D$35) -> 6000 | E22: =E11/(Inputs!E$35/Inputs!$D$35) -> 5963.874855 | F22: =F11/(Inputs!F$35/Inputs!$D$35) -> 5971.317461 | G22: =G11/(Inputs!G$35/Inputs!$D$35) -> 5967.118215 | H22: =H11/(Inputs!H$35/Inputs!$D$35) -> 5943.739458 | I22: =I11/(Inputs!I$35/Inputs!$D$35) -> 5935.561818 | J22: =J11/(Inputs!J$35/Inputs!$D$35) -> 5870.534249 | K22: =K11/(Inputs!K$35/Inputs!$D$35) -> 5867.795958 | L22: =L11/(Inputs!L$35/Inputs!$D$35) -> 5848.82708 | M22: =M11/(Inputs!M$35/Inputs!$D$35) -> 5818.78433 | N22: =N11/(Inputs!N$35/Inputs!$D$35) -> 5843.245873 | O22: =O11/(Inputs!O$35/Inputs!$D$35) -> 5845.813739 | P22: =P11/(Inputs!P$35/Inputs!$D$35) -> 5834.10664 | Q22: =Q11/(Inputs!Q$35/Inputs!$D$35) -> 5876.297146 | R22: =R11/(Inputs!R$35/Inputs!$D$35) -> 5919.492234 | S22: =S11/(Inputs!S$35/Inputs!$D$35) -> 5934.878944 | T22: =T11/(Inputs!T$35/Inputs!$D$35) -> 5954.441099 | U22: =U11/(Inputs!U$35/Inputs!$D$35) -> 5993.937633 | V22: =V11/(Inputs!V$35/Inputs!$D$35) -> 6003.56215 | W22: =W11/(Inputs!W$35/Inputs!$D$35) -> 6013.192984
A23: Approach I (hybrid + swaps) | D23: =D12/(Inputs!D$35/Inputs!$D$35) -> 6000 | E23: =E12/(Inputs!E$35/Inputs!$D$35) -> 5948.628953 | F23: =F12/(Inputs!F$35/Inputs!$D$35) -> 5940.785977 | G23: =G12/(Inputs!G$35/Inputs!$D$35) -> 5921.36864 | H23: =H12/(Inputs!H$35/Inputs!$D$35) -> 5882.990372 | I23: =I12/(Inputs!I$35/Inputs!$D$35) -> 5859.788303 | J23: =J12/(Inputs!J$35/Inputs!$D$35) -> 5783.419577 | K23: =K12/(Inputs!K$35/Inputs!$D$35) -> 5768.989965 | L23: =L12/(Inputs!L$35/Inputs!$D$35) -> 5738.450885 | M23: =M12/(Inputs!M$35/Inputs!$D$35) -> 5696.960365 | N23: =N12/(Inputs!N$35/Inputs!$D$35) -> 5709.939908 | O23: =O12/(Inputs!O$35/Inputs!$D$35) -> 5704.366662 | P23: =P12/(Inputs!P$35/Inputs!$D$35) -> 5684.634648 | Q23: =Q12/(Inputs!Q$35/Inputs!$D$35) -> 5718.627662 | R23: =R12/(Inputs!R$35/Inputs!$D$35) -> 5753.310917 | S23: =S12/(Inputs!S$35/Inputs!$D$35) -> 5760.274429 | T23: =T12/(Inputs!T$35/Inputs!$D$35) -> 5775.525532 | U23: =U12/(Inputs!U$35/Inputs!$D$35) -> 5810.287579 | V23: =V12/(Inputs!V$35/Inputs!$D$35) -> 5815.551545 | W23: =W12/(Inputs!W$35/Inputs!$D$35) -> 5820.803384
A25: Revenues | B25: Year | C25: 0 | D25: 1 | E25: 2 | F25: 3 | G25: 4 | H25: 5 | I25: 6 | J25: 7 | K25: 8 | L25: 9 | M25: 10 | N25: 11 | O25: 12 | P25: 13 | Q25: 14 | R25: 15 | S25: 16 | T25: 17 | U25: 18 | V25: 19 | W25: 20
A26: Nominal allowed revenue
A27: =A4 -> Base case | C27: ='Working | Base case'!$C$111 -> 480 | D27: ='Working | Base case'!D111 -> 344.3748693 | E27: ='Working | Base case'!E111 -> 362.8216772 | F27: ='Working | Base case'!F111 -> 377.632127 | G27: ='Working | Base case'!G111 -> 394.3316259 | H27: ='Working | Base case'!H111 -> 413.9987666 | I27: ='Working | Base case'!I247 -> 433.3493319 | J27: ='Working | Base case'!J247 -> 461.5827457 | K27: ='Working | Base case'!K247 -> 482.9977696 | L27: ='Working | Base case'!L247 -> 507.7873968 | M27: ='Working | Base case'!M247 -> 535.5993775 | N27: ='Working | Base case'!N383 -> 558.8557019 | O27: ='Working | Base case'!O383 -> 586.7097921 | P27: ='Working | Base case'!P383 -> 618.5191817 | Q27: ='Working | Base case'!Q383 -> 641.9083075 | R27: ='Working | Base case'!R383 -> 666.0674124 | S27: ='Working | Base case'!S519 -> 697.3401397 | T27: ='Working | Base case'!T519 -> 728.6459523 | U27: ='Working | Base case'!U519 -> 757.1110599 | V27: ='Working | Base case'!V519 -> 793.3563026 | W27: ='Working | Base case'!W519 -> 831.3367169
A28: Approach B (5 year estimate) | C28: =C27 -> 480 | D28: ='Working | Approach B'!D111 -> 359.4990366 | E28: ='Working | Approach B'!E111 -> 378.2353592 | F28: ='Working | Approach B'!F111 -> 393.1338636 | G28: ='Working | Approach B'!G111 -> 409.9545863 | H28: ='Working | Approach B'!H111 -> 429.809299 | I28: ='Working | Approach B'!I247 -> 450.5829487 | J28: ='Working | Approach B'!J247 -> 479.9040091 | K28: ='Working | Approach B'!K247 -> 502.1322639 | L28: ='Working | Approach B'!L247 -> 527.865295 | M28: ='Working | Approach B'!M247 -> 556.7361811 | N28: ='Working | Approach B'!N383 -> 580.6141708 | O28: ='Working | Approach B'!O383 -> 608.9205041 | P28: ='Working | Approach B'!P383 -> 641.2682692 | Q28: ='Working | Approach B'!Q383 -> 664.8273714 | R28: ='Working | Approach B'!R383 -> 689.1335567 | S28: ='Working | Approach B'!S519 -> 721.421563 | T28: ='Working | Approach B'!T519 -> 753.0635057 | U28: ='Working | Approach B'!U519 -> 781.7092045 | V28: ='Working | Approach B'!V519 -> 818.3225179 | W28: ='Working | Approach B'!W519 -> 856.6507078
A29: Approach C (linear glide path) | C29: =C28 -> 480 | D29: ='Working | Approach C'!D111 -> 353.0719559 | E29: ='Working | Approach C'!E111 -> 371.8062782 | F29: ='Working | Approach C'!F111 -> 386.7979353 | G29: ='Working | Approach C'!G111 -> 403.709103 | H29: ='Working | Approach C'!H111 -> 423.6407226 | I29: ='Working | Approach C'!I247 -> 443.2369163 | J29: ='Working | Approach C'!J247 -> 471.8963444 | K29: ='Working | Approach C'!K247 -> 493.5616705 | L29: ='Working | Approach C'!L247 -> 518.6536889 | M29: ='Working | Approach C'!M247 -> 546.8080135 | N29: ='Working | Approach C'!N383 -> 571.8690399 | O29: ='Working | Approach C'!O383 -> 599.9936577 | P29: ='Working | Approach C'!P383 -> 632.1249321 | Q29: ='Working | Approach C'!Q383 -> 655.6154325 | R29: ='Working | Approach C'!R383 -> 679.8620226 | S29: ='Working | Approach C'!S519 -> 711.7415595 | T29: ='Working | Approach C'!T519 -> 743.2484325 | U29: ='Working | Approach C'!U519 -> 771.8214068 | V29: ='Working | Approach C'!V519 -> 808.2864337 | W29: ='Working | Approach C'!W519 -> 846.4742662
A30: Approach D (unindexed RAB) | C30: 480 | D30: ='Working | Approach D'!D111 -> 491.8645346 | E30: ='Working | Approach D'!E111 -> 503.6065953 | F30: ='Working | Approach D'!F111 -> 509.3909698 | G30: ='Working | Approach D'!G111 -> 516.9256007 | H30: ='Working | Approach D'!H111 -> 527.41151 | I30: ='Working | Approach D'!I247 -> 531.2263146 | J30: ='Working | Approach D'!J247 -> 552.9438298 | K30: ='Working | Approach D'!K247 -> 565.4140247 | L30: ='Working | Approach D'!L247 -> 580.8892913 | M30: ='Working | Approach D'!M247 -> 598.7444734 | N30: ='Working | Approach D'!N383 -> 595.8973971 | O30: ='Working | Approach D'!O383 -> 614.4336192 | P30: ='Working | Approach D'!P383 -> 636.1867771 | Q30: ='Working | Approach D'!Q383 -> 648.4616449 | R30: ='Working | Approach D'!R383 -> 660.8597706 | S30: ='Working | Approach D'!S519 -> 688.8934847 | T30: ='Working | Approach D'!T519 -> 709.5618476 | U30: ='Working | Approach D'!U519 -> 726.7743241 | V30: ='Working | Approach D'!V519 -> 750.7140569 | W30: ='Working | Approach D'!W519 -> 775.4423574
A31: Approach E (nominal - updated) | C31: 480 | D31: ='Working | Approach E'!D111 -> 302.1342355 | E31: ='Working | Approach E'!E111 -> 326.8860445 | F31: ='Working | Approach E'!F111 -> 349.3870099 | G31: ='Working | Approach E'!G111 -> 374.6572099 | H31: ='Working | Approach E'!H111 -> 403.9300825 | I31: ='Working | Approach E'!I247 -> 419.6938298 | J31: ='Working | Approach E'!J247 -> 425.6068064 | K31: ='Working | Approach E'!K247 -> 424.0027458 | L31: ='Working | Approach E'!L247 -> 424.3947537 | M31: ='Working | Approach E'!M247 -> 426.1796398 | N31: ='Working | Approach E'!N383 -> 619.8025089 | O31: ='Working | Approach E'!O383 -> 633.7647709 | P31: ='Working | Approach E'!P383 -> 650.7423102 | Q31: ='Working | Approach E'!Q383 -> 657.7789674 | R31: ='Working | Approach E'!R383 -> 664.7774617 | S31: ='Working | Approach E'!S519 -> 712.6999688 | T31: ='Working | Approach E'!T519 -> 753.148432 | U31: ='Working | Approach E'!U519 -> 791.4537736 | V31: ='Working | Approach E'!V519 -> 838.757051 | W31: ='Working | Approach E'!W519 -> 888.8875309
A32: Approach F (nominal - indexed) | C32: 480 | D32: ='Working | Approach F'!D111 -> 344.3748693 | E32: ='Working | Approach F'!E111 -> 362.8216772 | F32: ='Working | Approach F'!F111 -> 377.632127 | G32: ='Working | Approach F'!G111 -> 394.3316259 | H32: ='Working | Approach F'!H111 -> 413.9987666 | I32: ='Working | Approach F'!I247 -> 425.5925977 | J32: ='Working | Approach F'!J247 -> 453.6026475 | K32: ='Working | Approach F'!K247 -> 474.9427034 | L32: ='Working | Approach F'!L247 -> 499.6295225 | M32: ='Working | Approach F'!M247 -> 527.3225197 | N32: ='Working | Approach F'!N383 -> 531.6487723 | O32: ='Working | Approach F'!O383 -> 559.144831 | P32: ='Working | Approach F'!P383 -> 590.5137293 | Q32: ='Working | Approach F'!Q383 -> 613.9396352 | R32: ='Working | Approach F'!R383 -> 638.1851738 | S32: ='Working | Approach F'!S519 -> 676.6122281 | T32: ='Working | Approach F'!T519 -> 707.7998729 | U32: ='Working | Approach F'!U519 -> 736.2956925 | V32: ='Working | Approach F'!V519 -> 772.4309934 | W32: ='Working | Approach F'!W519 -> 810.3397122
A33: Approach G (hybrid - weighted CPI) | C33: 480 | D33: ='Working | Approach G'!D111 -> 344.3748693 | E33: ='Working | Approach G'!E111 -> 360.6371795 | F33: ='Working | Approach G'!F111 -> 375.8287849 | G33: ='Working | Approach G'!G111 -> 392.1716666 | H33: ='Working | Approach G'!H111 -> 410.1119981 | I33: ='Working | Approach G'!I247 -> 428.6865205 | J33: ='Working | Approach G'!J247 -> 451.4663011 | K33: ='Working | Approach G'!K247 -> 472.0680724 | L33: ='Working | Approach G'!L247 -> 494.5411814 | M33: ='Working | Approach G'!M247 -> 518.7661451 | N33: ='Working | Approach G'!N383 -> 542.1452021 | O33: ='Working | Approach G'!O383 -> 568.9507461 | P33: ='Working | Approach G'!P383 -> 598.0784789 | Q33: ='Working | Approach G'!Q383 -> 624.7692348 | R33: ='Working | Approach G'!R383 -> 652.6065164 | S33: ='Working | Approach G'!S519 -> 684.736721 | T33: ='Working | Approach G'!T519 -> 717.4469057 | U33: ='Working | Approach G'!U519 -> 750.0461531 | V33: ='Working | Approach G'!V519 -> 786.7708548 | W33: ='Working | Approach G'!W519 -> 825.2937175
A34: =A11 -> Approach H (hybrid - separate) | C34: 480 | D34: ='Working | Approach H'!D111 -> 344.3748693 | E34: ='Working | Approach H'!E111 -> 361.1066369 | F34: ='Working | Approach H'!F111 -> 376.2176107 | G34: ='Working | Approach H'!G111 -> 392.807025 | H34: ='Working | Approach H'!H111 -> 411.5655714 | I34: ='Working | Approach H'!I260 -> 428.9006129 | J34: ='Working | Approach H'!J260 -> 453.3760896 | K34: ='Working | Approach H'!K260 -> 474.3261854 | L34: ='Working | Approach H'!L260 -> 497.8648493 | M34: ='Working | Approach H'!M260 -> 523.8697233 | N34: ='Working | Approach H'!N409 -> 543.5382902 | O34: ='Working | Approach H'!O409 -> 570.5745017 | P34: ='Working | Approach H'!P409 -> 600.7966058 | Q34: ='Working | Approach H'!Q409 -> 626.2648601 | R34: ='Working | Approach H'!R409 -> 652.8358178 | S34: ='Working | Approach H'!S558 -> 685.8966388 | T34: ='Working | Approach H'!T558 -> 717.7348092 | U34: ='Working | Approach H'!U558 -> 748.3049329 | V34: ='Working | Approach H'!V558 -> 784.9150978 | W34: ='Working | Approach H'!W558 -> 823.525051
A35: Approach I (hybrid + swaps) | C35: 480 | D35: ='Working | Approach I'!D111 -> 372.7066683 | E35: ='Working | Approach I'!E111 -> 388.4151309 | F35: ='Working | Approach I'!F111 -> 402.809782 | G35: ='Working | Approach I'!G111 -> 418.2847298 | H35: ='Working | Approach I'!H111 -> 435.2979125 | I35: ='Working | Approach I'!I247 -> 453.9269739 | J35: ='Working | Approach I'!J247 -> 476.5059801 | K35: ='Working | Approach I'!K247 -> 496.6338412 | L35: ='Working | Approach I'!L247 -> 518.5909947 | M35: ='Working | Approach I'!M247 -> 542.2336569 | N35: ='Working | Approach I'!N383 -> 565.2534574 | O35: ='Working | Approach I'!O383 -> 591.1485464 | P35: ='Working | Approach I'!P383 -> 619.2647943 | Q35: ='Working | Approach I'!Q383 -> 644.6543254 | R35: ='Working | Approach I'!R383 -> 671.0388155 | S35: ='Working | Approach I'!S519 -> 702.0207671 | T35: ='Working | Approach I'!T519 -> 733.3808191 | U35: ='Working | Approach I'!U519 -> 764.4316122 | V35: ='Working | Approach I'!V519 -> 799.4911544 | W35: ='Working | Approach I'!W519 -> 836.1586514
A37: Real allowed revenue ($y0)
A38: =A27 -> Base case | C38: =C27/Inputs!C$35 -> 480 | D38: =D27/Inputs!D$35 -> 334.4192226 | E38: =E27/Inputs!E$35 -> 341.1262334 | F38: =F27/Inputs!F$35 -> 347.9677579 | G38: =G27/Inputs!G$35 -> 354.946494 | H38: =H27/Inputs!H$35 -> 362.0651935 | I38: =I27/Inputs!I$35 -> 369.7981019 | J38: =J27/Inputs!J$35 -> 377.7515494 | K38: =K27/Inputs!K$35 -> 385.876056 | L38: =L27/Inputs!L$35 -> 394.1753007 | M38: =M27/Inputs!M$35 -> 402.6530417 | N38: =N27/Inputs!N$35 -> 413.4077715 | O38: =O27/Inputs!O$35 -> 423.4165394 | P38: =P27/Inputs!P$35 -> 433.6676236 | Q38: =Q27/Inputs!Q$35 -> 444.1668906 | R38: =R27/Inputs!R$35 -> 454.9203492 | S38: =S27/Inputs!S$35 -> 466.3659396 | T38: =T27/Inputs!T$35 -> 478.2143506 | U38: =U27/Inputs!U$35 -> 490.3637802 | V38: =V27/Inputs!V$35 -> 502.8218762 | W38: =W27/Inputs!W$35 -> 515.5964803
A39: Approach B (5 year estimate) | C39: =C28/Inputs!C$35 -> 480 | D39: =D28/Inputs!D$35 -> 349.1061604 | E39: =E28/Inputs!E$35 -> 355.6182321 | F39: =F28/Inputs!F$35 -> 362.2517771 | G39: =G28/Inputs!G$35 -> 369.0090613 | H39: =H28/Inputs!H$35 -> 375.8923928 | I39: =I28/Inputs!I$35 -> 384.504387 | J39: =J28/Inputs!J$35 -> 392.7453629 | K39: =K28/Inputs!K$35 -> 401.1629654 | L39: =L28/Inputs!L$35 -> 409.76098 | M39: =M28/Inputs!M$35 -> 418.5432735 | N39: =N28/Inputs!N$35 -> 429.5033756 | O39: =O28/Inputs!O$35 -> 439.4455591 | P39: =P28/Inputs!P$35 -> 449.6178852 | Q39: =Q28/Inputs!Q$35 -> 460.0256812 | R39: =R28/Inputs!R$35 -> 470.6743978 | S39: =S28/Inputs!S$35 -> 482.4710725 | T39: =T28/Inputs!T$35 -> 494.2397253 | U39: =U28/Inputs!U$35 -> 506.2954445 | V39: =V28/Inputs!V$35 -> 518.6452322 | W39: =W28/Inputs!W$35 -> 531.2962615
A40: Approach C (linear glide path) | C40: =C29/Inputs!C$35 -> 480 | D40: =D29/Inputs!D$35 -> 342.8648823 | E40: =E29/Inputs!E$35 -> 349.5735873 | F40: =F29/Inputs!F$35 -> 356.4135589 | G40: =G29/Inputs!G$35 -> 363.3873656 | H40: =H29/Inputs!H$35 -> 370.4976261 | I40: =I29/Inputs!I$35 -> 378.2356596 | J40: =J29/Inputs!J$35 -> 386.1920249 | K40: =K29/Inputs!K$35 -> 394.3157562 | L40: =L29/Inputs!L$35 -> 402.610374 | M40: =M29/Inputs!M$35 -> 411.079473 | N40: =N29/Inputs!N$35 -> 423.0342548 | O40: =O29/Inputs!O$35 -> 433.0032354 | P40: =P29/Inputs!P$35 -> 443.2071393 | Q40: =Q29/Inputs!Q$35 -> 453.6515024 | R40: =R29/Inputs!R$35 -> 464.3419914 | S40: =S29/Inputs!S$35 -> 475.9972963 | T40: =T29/Inputs!T$35 -> 487.7980387 | U40: =U29/Inputs!U$35 -> 499.8913406 | V40: =V29/Inputs!V$35 -> 512.284455 | W40: =W29/Inputs!W$35 -> 524.9848147
A41: Approach D (unindexed RAB) | C41: =C30/Inputs!C$35 -> 480 | D41: =D30/Inputs!D$35 -> 477.6450605 | E41: =E30/Inputs!E$35 -> 473.4927149 | F41: =F30/Inputs!F$35 -> 469.3764672 | G41: =G30/Inputs!G$35 -> 465.2960035 | H41: =H30/Inputs!H$35 -> 461.2510129 | I41: =I30/Inputs!I$35 -> 453.3213008 | J41: =J30/Inputs!J$35 -> 452.5199227 | K41: =K30/Inputs!K$35 -> 451.7199613 | L41: =L30/Inputs!L$35 -> 450.9214141 | M41: =M30/Inputs!M$35 -> 450.1242786 | N41: =N30/Inputs!N$35 -> 440.8089854 | O41: =O30/Inputs!O$35 -> 443.4242623 | P41: =P30/Inputs!P$35 -> 446.0550553 | Q41: =Q30/Inputs!Q$35 -> 448.7014566 | R41: =R30/Inputs!R$35 -> 451.3635587 | S41: =S30/Inputs!S$35 -> 460.7170002 | T41: =T30/Inputs!T$35 -> 465.6893476 | U41: =U30/Inputs!U$35 -> 470.7153598 | V41: =V30/Inputs!V$35 -> 475.7956158 | W41: =W30/Inputs!W$35 -> 480.9307011
A42: Approach E (nominal - updated) | C42: =C31/Inputs!C$35 -> 480 | D42: =D31/Inputs!D$35 -> 293.3997372 | E42: =E31/Inputs!E$35 -> 307.3394235 | F42: =F31/Inputs!F$35 -> 321.9413969 | G42: =G31/Inputs!G$35 -> 337.2371232 | H42: =H31/Inputs!H$35 -> 353.2595632 | I42: =I31/Inputs!I$35 -> 358.1451965 | J42: =J31/Inputs!J$35 -> 348.3094462 | K42: =K31/Inputs!K$35 -> 338.7438153 | L42: =L31/Inputs!L$35 -> 329.4408855 | M42: =M31/Inputs!M$35 -> 320.3934423 | N42: =N31/Inputs!N$35 -> 458.4925466 | O42: =O31/Inputs!O$35 -> 457.3751618 | P42: =P31/Inputs!P$35 -> 456.2605002 | Q42: =Q31/Inputs!Q$35 -> 455.1485551 | R42: =R31/Inputs!R$35 -> 454.0393199 | S42: =S31/Inputs!S$35 -> 476.6382597 | T42: =T31/Inputs!T$35 -> 494.2954629 | U42: =U31/Inputs!U$35 -> 512.6067824 | V42: =V31/Inputs!V$35 -> 531.59645 | W42: =W31/Inputs!W$35 -> 551.2895954
A43: Approach F (nominal - indexed) | C43: =C32/Inputs!C$35 -> 480 | D43: =D32/Inputs!D$35 -> 334.4192226 | E43: =E32/Inputs!E$35 -> 341.1262334 | F43: =F32/Inputs!F$35 -> 347.9677579 | G43: =G32/Inputs!G$35 -> 354.946494 | H43: =H32/Inputs!H$35 -> 362.0651935 | I43: =I32/Inputs!I$35 -> 363.1789026 | J43: =J32/Inputs!J$35 -> 371.2207714 | K43: =K32/Inputs!K$35 -> 379.4407111 | L43: =L32/Inputs!L$35 -> 387.842665 | M43: =M32/Inputs!M$35 -> 396.4306633 | N43: =N32/Inputs!N$35 -> 393.2817244 | O43: =O32/Inputs!O$35 -> 403.5234669 | P43: =P32/Inputs!P$35 -> 414.0319221 | Q43: =Q32/Inputs!Q$35 -> 424.8140359 | R43: =R32/Inputs!R$35 -> 435.8769348 | S43: =S32/Inputs!S$35 -> 452.5035625 | T43: =T32/Inputs!T$35 -> 464.5329539 | U43: =U32/Inputs!U$35 -> 476.8821356 | V43: =V32/Inputs!V$35 -> 489.559609 | W43: =W32/Inputs!W$35 -> 502.5741014
A44: Approach G (hybrid - weighted CPI) | C44: =C33/Inputs!C$35 -> 480 | D44: =D33/Inputs!D$35 -> 334.4192226 | E44: =E33/Inputs!E$35 -> 339.0723609 | F44: =F33/Inputs!F$35 -> 346.3060748 | G44: =G33/Inputs!G$35 -> 353.0022675 | H44: =H33/Inputs!H$35 -> 358.665996 | I44: =I33/Inputs!I$35 -> 365.8190978 | J44: =J33/Inputs!J$35 -> 369.4724214 | K44: =K33/Inputs!K$35 -> 377.144114 | L44: =L33/Inputs!L$35 -> 383.8927868 | M44: =M33/Inputs!M$35 -> 389.9981498 | N44: =N33/Inputs!N$35 -> 401.0463507 | O44: =O33/Inputs!O$35 -> 410.6001967 | P44: =P33/Inputs!P$35 -> 419.3358595 | Q44: =Q33/Inputs!Q$35 -> 432.307551 | R44: =R33/Inputs!R$35 -> 445.7266318 | S44: =S33/Inputs!S$35 -> 457.9370469 | T44: =T33/Inputs!T$35 -> 470.8643546 | U44: =U33/Inputs!U$35 -> 485.7879993 | V44: =V33/Inputs!V$35 -> 498.6480804 | W44: =W33/Inputs!W$35 -> 511.8486015
A45: =A34 -> Approach H (hybrid - separate) | C45: =C34/Inputs!C$35 -> 480 | D45: =D34/Inputs!D$35 -> 334.4192226 | E45: =E34/Inputs!E$35 -> 339.5137464 | F45: =F34/Inputs!F$35 -> 346.664357 | G45: =G34/Inputs!G$35 -> 353.5741674 | H45: =H34/Inputs!H$35 -> 359.9372275 | I45: =I34/Inputs!I$35 -> 366.0017932 | J45: =J34/Inputs!J$35 -> 371.0353602 | K45: =K34/Inputs!K$35 -> 378.9481633 | L45: =L34/Inputs!L$35 -> 386.4728189 | M45: =M34/Inputs!M$35 -> 393.8349191 | N45: =N34/Inputs!N$35 -> 402.0768733 | O45: =O34/Inputs!O$35 -> 411.7720281 | P45: =P34/Inputs!P$35 -> 421.241643 | Q45: =Q34/Inputs!Q$35 -> 433.3424454 | R45: =R34/Inputs!R$35 -> 445.8832434 | S45: =S34/Inputs!S$35 -> 458.7127747 | T45: =T34/Inputs!T$35 -> 471.0533073 | U45: =U34/Inputs!U$35 -> 484.6602501 | V45: =V34/Inputs!V$35 -> 497.4719187 | W45: =W34/Inputs!W$35 -> 510.7516715
A46: Approach I (hybrid + swaps) | C46: =C35/Inputs!C$35 -> 480 | D46: =D35/Inputs!D$35 -> 361.9319683 | E46: =E35/Inputs!E$35 -> 365.1892897 | F46: =F35/Inputs!F$35 -> 371.1676171 | G46: =G35/Inputs!G$35 -> 376.507205 | H46: =H35/Inputs!H$35 -> 380.6924939 | I46: =I35/Inputs!I$35 -> 387.3580066 | J46: =J35/Inputs!J$35 -> 389.9644732 | K46: =K35/Inputs!K$35 -> 396.7701715 | L46: =L35/Inputs!L$35 -> 402.5617071 | M46: =M35/Inputs!M$35 -> 407.640562 | N46: =N35/Inputs!N$35 -> 418.1404455 | O46: =O35/Inputs!O$35 -> 426.6198983 | P46: =P35/Inputs!P$35 -> 434.1904013 | Q46: =Q35/Inputs!Q$35 -> 446.0669911 | R46: =R35/Inputs!R$35 -> 458.3157899 | S46: =S35/Inputs!S$35 -> 469.4962415 | T46: =T35/Inputs!T$35 -> 481.3218697 | U46: =U35/Inputs!U$35 -> 495.1051371 | V46: =V35/Inputs!V$35 -> 506.7100884 | W46: =W35/Inputs!W$35 -> 518.5870524
A48: Achieved cash flows | B48: Year | C48: 0 | D48: 1 | E48: 2 | F48: 3 | G48: 4 | H48: 5 | I48: 6 | J48: 7 | K48: 8 | L48: 9 | M48: 10 | N48: 11 | O48: 12 | P48: 13 | Q48: 14 | R48: 15 | S48: 16 | T48: 17 | U48: 18 | V48: 19 | W48: 20 | X48: 21 | Y48: 22 | Z48: 23 | AA48: 24 | AB48: 25 | AC48: 26 | AD48: 27 | AE48: 28 | AF48: 29 | AG48: 30 | AH48: 31 | AI48: 32 | AJ48: 33 | AK48: 34 | AL48: 35 | AM48: 36 | AN48: 37 | AO48: 38 | AP48: 39 | AQ48: 40 | AR48: 41 | AS48: 42 | AT48: 43 | AU48: 44 | AV48: 45 | AW48: 46 | AX48: 47 | AY48: 48 | AZ48: 49 | BA48: 50 | BB48: 51 | BC48: 52 | BD48: 53 | BE48: 54 | BF48: 55 | BG48: 56 | BH48: 57 | BI48: 58 | BJ48: 59 | BK48: 60 | BL48: 61 | BM48: 62 | BN48: 63 | BO48: 64 | BP48: 65 | BQ48: 66 | BR48: 67 | BS48: 68 | BT48: 69 | BU48: 70
A49: =Inputs!A3 -> Base case
A50: Revenue | C50: 0 | D50: ='Working | Base case'!D111 -> 344.3748693 | E50: ='Working | Base case'!E111 -> 362.8216772 | F50: ='Working | Base case'!F111 -> 377.632127 | G50: ='Working | Base case'!G111 -> 394.3316259 | H50: ='Working | Base case'!H111 -> 413.9987666 | I50: ='Working | Base case'!I247 -> 433.3493319 | J50: ='Working | Base case'!J247 -> 461.5827457 | K50: ='Working | Base case'!K247 -> 482.9977696 | L50: ='Working | Base case'!L247 -> 507.7873968 | M50: ='Working | Base case'!M247 -> 535.5993775 | N50: ='Working | Base case'!N383 -> 558.8557019 | O50: ='Working | Base case'!O383 -> 586.7097921 | P50: ='Working | Base case'!P383 -> 618.5191817 | Q50: ='Working | Base case'!Q383 -> 641.9083075 | R50: ='Working | Base case'!R383 -> 666.0674124 | S50: ='Working | Base case'!S519 -> 697.3401397 | T50: ='Working | Base case'!T519 -> 728.6459523 | U50: ='Working | Base case'!U519 -> 757.1110599 | V50: ='Working | Base case'!V519 -> 793.3563026 | W50: ='Working | Base case'!W519 -> 831.3367169 | X50: ='Working | Base case'!X551 -> 871.5225312 | Y50: ='Working | Base case'!Y551 -> 878.1604039 | Z50: ='Working | Base case'!Z551 -> 886.3289078 | AA50: ='Working | Base case'!AA551 -> 886.975161 | AB50: ='Working | Base case'!AB551 -> 887.3267169 | AC50: ='Working | Base case'!AC551 -> 887.2756915 | AD50: ='Working | Base case'!AD551 -> 897.0394852 | AE50: ='Working | Base case'!AE551 -> 898.7446058 | AF50: ='Working | Base case'!AF551 -> 914.455479 | AG50: ='Working | Base case'!AG551 -> 926.9713076 | AH50: ='Working | Base case'!AH551 -> 506.2868773 | AI50: ='Working | Base case'!AI551 -> 501.7421023 | AJ50: ='Working | Base case'!AJ551 -> 490.4484056 | AK50: ='Working | Base case'!AK551 -> 479.9816214 | AL50: ='Working | Base case'!AL551 -> 465.5286717 | AM50: ='Working | Base case'!AM551 -> 449.946042 | AN50: ='Working | Base case'!AN551 -> 436.4469659 | AO50: ='Working | Base case'!AO551 -> 419.6995204 | AP50: ='Working | Base case'!AP551 -> 401.2604683 | AQ50: ='Working | Base case'!AQ551 -> 381.9881786 | AR50: ='Working | Base case'!AR551 -> 356.0867212 | AS50: ='Working | Base case'!AS551 -> 329.4827058 | AT50: ='Working | Base case'!AT551 -> 302.4564323 | AU50: ='Working | Base case'!AU551 -> 271.7642811 | AV50: ='Working | Base case'!AV551 -> 309.2201434 | AW50: ='Working | Base case'!AW551 -> 206.5000664 | AX50: ='Working | Base case'!AX551 -> 169.0897873 | AY50: ='Working | Base case'!AY551 -> 129.1984664 | AZ50: ='Working | Base case'!AZ551 -> 84.98875785 | BA50: ='Working | Base case'!BA551 -> 43.7759401 | BB50: ='Working | Base case'!BB551 -> 4.969395304e-15 | BC50: ='Working | Base case'!BC551 -> 5.734112732e-15 | BD50: ='Working | Base case'!BD551 -> 5.809279004e-15 | BE50: ='Working | Base case'!BE551 -> 5.93276645e-15 | BF50: ='Working | Base case'!BF551 -> 6.045515858e-15 | BG50: ='Working | Base case'!BG551 -> 6.22263058e-15 | BH50: ='Working | Base case'!BH551 -> 6.358972179e-15 | BI50: ='Working | Base case'!BI551 -> 6.498301105e-15 | BJ50: ='Working | Base case'!BJ551 -> 6.584868171e-15 | BK50: ='Working | Base case'!BK551 -> 6.710010463e-15 | BL50: ='Working | Base case'!BL551 -> 6.799397813e-15 | BM50: ='Working | Base case'!BM551 -> 6.888528496e-15 | BN50: ='Working | Base case'!BN551 -> 6.980026977e-15 | BO50: ='Working | Base case'!BO551 -> 7.184519955e-15 | BP50: ='Working | Base case'!BP551 -> 7.364312747e-15 | BQ50: ='Working | Base case'!BQ551 -> 7.520855439e-15 | BR50: ='Working | Base case'!BR551 -> 7.765757244e-15 | BS50: ='Working | Base case'!BS551 -> 7.992433402e-15 | BT50: ='Working | Base case'!BT551 -> 8.187154924e-15 | BU50: ='Working | Base case'!BU551 -> 8.536952537e-15
A51: Capex | C51: ='Working | Base case'!D121 -> 6000 | D51: ='Working | Base case'!D122 -> 205.9539919 | E51: ='Working | Base case'!E122 -> 219.8105548 | F51: ='Working | Base case'!F122 -> 231.7612389 | G51: ='Working | Base case'!G122 -> 245.1602366 | H51: ='Working | Base case'!H122 -> 260.7378155 | I51: ='Working | Base case'!I258 -> 276.1249466 | J51: ='Working | Base case'!J258 -> 297.5198472 | K51: ='Working | Base case'!K258 -> 314.9273392 | L51: ='Working | Base case'!L258 -> 334.9238066 | M51: ='Working | Base case'!M258 -> 357.3576036 | N51: ='Working | Base case'!N394 -> 375.2800144 | O51: ='Working | Base case'!O394 -> 397.4937864 | P51: ='Working | Base case'!P394 -> 422.7770826 | Q51: ='Working | Base case'!Q394 -> 442.6724747 | R51: ='Working | Base case'!R394 -> 463.424474 | S51: ='Working | Base case'!S530 -> 489.0513049 | T51: ='Working | Base case'!T530 -> 514.957009 | U51: ='Working | Base case'!U530 -> 539.2109048 | V51: ='Working | Base case'!V530 -> 569.3928532 | W51: ='Working | Base case'!W530 -> 601.2642148 | X51: 0 | Y51: 0 | Z51: 0 | AA51: 0 | AB51: 0 | AC51: 0 | AD51: 0 | AE51: 0 | AF51: 0 | AG51: 0 | AH51: 0 | AI51: 0 | AJ51: 0 | AK51: 0 | AL51: 0 | AM51: 0 | AN51: 0 | AO51: 0 | AP51: 0 | AQ51: 0 | AR51: 0 | AS51: 0 | AT51: 0 | AU51: 0 | AV51: 0 | AW51: 0 | AX51: 0 | AY51: 0 | AZ51: 0 | BA51: 0 | BB51: 0 | BC51: 0 | BD51: 0 | BE51: 0 | BF51: 0 | BG51: 0 | BH51: 0 | BI51: 0 | BJ51: 0 | BK51: 0 | BL51: 0 | BM51: 0 | BN51: 0 | BO51: 0 | BP51: 0 | BQ51: 0 | BR51: 0 | BS51: 0 | BT51: 0 | BU51: 0
A52: Interest Payments | C52: 0 | D52: =('Working | Base case'!D121*Inputs!$C$13)*Inputs!D13 -> 154.8 | E52: =('Working | Base case'!E121*Inputs!$C$13)*Inputs!E13 -> 159.8854139 | F52: =('Working | Base case'!F121*Inputs!$C$13)*Inputs!F13 -> 163.1400788 | G52: =('Working | Base case'!G121*Inputs!$C$13)*Inputs!G13 -> 167.0049934 | H52: =('Working | Base case'!H121*Inputs!$C$13)*Inputs!H13 -> 171.8869908 | I52: =('Working | Base case'!I257*Inputs!$C$13)*Inputs!I13 -> 176.1587385 | J52: =('Working | Base case'!J257*Inputs!$C$13)*Inputs!J13 -> 183.7191734 | K52: =('Working | Base case'!K257*Inputs!$C$13)*Inputs!K13 -> 188.2306425 | L52: =('Working | Base case'!L257*Inputs!$C$13)*Inputs!L13 -> 193.7612826 | M52: =('Working | Base case'!M257*Inputs!$C$13)*Inputs!M13 -> 200.1081371 | N52: =('Working | Base case'!N393*Inputs!$C$13)*Inputs!N13 -> 203.4038568 | O52: =('Working | Base case'!O393*Inputs!$C$13)*Inputs!O13 -> 208.6140135 | P52: =('Working | Base case'!P393*Inputs!$C$13)*Inputs!P13 -> 214.8487246 | Q52: =('Working | Base case'!Q393*Inputs!$C$13)*Inputs!Q13 -> 217.8290778 | R52: =('Working | Base case'!R393*Inputs!$C$13)*Inputs!R13 -> 220.8127715 | S52: =('Working | Base case'!S529*Inputs!$C$13)*Inputs!S13 -> 225.6365111 | T52: =('Working | Base case'!T529*Inputs!$C$13)*Inputs!T13 -> 229.9962891 | U52: =('Working | Base case'!U529*Inputs!$C$13)*Inputs!U13 -> 233.133208 | V52: =('Working | Base case'!V529*Inputs!$C$13)*Inputs!V13 -> 238.3152956 | W52: =('Working | Base case'!W529*Inputs!$C$13)*Inputs!W13 -> 243.6125472 | X52: =('Working | Base case'!X529*Inputs!$C$13)*Inputs!$W$13 -> 246.9351061 | Y52: =('Working | Base case'!Y529*Inputs!$C$13)*Inputs!$W$13 -> 235.4630526 | Z52: =('Working | Base case'!Z529*Inputs!$C$13)*Inputs!$W$13 -> 223.9961298 | AA52: =('Working | Base case'!AA529*Inputs!$C$13)*Inputs!$W$13 -> 210.1101165 | AB52: =('Working | Base case'!AB529*Inputs!$C$13)*Inputs!$W$13 -> 195.858144 | AC52: =('Working | Base case'!AC529*Inputs!$C$13)*Inputs!$W$13 -> 184.3269914 | AD52: =('Working | Base case'!AD529*Inputs!$C$13)*Inputs!$W$13 -> 171.1646618 | AE52: =('Working | Base case'!AE529*Inputs!$C$13)*Inputs!$W$13 -> 155.7307183 | AF52: =('Working | Base case'!AF529*Inputs!$C$13)*Inputs!$W$13 -> 142.2852811 | AG52: =('Working | Base case'!AG529*Inputs!$C$13)*Inputs!$W$13 -> 127.3190192 | AH52: =('Working | Base case'!AH529*Inputs!$C$13)*Inputs!$W$13 -> 110.7433871 | AI52: =('Working | Base case'!AI529*Inputs!$C$13)*Inputs!$W$13 -> 105.7436149 | AJ52: =('Working | Base case'!AJ529*Inputs!$C$13)*Inputs!$W$13 -> 98.58685774 | AK52: =('Working | Base case'!AK529*Inputs!$C$13)*Inputs!$W$13 -> 91.82469111 | AL52: =('Working | Base case'!AL529*Inputs!$C$13)*Inputs!$W$13 -> 84.48218278 | AM52: =('Working | Base case'!AM529*Inputs!$C$13)*Inputs!$W$13 -> 76.89026301 | AN52: =('Working | Base case'!AN529*Inputs!$C$13)*Inputs!$W$13 -> 70.3702217 | AO52: =('Working | Base case'!AO529*Inputs!$C$13)*Inputs!$W$13 -> 63.61012694 | AP52: =('Working | Base case'!AP529*Inputs!$C$13)*Inputs!$W$13 -> 56.90462432 | AQ52: =('Working | Base case'!AQ529*Inputs!$C$13)*Inputs!$W$13 -> 50.47160461 | AR52: =('Working | Base case'!AR529*Inputs!$C$13)*Inputs!$W$13 -> 43.51378346 | AS52: =('Working | Base case'!AS529*Inputs!$C$13)*Inputs!$W$13 -> 37.01888694 | AT52: =('Working | Base case'!AT529*Inputs!$C$13)*Inputs!$W$13 -> 31.0605096 | AU52: =('Working | Base case'!AU529*Inputs!$C$13)*Inputs!$W$13 -> 25.29176331 | AV52: =('Working | Base case'!AV529*Inputs!$C$13)*Inputs!$W$13 -> 20.41647667 | AW52: =('Working | Base case'!AW529*Inputs!$C$13)*Inputs!$W$13 -> 15.50877737 | AX52: =('Working | Base case'!AX529*Inputs!$C$13)*Inputs!$W$13 -> 11.27701968 | AY52: =('Working | Base case'!AY529*Inputs!$C$13)*Inputs!$W$13 -> 7.725112747 | AZ52: =('Working | Base case'!AZ529*Inputs!$C$13)*Inputs!$W$13 -> 4.766595239 | BA52: =('Working | Base case'!BA529*Inputs!$C$13)*Inputs!$W$13 -> 2.762174328 | BB52: =('Working | Base case'!BB529*Inputs!$C$13)*Inputs!$W$13 -> 0.08092307601 | BC52: =('Working | Base case'!BC529*Inputs!$C$13)*Inputs!$W$13 -> 0.001074879568 | BD52: =('Working | Base case'!BD529*Inputs!$C$13)*Inputs!$W$13 -> 1.40901816e-05 | BE52: =('Working | Base case'!BE529*Inputs!$C$13)*Inputs!$W$13 -> 2.995140266e-07 | BF52: =('Working | Base case'!BF529*Inputs!$C$13)*Inputs!$W$13 -> 5.692121772e-09 | BG52: =('Working | Base case'!BG529*Inputs!$C$13)*Inputs!$W$13 -> 7.582755468e-11 | BH52: =('Working | Base case'!BH529*Inputs!$C$13)*Inputs!$W$13 -> 1.661427579e-12 | BI52: =('Working | Base case'!BI529*Inputs!$C$13)*Inputs!$W$13 -> 3.640288297e-14 | BJ52: =('Working | Base case'!BJ529*Inputs!$C$13)*Inputs!$W$13 -> 4.849407145e-16 | BK52: =('Working | Base case'!BK529*Inputs!$C$13)*Inputs!$W$13 -> 9.216067877e-18 | BL52: =('Working | Base case'!BL529*Inputs!$C$13)*Inputs!$W$13 -> 1.959053245e-19 | BM52: =('Working | Base case'!BM529*Inputs!$C$13)*Inputs!$W$13 -> 2.568047326e-21 | BN52: =('Working | Base case'!BN529*Inputs!$C$13)*Inputs!$W$13 -> 3.411068554e-23 | BO52: =('Working | Base case'!BO529*Inputs!$C$13)*Inputs!$W$13 -> 9.993364904e-25 | BP52: =('Working | Base case'!BP529*Inputs!$C$13)*Inputs!$W$13 -> 2.500842068e-26 | BQ52: =('Working | Base case'!BQ529*Inputs!$C$13)*Inputs!$W$13 -> 4.070546601e-28 | BR52: =('Working | Base case'!BR529*Inputs!$C$13)*Inputs!$W$13 -> 1.325493116e-29 | BS52: =('Working | Base case'!BS529*Inputs!$C$13)*Inputs!$W$13 -> 3.869006933e-31 | BT52: =('Working | Base case'!BT529*Inputs!$C$13)*Inputs!$W$13 -> 9.426151996e-33 | BU52: =('Working | Base case'!BU529*Inputs!$C$13)*Inputs!$W$13 -> 4.027339767e-34
A53: Repayment of Debt | C53: =('Working | Base case'!C121-'Working | Base case'!D121)*Inputs!$C$13 -> -3600 | D53: =('Working | Base case'!D121-'Working | Base case'!E121)*Inputs!$C$13 -> -118.2654402 | E53: =('Working | Base case'!E121-'Working | Base case'!F121)*Inputs!$C$13 -> -75.68988173 | F53: =('Working | Base case'!F121-'Working | Base case'!G121)*Inputs!$C$13 -> -89.88173456 | G53: =('Working | Base case'!G121-'Working | Base case'!H121)*Inputs!$C$13 -> -113.5348226 | H53: =('Working | Base case'!H121-'Working | Base case'!I257)*Inputs!$C$13 -> -99.34296978 | I53: =('Working | Base case'!I257-'Working | Base case'!J257)*Inputs!$C$13 -> -175.824068 | J53: =('Working | Base case'!J257-'Working | Base case'!K257)*Inputs!$C$13 -> -104.9178854 | K53: =('Working | Base case'!K257-'Working | Base case'!L257)*Inputs!$C$13 -> -128.6195363 | L53: =('Working | Base case'!L257-'Working | Base case'!M257)*Inputs!$C$13 -> -147.6012674 | M53: =('Working | Base case'!M257-'Working | Base case'!N393)*Inputs!$C$13 -> -76.64464573 | N53: =('Working | Base case'!N393-'Working | Base case'!O393)*Inputs!$C$13 -> -121.1664355 | O53: =('Working | Base case'!O393-'Working | Base case'!P393)*Inputs!$C$13 -> -144.9932802 | P53: =('Working | Base case'!P393-'Working | Base case'!Q393)*Inputs!$C$13 -> -69.31053963 | Q53: =('Working | Base case'!Q393-'Working | Base case'!R393)*Inputs!$C$13 -> -69.38822537 | R53: =('Working | Base case'!R393-'Working | Base case'!S529)*Inputs!$C$13 -> -112.1799904 | S53: =('Working | Base case'!S529-'Working | Base case'!T529)*Inputs!$C$13 -> -101.3901858 | T53: =('Working | Base case'!T529-'Working | Base case'!U529)*Inputs!$C$13 -> -72.95160352 | U53: =('Working | Base case'!U529-'Working | Base case'!V529)*Inputs!$C$13 -> -120.5136651 | V53: =('Working | Base case'!V529-'Working | Base case'!W529)*Inputs!$C$13 -> -123.191898 | W53: =('Working | Base case'!W529-'Working | Base case'!X529)*Inputs!$C$13 -> -77.26881019 | X53: =('Working | Base case'!X529-'Working | Base case'!Y529)*Inputs!$C$13 -> 266.7919418 | Y53: =('Working | Base case'!Y529-'Working | Base case'!Z529)*Inputs!$C$13 -> 266.6726239 | Z53: =('Working | Base case'!Z529-'Working | Base case'!AA529)*Inputs!$C$13 -> 322.9305403 | AA53: =('Working | Base case'!AA529-'Working | Base case'!AB529)*Inputs!$C$13 -> 331.4412224 | AB53: =('Working | Base case'!AB529-'Working | Base case'!AC529)*Inputs!$C$13 -> 268.166338 | AC53: =('Working | Base case'!AC529-'Working | Base case'!AD529)*Inputs!$C$13 -> 306.1006896 | AD53: =('Working | Base case'!AD529-'Working | Base case'!AE529)*Inputs!$C$13 -> 358.9289174 | AE53: =('Working | Base case'!AE529-'Working | Base case'!AF529)*Inputs!$C$13 -> 312.684587 | AF53: =('Working | Base case'!AF529-'Working | Base case'!AG529)*Inputs!$C$13 -> 348.0526008 | AG53: =('Working | Base case'!AG529-'Working | Base case'!AH529)*Inputs!$C$13 -> 385.4798177 | AH53: =('Working | Base case'!AH529-'Working | Base case'!AI529)*Inputs!$C$13 -> 116.2737728 | AI53: =('Working | Base case'!AI529-'Working | Base case'!AJ529)*Inputs!$C$13 -> 166.436212 | AJ53: =('Working | Base case'!AJ529-'Working | Base case'!AK529)*Inputs!$C$13 -> 157.259689 | AK53: =('Working | Base case'!AK529-'Working | Base case'!AL529)*Inputs!$C$13 -> 170.7560078 | AL53: =('Working | Base case'!AL529-'Working | Base case'!AM529)*Inputs!$C$13 -> 176.5562736 | AM53: =('Working | Base case'!AM529-'Working | Base case'!AN529)*Inputs!$C$13 -> 151.6288677 | AN53: =('Working | Base case'!AN529-'Working | Base case'!AO529)*Inputs!$C$13 -> 157.2115061 | AO53: =('Working | Base case'!AO529-'Working | Base case'!AP529)*Inputs!$C$13 -> 155.9419214 | AP53: =('Working | Base case'!AP529-'Working | Base case'!AQ529)*Inputs!$C$13 -> 149.6051094 | AQ53: =('Working | Base case'!AQ529-'Working | Base case'!AR529)*Inputs!$C$13 -> 161.8097942 | AR53: =('Working | Base case'!AR529-'Working | Base case'!AS529)*Inputs!$C$13 -> 151.0441051 | AS53: =('Working | Base case'!AS529-'Working | Base case'!AT529)*Inputs!$C$13 -> 138.5669149 | AT53: =('Working | Base case'!AT529-'Working | Base case'!AU529)*Inputs!$C$13 -> 134.1568905 | AU53: =('Working | Base case'!AU529-'Working | Base case'!AV529)*Inputs!$C$13 -> 113.3787591 | AV53: =('Working | Base case'!AV529-'Working | Base case'!AW529)*Inputs!$C$13 -> 114.1325419 | AW53: =('Working | Base case'!AW529-'Working | Base case'!AX529)*Inputs!$C$13 -> 98.41296955 | AX53: =('Working | Base case'!AX529-'Working | Base case'!AY529)*Inputs!$C$13 -> 82.60248675 | AY53: =('Working | Base case'!AY529-'Working | Base case'!AZ529)*Inputs!$C$13 -> 68.80273275 | AZ53: =('Working | Base case'!AZ529-'Working | Base case'!BA529)*Inputs!$C$13 -> 46.61443979 | BA53: =('Working | Base case'!BA529-'Working | Base case'!BB529)*Inputs!$C$13 -> 62.35468028 | BB53: =('Working | Base case'!BB529-'Working | Base case'!BC529)*Inputs!$C$13 -> 1.856934801 | BC53: =('Working | Base case'!BC529-'Working | Base case'!BD529)*Inputs!$C$13 -> 0.0246695206 | BD53: =('Working | Base case'!BD529-'Working | Base case'!BE529)*Inputs!$C$13 -> 0.0003207131993 | BE53: =('Working | Base case'!BE529-'Working | Base case'!BF529)*Inputs!$C$13 -> 6.833067553e-06 | BF53: =('Working | Base case'!BF529-'Working | Base case'!BG529)*Inputs!$C$13 -> 1.306114934e-07 | BG53: =('Working | Base case'!BG529-'Working | Base case'!BH529)*Inputs!$C$13 -> 1.724793654e-09 | BH53: =('Working | Base case'!BH529-'Working | Base case'!BI529)*Inputs!$C$13 -> 3.779127199e-11 | BI53: =('Working | Base case'!BI529-'Working | Base case'!BJ529)*Inputs!$C$13 -> 8.353009826e-13 | BJ53: =('Working | Base case'!BJ529-'Working | Base case'!BK529)*Inputs!$C$13 -> 1.106336387e-14 | BK53: =('Working | Base case'!BK529-'Working | Base case'!BL529)*Inputs!$C$13 -> 2.097712221e-16 | BL53: =('Working | Base case'!BL529-'Working | Base case'!BM529)*Inputs!$C$13 -> 4.496215749e-18 | BM53: =('Working | Base case'!BM529-'Working | Base case'!BN529)*Inputs!$C$13 -> 5.892875907e-20 | BN53: =('Working | Base case'!BN529-'Working | Base case'!BO529)*Inputs!$C$13 -> 7.700313732e-22 | BO53: =('Working | Base case'!BO529-'Working | Base case'!BP529)*Inputs!$C$13 -> 2.265879232e-23 | BP53: =('Working | Base case'!BP529-'Working | Base case'!BQ529)*Inputs!$C$13 -> 5.721247912e-25 | BQ53: =('Working | Base case'!BQ529-'Working | Base case'!BR529)*Inputs!$C$13 -> 9.158133231e-27 | BR53: =('Working | Base case'!BR529-'Working | Base case'!BS529)*Inputs!$C$13 -> 2.992565225e-28 | BS53: =('Working | Base case'!BS529-'Working | Base case'!BT529)*Inputs!$C$13 -> 8.778477704e-30 | BT53: =('Working | Base case'!BT529-'Working | Base case'!BU529)*Inputs!$C$13 -> 2.098469307e-31 | BU53: =('Working | Base case'!BU529-'Working | Base case'!BV529)*Inputs!$C$13 -> 9.365906436e-33
A54: Opex | C54: 0 | D54: ='Working | Base case'!D102/'Working | Base case'!D4*Inputs!D35 -> 0 | E54: ='Working | Base case'!E102/'Working | Base case'!E4*Inputs!E35 -> 0 | F54: ='Working | Base case'!F102/'Working | Base case'!F4*Inputs!F35 -> 0 | G54: ='Working | Base case'!G102/'Working | Base case'!G4*Inputs!G35 -> 0 | H54: ='Working | Base case'!H102/'Working | Base case'!H4*Inputs!H35 -> 0 | I54: ='Working | Base case'!I238/'Working | Base case'!I139*Inputs!I35 -> 0 | J54: ='Working | Base case'!J238/'Working | Base case'!J139*Inputs!J35 -> 0 | K54: ='Working | Base case'!K238/'Working | Base case'!K139*Inputs!K35 -> 0 | L54: ='Working | Base case'!L238/'Working | Base case'!L139*Inputs!L35 -> 0 | M54: ='Working | Base case'!M238/'Working | Base case'!M139*Inputs!M35 -> 0 | N54: ='Working | Base case'!N374/'Working | Base case'!N275*Inputs!N35 -> 0 | O54: ='Working | Base case'!O374/'Working | Base case'!O275*Inputs!O35 -> 0 | P54: ='Working | Base case'!P374/'Working | Base case'!P275*Inputs!P35 -> 0 | Q54: ='Working | Base case'!Q374/'Working | Base case'!Q275*Inputs!Q35 -> 0 | R54: ='Working | Base case'!R374/'Working | Base case'!R275*Inputs!R35 -> 0 | S54: ='Working | Base case'!S510/'Working | Base case'!S411*Inputs!S35 -> 0 | T54: ='Working | Base case'!T510/'Working | Base case'!T411*Inputs!T35 -> 0 | U54: ='Working | Base case'!U510/'Working | Base case'!U411*Inputs!U35 -> 0 | V54: ='Working | Base case'!V510/'Working | Base case'!V411*Inputs!V35 -> 0 | W54: ='Working | Base case'!W510/'Working | Base case'!W411*Inputs!W35 -> 0 | X54: 0 | Y54: 0 | Z54: 0 | AA54: 0 | AB54: 0 | AC54: 0 | AD54: 0 | AE54: 0 | AF54: 0 | AG54: 0 | AH54: 0 | AI54: 0 | AJ54: 0 | AK54: 0 | AL54: 0 | AM54: 0 | AN54: 0 | AO54: 0 | AP54: 0 | AQ54: 0 | AR54: 0 | AS54: 0 | AT54: 0 | AU54: 0 | AV54: 0 | AW54: 0 | AX54: 0 | AY54: 0 | AZ54: 0 | BA54: 0 | BB54: 0 | BC54: 0 | BD54: 0 | BE54: 0 | BF54: 0 | BG54: 0 | BH54: 0 | BI54: 0 | BJ54: 0 | BK54: 0 | BL54: 0 | BM54: 0 | BN54: 0 | BO54: 0 | BP54: 0 | BQ54: 0 | BR54: 0 | BS54: 0 | BT54: 0 | BU54: 0
A55: Tax payable+ gamma | C55: 0 | D55: ='Working | Base case'!D103*(D50/'Working | Base case'!D106) -> 0 | E55: ='Working | Base case'!E103*(E50/'Working | Base case'!E106) -> 0 | F55: ='Working | Base case'!F103*(F50/'Working | Base case'!F106) -> 0 | G55: ='Working | Base case'!G103*(G50/'Working | Base case'!G106) -> 0 | H55: ='Working | Base case'!H103*(H50/'Working | Base case'!H106) -> 0 | I55: ='Working | Base case'!I239*(I50/'Working | Base case'!I242) -> 0 | J55: ='Working | Base case'!J239*(J50/'Working | Base case'!J242) -> 0 | K55: ='Working | Base case'!K239*(K50/'Working | Base case'!K242) -> 0 | L55: ='Working | Base case'!L239*(L50/'Working | Base case'!L242) -> 0 | M55: ='Working | Base case'!M239*(M50/'Working | Base case'!M242) -> 0 | N55: ='Working | Base case'!N375*(N50/'Working | Base case'!N378) -> 2.164851293 | O55: ='Working | Base case'!O375*(O50/'Working | Base case'!O378) -> 2.899575961 | P55: ='Working | Base case'!P375*(P50/'Working | Base case'!P378) -> 3.772659302 | Q55: ='Working | Base case'!Q375*(Q50/'Working | Base case'!Q378) -> 4.705058325 | R55: ='Working | Base case'!R375*(R50/'Working | Base case'!R378) -> 5.740770223 | S55: ='Working | Base case'!S511*(S50/'Working | Base case'!S514) -> 6.595338169 | T55: ='Working | Base case'!T511*(T50/'Working | Base case'!T514) -> 7.911440062 | U55: ='Working | Base case'!U511*(U50/'Working | Base case'!U514) -> 9.294703302 | V55: ='Working | Base case'!V511*(V50/'Working | Base case'!V514) -> 10.87417761 | W55: ='Working | Base case'!W511*(W50/'Working | Base case'!W514) -> 12.58758734 | X55: =IFERROR(SUM('Working | Base case'!X477:X478)*(X50/'Working | Base case'!X519),0) -> 14.43031979 | Y55: =IFERROR(SUM('Working | Base case'!Y477:Y478)*(Y50/'Working | Base case'!Y519),0) -> 19.46813672 | Z55: =IFERROR(SUM('Working | Base case'!Z477:Z478)*(Z50/'Working | Base case'!Z519),0) -> 24.38428642 | AA55: =IFERROR(SUM('Working | Base case'!AA477:AA478)*(AA50/'Working | Base case'!AA519),0) -> 28.9290884 | AB55: =IFERROR(SUM('Working | Base case'!AB477:AB478)*(AB50/'Working | Base case'!AB519),0) -> 33.28275995 | AC55: =IFERROR(SUM('Working | Base case'!AC477:AC478)*(AC50/'Working | Base case'!AC519),0) -> 37.45904861 | AD55: =IFERROR(SUM('Working | Base case'!AD477:AD478)*(AD50/'Working | Base case'!AD519),0) -> 41.95111526 | AE55: =IFERROR(SUM('Working | Base case'!AE477:AE478)*(AE50/'Working | Base case'!AE519),0) -> 45.99351637 | AF55: =IFERROR(SUM('Working | Base case'!AF477:AF478)*(AF50/'Working | Base case'!AF519),0) -> 50.72085698 | AG55: =IFERROR(SUM('Working | Base case'!AG477:AG478)*(AG50/'Working | Base case'!AG519),0) -> 55.2995244 | AH55: =IFERROR(SUM('Working | Base case'!AH477:AH478)*(AH50/'Working | Base case'!AH519),0) -> 30.21297989 | AI55: =IFERROR(SUM('Working | Base case'!AI477:AI478)*(AI50/'Working | Base case'!AI519),0) -> 28.29829775 | AJ55: =IFERROR(SUM('Working | Base case'!AJ477:AJ478)*(AJ50/'Working | Base case'!AJ519),0) -> 28.93117772 | AK55: =IFERROR(SUM('Working | Base case'!AK477:AK478)*(AK50/'Working | Base case'!AK519),0) -> 29.51921551 | AL55: =IFERROR(SUM('Working | Base case'!AL477:AL478)*(AL50/'Working | Base case'!AL519),0) -> 29.69243376 | AM55: =IFERROR(SUM('Working | Base case'!AM477:AM478)*(AM50/'Working | Base case'!AM519),0) -> 29.58595865 | AN55: =IFERROR(SUM('Working | Base case'!AN477:AN478)*(AN50/'Working | Base case'!AN519),0) -> 29.51209781 | AO55: =IFERROR(SUM('Working | Base case'!AO477:AO478)*(AO50/'Working | Base case'!AO519),0) -> 28.90133244 | AP55: =IFERROR(SUM('Working | Base case'!AP477:AP478)*(AP50/'Working | Base case'!AP519),0) -> 28.13922526 | AQ55: =IFERROR(SUM('Working | Base case'!AQ477:AQ478)*(AQ50/'Working | Base case'!AQ519),0) -> 27.11680603 | AR55: =IFERROR(SUM('Working | Base case'!AR477:AR478)*(AR50/'Working | Base case'!AR519),0) -> 25.36625228 | AS55: =IFERROR(SUM('Working | Base case'!AS477:AS478)*(AS50/'Working | Base case'!AS519),0) -> 23.5214944 | AT55: =IFERROR(SUM('Working | Base case'!AT477:AT478)*(AT50/'Working | Base case'!AT519),0) -> 21.377657 | AU55: =IFERROR(SUM('Working | Base case'!AU477:AU478)*(AU50/'Working | Base case'!AU519),0) -> 18.66314633 | AV55: =IFERROR(SUM('Working | Base case'!AV477:AV478)*(AV50/'Working | Base case'!AV519),0) -> 82.08085705 | AW55: =IFERROR(SUM('Working | Base case'!AW477:AW478)*(AW50/'Working | Base case'!AW519),0) -> 12.59747081 | AX55: =IFERROR(SUM('Working | Base case'!AX477:AX478)*(AX50/'Working | Base case'!AX519),0) -> 8.679701755 | AY55: =IFERROR(SUM('Working | Base case'!AY477:AY478)*(AY50/'Working | Base case'!AY519),0) -> 4.371804289 | AZ55: =IFERROR(SUM('Working | Base case'!AZ477:AZ478)*(AZ50/'Working | Base case'!AZ519),0) -> 0 | BA55: =IFERROR(SUM('Working | Base case'!BA477:BA478)*(BA50/'Working | Base case'!BA519),0) -> 0 | BB55: =IFERROR(SUM('Working | Base case'!BB477:BB478)*(BB50/'Working | Base case'!BB519),0) -> 0 | BC55: =IFERROR(SUM('Working | Base case'!BC477:BC478)*(BC50/'Working | Base case'!BC519),0) -> 0 | BD55: =IFERROR(SUM('Working | Base case'!BD477:BD478)*(BD50/'Working | Base case'!BD519),0) -> 0 | BE55: =IFERROR(SUM('Working | Base case'!BE477:BE478)*(BE50/'Working | Base case'!BE519),0) -> 0 | BF55: =IFERROR(SUM('Working | Base case'!BF477:BF478)*(BF50/'Working | Base case'!BF519),0) -> 0 | BG55: =IFERROR(SUM('Working | Base case'!BG477:BG478)*(BG50/'Working | Base case'!BG519),0) -> 0 | BH55: =IFERROR(SUM('Working | Base case'!BH477:BH478)*(BH50/'Working | Base case'!BH519),0) -> 0 | BI55: =IFERROR(SUM('Working | Base case'!BI477:BI478)*(BI50/'Working | Base case'!BI519),0) -> 0 | BJ55: =IFERROR(SUM('Working | Base case'!BJ477:BJ478)*(BJ50/'Working | Base case'!BJ519),0) -> 0 | BK55: =IFERROR(SUM('Working | Base case'!BK477:BK478)*(BK50/'Working | Base case'!BK519),0) -> 0 | BL55: =IFERROR(SUM('Working | Base case'!BL477:BL478)*(BL50/'Working | Base case'!BL519),0) -> 0 | BM55: =IFERROR(SUM('Working | Base case'!BM477:BM478)*(BM50/'Working | Base case'!BM519),0) -> 0 | BN55: =IFERROR(SUM('Working | Base case'!BN477:BN478)*(BN50/'Working | Base case'!BN519),0) -> 0 | BO55: =IFERROR(SUM('Working | Base case'!BO477:BO478)*(BO50/'Working | Base case'!BO519),0) -> 0 | BP55: =IFERROR(SUM('Working | Base case'!BP477:BP478)*(BP50/'Working | Base case'!BP519),0) -> 0 | BQ55: =IFERROR(SUM('Working | Base case'!BQ477:BQ478)*(BQ50/'Working | Base case'!BQ519),0) -> 0 | BR55: =IFERROR(SUM('Working | Base case'!BR477:BR478)*(BR50/'Working | Base case'!BR519),0) -> 0 | BS55: =IFERROR(SUM('Working | Base case'!BS477:BS478)*(BS50/'Working | Base case'!BS519),0) -> 0 | BT55: =IFERROR(SUM('Working | Base case'!BT477:BT478)*(BT50/'Working | Base case'!BT519),0) -> 0 | BU55: =IFERROR(SUM('Working | Base case'!BU477:BU478)*(BU50/'Working | Base case'!BU519),0) -> 0
A56: Returns achieved
A57: Post-tax CF to Equity | B57: =IRR(C57:BU57) -> 0.05317812981 | C57: =C50-C51-C52-C53-C54-C55 -> -2400 | D57: =D50-D51-D52-D53-D54-D55 -> 101.8863176 | E57: 58.81559017 | F57: 72.61254378 | G57: 95.70121854 | H57: 80.71693001 | I57: 156.8897148 | J57: 85.2616105 | K57: 108.4593243 | L57: 126.703575 | M57: 54.77828261 | N57: 99.17341482 | O57: 122.6956964 | P57: 46.43125485 | Q57: 46.08992201 | R57: 88.26938713 | S57: 77.44717138 | T57: 48.73281774 | U57: 95.98590889 | V57: 97.96587418 | W57: 51.14117771 | X57: 343.3651636 | Y57: 356.5565907 | Z57: 315.0179514 | AA57: 316.4947337 | AB57: 390.019475 | AC57: 359.3889619 | AD57: 324.9947908 | AE57: 384.3357841 | AF57: 373.3967402 | AG57: 358.8729463 | AH57: 249.0567375 | AI57: 201.2639777 | AJ57: 205.6706812 | AK57: 187.881707 | AL57: 174.7977816 | AM57: 191.8409526 | AN57: 179.3531402 | AO57: 171.2461396 | AP57: 166.6115093 | AQ57: 142.5899738 | AR57: 136.1625803 | AS57: 130.3754095 | AT57: 115.8613752 | AU57: 114.4306124 | AV57: 92.59026781 | AW57: 79.98084869 | AX57: 66.53057913 | AY57: 48.29881657 | AZ57: 33.60772281 | BA57: -21.3409145 | BB57: -1.937857877 | BC57: -0.02574440017 | BD57: -0.0003348033809 | BE57: -7.132581574e-06 | BF57: -1.363036091e-07 | BG57: -1.800614986e-09 | BH57: -3.94463406e-11 | BI57: -8.652055644e-13 | BJ57: -4.963436417e-15 | BK57: 6.491023173e-15 | BL57: 6.794705692e-15 | BM57: 6.888466999e-15 | BN57: 6.980026173e-15 | BO57: 7.184519931e-15 | BP57: =BP50-BP51-BP52-BP53-BP54-BP55 -> 7.364312746e-15 | BQ57: 7.520855439e-15 | BR57: 7.765757244e-15 | BS57: 7.992433402e-15 | BT57: 8.187154924e-15 | BU57: 8.536952537e-15
A58: Real post-tax CF to Equity | B58: =IRR(C58:BU58) -> 0.02842130648 | C58: =C57/Inputs!C35 -> -2400 | D58: =D57/Inputs!D35 -> 98.94085246 | E58: =E57/Inputs!E35 -> 55.2986274 | F58: =F57/Inputs!F35 -> 66.9085659 | G58: =G57/Inputs!G35 -> 86.14275335 | H58: =H57/Inputs!H35 -> 70.59149263 | I58: =I57/Inputs!I35 -> 133.8816389 | J58: =J57/Inputs!J35 -> 69.77666684 | K58: =K57/Inputs!K35 -> 86.65020613 | L58: =L57/Inputs!L35 -> 98.35498103 | M58: =M57/Inputs!M35 -> 41.18123179 | N58: =N57/Inputs!N35 -> 73.36251607 | O58: =O57/Inputs!O35 -> 88.54699185 | P58: =P57/Inputs!P35 -> 32.5547413 | Q58: =Q57/Inputs!Q35 -> 31.89180933 | R58: =R57/Inputs!R35 -> 60.28750193 | S58: =S57/Inputs!S35 -> 51.79498611 | T58: =T57/Inputs!T35 -> 31.98361662 | U58: =U57/Inputs!U35 -> 62.16791119 | V58: =V57/Inputs!V35 -> 62.08986365 | W58: =W57/Inputs!W35 -> 31.71784752 | X58: =X57/Inputs!X35 -> 210.1560802 | Y58: =Y57/Inputs!Y35 -> 214.1598648 | Z58: =Z57/Inputs!Z35 -> 185.2720475 | AA58: =AA57/Inputs!AA35 -> 183.7321166 | AB58: =AB57/Inputs!AB35 -> 223.4468526 | AC58: =AC57/Inputs!AC35 -> 200.0377811 | AD58: =AD57/Inputs!AD35 -> 176.4774524 | AE58: =AE57/Inputs!AE35 -> 205.3580242 | AF58: =AF57/Inputs!AF35 -> 193.2212147 | AG58: =AG57/Inputs!AG35 -> 180.4387419 | AH58: =AH57/Inputs!AH35 -> 122.2456412 | AI58: =AI57/Inputs!AI35 -> 94.73954207 | AJ58: =AJ57/Inputs!AJ35 -> 94.46619721 | AK58: =AK57/Inputs!AK35 -> 83.8445797 | AL58: =AL57/Inputs!AL35 -> 76.20046514 | AM58: =AM57/Inputs!AM35 -> 81.96174684 | AN58: =AN57/Inputs!AN35 -> 74.18924977 | AO58: =AO57/Inputs!AO35 -> 68.78798152 | AP58: =AP57/Inputs!AP35 -> 64.99149935 | AQ58: =AQ57/Inputs!AQ35 -> 53.85210172 | AR58: =AR57/Inputs!AR35 -> 50.39873302 | AS58: =AS57/Inputs!AS35 -> 47.13990933 | AT58: =AT57/Inputs!AT35 -> 40.70222815 | AU58: =AU57/Inputs!AU35 -> 39.22478253 | AV58: =AV57/Inputs!AV35 -> 30.43783821 | AW58: =AW57/Inputs!AW35 -> 25.66731791 | AX58: =AX57/Inputs!AX35 -> 20.74534062 | AY58: =AY57/Inputs!AY35 -> 14.58542828 | AZ58: =AZ57/Inputs!AZ35 -> 9.986419666 | BA58: =BA57/Inputs!BA35 -> -6.186560774 | BB58: =BB57/Inputs!BB35 -> -0.5457798858 | BC58: =BC57/Inputs!BC35 -> -0.007155627742 | BD58: =BD57/Inputs!BD35 -> -9.185415124e-05 | BE58: =BE57/Inputs!BE35 -> -1.916111086e-06 | BF58: =BF57/Inputs!BF35 -> -3.593396822e-08 | BG58: =BG57/Inputs!BG35 -> -4.684588308e-10 | BH58: =BH57/Inputs!BH35 -> -1.004255882e-11 | BI58: =BI57/Inputs!BI35 -> -2.155480319e-13 | BJ58: =BJ57/Inputs!BJ35 -> -1.22028133e-15 | BK58: =BK57/Inputs!BK35 -> 1.566082191e-15 | BL58: =BL57/Inputs!BL35 -> 1.605229102e-15 | BM58: =BM57/Inputs!BM35 -> 1.606323261e-15 | BN58: =BN57/Inputs!BN35 -> 1.606337416e-15 | BO58: =BO57/Inputs!BO35 -> 1.606337596e-15 | BP58: =BP57/Inputs!BP35 -> 1.606337601e-15 | BQ58: =BQ57/Inputs!BQ35 -> 1.614209401e-15 | BR58: =BR57/Inputs!BR35 -> 1.614209401e-15 | BS58: =BS57/Inputs!BS35 -> 1.614209401e-15 | BT58: =BT57/Inputs!BT35 -> 1.614209401e-15 | BU58: =BU57/Inputs!BU35 -> 1.614209401e-15
A59: Nominal cash flows to assets | B59: =IRR(C59:BU59) -> 0.0486868453 | C59: =C50-C51-C54 -> -6000 | D59: =D50-D51-D54 -> 138.4208774 | E59: 143.0111224 | F59: 145.8708881 | G59: 149.1713894 | H59: 153.260951 | I59: 157.2243853 | J59: 164.0628986 | K59: 168.0704305 | L59: 172.8635902 | M59: 178.2417739 | N59: 183.5756875 | O59: 189.2160057 | P59: 195.7420991 | Q59: 199.2358328 | R59: 202.6429385 | S59: 208.2888349 | T59: 213.6889434 | U59: 217.9001551 | V59: 223.9634494 | W59: 230.0725021 | X59: 871.5225312 | Y59: 878.1604039 | Z59: 886.3289078 | AA59: 886.975161 | AB59: 887.3267169 | AC59: 887.2756915 | AD59: 897.0394852 | AE59: 898.7446058 | AF59: 914.455479 | AG59: 926.9713076 | AH59: 506.2868773 | AI59: 501.7421023 | AJ59: 490.4484056 | AK59: 479.9816214 | AL59: 465.5286717 | AM59: 449.946042 | AN59: 436.4469659 | AO59: 419.6995204 | AP59: 401.2604683 | AQ59: 381.9881786 | AR59: 356.0867212 | AS59: 329.4827058 | AT59: 302.4564323 | AU59: 271.7642811 | AV59: 309.2201434 | AW59: 206.5000664 | AX59: 169.0897873 | AY59: 129.1984664 | AZ59: 84.98875785 | BA59: 43.7759401 | BB59: 4.969395304e-15 | BC59: 5.734112732e-15 | BD59: 5.809279004e-15 | BE59: 5.93276645e-15 | BF59: 6.045515858e-15 | BG59: 6.22263058e-15 | BH59: 6.358972179e-15 | BI59: 6.498301105e-15 | BJ59: 6.584868171e-15 | BK59: 6.710010463e-15 | BL59: 6.799397813e-15 | BM59: 6.888528496e-15 | BN59: 6.980026977e-15 | BO59: 7.184519955e-15 | BP59: =BP50-BP51-BP54 -> 7.364312747e-15 | BQ59: 7.520855439e-15 | BR59: 7.765757244e-15 | BS59: 7.992433402e-15 | BT59: 8.187154924e-15 | BU59: 8.536952537e-15
A60: Nominal vanilla WACC | B60: =IRR(C60:BU60) -> 0.04696775489 | C60: =C59-C55 -> -6000 | D60: =D59-D55 -> 138.4208774 | E60: 143.0111224 | F60: 145.8708881 | G60: 149.1713894 | H60: 153.260951 | I60: 157.2243853 | J60: 164.0628986 | K60: 168.0704305 | L60: 172.8635902 | M60: 178.2417739 | N60: 181.4108362 | O60: 186.3164297 | P60: 191.9694398 | Q60: 194.5307744 | R60: 196.9021682 | S60: 201.6934967 | T60: 205.7775033 | U60: 208.6054518 | V60: 213.0892718 | W60: 217.4849148 | X60: 857.0922115 | Y60: 858.6922672 | Z60: 861.9446214 | AA60: 858.0460726 | AB60: 854.043957 | AC60: 849.8166429 | AD60: 855.08837 | AE60: 852.7510894 | AF60: 863.734622 | AG60: 871.6717832 | AH60: 476.0738974 | AI60: 473.4438045 | AJ60: 461.5172279 | AK60: 450.4624059 | AL60: 435.8362379 | AM60: 420.3600833 | AN60: 406.9348681 | AO60: 390.798188 | AP60: 373.1212431 | AQ60: 354.8713726 | AR60: 330.7204689 | AS60: 305.9612114 | AT60: 281.0787753 | AU60: 253.1011348 | AV60: 227.1392864 | AW60: 193.9025956 | AX60: 160.4100856 | AY60: 124.8266621 | AZ60: 84.98875785 | BA60: 43.7759401 | BB60: 4.969395304e-15 | BC60: 5.734112732e-15 | BD60: 5.809279004e-15 | BE60: 5.93276645e-15 | BF60: 6.045515858e-15 | BG60: 6.22263058e-15 | BH60: 6.358972179e-15 | BI60: 6.498301105e-15 | BJ60: 6.584868171e-15 | BK60: 6.710010463e-15 | BL60: 6.799397813e-15 | BM60: 6.888528496e-15 | BN60: 6.980026977e-15 | BO60: 7.184519955e-15 | BP60: =BP59-BP55 -> 7.364312747e-15 | BQ60: 7.520855439e-15 | BR60: 7.765757244e-15 | BS60: 7.992433402e-15 | BT60: 8.187154924e-15 | BU60: 8.536952537e-15
A61: Real WACC (real) | B61: =IRR(C61:BU61) -> 0.0224634908 | C61: =C60/Inputs!C35 -> -6000 | D61: =D60/Inputs!D35 -> 134.4192226 | E61: =E60/Inputs!E35 -> 134.4595667 | F61: =F60/Inputs!F35 -> 134.4122023 | G61: =G60/Inputs!G35 -> 134.2724199 | H61: =H60/Inputs!H35 -> 134.0353169 | I61: =I60/Inputs!I35 -> 134.1672295 | J61: =J60/Inputs!J35 -> 134.2663146 | K61: =K60/Inputs!K35 -> 134.2746466 | L61: =L60/Inputs!L35 -> 134.1871777 | M61: =M60/Inputs!M35 -> 133.998648 | N61: =N60/Inputs!N35 -> 134.1968048 | O61: =O60/Inputs!O35 -> 134.4607828 | P61: =P60/Inputs!P35 -> 134.5971689 | Q61: =Q60/Inputs!Q35 -> 134.6050958 | R61: =R60/Inputs!R35 -> 134.483089 | S61: =S60/Inputs!S35 -> 134.8882299 | T61: =T60/Inputs!T35 -> 135.0529085 | U61: =U60/Inputs!U35 -> 135.1090525 | V61: =V60/Inputs!V35 -> 135.0540067 | W61: =W60/Inputs!W35 -> 134.8845231 | X61: =X60/Inputs!X35 -> 524.5818697 | Y61: =Y60/Inputs!Y35 -> 515.7594185 | Z61: =Z60/Inputs!Z35 -> 506.9369672 | AA61: =AA60/Inputs!AA35 -> 498.114516 | AB61: =AB60/Inputs!AB35 -> 489.2920647 | AC61: =AC60/Inputs!AC35 -> 473.0124004 | AD61: =AD60/Inputs!AD35 -> 464.3268796 | AE61: =AE60/Inputs!AE35 -> 455.6413587 | AF61: =AF60/Inputs!AF35 -> 446.9558379 | AG61: =AG60/Inputs!AG35 -> 438.2703171 | AH61: =AH60/Inputs!AH35 -> 233.6734971 | AI61: =AI60/Inputs!AI35 -> 222.8607908 | AJ61: =AJ60/Inputs!AJ35 -> 211.9785728 | AK61: =AK60/Inputs!AK35 -> 201.024526 | AL61: =AL60/Inputs!AL35 -> 189.996256 | AM61: =AM60/Inputs!AM35 -> 179.5938055 | AN61: =AN60/Inputs!AN35 -> 168.3282073 | AO61: =AO60/Inputs!AO35 -> 156.9799973 | AP61: =AP60/Inputs!AP35 -> 145.5464219 | AQ61: =AQ60/Inputs!AQ35 -> 134.0246355 | AR61: =AR60/Inputs!AR35 -> 122.4116977 | AS61: =AS60/Inputs!AS35 -> 110.6265653 | AT61: =AT60/Inputs!AT35 -> 98.74328198 | AU61: =AU60/Inputs!AU35 -> 86.7585759 | AV61: =AV60/Inputs!AV35 -> 74.66906634 | AW61: =AW60/Inputs!AW35 -> 62.22689116 | AX61: =AX60/Inputs!AX35 -> 50.01853143 | AY61: =AY60/Inputs!AY35 -> 37.69554736 | AZ61: =AZ60/Inputs!AZ35 -> 25.25411815 | BA61: =BA60/Inputs!BA35 -> 12.69029562 | BB61: =BB60/Inputs!BB35 -> 1.399584579e-15 | BC61: =BC60/Inputs!BC35 -> 1.593790334e-15 | BD61: =BD60/Inputs!BD35 -> 1.593790334e-15 | BE61: =BE60/Inputs!BE35 -> 1.593790334e-15 | BF61: =BF60/Inputs!BF35 -> 1.593790334e-15 | BG61: =BG60/Inputs!BG35 -> 1.61891702e-15 | BH61: =BH60/Inputs!BH35 -> 1.61891702e-15 | BI61: =BI60/Inputs!BI35 -> 1.61891702e-15 | BJ61: =BJ60/Inputs!BJ35 -> 1.61891702e-15 | BK61: =BK60/Inputs!BK35 -> 1.61891702e-15 | BL61: =BL60/Inputs!BL35 -> 1.606337601e-15 | BM61: =BM60/Inputs!BM35 -> 1.606337601e-15 | BN61: =BN60/Inputs!BN35 -> 1.606337601e-15 | BO61: =BO60/Inputs!BO35 -> 1.606337601e-15 | BP61: =BP60/Inputs!BP35 -> 1.606337601e-15 | BQ61: =BQ60/Inputs!BQ35 -> 1.614209401e-15 | BR61: =BR60/Inputs!BR35 -> 1.614209401e-15 | BS61: =BS60/Inputs!BS35 -> 1.614209401e-15 | BT61: =BT60/Inputs!BT35 -> 1.614209401e-15 | BU61: =BU60/Inputs!BU35 -> 1.614209401e-15
A62: ="Nominal NPV at "&ROUND((GEOMEAN(1+Inputs!$D$15:$W$15)-1)*100,2)&"%" -> Nominal NPV at 4.58% | B62: =NPV((GEOMEAN(1+Inputs!$D$15:$W$15)-1),D60:BU60)+C60 -> 147.6235156
A63: ="Real NPV at "&ROUND((GEOMEAN(1+Inputs!$D$16:$W$16)-1)*100,2)&"%" -> Real NPV at 2.28% | B63: =NPV((GEOMEAN(1+Inputs!$D$16:$W$16)-1),D61:BU61)+C61 -> -42.90784197
A65: =RIGHT(Inputs!A4,LEN(Inputs!A4)-3)&" ("&Inputs!B4&")" -> Approach B (5 year estimate)
A66: Revenue | C66: 0 | D66: ='Working | Approach B'!D111 -> 359.4990366 | E66: ='Working | Approach B'!E111 -> 378.2353592 | F66: ='Working | Approach B'!F111 -> 393.1338636 | G66: ='Working | Approach B'!G111 -> 409.9545863 | H66: ='Working | Approach B'!H111 -> 429.809299 | I66: ='Working | Approach B'!I247 -> 450.5829487 | J66: ='Working | Approach B'!J247 -> 479.9040091 | K66: ='Working | Approach B'!K247 -> 502.1322639 | L66: ='Working | Approach B'!L247 -> 527.865295 | M66: ='Working | Approach B'!M247 -> 556.7361811 | N66: ='Working | Approach B'!N383 -> 580.6141708 | O66: ='Working | Approach B'!O383 -> 608.9205041 | P66: ='Working | Approach B'!P383 -> 641.2682692 | Q66: ='Working | Approach B'!Q383 -> 664.8273714 | R66: ='Working | Approach B'!R383 -> 689.1335567 | S66: ='Working | Approach B'!S519 -> 721.421563 | T66: ='Working | Approach B'!T519 -> 753.0635057 | U66: ='Working | Approach B'!U519 -> 781.7092045 | V66: ='Working | Approach B'!V519 -> 818.3225179 | W66: ='Working | Approach B'!W519 -> 856.6507078 | X66: ='Working | Approach B'!X551 -> 897.2910372 | Y66: ='Working | Approach B'!Y551 -> 902.4741456 | Z66: ='Working | Approach B'!Z551 -> 909.1914057 | AA66: ='Working | Approach B'!AA551 -> 908.1592769 | AB66: ='Working | Approach B'!AB551 -> 906.801928 | AC66: ='Working | Approach B'!AC551 -> 905.0060468 | AD66: ='Working | Approach B'!AD551 -> 913.1703295 | AE66: ='Working | Approach B'!AE551 -> 913.0715388 | AF66: ='Working | Approach B'!AF551 -> 927.1242165 | AG66: ='Working | Approach B'!AG551 -> 937.8312183 | AH66: ='Working | Approach B'!AH551 -> 517.3977303 | AI66: ='Working | Approach B'!AI551 -> 512.1157979 | AJ66: ='Working | Approach B'!AJ551 -> 500.0128688 | AK66: ='Working | Approach B'!AK551 -> 488.7771257 | AL66: ='Working | Approach B'!AL551 -> 473.5072992 | AM66: ='Working | Approach B'!AM551 -> 457.1173135 | AN66: ='Working | Approach B'!AN551 -> 442.8761999 | AO66: ='Working | Approach B'!AO551 -> 425.3607576 | AP66: ='Working | Approach B'!AP551 -> 406.1701368 | AQ66: ='Working | Approach B'!AQ551 -> 386.1704063 | AR66: ='Working | Approach B'!AR551 -> 359.5087496 | AS66: ='Working | Approach B'!AS551 -> 332.2021418 | AT66: ='Working | Approach B'!AT551 -> 304.5191337 | AU66: ='Working | Approach B'!AU551 -> 273.1957216 | AV66: ='Working | Approach B'!AV551 -> 314.9738797 | AW66: ='Working | Approach B'!AW551 -> 206.8638153 | AX66: ='Working | Approach B'!AX551 -> 169.0178637 | AY66: ='Working | Approach B'!AY551 -> 128.7721806 | AZ66: ='Working | Approach B'!AZ551 -> 85.19562322 | BA66: ='Working | Approach B'!BA551 -> 43.82969992 | BB66: ='Working | Approach B'!BB551 -> -8.933940065e-14 | BC66: ='Working | Approach B'!BC551 -> -8.584367345e-14 | BD66: ='Working | Approach B'!BD551 -> -8.696896504e-14 | BE66: ='Working | Approach B'!BE551 -> -8.881765839e-14 | BF66: ='Working | Approach B'!BF551 -> -9.050559579e-14 | BG66: ='Working | Approach B'!BG551 -> -9.315712691e-14 | BH66: ='Working | Approach B'!BH551 -> -9.51982559e-14 | BI66: ='Working | Approach B'!BI551 -> -9.728410725e-14 | BJ66: ='Working | Approach B'!BJ551 -> -9.858007671e-14 | BK66: ='Working | Approach B'!BK551 -> -1.004535442e-13 | BL66: ='Working | Approach B'!BL551 -> -1.017917353e-13 | BM66: ='Working | Approach B'!BM551 -> -1.031260839e-13 | BN66: ='Working | Approach B'!BN551 -> -1.044958801e-13 | BO66: ='Working | Approach B'!BO551 -> -1.075572828e-13 | BP66: ='Working | Approach B'!BP551 -> -1.102489065e-13 | BQ66: ='Working | Approach B'!BQ551 -> -1.1259246e-13 | BR66: ='Working | Approach B'!BR551 -> -1.162588111e-13 | BS66: ='Working | Approach B'!BS551 -> -1.196523115e-13 | BT66: ='Working | Approach B'!BT551 -> -1.225674288e-13 | BU66: ='Working | Approach B'!BU551 -> -1.278041434e-13
A67: Capex | C67: ='Working | Approach B'!D121 -> 6000 | D67: ='Working | Approach B'!D122 -> 206.2069173 | E67: ='Working | Approach B'!E122 -> 220.080497 | F67: ='Working | Approach B'!F122 -> 232.0458574 | G67: ='Working | Approach B'!G122 -> 245.4613099 | H67: ='Working | Approach B'!H122 -> 261.0580192 | I67: ='Working | Approach B'!I258 -> 276.4640467 | J67: ='Working | Approach B'!J258 -> 297.8852216 | K67: ='Working | Approach B'!K258 -> 315.3140912 | L67: ='Working | Approach B'!L258 -> 335.3351157 | M67: ='Working | Approach B'!M258 -> 357.7964629 | N67: ='Working | Approach B'!N394 -> 375.7408836 | O67: ='Working | Approach B'!O394 -> 397.9819356 | P67: ='Working | Approach B'!P394 -> 423.2962814 | Q67: ='Working | Approach B'!Q394 -> 443.2161064 | R67: ='Working | Approach B'!R394 -> 463.9935905 | S67: ='Working | Approach B'!S530 -> 489.6518929 | T67: ='Working | Approach B'!T530 -> 515.589411 | U67: ='Working | Approach B'!U530 -> 539.8730922 | V67: ='Working | Approach B'!V530 -> 570.0921061 | W67: ='Working | Approach B'!W530 -> 602.0026079 | X67: 0 | Y67: 0 | Z67: 0 | AA67: 0 | AB67: 0 | AC67: 0 | AD67: 0 | AE67: 0 | AF67: 0 | AG67: 0 | AH67: 0 | AI67: 0 | AJ67: 0 | AK67: 0 | AL67: 0 | AM67: 0 | AN67: 0 | AO67: 0 | AP67: 0 | AQ67: 0 | AR67: 0 | AS67: 0 | AT67: 0 | AU67: 0 | AV67: 0 | AW67: 0 | AX67: 0 | AY67: 0 | AZ67: 0 | BA67: 0 | BB67: 0 | BC67: 0 | BD67: 0 | BE67: 0 | BF67: 0 | BG67: 0 | BH67: 0 | BI67: 0 | BJ67: 0 | BK67: 0 | BL67: 0 | BM67: 0 | BN67: 0 | BO67: 0 | BP67: 0 | BQ67: 0 | BR67: 0 | BS67: 0 | BT67: 0 | BU67: 0
A68: Interest Payments | C68: 0 | D68: =('Working | Approach B'!D121*Inputs!$C$13)*Inputs!D13 -> 154.8 | E68: =('Working | Approach B'!E121*Inputs!$C$13)*Inputs!E13 -> 159.8919394 | F68: =('Working | Approach B'!F121*Inputs!$C$13)*Inputs!F13 -> 163.153477 | G68: =('Working | Approach B'!G121*Inputs!$C$13)*Inputs!G13 -> 167.025586 | H68: =('Working | Approach B'!H121*Inputs!$C$13)*Inputs!H13 -> 171.9152254 | I68: =('Working | Approach B'!I257*Inputs!$C$13)*Inputs!I13 -> 176.1949205 | J68: =('Working | Approach B'!J257*Inputs!$C$13)*Inputs!J13 -> 183.7643284 | K68: =('Working | Approach B'!K257*Inputs!$C$13)*Inputs!K13 -> 188.284642 | L68: =('Working | Approach B'!L257*Inputs!$C$13)*Inputs!L13 -> 193.8247913 | M68: =('Working | Approach B'!M257*Inputs!$C$13)*Inputs!M13 -> 200.1818785 | N68: =('Working | Approach B'!N393*Inputs!$C$13)*Inputs!N13 -> 203.487229 | O68: =('Working | Approach B'!O393*Inputs!$C$13)*Inputs!O13 -> 208.7080755 | P68: =('Working | Approach B'!P393*Inputs!$C$13)*Inputs!P13 -> 214.9543609 | Q68: =('Working | Approach B'!Q393*Inputs!$C$13)*Inputs!Q13 -> 217.9451943 | R68: =('Working | Approach B'!R393*Inputs!$C$13)*Inputs!R13 -> 220.9396077 | S68: =('Working | Approach B'!S529*Inputs!$C$13)*Inputs!S13 -> 225.7753615 | T68: =('Working | Approach B'!T529*Inputs!$C$13)*Inputs!T13 -> 230.1472756 | U68: =('Working | Approach B'!U529*Inputs!$C$13)*Inputs!U13 -> 233.2958837 | V68: =('Working | Approach B'!V529*Inputs!$C$13)*Inputs!V13 -> 238.4913423 | W68: =('Working | Approach B'!W529*Inputs!$C$13)*Inputs!W13 -> 243.8024728 | X68: =('Working | Approach B'!X529*Inputs!$C$13)*Inputs!$W$13 -> 247.1378029 | Y68: =('Working | Approach B'!Y529*Inputs!$C$13)*Inputs!$W$13 -> 235.6600314 | Z68: =('Working | Approach B'!Z529*Inputs!$C$13)*Inputs!$W$13 -> 224.1875436 | AA68: =('Working | Approach B'!AA529*Inputs!$C$13)*Inputs!$W$13 -> 210.2940802 | AB68: =('Working | Approach B'!AB529*Inputs!$C$13)*Inputs!$W$13 -> 196.0344612 | AC68: =('Working | Approach B'!AC529*Inputs!$C$13)*Inputs!$W$13 -> 184.4982502 | AD68: =('Working | Approach B'!AD529*Inputs!$C$13)*Inputs!$W$13 -> 171.3296828 | AE68: =('Working | Approach B'!AE529*Inputs!$C$13)*Inputs!$W$13 -> 155.8876385 | AF68: =('Working | Approach B'!AF529*Inputs!$C$13)*Inputs!$W$13 -> 142.4363487 | AG68: =('Working | Approach B'!AG529*Inputs!$C$13)*Inputs!$W$13 -> 127.463177 | AH68: =('Working | Approach B'!AH529*Inputs!$C$13)*Inputs!$W$13 -> 110.8794072 | AI68: =('Working | Approach B'!AI529*Inputs!$C$13)*Inputs!$W$13 -> 105.8735032 | AJ68: =('Working | Approach B'!AJ529*Inputs!$C$13)*Inputs!$W$13 -> 98.70796526 | AK68: =('Working | Approach B'!AK529*Inputs!$C$13)*Inputs!$W$13 -> 91.93750258 | AL68: =('Working | Approach B'!AL529*Inputs!$C$13)*Inputs!$W$13 -> 84.58598532 | AM68: =('Working | Approach B'!AM529*Inputs!$C$13)*Inputs!$W$13 -> 76.98475013 | AN68: =('Working | Approach B'!AN529*Inputs!$C$13)*Inputs!$W$13 -> 70.45671038 | AO68: =('Working | Approach B'!AO529*Inputs!$C$13)*Inputs!$W$13 -> 63.68832185 | AP68: =('Working | Approach B'!AP529*Inputs!$C$13)*Inputs!$W$13 -> 56.97459208 | AQ68: =('Working | Approach B'!AQ529*Inputs!$C$13)*Inputs!$W$13 -> 50.53367959 | AR68: =('Working | Approach B'!AR529*Inputs!$C$13)*Inputs!$W$13 -> 43.56731944 | AS68: =('Working | Approach B'!AS529*Inputs!$C$13)*Inputs!$W$13 -> 37.06445192 | AT68: =('Working | Approach B'!AT529*Inputs!$C$13)*Inputs!$W$13 -> 31.09876268 | AU68: =('Working | Approach B'!AU529*Inputs!$C$13)*Inputs!$W$13 -> 25.32293654 | AV68: =('Working | Approach B'!AV529*Inputs!$C$13)*Inputs!$W$13 -> 20.44166885 | AW68: =('Working | Approach B'!AW529*Inputs!$C$13)*Inputs!$W$13 -> 15.52794615 | AX68: =('Working | Approach B'!AX529*Inputs!$C$13)*Inputs!$W$13 -> 11.29099517 | AY68: =('Working | Approach B'!AY529*Inputs!$C$13)*Inputs!$W$13 -> 7.734730375 | AZ68: =('Working | Approach B'!AZ529*Inputs!$C$13)*Inputs!$W$13 -> 4.772581734 | BA68: =('Working | Approach B'!BA529*Inputs!$C$13)*Inputs!$W$13 -> 2.765702582 | BB68: =('Working | Approach B'!BB529*Inputs!$C$13)*Inputs!$W$13 -> 0.08102644283 | BC68: =('Working | Approach B'!BC529*Inputs!$C$13)*Inputs!$W$13 -> 0.001076252561 | BD68: =('Working | Approach B'!BD529*Inputs!$C$13)*Inputs!$W$13 -> 1.410817964e-05 | BE68: =('Working | Approach B'!BE529*Inputs!$C$13)*Inputs!$W$13 -> 2.998966098e-07 | BF68: =('Working | Approach B'!BF529*Inputs!$C$13)*Inputs!$W$13 -> 5.699392584e-09 | BG68: =('Working | Approach B'!BG529*Inputs!$C$13)*Inputs!$W$13 -> 7.592441275e-11 | BH68: =('Working | Approach B'!BH529*Inputs!$C$13)*Inputs!$W$13 -> 1.663549797e-12 | BI68: =('Working | Approach B'!BI529*Inputs!$C$13)*Inputs!$W$13 -> 3.644938206e-14 | BJ68: =('Working | Approach B'!BJ529*Inputs!$C$13)*Inputs!$W$13 -> 4.855601518e-16 | BK68: =('Working | Approach B'!BK529*Inputs!$C$13)*Inputs!$W$13 -> 9.227839989e-18 | BL68: =('Working | Approach B'!BL529*Inputs!$C$13)*Inputs!$W$13 -> 1.961555635e-19 | BM68: =('Working | Approach B'!BM529*Inputs!$C$13)*Inputs!$W$13 -> 2.571327612e-21 | BN68: =('Working | Approach B'!BN529*Inputs!$C$13)*Inputs!$W$13 -> 3.415425671e-23 | BO68: =('Working | Approach B'!BO529*Inputs!$C$13)*Inputs!$W$13 -> 1.000612989e-24 | BP68: =('Working | Approach B'!BP529*Inputs!$C$13)*Inputs!$W$13 -> 2.50403651e-26 | BQ68: =('Working | Approach B'!BQ529*Inputs!$C$13)*Inputs!$W$13 -> 4.0757461e-28 | BR68: =('Working | Approach B'!BR529*Inputs!$C$13)*Inputs!$W$13 -> 1.32718623e-29 | BS68: =('Working | Approach B'!BS529*Inputs!$C$13)*Inputs!$W$13 -> 3.873948996e-31 | BT68: =('Working | Approach B'!BT529*Inputs!$C$13)*Inputs!$W$13 -> 9.438192459e-33 | BU68: =('Working | Approach B'!BU529*Inputs!$C$13)*Inputs!$W$13 -> 4.032484076e-34
A69: Repayment of Debt | C69: =('Working | Approach B'!C121-'Working | Approach B'!D121)*Inputs!$C$13 -> -3600 | D69: =('Working | Approach B'!D121-'Working | Approach B'!E121)*Inputs!$C$13 -> -118.4171955 | E69: =('Working | Approach B'!E121-'Working | Approach B'!F121)*Inputs!$C$13 -> -75.84971154 | F69: =('Working | Approach B'!F121-'Working | Approach B'!G121)*Inputs!$C$13 -> -90.04904754 | G69: =('Working | Approach B'!G121-'Working | Approach B'!H121)*Inputs!$C$13 -> -113.7125422 | H69: =('Working | Approach B'!H121-'Working | Approach B'!I257)*Inputs!$C$13 -> -99.52779424 | I69: =('Working | Approach B'!I257-'Working | Approach B'!J257)*Inputs!$C$13 -> -176.0327415 | J69: =('Working | Approach B'!J257-'Working | Approach B'!K257)*Inputs!$C$13 -> -105.1235719 | K69: =('Working | Approach B'!K257-'Working | Approach B'!L257)*Inputs!$C$13 -> -128.8406824 | L69: =('Working | Approach B'!L257-'Working | Approach B'!M257)*Inputs!$C$13 -> -147.8392366 | M69: =('Working | Approach B'!M257-'Working | Approach B'!N393)*Inputs!$C$13 -> -76.86861713 | N69: =('Working | Approach B'!N393-'Working | Approach B'!O393)*Inputs!$C$13 -> -121.415034 | O69: =('Working | Approach B'!O393-'Working | Approach B'!P393)*Inputs!$C$13 -> -145.2624516 | P69: =('Working | Approach B'!P393-'Working | Approach B'!Q393)*Inputs!$C$13 -> -69.5542639 | Q69: =('Working | Approach B'!Q393-'Working | Approach B'!R393)*Inputs!$C$13 -> -69.63752067 | R69: =('Working | Approach B'!R393-'Working | Approach B'!S529)*Inputs!$C$13 -> -112.4593924 | S69: =('Working | Approach B'!S529-'Working | Approach B'!T529)*Inputs!$C$13 -> -101.6724202 | T69: =('Working | Approach B'!T529-'Working | Approach B'!U529)*Inputs!$C$13 -> -73.22344428 | U69: =('Working | Approach B'!U529-'Working | Approach B'!V529)*Inputs!$C$13 -> -120.8246194 | V69: =('Working | Approach B'!V529-'Working | Approach B'!W529)*Inputs!$C$13 -> -123.5146625 | W69: =('Working | Approach B'!W529-'Working | Approach B'!X529)*Inputs!$C$13 -> -77.56581605 | X69: =('Working | Approach B'!X529-'Working | Approach B'!Y529)*Inputs!$C$13 -> 266.9249199 | Y69: =('Working | Approach B'!Y529-'Working | Approach B'!Z529)*Inputs!$C$13 -> 266.8020408 | Z69: =('Working | Approach B'!Z529-'Working | Approach B'!AA529)*Inputs!$C$13 -> 323.1038012 | AA69: =('Working | Approach B'!AA529-'Working | Approach B'!AB529)*Inputs!$C$13 -> 331.6190457 | AB69: =('Working | Approach B'!AB529-'Working | Approach B'!AC529)*Inputs!$C$13 -> 268.2839758 | AC69: =('Working | Approach B'!AC529-'Working | Approach B'!AD529)*Inputs!$C$13 -> 306.2457533 | AD69: =('Working | Approach B'!AD529-'Working | Approach B'!AE529)*Inputs!$C$13 -> 359.1173092 | AE69: =('Working | Approach B'!AE529-'Working | Approach B'!AF529)*Inputs!$C$13 -> 312.8206945 | AF69: =('Working | Approach B'!AF529-'Working | Approach B'!AG529)*Inputs!$C$13 -> 348.213295 | AG69: =('Working | Approach B'!AG529-'Working | Approach B'!AH529)*Inputs!$C$13 -> 385.6690653 | AH69: =('Working | Approach B'!AH529-'Working | Approach B'!AI529)*Inputs!$C$13 -> 116.4163715 | AI69: =('Working | Approach B'!AI529-'Working | Approach B'!AJ529)*Inputs!$C$13 -> 166.6404173 | AJ69: =('Working | Approach B'!AJ529-'Working | Approach B'!AK529)*Inputs!$C$13 -> 157.4526205 | AK69: =('Working | Approach B'!AK529-'Working | Approach B'!AL529)*Inputs!$C$13 -> 170.9655175 | AL69: =('Working | Approach B'!AL529-'Working | Approach B'!AM529)*Inputs!$C$13 -> 176.7729114 | AM69: =('Working | Approach B'!AM529-'Working | Approach B'!AN529)*Inputs!$C$13 -> 151.8148781 | AN69: =('Working | Approach B'!AN529-'Working | Approach B'!AO529)*Inputs!$C$13 -> 157.4043843 | AO69: =('Working | Approach B'!AO529-'Working | Approach B'!AP529)*Inputs!$C$13 -> 156.1332506 | AP69: =('Working | Approach B'!AP529-'Working | Approach B'!AQ529)*Inputs!$C$13 -> 149.7886624 | AQ69: =('Working | Approach B'!AQ529-'Working | Approach B'!AR529)*Inputs!$C$13 -> 162.0083756 | AR69: =('Working | Approach B'!AR529-'Working | Approach B'!AS529)*Inputs!$C$13 -> 151.2294772 | AS69: =('Working | Approach B'!AS529-'Working | Approach B'!AT529)*Inputs!$C$13 -> 138.7369591 | AT69: =('Working | Approach B'!AT529-'Working | Approach B'!AU529)*Inputs!$C$13 -> 134.3215382 | AU69: =('Working | Approach B'!AU529-'Working | Approach B'!AV529)*Inputs!$C$13 -> 113.5178533 | AV69: =('Working | Approach B'!AV529-'Working | Approach B'!AW529)*Inputs!$C$13 -> 114.2726208 | AW69: =('Working | Approach B'!AW529-'Working | Approach B'!AX529)*Inputs!$C$13 -> 98.53374386 | AX69: =('Working | Approach B'!AX529-'Working | Approach B'!AY529)*Inputs!$C$13 -> 82.70383236 | AY69: =('Working | Approach B'!AY529-'Working | Approach B'!AZ529)*Inputs!$C$13 -> 68.88717769 | AZ69: =('Working | Approach B'!AZ529-'Working | Approach B'!BA529)*Inputs!$C$13 -> 46.67160819 | BA69: =('Working | Approach B'!BA529-'Working | Approach B'!BB529)*Inputs!$C$13 -> 62.43432881 | BB69: =('Working | Approach B'!BB529-'Working | Approach B'!BC529)*Inputs!$C$13 -> 1.85930675 | BC69: =('Working | Approach B'!BC529-'Working | Approach B'!BD529)*Inputs!$C$13 -> 0.02470103213 | BD69: =('Working | Approach B'!BD529-'Working | Approach B'!BE529)*Inputs!$C$13 -> 0.0003211228612 | BE69: =('Working | Approach B'!BE529-'Working | Approach B'!BF529)*Inputs!$C$13 -> 6.841795748e-06 | BF69: =('Working | Approach B'!BF529-'Working | Approach B'!BG529)*Inputs!$C$13 -> 1.307783296e-07 | BG69: =('Working | Approach B'!BG529-'Working | Approach B'!BH529)*Inputs!$C$13 -> 1.726996813e-09 | BH69: =('Working | Approach B'!BH529-'Working | Approach B'!BI529)*Inputs!$C$13 -> 3.783954454e-11 | BI69: =('Working | Approach B'!BI529-'Working | Approach B'!BJ529)*Inputs!$C$13 -> 8.363679514e-13 | BJ69: =('Working | Approach B'!BJ529-'Working | Approach B'!BK529)*Inputs!$C$13 -> 1.107749562e-14 | BK69: =('Working | Approach B'!BK529-'Working | Approach B'!BL529)*Inputs!$C$13 -> 2.100391727e-16 | BL69: =('Working | Approach B'!BL529-'Working | Approach B'!BM529)*Inputs!$C$13 -> 4.501958975e-18 | BM69: =('Working | Approach B'!BM529-'Working | Approach B'!BN529)*Inputs!$C$13 -> 5.900403152e-20 | BN69: =('Working | Approach B'!BN529-'Working | Approach B'!BO529)*Inputs!$C$13 -> 7.710149701e-22 | BO69: =('Working | Approach B'!BO529-'Working | Approach B'!BP529)*Inputs!$C$13 -> 2.268773545e-23 | BP69: =('Working | Approach B'!BP529-'Working | Approach B'!BQ529)*Inputs!$C$13 -> 5.728555928e-25 | BQ69: =('Working | Approach B'!BQ529-'Working | Approach B'!BR529)*Inputs!$C$13 -> 9.169831341e-27 | BR69: =('Working | Approach B'!BR529-'Working | Approach B'!BS529)*Inputs!$C$13 -> 2.996387767e-28 | BS69: =('Working | Approach B'!BS529-'Working | Approach B'!BT529)*Inputs!$C$13 -> 8.789690863e-30 | BT69: =('Working | Approach B'!BT529-'Working | Approach B'!BU529)*Inputs!$C$13 -> 2.101149779e-31 | BU69: =('Working | Approach B'!BU529-'Working | Approach B'!BV529)*Inputs!$C$13 -> 9.377869944e-33
A70: Opex | C70: 0 | D70: ='Working | Approach B'!D102/'Working | Approach B'!D4*Inputs!D35 -> 0 | E70: ='Working | Approach B'!E102/'Working | Approach B'!E4*Inputs!E35 -> 0 | F70: ='Working | Approach B'!F102/'Working | Approach B'!F4*Inputs!F35 -> 0 | G70: ='Working | Approach B'!G102/'Working | Approach B'!G4*Inputs!G35 -> 0 | H70: ='Working | Approach B'!H102/'Working | Approach B'!H4*Inputs!H35 -> 0 | I70: ='Working | Approach B'!I238/'Working | Approach B'!I139*Inputs!I35 -> 0 | J70: ='Working | Approach B'!J238/'Working | Approach B'!J139*Inputs!J35 -> 0 | K70: ='Working | Approach B'!K238/'Working | Approach B'!K139*Inputs!K35 -> 0 | L70: ='Working | Approach B'!L238/'Working | Approach B'!L139*Inputs!L35 -> 0 | M70: ='Working | Approach B'!M238/'Working | Approach B'!M139*Inputs!M35 -> 0 | N70: ='Working | Approach B'!N374/'Working | Approach B'!N275*Inputs!N35 -> 0 | O70: ='Working | Approach B'!O374/'Working | Approach B'!O275*Inputs!O35 -> 0 | P70: ='Working | Approach B'!P374/'Working | Approach B'!P275*Inputs!P35 -> 0 | Q70: ='Working | Approach B'!Q374/'Working | Approach B'!Q275*Inputs!Q35 -> 0 | R70: ='Working | Approach B'!R374/'Working | Approach B'!R275*Inputs!R35 -> 0 | S70: ='Working | Approach B'!S510/'Working | Approach B'!S411*Inputs!S35 -> 0 | T70: ='Working | Approach B'!T510/'Working | Approach B'!T411*Inputs!T35 -> 0 | U70: ='Working | Approach B'!U510/'Working | Approach B'!U411*Inputs!U35 -> 0 | V70: ='Working | Approach B'!V510/'Working | Approach B'!V411*Inputs!V35 -> 0 | W70: ='Working | Approach B'!W510/'Working | Approach B'!W411*Inputs!W35 -> 0 | X70: 0 | Y70: 0 | Z70: 0 | AA70: 0 | AB70: 0 | AC70: 0 | AD70: 0 | AE70: 0 | AF70: 0 | AG70: 0 | AH70: 0 | AI70: 0 | AJ70: 0 | AK70: 0 | AL70: 0 | AM70: 0 | AN70: 0 | AO70: 0 | AP70: 0 | AQ70: 0 | AR70: 0 | AS70: 0 | AT70: 0 | AU70: 0 | AV70: 0 | AW70: 0 | AX70: 0 | AY70: 0 | AZ70: 0 | BA70: 0 | BB70: 0 | BC70: 0 | BD70: 0 | BE70: 0 | BF70: 0 | BG70: 0 | BH70: 0 | BI70: 0 | BJ70: 0 | BK70: 0 | BL70: 0 | BM70: 0 | BN70: 0 | BO70: 0 | BP70: 0 | BQ70: 0 | BR70: 0 | BS70: 0 | BT70: 0 | BU70: 0
A71: Tax payable+ gamma | C71: 0 | D71: ='Working | Approach B'!D103*(D66/'Working | Approach B'!D106) -> 0.58503006 | E71: ='Working | Approach B'!E103*(E66/'Working | Approach B'!E106) -> 0.2432470912 | F71: ='Working | Approach B'!F103*(F66/'Working | Approach B'!F106) -> 0.004341463012 | G71: ='Working | Approach B'!G103*(G66/'Working | Approach B'!G106) -> 0 | H71: ='Working | Approach B'!H103*(H66/'Working | Approach B'!H106) -> 0 | I71: ='Working | Approach B'!I239*(I66/'Working | Approach B'!I242) -> 0.7028688561 | J71: ='Working | Approach B'!J239*(J66/'Working | Approach B'!J242) -> 1.169843724 | K71: ='Working | Approach B'!K239*(K66/'Working | Approach B'!K242) -> 1.45155579 | L71: ='Working | Approach B'!L239*(L66/'Working | Approach B'!L242) -> 1.85124319 | M71: ='Working | Approach B'!M239*(M66/'Working | Approach B'!M242) -> 2.373806091 | N71: ='Working | Approach B'!N375*(N66/'Working | Approach B'!N378) -> 4.863335002 | O71: ='Working | Approach B'!O375*(O66/'Working | Approach B'!O378) -> 5.549817499 | P71: ='Working | Approach B'!P375*(P66/'Working | Approach B'!P378) -> 6.384111215 | Q71: ='Working | Approach B'!Q375*(Q66/'Working | Approach B'!Q378) -> 7.235992099 | R71: ='Working | Approach B'!R375*(R66/'Working | Approach B'!R378) -> 8.19096109 | S71: ='Working | Approach B'!S511*(S66/'Working | Approach B'!S514) -> 9.576196681 | T71: ='Working | Approach B'!T511*(T66/'Working | Approach B'!T514) -> 10.80630978 | U71: ='Working | Approach B'!U511*(U66/'Working | Approach B'!U514) -> 12.08834801 | V71: ='Working | Approach B'!V511*(V66/'Working | Approach B'!V514) -> 13.59092296 | W71: ='Working | Approach B'!W511*(W66/'Working | Approach B'!W514) -> 15.22725779 | X71: =IFERROR(SUM('Working | Approach B'!X477:X478)*(X66/'Working | Approach B'!X519),0) -> 16.99096286 | Y71: =IFERROR(SUM('Working | Approach B'!Y477:Y478)*(Y66/'Working | Approach B'!Y519),0) -> 21.72199853 | Z71: =IFERROR(SUM('Working | Approach B'!Z477:Z478)*(Z66/'Working | Approach B'!Z519),0) -> 26.34079451 | AA71: =IFERROR(SUM('Working | Approach B'!AA477:AA478)*(AA66/'Working | Approach B'!AA519),0) -> 30.57725427 | AB71: =IFERROR(SUM('Working | Approach B'!AB477:AB478)*(AB66/'Working | Approach B'!AB519),0) -> 34.62845656 | AC71: =IFERROR(SUM('Working | Approach B'!AC477:AC478)*(AC66/'Working | Approach B'!AC519),0) -> 38.5064962 | AD71: =IFERROR(SUM('Working | Approach B'!AD477:AD478)*(AD66/'Working | Approach B'!AD519),0) -> 42.71192573 | AE71: =IFERROR(SUM('Working | Approach B'!AE477:AE478)*(AE66/'Working | Approach B'!AE519),0) -> 46.45877088 | AF71: =IFERROR(SUM('Working | Approach B'!AF477:AF478)*(AF66/'Working | Approach B'!AF519),0) -> 50.89232965 | AG71: =IFERROR(SUM('Working | Approach B'!AG477:AG478)*(AG66/'Working | Approach B'!AG519),0) -> 55.16617855 | AH71: =IFERROR(SUM('Working | Approach B'!AH477:AH478)*(AH66/'Working | Approach B'!AH519),0) -> 30.94280934 | AI71: =IFERROR(SUM('Working | Approach B'!AI477:AI478)*(AI66/'Working | Approach B'!AI519),0) -> 28.80484573 | AJ71: =IFERROR(SUM('Working | Approach B'!AJ477:AJ478)*(AJ66/'Working | Approach B'!AJ519),0) -> 29.32821671 | AK71: =IFERROR(SUM('Working | Approach B'!AK477:AK478)*(AK66/'Working | Approach B'!AK519),0) -> 29.81331133 | AL71: =IFERROR(SUM('Working | Approach B'!AL477:AL478)*(AL66/'Working | Approach B'!AL519),0) -> 29.88358769 | AM71: =IFERROR(SUM('Working | Approach B'!AM477:AM478)*(AM66/'Working | Approach B'!AM519),0) -> 29.67449121 | AN71: =IFERROR(SUM('Working | Approach B'!AN477:AN478)*(AN66/'Working | Approach B'!AN519),0) -> 29.50355354 | AO71: =IFERROR(SUM('Working | Approach B'!AO477:AO478)*(AO66/'Working | Approach B'!AO519),0) -> 28.7876336 | AP71: =IFERROR(SUM('Working | Approach B'!AP477:AP478)*(AP66/'Working | Approach B'!AP519),0) -> 27.92954095 | AQ71: =IFERROR(SUM('Working | Approach B'!AQ477:AQ478)*(AQ66/'Working | Approach B'!AQ519),0) -> 26.81023239 | AR71: =IFERROR(SUM('Working | Approach B'!AR477:AR478)*(AR66/'Working | Approach B'!AR519),0) -> 24.96409338 | AS71: =IFERROR(SUM('Working | Approach B'!AS477:AS478)*(AS66/'Working | Approach B'!AS519),0) -> 23.03738927 | AT71: =IFERROR(SUM('Working | Approach B'!AT477:AT478)*(AT66/'Working | Approach B'!AT519),0) -> 20.80826819 | AU71: =IFERROR(SUM('Working | Approach B'!AU477:AU478)*(AU66/'Working | Approach B'!AU519),0) -> 18.00782483 | AV71: =IFERROR(SUM('Working | Approach B'!AV477:AV478)*(AV66/'Working | Approach B'!AV519),0) -> 86.21912971 | AW71: =IFERROR(SUM('Working | Approach B'!AW477:AW478)*(AW66/'Working | Approach B'!AW519),0) -> 11.80420371 | AX71: =IFERROR(SUM('Working | Approach B'!AX477:AX478)*(AX66/'Working | Approach B'!AX519),0) -> 7.837256339 | AY71: =IFERROR(SUM('Working | Approach B'!AY477:AY478)*(AY66/'Working | Approach B'!AY519),0) -> 3.492920511 | AZ71: =IFERROR(SUM('Working | Approach B'!AZ477:AZ478)*(AZ66/'Working | Approach B'!AZ519),0) -> 0 | BA71: =IFERROR(SUM('Working | Approach B'!BA477:BA478)*(BA66/'Working | Approach B'!BA519),0) -> 0 | BB71: =IFERROR(SUM('Working | Approach B'!BB477:BB478)*(BB66/'Working | Approach B'!BB519),0) -> 0 | BC71: =IFERROR(SUM('Working | Approach B'!BC477:BC478)*(BC66/'Working | Approach B'!BC519),0) -> 0 | BD71: =IFERROR(SUM('Working | Approach B'!BD477:BD478)*(BD66/'Working | Approach B'!BD519),0) -> 0 | BE71: =IFERROR(SUM('Working | Approach B'!BE477:BE478)*(BE66/'Working | Approach B'!BE519),0) -> 0 | BF71: =IFERROR(SUM('Working | Approach B'!BF477:BF478)*(BF66/'Working | Approach B'!BF519),0) -> 0 | BG71: =IFERROR(SUM('Working | Approach B'!BG477:BG478)*(BG66/'Working | Approach B'!BG519),0) -> 0 | BH71: =IFERROR(SUM('Working | Approach B'!BH477:BH478)*(BH66/'Working | Approach B'!BH519),0) -> 0 | BI71: =IFERROR(SUM('Working | Approach B'!BI477:BI478)*(BI66/'Working | Approach B'!BI519),0) -> 0 | BJ71: =IFERROR(SUM('Working | Approach B'!BJ477:BJ478)*(BJ66/'Working | Approach B'!BJ519),0) -> 0 | BK71: =IFERROR(SUM('Working | Approach B'!BK477:BK478)*(BK66/'Working | Approach B'!BK519),0) -> 0 | BL71: =IFERROR(SUM('Working | Approach B'!BL477:BL478)*(BL66/'Working | Approach B'!BL519),0) -> 0 | BM71: =IFERROR(SUM('Working | Approach B'!BM477:BM478)*(BM66/'Working | Approach B'!BM519),0) -> 0 | BN71: =IFERROR(SUM('Working | Approach B'!BN477:BN478)*(BN66/'Working | Approach B'!BN519),0) -> 0 | BO71: =IFERROR(SUM('Working | Approach B'!BO477:BO478)*(BO66/'Working | Approach B'!BO519),0) -> 0 | BP71: =IFERROR(SUM('Working | Approach B'!BP477:BP478)*(BP66/'Working | Approach B'!BP519),0) -> 0 | BQ71: =IFERROR(SUM('Working | Approach B'!BQ477:BQ478)*(BQ66/'Working | Approach B'!BQ519),0) -> 0 | BR71: =IFERROR(SUM('Working | Approach B'!BR477:BR478)*(BR66/'Working | Approach B'!BR519),0) -> 0 | BS71: =IFERROR(SUM('Working | Approach B'!BS477:BS478)*(BS66/'Working | Approach B'!BS519),0) -> 0 | BT71: =IFERROR(SUM('Working | Approach B'!BT477:BT478)*(BT66/'Working | Approach B'!BT519),0) -> 0 | BU71: =IFERROR(SUM('Working | Approach B'!BU477:BU478)*(BU66/'Working | Approach B'!BU519),0) -> 0
A72: Returns achieved
A73: Post-tax CF to Equity | B73: =IRR(C73:BU73) -> 0.05936361551 | C73: =C66-C67-C68-C69-C70-C71 -> -2400 | D73: =D66-D67-D68-D69-D70-D71 -> 116.3242847 | E73: 73.86938719 | F73: 87.97923531 | G73: 111.1802326 | H73: 96.36384868 | I73: 173.2538542 | J73: 102.2081872 | K73: 125.9226572 | L73: 144.6933814 | M73: 73.25265081 | N73: 117.9377572 | O73: 141.9431271 | P73: 66.18777961 | Q73: 66.06759933 | R73: 108.4687898 | S73: 98.09053215 | T73: 69.74395363 | U73: 117.2765 | V73: 119.662809 | W73: 73.18418536 | X73: 366.2373516 | Y73: 378.290075 | Z73: 335.5592664 | AA73: 335.6688967 | AB73: 407.8550345 | AC73: 375.7555471 | AD73: 340.0114117 | AE73: 397.9044348 | AF73: 385.5822432 | AG73: 369.5327975 | AH73: 259.1591422 | AI73: 210.7970316 | AJ73: 214.5240663 | AK73: 196.0607942 | AL73: 182.2648148 | AM73: 198.6431941 | AN73: 185.5115516 | AO73: 176.7515516 | AP73: 171.4773413 | AQ73: 146.8181187 | AR73: 139.7478596 | AS73: 133.3633415 | AT73: 118.2905646 | AU73: 116.3471069 | AV73: 94.04046032 | AW73: 80.99792159 | AX73: 67.18577985 | AY73: 48.65735197 | AZ73: 33.75143329 | BA73: -21.37033148 | BB73: -1.940333193 | BC73: -0.02577728469 | BD73: -0.0003352310409 | BE73: -7.141692447e-06 | BF73: -1.364778126e-07 | BG73: -1.803014383e-09 | BH73: -3.959829259e-11 | BI73: -9.701014407e-13 | BJ73: -1.101431325e-13 | BK73: -1.006728112e-13 | BL73: -1.017964334e-13 | BM73: -1.031261455e-13 | BN73: -1.044958809e-13 | BO73: -1.075572829e-13 | BP73: =BP66-BP67-BP68-BP69-BP70-BP71 -> -1.102489065e-13 | BQ73: -1.1259246e-13 | BR73: -1.162588111e-13 | BS73: -1.196523115e-13 | BT73: -1.225674288e-13 | BU73: -1.278041434e-13
A74: Real post-tax CF to Equity | B74: =IRR(C74:BU74) -> 0.03433202959 | C74: =C73/Inputs!C35 -> -2400 | D74: =D73/Inputs!D35 -> 112.9614276 | E74: =E73/Inputs!E35 -> 69.45226098 | F74: =F73/Inputs!F35 -> 81.06814825 | G74: =G73/Inputs!G35 -> 100.0757514 | H74: =H73/Inputs!H35 -> 84.27560257 | I74: =I73/Inputs!I35 -> 147.8459564 | J74: =J73/Inputs!J35 -> 83.64545993 | K74: =K73/Inputs!K35 -> 100.6019932 | L74: =L73/Inputs!L35 -> 112.3197572 | M74: =M73/Inputs!M35 -> 55.0698972 | N74: =N73/Inputs!N35 -> 87.2432458 | O74: =O73/Inputs!O35 -> 102.4374716 | P74: =P73/Inputs!P35 -> 46.40680183 | Q74: =Q73/Inputs!Q35 -> 45.71531451 | R74: =R73/Inputs!R35 -> 74.08358194 | S74: =S73/Inputs!S35 -> 65.60081743 | T74: =T73/Inputs!T35 -> 45.77334079 | U74: =U73/Inputs!U35 -> 75.95734748 | V74: =V73/Inputs!V35 -> 75.84117997 | W74: =W73/Inputs!W35 -> 45.38895927 | X74: =X73/Inputs!X35 -> 224.154965 | Y74: =Y73/Inputs!Y35 -> 227.2137255 | Z74: =Z73/Inputs!Z35 -> 197.3530463 | AA74: =AA73/Inputs!AA35 -> 194.8631377 | AB74: =AB73/Inputs!AB35 -> 233.6650594 | AC74: =AC73/Inputs!AC35 -> 209.1475082 | AD74: =AD73/Inputs!AD35 -> 184.6317215 | AE74: =AE73/Inputs!AE35 -> 212.6080161 | AF74: =AF73/Inputs!AF35 -> 199.5268341 | AG74: =AG73/Inputs!AG35 -> 185.7984387 | AH74: =AH73/Inputs!AH35 -> 127.20425 | AI74: =AI73/Inputs!AI35 -> 99.22696785 | AJ74: =AJ73/Inputs!AJ35 -> 98.53262819 | AK74: =AK73/Inputs!AK35 -> 87.49460045 | AL74: =AL73/Inputs!AL35 -> 79.45560601 | AM74: =AM73/Inputs!AM35 -> 84.86792297 | AN74: =AN73/Inputs!AN35 -> 76.73667057 | AO74: =AO73/Inputs!AO35 -> 70.9994543 | AP74: =AP73/Inputs!AP35 -> 66.88955379 | AQ74: =AQ73/Inputs!AQ35 -> 55.44894956 | AR74: =AR73/Inputs!AR35 -> 51.72577554 | AS74: =AS73/Inputs!AS35 -> 48.22025757 | AT74: =AT73/Inputs!AT35 -> 41.55560507 | AU74: =AU73/Inputs!AU35 -> 39.88172284 | AV74: =AV73/Inputs!AV35 -> 30.91457001 | AW74: =AW73/Inputs!AW35 -> 25.99371522 | AX74: =AX73/Inputs!AX35 -> 20.94964309 | AY74: =AY73/Inputs!AY35 -> 14.69369993 | AZ74: =AZ73/Inputs!AZ35 -> 10.02912274 | BA74: =BA73/Inputs!BA35 -> -6.195088521 | BB74: =BB73/Inputs!BB35 -> -0.5464770358 | BC74: =BC73/Inputs!BC35 -> -0.007164767958 | BD74: =BD73/Inputs!BD35 -> -9.197148085e-05 | BE74: =BE73/Inputs!BE35 -> -1.918558649e-06 | BF74: =BF73/Inputs!BF35 -> -3.597989381e-08 | BG74: =BG73/Inputs!BG35 -> -4.690830724e-10 | BH74: =BH73/Inputs!BH35 -> -1.008124395e-11 | BI74: =BI73/Inputs!BI35 -> -2.416806651e-13 | BJ74: =BJ73/Inputs!BJ35 -> -2.707914375e-14 | BK74: =BK73/Inputs!BK35 -> -2.428922108e-14 | BL74: =BL73/Inputs!BL35 -> -2.404910599e-14 | BM74: =BM73/Inputs!BM35 -> -2.404801044e-14 | BN74: =BN73/Inputs!BN35 -> -2.404799626e-14 | BO74: =BO73/Inputs!BO35 -> -2.404799608e-14 | BP74: =BP73/Inputs!BP35 -> -2.404799608e-14 | BQ74: =BQ73/Inputs!BQ35 -> -2.416584242e-14 | BR74: =BR73/Inputs!BR35 -> -2.416584242e-14 | BS74: =BS73/Inputs!BS35 -> -2.416584242e-14 | BT74: =BT73/Inputs!BT35 -> -2.416584242e-14 | BU74: =BU73/Inputs!BU35 -> -2.416584242e-14
A75: Nominal cash flows to assets | B75: =IRR(C75:BU75) -> 0.0512157909 | C75: =C66-C67-C70 -> -6000 | D75: =D66-D67-D70 -> 153.2921193 | E75: 158.1548621 | F75: 161.0880062 | G75: 164.4932764 | H75: 168.7512798 | I75: 174.1189021 | J75: 182.0187874 | K75: 186.8181727 | L75: 192.5301793 | M75: 198.9397183 | N75: 204.8732872 | O75: 210.9385685 | P75: 217.9719878 | Q75: 221.611265 | R75: 225.1399661 | S75: 231.7696701 | T75: 237.4740947 | U75: 241.8361123 | V75: 248.2304118 | W75: 254.6480999 | X75: 897.2910372 | Y75: 902.4741456 | Z75: 909.1914057 | AA75: 908.1592769 | AB75: 906.801928 | AC75: 905.0060468 | AD75: 913.1703295 | AE75: 913.0715388 | AF75: 927.1242165 | AG75: 937.8312183 | AH75: 517.3977303 | AI75: 512.1157979 | AJ75: 500.0128688 | AK75: 488.7771257 | AL75: 473.5072992 | AM75: 457.1173135 | AN75: 442.8761999 | AO75: 425.3607576 | AP75: 406.1701368 | AQ75: 386.1704063 | AR75: 359.5087496 | AS75: 332.2021418 | AT75: 304.5191337 | AU75: 273.1957216 | AV75: 314.9738797 | AW75: 206.8638153 | AX75: 169.0178637 | AY75: 128.7721806 | AZ75: 85.19562322 | BA75: 43.82969992 | BB75: -8.933940065e-14 | BC75: -8.584367345e-14 | BD75: -8.696896504e-14 | BE75: -8.881765839e-14 | BF75: -9.050559579e-14 | BG75: -9.315712691e-14 | BH75: -9.51982559e-14 | BI75: -9.728410725e-14 | BJ75: -9.858007671e-14 | BK75: -1.004535442e-13 | BL75: -1.017917353e-13 | BM75: -1.031260839e-13 | BN75: -1.044958801e-13 | BO75: -1.075572828e-13 | BP75: =BP66-BP67-BP70 -> -1.102489065e-13 | BQ75: -1.1259246e-13 | BR75: -1.162588111e-13 | BS75: -1.196523115e-13 | BT75: -1.225674288e-13 | BU75: -1.278041434e-13
A76: Nominal vanilla WACC | B76: =IRR(C76:BU76) -> 0.04936836283 | C76: =C75-C71 -> -6000 | D76: =D75-D71 -> 152.7070893 | E76: 157.9116151 | F76: 161.0836648 | G76: 164.4932764 | H76: 168.7512798 | I76: 173.4160332 | J76: 180.8489437 | K76: 185.3666169 | L76: 190.6789361 | M76: 196.5659122 | N76: 200.0099522 | O76: 205.388751 | P76: 211.5878766 | Q76: 214.3752729 | R76: 216.949005 | S76: 222.1934734 | T76: 226.6677849 | U76: 229.7477643 | V76: 234.6394889 | W76: 239.4208421 | X76: 880.3000744 | Y76: 880.7521471 | Z76: 882.8506112 | AA76: 877.5820226 | AB76: 872.1734715 | AC76: 866.4995506 | AD76: 870.4584037 | AE76: 866.6127679 | AF76: 876.2318869 | AG76: 882.6650398 | AH76: 486.4549209 | AI76: 483.3109522 | AJ76: 470.6846521 | AK76: 458.9638143 | AL76: 443.6237115 | AM76: 427.4428223 | AN76: 413.3726463 | AO76: 396.573124 | AP76: 378.2405958 | AQ76: 359.3601739 | AR76: 334.5446562 | AS76: 309.1647525 | AT76: 283.7108655 | AU76: 255.1878968 | AV76: 228.75475 | AW76: 195.0596116 | AX76: 161.1806074 | AY76: 125.27926 | AZ76: 85.19562322 | BA76: 43.82969992 | BB76: -8.933940065e-14 | BC76: -8.584367345e-14 | BD76: -8.696896504e-14 | BE76: -8.881765839e-14 | BF76: -9.050559579e-14 | BG76: -9.315712691e-14 | BH76: -9.51982559e-14 | BI76: -9.728410725e-14 | BJ76: -9.858007671e-14 | BK76: -1.004535442e-13 | BL76: -1.017917353e-13 | BM76: -1.031260839e-13 | BN76: -1.044958801e-13 | BO76: -1.075572828e-13 | BP76: =BP75-BP71 -> -1.102489065e-13 | BQ76: -1.1259246e-13 | BR76: -1.162588111e-13 | BS76: -1.196523115e-13 | BT76: -1.225674288e-13 | BU76: -1.278041434e-13
A77: Real WACC (real) | B77: =IRR(C77:BU77) -> 0.0247630698 | C77: =C76/Inputs!C35 -> -6000 | D77: =D76/Inputs!D35 -> 148.2924297 | E77: =E76/Inputs!E35 -> 148.469063 | F77: =F76/Inputs!F35 -> 148.4299604 | G77: =G76/Inputs!G35 -> 148.0639845 | H77: =H76/Inputs!H35 -> 147.5824802 | I77: =I76/Inputs!I35 -> 147.9843517 | J77: =J76/Inputs!J35 -> 148.0037313 | K77: =K76/Inputs!K35 -> 148.0928971 | L77: =L76/Inputs!L35 -> 148.0165271 | M77: =M76/Inputs!M35 -> 147.7743734 | N77: =N76/Inputs!N35 -> 147.95531 | O77: =O76/Inputs!O35 -> 148.2248896 | P77: =P76/Inputs!P35 -> 148.3524107 | Q77: =Q76/Inputs!Q35 -> 148.3364482 | R77: =R76/Inputs!R35 -> 148.1749674 | S77: =S76/Inputs!S35 -> 148.5981691 | T77: =T76/Inputs!T35 -> 148.7633153 | U77: =U76/Inputs!U35 -> 148.8024521 | V77: =V76/Inputs!V35 -> 148.7123347 | W77: =W76/Inputs!W35 -> 148.4892234 | X77: =X76/Inputs!X35 -> 538.7862038 | Y77: =Y76/Inputs!Y35 -> 529.0093233 | Z77: =Z76/Inputs!Z35 -> 519.2324428 | AA77: =AA76/Inputs!AA35 -> 509.4555623 | AB77: =AB76/Inputs!AB35 -> 499.6786818 | AC77: =AC76/Inputs!AC35 -> 482.2981944 | AD77: =AD76/Inputs!AD35 -> 472.6730577 | AE77: =AE76/Inputs!AE35 -> 463.047921 | AF77: =AF76/Inputs!AF35 -> 453.4227843 | AG77: =AG76/Inputs!AG35 -> 443.7976476 | AH77: =AH76/Inputs!AH35 -> 238.7688617 | AI77: =AI76/Inputs!AI35 -> 227.5054822 | AJ77: =AJ76/Inputs!AJ35 -> 216.1892445 | AK77: =AK76/Inputs!AK35 -> 204.8183866 | AL77: =AL76/Inputs!AL35 -> 193.391088 | AM77: =AM76/Inputs!AM35 -> 182.6198208 | AN77: =AN76/Inputs!AN35 -> 170.9911879 | AO77: =AO76/Inputs!AO35 -> 159.2997354 | AP77: =AP76/Inputs!AP35 -> 147.5433692 | AQ77: =AQ76/Inputs!AQ35 -> 135.7199257 | AR77: =AR76/Inputs!AR35 -> 123.8271688 | AS77: =AS76/Inputs!AS35 -> 111.7848715 | AT77: =AT76/Inputs!AT35 -> 99.66793815 | AU77: =AU76/Inputs!AU35 -> 87.47388087 | AV77: =AV76/Inputs!AV35 -> 75.20012885 | AW77: =AW76/Inputs!AW35 -> 62.59819876 | AX77: =AX76/Inputs!AX35 -> 50.25879293 | AY77: =AY76/Inputs!AY35 -> 37.83222432 | AZ77: =AZ76/Inputs!AZ35 -> 25.31558749 | BA77: =BA76/Inputs!BA35 -> 12.70588016 | BB77: =BB76/Inputs!BB35 -> -2.516162225e-14 | BC77: =BC76/Inputs!BC35 -> -2.386015472e-14 | BD77: =BD76/Inputs!BD35 -> -2.386015472e-14 | BE77: =BE76/Inputs!BE35 -> -2.386015472e-14 | BF77: =BF76/Inputs!BF35 -> -2.386015472e-14 | BG77: =BG76/Inputs!BG35 -> -2.423631876e-14 | BH77: =BH76/Inputs!BH35 -> -2.423631876e-14 | BI77: =BI76/Inputs!BI35 -> -2.423631876e-14 | BJ77: =BJ76/Inputs!BJ35 -> -2.423631876e-14 | BK77: =BK76/Inputs!BK35 -> -2.423631876e-14 | BL77: =BL76/Inputs!BL35 -> -2.404799608e-14 | BM77: =BM76/Inputs!BM35 -> -2.404799608e-14 | BN77: =BN76/Inputs!BN35 -> -2.404799608e-14 | BO77: =BO76/Inputs!BO35 -> -2.404799608e-14 | BP77: =BP76/Inputs!BP35 -> -2.404799608e-14 | BQ77: =BQ76/Inputs!BQ35 -> -2.416584242e-14 | BR77: =BR76/Inputs!BR35 -> -2.416584242e-14 | BS77: =BS76/Inputs!BS35 -> -2.416584242e-14 | BT77: =BT76/Inputs!BT35 -> -2.416584242e-14 | BU77: =BU76/Inputs!BU35 -> -2.416584242e-14
A78: ="Nominal NPV at "&ROUND((GEOMEAN(1+Inputs!$D$15:$W$15)-1)*100,2)&"%" -> Nominal NPV at 4.58% | B78: =NPV((GEOMEAN(1+Inputs!$D$15:$W$15)-1),D76:BU76)+C76 -> 450.9713953
A79: ="Real NPV at "&ROUND((GEOMEAN(1+Inputs!$D$17:$W$17)-1)*100,2)&"%" -> Real NPV at 2.53% | B79: =NPV((GEOMEAN(1+Inputs!$D$17:$W$17)-1),D77:BU77)+C77 -> -67.82016382
A81: =RIGHT(Inputs!A5,LEN(Inputs!A5)-3)&" ("&Inputs!B5&")" -> Approach C (linear glide path)
A82: Revenue | C82: 0 | D82: ='Working | Approach C'!D111 -> 353.0719559 | E82: ='Working | Approach C'!E111 -> 371.8062782 | F82: ='Working | Approach C'!F111 -> 386.7979353 | G82: ='Working | Approach C'!G111 -> 403.709103 | H82: ='Working | Approach C'!H111 -> 423.6407226 | I82: ='Working | Approach C'!I247 -> 443.2369163 | J82: ='Working | Approach C'!J247 -> 471.8963444 | K82: ='Working | Approach C'!K247 -> 493.5616705 | L82: ='Working | Approach C'!L247 -> 518.6536889 | M82: ='Working | Approach C'!M247 -> 546.8080135 | N82: ='Working | Approach C'!N383 -> 571.8690399 | O82: ='Working | Approach C'!O383 -> 599.9936577 | P82: ='Working | Approach C'!P383 -> 632.1249321 | Q82: ='Working | Approach C'!Q383 -> 655.6154325 | R82: ='Working | Approach C'!R383 -> 679.8620226 | S82: ='Working | Approach C'!S519 -> 711.7415595 | T82: ='Working | Approach C'!T519 -> 743.2484325 | U82: ='Working | Approach C'!U519 -> 771.8214068 | V82: ='Working | Approach C'!V519 -> 808.2864337 | W82: ='Working | Approach C'!W519 -> 846.4742662 | X82: ='Working | Approach C'!X551 -> 886.932582 | Y82: ='Working | Approach C'!Y551 -> 892.7008574 | Z82: ='Working | Approach C'!Z551 -> 900.0019336 | AA82: ='Working | Approach C'!AA551 -> 899.6449717 | AB82: ='Working | Approach C'!AB551 -> 898.9751004 | AC82: ='Working | Approach C'!AC551 -> 897.8811826 | AD82: ='Working | Approach C'!AD551 -> 906.6890659 | AE82: ='Working | Approach C'!AE551 -> 907.3160478 | AF82: ='Working | Approach C'!AF551 -> 922.0360164 | AG82: ='Working | Approach C'!AG551 -> 933.4708872 | AH82: ='Working | Approach C'!AH551 -> 512.9327715 | AI82: ='Working | Approach C'!AI551 -> 507.9481762 | AJ82: ='Working | Approach C'!AJ551 -> 496.1709623 | AK82: ='Working | Approach C'!AK551 -> 485.2447372 | AL82: ='Working | Approach C'!AL551 -> 470.3036688 | AM82: ='Working | Approach C'!AM551 -> 454.2386216 | AN82: ='Working | Approach C'!AN551 -> 440.2961992 | AO82: ='Working | Approach C'!AO551 -> 423.0899294 | AP82: ='Working | Approach C'!AP551 -> 404.2018283 | AQ82: ='Working | Approach C'!AQ551 -> 384.4949492 | AR82: ='Working | Approach C'!AR551 -> 358.1392821 | AS82: ='Working | Approach C'!AS551 -> 331.1154434 | AT82: ='Working | Approach C'!AT551 -> 303.6968423 | AU82: ='Working | Approach C'!AU551 -> 272.6276351 | AV82: ='Working | Approach C'!AV551 -> 312.6263637 | AW82: ='Working | Approach C'!AW551 -> 206.7257098 | AX82: ='Working | Approach C'!AX551 -> 169.0549998 | AY82: ='Working | Approach C'!AY551 -> 128.9518173 | AZ82: ='Working | Approach C'!AZ551 -> 85.11242506 | BA82: ='Working | Approach C'!BA551 -> 43.8080746 | BB82: ='Working | Approach C'!BB551 -> 5.95890013e-13 | BC82: ='Working | Approach C'!BC551 -> 6.020859736e-13 | BD82: ='Working | Approach C'!BD551 -> 6.099784864e-13 | BE82: ='Working | Approach C'!BE551 -> 6.229447574e-13 | BF82: ='Working | Approach C'!BF551 -> 6.347835265e-13 | BG82: ='Working | Approach C'!BG551 -> 6.533807001e-13 | BH82: ='Working | Approach C'!BH551 -> 6.676966664e-13 | BI82: ='Working | Approach C'!BI551 -> 6.823263041e-13 | BJ82: ='Working | Approach C'!BJ551 -> 6.914159086e-13 | BK82: ='Working | Approach C'!BK551 -> 7.045559394e-13 | BL82: ='Working | Approach C'!BL551 -> 7.139416757e-13 | BM82: ='Working | Approach C'!BM551 -> 7.233004617e-13 | BN82: ='Working | Approach C'!BN551 -> 7.329078682e-13 | BO82: ='Working | Approach C'!BO551 -> 7.543797784e-13 | BP82: ='Working | Approach C'!BP551 -> 7.732581513e-13 | BQ82: ='Working | Approach C'!BQ551 -> 7.896952469e-13 | BR82: ='Working | Approach C'!BR551 -> 8.154101131e-13 | BS82: ='Working | Approach C'!BS551 -> 8.392112732e-13 | BT82: ='Working | Approach C'!BT551 -> 8.596571735e-13 | BU82: ='Working | Approach C'!BU551 -> 8.963861752e-13
A83: Capex | C83: ='Working | Approach C'!D121 -> 6000 | D83: ='Working | Approach C'!D122 -> 206.105176 | E83: ='Working | Approach C'!E122 -> 219.9719106 | F83: ='Working | Approach C'!F122 -> 231.9313673 | G83: ='Working | Approach C'!G122 -> 245.3402007 | H83: ='Working | Approach C'!H122 -> 260.9292147 | I83: ='Working | Approach C'!I258 -> 276.3276409 | J83: ='Working | Approach C'!J258 -> 297.7382468 | K83: ='Working | Approach C'!K258 -> 315.1585171 | L83: ='Working | Approach C'!L258 -> 335.1696633 | M83: ='Working | Approach C'!M258 -> 357.6199282 | N83: ='Working | Approach C'!N394 -> 375.5554953 | O83: ='Working | Approach C'!O394 -> 397.7855736 | P83: ='Working | Approach C'!P394 -> 423.0874295 | Q83: ='Working | Approach C'!Q394 -> 442.9974261 | R83: ='Working | Approach C'!R394 -> 463.7646588 | S83: ='Working | Approach C'!S530 -> 489.4103015 | T83: ='Working | Approach C'!T530 -> 515.3350222 | U83: ='Working | Approach C'!U530 -> 539.606722 | V83: ='Working | Approach C'!V530 -> 569.810826 | W83: ='Working | Approach C'!W530 -> 601.7055833 | X83: 0 | Y83: 0 | Z83: 0 | AA83: 0 | AB83: 0 | AC83: 0 | AD83: 0 | AE83: 0 | AF83: 0 | AG83: 0 | AH83: 0 | AI83: 0 | AJ83: 0 | AK83: 0 | AL83: 0 | AM83: 0 | AN83: 0 | AO83: 0 | AP83: 0 | AQ83: 0 | AR83: 0 | AS83: 0 | AT83: 0 | AU83: 0 | AV83: 0 | AW83: 0 | AX83: 0 | AY83: 0 | AZ83: 0 | BA83: 0 | BB83: 0 | BC83: 0 | BD83: 0 | BE83: 0 | BF83: 0 | BG83: 0 | BH83: 0 | BI83: 0 | BJ83: 0 | BK83: 0 | BL83: 0 | BM83: 0 | BN83: 0 | BO83: 0 | BP83: 0 | BQ83: 0 | BR83: 0 | BS83: 0 | BT83: 0 | BU83: 0
A84: Interest Payments | C84: 0 | D84: =('Working | Approach C'!D121*Inputs!$C$13)*Inputs!D13 -> 154.8 | E84: =('Working | Approach C'!E121*Inputs!$C$13)*Inputs!E13 -> 159.8893145 | F84: =('Working | Approach C'!F121*Inputs!$C$13)*Inputs!F13 -> 163.1480875 | G84: =('Working | Approach C'!G121*Inputs!$C$13)*Inputs!G13 -> 167.0173025 | H84: =('Working | Approach C'!H121*Inputs!$C$13)*Inputs!H13 -> 171.9038678 | I84: =('Working | Approach C'!I257*Inputs!$C$13)*Inputs!I13 -> 176.180366 | J84: =('Working | Approach C'!J257*Inputs!$C$13)*Inputs!J13 -> 183.7461644 | K84: =('Working | Approach C'!K257*Inputs!$C$13)*Inputs!K13 -> 188.2629203 | L84: =('Working | Approach C'!L257*Inputs!$C$13)*Inputs!L13 -> 193.7992444 | M84: =('Working | Approach C'!M257*Inputs!$C$13)*Inputs!M13 -> 200.1522154 | N84: =('Working | Approach C'!N393*Inputs!$C$13)*Inputs!N13 -> 203.4536919 | O84: =('Working | Approach C'!O393*Inputs!$C$13)*Inputs!O13 -> 208.6702383 | P84: =('Working | Approach C'!P393*Inputs!$C$13)*Inputs!P13 -> 214.9118679 | Q84: =('Working | Approach C'!Q393*Inputs!$C$13)*Inputs!Q13 -> 217.8984855 | R84: =('Working | Approach C'!R393*Inputs!$C$13)*Inputs!R13 -> 220.8885868 | S84: =('Working | Approach C'!S529*Inputs!$C$13)*Inputs!S13 -> 225.7195078 | T84: =('Working | Approach C'!T529*Inputs!$C$13)*Inputs!T13 -> 230.08654 | U84: =('Working | Approach C'!U529*Inputs!$C$13)*Inputs!U13 -> 233.2304461 | V84: =('Working | Approach C'!V529*Inputs!$C$13)*Inputs!V13 -> 238.4205261 | W84: =('Working | Approach C'!W529*Inputs!$C$13)*Inputs!W13 -> 243.7260737 | X84: =('Working | Approach C'!X529*Inputs!$C$13)*Inputs!$W$13 -> 247.0562665 | Y84: =('Working | Approach C'!Y529*Inputs!$C$13)*Inputs!$W$13 -> 235.5807951 | Z84: =('Working | Approach C'!Z529*Inputs!$C$13)*Inputs!$W$13 -> 224.1105458 | AA84: =('Working | Approach C'!AA529*Inputs!$C$13)*Inputs!$W$13 -> 210.2200793 | AB84: =('Working | Approach C'!AB529*Inputs!$C$13)*Inputs!$W$13 -> 195.9635362 | AC84: =('Working | Approach C'!AC529*Inputs!$C$13)*Inputs!$W$13 -> 184.42936 | AD84: =('Working | Approach C'!AD529*Inputs!$C$13)*Inputs!$W$13 -> 171.2633018 | AE84: =('Working | Approach C'!AE529*Inputs!$C$13)*Inputs!$W$13 -> 155.8245161 | AF84: =('Working | Approach C'!AF529*Inputs!$C$13)*Inputs!$W$13 -> 142.3755805 | AG84: =('Working | Approach C'!AG529*Inputs!$C$13)*Inputs!$W$13 -> 127.4051884 | AH84: =('Working | Approach C'!AH529*Inputs!$C$13)*Inputs!$W$13 -> 110.824692 | AI84: =('Working | Approach C'!AI529*Inputs!$C$13)*Inputs!$W$13 -> 105.8212546 | AJ84: =('Working | Approach C'!AJ529*Inputs!$C$13)*Inputs!$W$13 -> 98.65924879 | AK84: =('Working | Approach C'!AK529*Inputs!$C$13)*Inputs!$W$13 -> 91.89212326 | AL84: =('Working | Approach C'!AL529*Inputs!$C$13)*Inputs!$W$13 -> 84.54422992 | AM84: =('Working | Approach C'!AM529*Inputs!$C$13)*Inputs!$W$13 -> 76.94674193 | AN84: =('Working | Approach C'!AN529*Inputs!$C$13)*Inputs!$W$13 -> 70.42191961 | AO84: =('Working | Approach C'!AO529*Inputs!$C$13)*Inputs!$W$13 -> 63.65686732 | AP84: =('Working | Approach C'!AP529*Inputs!$C$13)*Inputs!$W$13 -> 56.94644698 | AQ84: =('Working | Approach C'!AQ529*Inputs!$C$13)*Inputs!$W$13 -> 50.50870943 | AR84: =('Working | Approach C'!AR529*Inputs!$C$13)*Inputs!$W$13 -> 43.54578416 | AS84: =('Working | Approach C'!AS529*Inputs!$C$13)*Inputs!$W$13 -> 37.04612304 | AT84: =('Working | Approach C'!AT529*Inputs!$C$13)*Inputs!$W$13 -> 31.08337507 | AU84: =('Working | Approach C'!AU529*Inputs!$C$13)*Inputs!$W$13 -> 25.31039686 | AV84: =('Working | Approach C'!AV529*Inputs!$C$13)*Inputs!$W$13 -> 20.43153509 | AW84: =('Working | Approach C'!AW529*Inputs!$C$13)*Inputs!$W$13 -> 15.52023535 | AX84: =('Working | Approach C'!AX529*Inputs!$C$13)*Inputs!$W$13 -> 11.28537341 | AY84: =('Working | Approach C'!AY529*Inputs!$C$13)*Inputs!$W$13 -> 7.730861607 | AZ84: =('Working | Approach C'!AZ529*Inputs!$C$13)*Inputs!$W$13 -> 4.770173618 | BA84: =('Working | Approach C'!BA529*Inputs!$C$13)*Inputs!$W$13 -> 2.764283313 | BB84: =('Working | Approach C'!BB529*Inputs!$C$13)*Inputs!$W$13 -> 0.08098486269 | BC84: =('Working | Approach C'!BC529*Inputs!$C$13)*Inputs!$W$13 -> 0.001075700263 | BD84: =('Working | Approach C'!BD529*Inputs!$C$13)*Inputs!$W$13 -> 1.410093978e-05 | BE84: =('Working | Approach C'!BE529*Inputs!$C$13)*Inputs!$W$13 -> 2.997427126e-07 | BF84: =('Working | Approach C'!BF529*Inputs!$C$13)*Inputs!$W$13 -> 5.696467841e-09 | BG84: =('Working | Approach C'!BG529*Inputs!$C$13)*Inputs!$W$13 -> 7.588545081e-11 | BH84: =('Working | Approach C'!BH529*Inputs!$C$13)*Inputs!$W$13 -> 1.662696118e-12 | BI84: =('Working | Approach C'!BI529*Inputs!$C$13)*Inputs!$W$13 -> 3.643067743e-14 | BJ84: =('Working | Approach C'!BJ529*Inputs!$C$13)*Inputs!$W$13 -> 4.853109781e-16 | BK84: =('Working | Approach C'!BK529*Inputs!$C$13)*Inputs!$W$13 -> 9.223104562e-18 | BL84: =('Working | Approach C'!BL529*Inputs!$C$13)*Inputs!$W$13 -> 1.960549029e-19 | BM84: =('Working | Approach C'!BM529*Inputs!$C$13)*Inputs!$W$13 -> 2.57000809e-21 | BN84: =('Working | Approach C'!BN529*Inputs!$C$13)*Inputs!$W$13 -> 3.413672985e-23 | BO84: =('Working | Approach C'!BO529*Inputs!$C$13)*Inputs!$W$13 -> 1.000099507e-24 | BP84: =('Working | Approach C'!BP529*Inputs!$C$13)*Inputs!$W$13 -> 2.50275152e-26 | BQ84: =('Working | Approach C'!BQ529*Inputs!$C$13)*Inputs!$W$13 -> 4.07365456e-28 | BR84: =('Working | Approach C'!BR529*Inputs!$C$13)*Inputs!$W$13 -> 1.326505161e-29 | BS84: =('Working | Approach C'!BS529*Inputs!$C$13)*Inputs!$W$13 -> 3.871961011e-31 | BT84: =('Working | Approach C'!BT529*Inputs!$C$13)*Inputs!$W$13 -> 9.433349086e-33 | BU84: =('Working | Approach C'!BU529*Inputs!$C$13)*Inputs!$W$13 -> 4.030414736e-34
A85: Repayment of Debt | C85: =('Working | Approach C'!C121-'Working | Approach C'!D121)*Inputs!$C$13 -> -3600 | D85: =('Working | Approach C'!D121-'Working | Approach C'!E121)*Inputs!$C$13 -> -118.3561507 | E85: =('Working | Approach C'!E121-'Working | Approach C'!F121)*Inputs!$C$13 -> -75.78541871 | F85: =('Working | Approach C'!F121-'Working | Approach C'!G121)*Inputs!$C$13 -> -89.98174454 | G85: =('Working | Approach C'!G121-'Working | Approach C'!H121)*Inputs!$C$13 -> -113.6410531 | H85: =('Working | Approach C'!H121-'Working | Approach C'!I257)*Inputs!$C$13 -> -99.45344711 | I85: =('Working | Approach C'!I257-'Working | Approach C'!J257)*Inputs!$C$13 -> -175.9488009 | J85: =('Working | Approach C'!J257-'Working | Approach C'!K257)*Inputs!$C$13 -> -105.0408328 | K85: =('Working | Approach C'!K257-'Working | Approach C'!L257)*Inputs!$C$13 -> -128.7517246 | L85: =('Working | Approach C'!L257-'Working | Approach C'!M257)*Inputs!$C$13 -> -147.7435116 | M85: =('Working | Approach C'!M257-'Working | Approach C'!N393)*Inputs!$C$13 -> -76.77852283 | N85: =('Working | Approach C'!N393-'Working | Approach C'!O393)*Inputs!$C$13 -> -121.3150332 | O85: =('Working | Approach C'!O393-'Working | Approach C'!P393)*Inputs!$C$13 -> -145.1541752 | P85: =('Working | Approach C'!P393-'Working | Approach C'!Q393)*Inputs!$C$13 -> -69.45622385 | Q85: =('Working | Approach C'!Q393-'Working | Approach C'!R393)*Inputs!$C$13 -> -69.53723963 | R85: =('Working | Approach C'!R393-'Working | Approach C'!S529)*Inputs!$C$13 -> -112.3470007 | S85: =('Working | Approach C'!S529-'Working | Approach C'!T529)*Inputs!$C$13 -> -101.5588892 | T85: =('Working | Approach C'!T529-'Working | Approach C'!U529)*Inputs!$C$13 -> -73.11409415 | U85: =('Working | Approach C'!U529-'Working | Approach C'!V529)*Inputs!$C$13 -> -120.6995355 | V85: =('Working | Approach C'!V529-'Working | Approach C'!W529)*Inputs!$C$13 -> -123.3848279 | W85: =('Working | Approach C'!W529-'Working | Approach C'!X529)*Inputs!$C$13 -> -77.44634305 | X85: =('Working | Approach C'!X529-'Working | Approach C'!Y529)*Inputs!$C$13 -> 266.8714284 | Y85: =('Working | Approach C'!Y529-'Working | Approach C'!Z529)*Inputs!$C$13 -> 266.7499818 | Z85: =('Working | Approach C'!Z529-'Working | Approach C'!AA529)*Inputs!$C$13 -> 323.0341056 | AA85: =('Working | Approach C'!AA529-'Working | Approach C'!AB529)*Inputs!$C$13 -> 331.5475148 | AB85: =('Working | Approach C'!AB529-'Working | Approach C'!AC529)*Inputs!$C$13 -> 268.236655 | AC85: =('Working | Approach C'!AC529-'Working | Approach C'!AD529)*Inputs!$C$13 -> 306.1874002 | AD85: =('Working | Approach C'!AD529-'Working | Approach C'!AE529)*Inputs!$C$13 -> 359.0415271 | AE85: =('Working | Approach C'!AE529-'Working | Approach C'!AF529)*Inputs!$C$13 -> 312.7659442 | AF85: =('Working | Approach C'!AF529-'Working | Approach C'!AG529)*Inputs!$C$13 -> 348.1486544 | AG85: =('Working | Approach C'!AG529-'Working | Approach C'!AH529)*Inputs!$C$13 -> 385.5929389 | AH85: =('Working | Approach C'!AH529-'Working | Approach C'!AI529)*Inputs!$C$13 -> 116.35901 | AI85: =('Working | Approach C'!AI529-'Working | Approach C'!AJ529)*Inputs!$C$13 -> 166.5582741 | AJ85: =('Working | Approach C'!AJ529-'Working | Approach C'!AK529)*Inputs!$C$13 -> 157.3750123 | AK85: =('Working | Approach C'!AK529-'Working | Approach C'!AL529)*Inputs!$C$13 -> 170.8812406 | AL85: =('Working | Approach C'!AL529-'Working | Approach C'!AM529)*Inputs!$C$13 -> 176.6857671 | AM85: =('Working | Approach C'!AM529-'Working | Approach C'!AN529)*Inputs!$C$13 -> 151.7400539 | AN85: =('Working | Approach C'!AN529-'Working | Approach C'!AO529)*Inputs!$C$13 -> 157.3267975 | AO85: =('Working | Approach C'!AO529-'Working | Approach C'!AP529)*Inputs!$C$13 -> 156.0562869 | AP85: =('Working | Approach C'!AP529-'Working | Approach C'!AQ529)*Inputs!$C$13 -> 149.7148268 | AQ85: =('Working | Approach C'!AQ529-'Working | Approach C'!AR529)*Inputs!$C$13 -> 161.9284947 | AR85: =('Working | Approach C'!AR529-'Working | Approach C'!AS529)*Inputs!$C$13 -> 151.1549098 | AS85: =('Working | Approach C'!AS529-'Working | Approach C'!AT529)*Inputs!$C$13 -> 138.6685574 | AT85: =('Working | Approach C'!AT529-'Working | Approach C'!AU529)*Inputs!$C$13 -> 134.2553073 | AU85: =('Working | Approach C'!AU529-'Working | Approach C'!AV529)*Inputs!$C$13 -> 113.4619016 | AV85: =('Working | Approach C'!AV529-'Working | Approach C'!AW529)*Inputs!$C$13 -> 114.2162729 | AW85: =('Working | Approach C'!AW529-'Working | Approach C'!AX529)*Inputs!$C$13 -> 98.48516142 | AX85: =('Working | Approach C'!AX529-'Working | Approach C'!AY529)*Inputs!$C$13 -> 82.66306527 | AY85: =('Working | Approach C'!AY529-'Working | Approach C'!AZ529)*Inputs!$C$13 -> 68.85320903 | AZ85: =('Working | Approach C'!AZ529-'Working | Approach C'!BA529)*Inputs!$C$13 -> 46.64861174 | BA85: =('Working | Approach C'!BA529-'Working | Approach C'!BB529)*Inputs!$C$13 -> 62.40228955 | BB85: =('Working | Approach C'!BB529-'Working | Approach C'!BC529)*Inputs!$C$13 -> 1.858352615 | BC85: =('Working | Approach C'!BC529-'Working | Approach C'!BD529)*Inputs!$C$13 -> 0.02468835637 | BD85: =('Working | Approach C'!BD529-'Working | Approach C'!BE529)*Inputs!$C$13 -> 0.0003209580714 | BE85: =('Working | Approach C'!BE529-'Working | Approach C'!BF529)*Inputs!$C$13 -> 6.838284762e-06 | BF85: =('Working | Approach C'!BF529-'Working | Approach C'!BG529)*Inputs!$C$13 -> 1.307112184e-07 | BG85: =('Working | Approach C'!BG529-'Working | Approach C'!BH529)*Inputs!$C$13 -> 1.726110574e-09 | BH85: =('Working | Approach C'!BH529-'Working | Approach C'!BI529)*Inputs!$C$13 -> 3.782012652e-11 | BI85: =('Working | Approach C'!BI529-'Working | Approach C'!BJ529)*Inputs!$C$13 -> 8.359387546e-13 | BJ85: =('Working | Approach C'!BJ529-'Working | Approach C'!BK529)*Inputs!$C$13 -> 1.107181101e-14 | BK85: =('Working | Approach C'!BK529-'Working | Approach C'!BL529)*Inputs!$C$13 -> 2.099313874e-16 | BL85: =('Working | Approach C'!BL529-'Working | Approach C'!BM529)*Inputs!$C$13 -> 4.499648716e-18 | BM85: =('Working | Approach C'!BM529-'Working | Approach C'!BN529)*Inputs!$C$13 -> 5.897375257e-20 | BN85: =('Working | Approach C'!BN529-'Working | Approach C'!BO529)*Inputs!$C$13 -> 7.706193104e-22 | BO85: =('Working | Approach C'!BO529-'Working | Approach C'!BP529)*Inputs!$C$13 -> 2.267609284e-23 | BP85: =('Working | Approach C'!BP529-'Working | Approach C'!BQ529)*Inputs!$C$13 -> 5.72561622e-25 | BQ85: =('Working | Approach C'!BQ529-'Working | Approach C'!BR529)*Inputs!$C$13 -> 9.165125682e-27 | BR85: =('Working | Approach C'!BR529-'Working | Approach C'!BS529)*Inputs!$C$13 -> 2.994850119e-28 | BS85: =('Working | Approach C'!BS529-'Working | Approach C'!BT529)*Inputs!$C$13 -> 8.78518028e-30 | BT85: =('Working | Approach C'!BT529-'Working | Approach C'!BU529)*Inputs!$C$13 -> 2.100071538e-31 | BU85: =('Working | Approach C'!BU529-'Working | Approach C'!BV529)*Inputs!$C$13 -> 9.373057526e-33
A86: Opex | C86: 0 | D86: ='Working | Approach C'!D102/'Working | Approach C'!D4*Inputs!D35 -> 0 | E86: ='Working | Approach C'!E102/'Working | Approach C'!E4*Inputs!E35 -> 0 | F86: ='Working | Approach C'!F102/'Working | Approach C'!F4*Inputs!F35 -> 0 | G86: ='Working | Approach C'!G102/'Working | Approach C'!G4*Inputs!G35 -> 0 | H86: ='Working | Approach C'!H102/'Working | Approach C'!H4*Inputs!H35 -> 0 | I86: ='Working | Approach C'!I238/'Working | Approach C'!I139*Inputs!I35 -> 0 | J86: ='Working | Approach C'!J238/'Working | Approach C'!J139*Inputs!J35 -> 0 | K86: ='Working | Approach C'!K238/'Working | Approach C'!K139*Inputs!K35 -> 0 | L86: ='Working | Approach C'!L238/'Working | Approach C'!L139*Inputs!L35 -> 0 | M86: ='Working | Approach C'!M238/'Working | Approach C'!M139*Inputs!M35 -> 0 | N86: ='Working | Approach C'!N374/'Working | Approach C'!N275*Inputs!N35 -> 0 | O86: ='Working | Approach C'!O374/'Working | Approach C'!O275*Inputs!O35 -> 0 | P86: ='Working | Approach C'!P374/'Working | Approach C'!P275*Inputs!P35 -> 0 | Q86: ='Working | Approach C'!Q374/'Working | Approach C'!Q275*Inputs!Q35 -> 0 | R86: ='Working | Approach C'!R374/'Working | Approach C'!R275*Inputs!R35 -> 0 | S86: ='Working | Approach C'!S510/'Working | Approach C'!S411*Inputs!S35 -> 0 | T86: ='Working | Approach C'!T510/'Working | Approach C'!T411*Inputs!T35 -> 0 | U86: ='Working | Approach C'!U510/'Working | Approach C'!U411*Inputs!U35 -> 0 | V86: ='Working | Approach C'!V510/'Working | Approach C'!V411*Inputs!V35 -> 0 | W86: ='Working | Approach C'!W510/'Working | Approach C'!W411*Inputs!W35 -> 0 | X86: 0 | Y86: 0 | Z86: 0 | AA86: 0 | AB86: 0 | AC86: 0 | AD86: 0 | AE86: 0 | AF86: 0 | AG86: 0 | AH86: 0 | AI86: 0 | AJ86: 0 | AK86: 0 | AL86: 0 | AM86: 0 | AN86: 0 | AO86: 0 | AP86: 0 | AQ86: 0 | AR86: 0 | AS86: 0 | AT86: 0 | AU86: 0 | AV86: 0 | AW86: 0 | AX86: 0 | AY86: 0 | AZ86: 0 | BA86: 0 | BB86: 0 | BC86: 0 | BD86: 0 | BE86: 0 | BF86: 0 | BG86: 0 | BH86: 0 | BI86: 0 | BJ86: 0 | BK86: 0 | BL86: 0 | BM86: 0 | BN86: 0 | BO86: 0 | BP86: 0 | BQ86: 0 | BR86: 0 | BS86: 0 | BT86: 0 | BU86: 0
A87: Tax payable+ gamma | C87: 0 | D87: ='Working | Approach C'!D103*(D82/'Working | Approach C'!D106) -> 0 | E87: ='Working | Approach C'!E103*(E82/'Working | Approach C'!E106) -> 0 | F87: ='Working | Approach C'!F103*(F82/'Working | Approach C'!F106) -> 0 | G87: ='Working | Approach C'!G103*(G82/'Working | Approach C'!G106) -> 0 | H87: ='Working | Approach C'!H103*(H82/'Working | Approach C'!H106) -> 0 | I87: ='Working | Approach C'!I239*(I82/'Working | Approach C'!I242) -> 0 | J87: ='Working | Approach C'!J239*(J82/'Working | Approach C'!J242) -> 0 | K87: ='Working | Approach C'!K239*(K82/'Working | Approach C'!K242) -> 0 | L87: ='Working | Approach C'!L239*(L82/'Working | Approach C'!L242) -> 0 | M87: ='Working | Approach C'!M239*(M82/'Working | Approach C'!M242) -> 0 | N87: ='Working | Approach C'!N375*(N82/'Working | Approach C'!N378) -> 3.778765145 | O87: ='Working | Approach C'!O375*(O82/'Working | Approach C'!O378) -> 4.484652988 | P87: ='Working | Approach C'!P375*(P82/'Working | Approach C'!P378) -> 5.334617977 | Q87: ='Working | Approach C'!Q375*(Q82/'Working | Approach C'!Q378) -> 6.21904522 | R87: ='Working | Approach C'!R375*(R82/'Working | Approach C'!R378) -> 7.206704091 | S87: ='Working | Approach C'!S511*(S82/'Working | Approach C'!S514) -> 8.377994493 | T87: ='Working | Approach C'!T511*(T82/'Working | Approach C'!T514) -> 9.642717261 | U87: ='Working | Approach C'!U511*(U82/'Working | Approach C'!U514) -> 10.96553133 | V87: ='Working | Approach C'!V511*(V82/'Working | Approach C'!V514) -> 12.4992016 | W87: ='Working | Approach C'!W511*(W82/'Working | Approach C'!W514) -> 14.16677918 | X87: =IFERROR(SUM('Working | Approach C'!X477:X478)*(X82/'Working | Approach C'!X519),0) -> 15.96258511 | Y87: =IFERROR(SUM('Working | Approach C'!Y477:Y478)*(Y82/'Working | Approach C'!Y519),0) -> 20.81737273 | Z87: =IFERROR(SUM('Working | Approach C'!Z477:Z478)*(Z82/'Working | Approach C'!Z519),0) -> 25.55619924 | AA87: =IFERROR(SUM('Working | Approach C'!AA477:AA478)*(AA82/'Working | Approach C'!AA519),0) -> 29.91714534 | AB87: =IFERROR(SUM('Working | Approach C'!AB477:AB478)*(AB82/'Working | Approach C'!AB519),0) -> 34.09051545 | AC87: =IFERROR(SUM('Working | Approach C'!AC477:AC478)*(AC82/'Working | Approach C'!AC519),0) -> 38.08906182 | AD87: =IFERROR(SUM('Working | Approach C'!AD477:AD478)*(AD82/'Working | Approach C'!AD519),0) -> 42.41040926 | AE87: =IFERROR(SUM('Working | Approach C'!AE477:AE478)*(AE82/'Working | Approach C'!AE519),0) -> 46.27675557 | AF87: =IFERROR(SUM('Working | Approach C'!AF477:AF478)*(AF82/'Working | Approach C'!AF519),0) -> 50.82921967 | AG87: =IFERROR(SUM('Working | Approach C'!AG477:AG478)*(AG82/'Working | Approach C'!AG519),0) -> 55.2264366 | AH87: =IFERROR(SUM('Working | Approach C'!AH477:AH478)*(AH82/'Working | Approach C'!AH519),0) -> 30.65225538 | AI87: =IFERROR(SUM('Working | Approach C'!AI477:AI478)*(AI82/'Working | Approach C'!AI519),0) -> 28.60499354 | AJ87: =IFERROR(SUM('Working | Approach C'!AJ477:AJ478)*(AJ82/'Working | Approach C'!AJ519),0) -> 29.17271146 | AK87: =IFERROR(SUM('Working | Approach C'!AK477:AK478)*(AK82/'Working | Approach C'!AK519),0) -> 29.6995102 | AL87: =IFERROR(SUM('Working | Approach C'!AL477:AL478)*(AL82/'Working | Approach C'!AL519),0) -> 29.81146135 | AM87: =IFERROR(SUM('Working | Approach C'!AM477:AM478)*(AM82/'Working | Approach C'!AM519),0) -> 29.64391935 | AN87: =IFERROR(SUM('Working | Approach C'!AN477:AN478)*(AN82/'Working | Approach C'!AN519),0) -> 29.51232511 | AO87: =IFERROR(SUM('Working | Approach C'!AO477:AO478)*(AO82/'Working | Approach C'!AO519),0) -> 28.83903894 | AP87: =IFERROR(SUM('Working | Approach C'!AP477:AP478)*(AP82/'Working | Approach C'!AP519),0) -> 28.01984588 | AQ87: =IFERROR(SUM('Working | Approach C'!AQ477:AQ478)*(AQ82/'Working | Approach C'!AQ519),0) -> 26.93983403 | AR87: =IFERROR(SUM('Working | Approach C'!AR477:AR478)*(AR82/'Working | Approach C'!AR519),0) -> 25.13243204 | AS87: =IFERROR(SUM('Working | Approach C'!AS477:AS478)*(AS82/'Working | Approach C'!AS519),0) -> 23.23892418 | AT87: =IFERROR(SUM('Working | Approach C'!AT477:AT478)*(AT82/'Working | Approach C'!AT519),0) -> 21.04441906 | AU87: =IFERROR(SUM('Working | Approach C'!AU477:AU478)*(AU82/'Working | Approach C'!AU519),0) -> 18.27889325 | AV87: =IFERROR(SUM('Working | Approach C'!AV477:AV478)*(AV82/'Working | Approach C'!AV519),0) -> 84.52125 | AW87: =IFERROR(SUM('Working | Approach C'!AW477:AW478)*(AW82/'Working | Approach C'!AW519),0) -> 12.13138173 | AX87: =IFERROR(SUM('Working | Approach C'!AX477:AX478)*(AX82/'Working | Approach C'!AX519),0) -> 8.184256515 | AY87: =IFERROR(SUM('Working | Approach C'!AY477:AY478)*(AY82/'Working | Approach C'!AY519),0) -> 3.854574355 | AZ87: =IFERROR(SUM('Working | Approach C'!AZ477:AZ478)*(AZ82/'Working | Approach C'!AZ519),0) -> 0 | BA87: =IFERROR(SUM('Working | Approach C'!BA477:BA478)*(BA82/'Working | Approach C'!BA519),0) -> 0 | BB87: =IFERROR(SUM('Working | Approach C'!BB477:BB478)*(BB82/'Working | Approach C'!BB519),0) -> 0 | BC87: =IFERROR(SUM('Working | Approach C'!BC477:BC478)*(BC82/'Working | Approach C'!BC519),0) -> 0 | BD87: =IFERROR(SUM('Working | Approach C'!BD477:BD478)*(BD82/'Working | Approach C'!BD519),0) -> 0 | BE87: =IFERROR(SUM('Working | Approach C'!BE477:BE478)*(BE82/'Working | Approach C'!BE519),0) -> 0 | BF87: =IFERROR(SUM('Working | Approach C'!BF477:BF478)*(BF82/'Working | Approach C'!BF519),0) -> 0 | BG87: =IFERROR(SUM('Working | Approach C'!BG477:BG478)*(BG82/'Working | Approach C'!BG519),0) -> 0 | BH87: =IFERROR(SUM('Working | Approach C'!BH477:BH478)*(BH82/'Working | Approach C'!BH519),0) -> 0 | BI87: =IFERROR(SUM('Working | Approach C'!BI477:BI478)*(BI82/'Working | Approach C'!BI519),0) -> 0 | BJ87: =IFERROR(SUM('Working | Approach C'!BJ477:BJ478)*(BJ82/'Working | Approach C'!BJ519),0) -> 0 | BK87: =IFERROR(SUM('Working | Approach C'!BK477:BK478)*(BK82/'Working | Approach C'!BK519),0) -> 0 | BL87: =IFERROR(SUM('Working | Approach C'!BL477:BL478)*(BL82/'Working | Approach C'!BL519),0) -> 0 | BM87: =IFERROR(SUM('Working | Approach C'!BM477:BM478)*(BM82/'Working | Approach C'!BM519),0) -> 0 | BN87: =IFERROR(SUM('Working | Approach C'!BN477:BN478)*(BN82/'Working | Approach C'!BN519),0) -> 0 | BO87: =IFERROR(SUM('Working | Approach C'!BO477:BO478)*(BO82/'Working | Approach C'!BO519),0) -> 0 | BP87: =IFERROR(SUM('Working | Approach C'!BP477:BP478)*(BP82/'Working | Approach C'!BP519),0) -> 0 | BQ87: =IFERROR(SUM('Working | Approach C'!BQ477:BQ478)*(BQ82/'Working | Approach C'!BQ519),0) -> 0 | BR87: =IFERROR(SUM('Working | Approach C'!BR477:BR478)*(BR82/'Working | Approach C'!BR519),0) -> 0 | BS87: =IFERROR(SUM('Working | Approach C'!BS477:BS478)*(BS82/'Working | Approach C'!BS519),0) -> 0 | BT87: =IFERROR(SUM('Working | Approach C'!BT477:BT478)*(BT82/'Working | Approach C'!BT519),0) -> 0 | BU87: =IFERROR(SUM('Working | Approach C'!BU477:BU478)*(BU82/'Working | Approach C'!BU519),0) -> 0
A88: Returns achieved
A89: Post-tax CF to Equity | B89: =IRR(C89:BU89) -> 0.0568748118 | C89: =C82-C83-C84-C85-C86-C87 -> -2400 | D89: =D82-D83-D84-D85-D86-D87 -> 110.5229306 | E89: =E82-E83-E84-E85-E86-E87 -> 67.73047185 | F89: 81.70022511 | G89: 104.9926529 | H89: 90.26108729 | I89: 166.6777103 | J89: 95.45276597 | K89: 118.8919578 | L89: 137.4282927 | M89: 65.81439274 | N89: 110.3961209 | O89: 134.207368 | P89: 58.24724061 | Q89: 58.03771527 | R89: 100.3490736 | S89: 89.79264481 | T89: 61.29824718 | U89: 108.7182429 | V89: 110.9407079 | W89: 64.32217303 | X89: 357.0423021 | Y89: 369.5527078 | Z89: 327.3010829 | AA89: 327.9602322 | AB89: 400.6843938 | AC89: 369.1753605 | AD89: 333.9738277 | AE89: 392.4488319 | AF89: 380.6825618 | AG89: 365.2463233 | AH89: 255.0968141 | AI89: 206.963654 | AJ89: 210.9639898 | AK89: 192.7718631 | AL89: 179.2622104 | AM89: 195.9079064 | AN89: 183.035157 | AO89: 174.5377362 | AP89: 169.5207086 | AQ89: 145.1179111 | AR89: 138.3061562 | AS89: 132.1618388 | AT89: 117.3137408 | AU89: 115.5764434 | AV89: 93.45730573 | AW89: 80.58893128 | AX89: 66.92230463 | AY89: 48.51317234 | AZ89: 33.6936397 | BA89: -21.35849826 | BB89: -1.939337477 | BC89: -0.02576405663 | BD89: -0.0003350590106 | BE89: -7.138026851e-06 | BF89: -1.364070514e-07 | BG89: -1.801342644e-09 | BH89: -3.881512597e-11 | BI89: -1.900431279e-13 | BJ89: 6.798587866e-13 | BK89: 7.043367849e-13 | BL89: 7.1393698e-13 | BM89: 7.233004002e-13 | BN89: 7.329078674e-13 | BO89: 7.543797784e-13 | BP89: =BP82-BP83-BP84-BP85-BP86-BP87 -> 7.732581513e-13 | BQ89: 7.896952469e-13 | BR89: 8.154101131e-13 | BS89: 8.392112732e-13 | BT89: 8.596571735e-13 | BU89: 8.963861752e-13
A90: Real post-tax CF to Equity | B90: =IRR(C90:BU90) -> 0.03195452769 | C90: =C89/Inputs!C35 -> -2400 | D90: =D89/Inputs!D35 -> 107.3277867 | E90: =E89/Inputs!E35 -> 63.68043091 | F90: =F89/Inputs!F35 -> 75.282377 | G90: =G89/Inputs!G35 -> 94.506176 | H90: =H89/Inputs!H35 -> 78.93839468 | I90: =I89/Inputs!I35 -> 142.2342124 | J90: =J89/Inputs!J35 -> 78.11693693 | K90: =K89/Inputs!K35 -> 94.98503437 | L90: =L89/Inputs!L35 -> 106.6801558 | M90: =M89/Inputs!M35 -> 49.47796158 | N90: =N89/Inputs!N35 -> 81.66439772 | O90: =O89/Inputs!O35 -> 96.8547314 | P90: =P89/Inputs!P35 -> 40.83938407 | Q90: =Q89/Inputs!Q35 -> 40.15905579 | R90: =R89/Inputs!R35 -> 68.53786084 | S90: =S89/Inputs!S35 -> 60.0513706 | T90: =T89/Inputs!T35 -> 40.23037715 | U90: =U89/Inputs!U35 -> 70.41435717 | V90: =V89/Inputs!V35 -> 70.31319309 | W90: =W89/Inputs!W35 -> 39.89272379 | X90: =X89/Inputs!X35 -> 218.5271501 | Y90: =Y89/Inputs!Y35 -> 221.9657693 | Z90: =Z89/Inputs!Z35 -> 192.4961467 | AA90: =AA89/Inputs!AA35 -> 190.3880893 | AB90: =AB89/Inputs!AB35 -> 229.556913 | AC90: =AC89/Inputs!AC35 -> 205.4849419 | AD90: =AD89/Inputs!AD35 -> 181.3532153 | AE90: =AE89/Inputs!AE35 -> 209.6929822 | AF90: =AF89/Inputs!AF35 -> 196.9914011 | AG90: =AG89/Inputs!AG35 -> 183.6432302 | AH90: =AH89/Inputs!AH35 -> 125.2103192 | AI90: =AI89/Inputs!AI35 -> 97.42250962 | AJ90: =AJ89/Inputs!AJ35 -> 96.89745642 | AK90: =AK89/Inputs!AK35 -> 86.02687351 | AL90: =AL89/Inputs!AL35 -> 78.14666578 | AM90: =AM89/Inputs!AM35 -> 83.69930407 | AN90: =AN89/Inputs!AN35 -> 75.71231235 | AO90: =AO89/Inputs!AO35 -> 70.11018528 | AP90: =AP89/Inputs!AP35 -> 66.12631426 | AQ90: =AQ89/Inputs!AQ35 -> 54.80683039 | AR90: =AR89/Inputs!AR35 -> 51.19214856 | AS90: =AS89/Inputs!AS35 -> 47.78582955 | AT90: =AT89/Inputs!AT35 -> 41.21244579 | AU90: =AU89/Inputs!AU35 -> 39.61755306 | AV90: =AV89/Inputs!AV35 -> 30.72286558 | AW90: =AW89/Inputs!AW35 -> 25.86246275 | AX90: =AX89/Inputs!AX35 -> 20.86748714 | AY90: =AY89/Inputs!AY35 -> 14.65016011 | AZ90: =AZ89/Inputs!AZ35 -> 10.01194957 | BA90: =BA89/Inputs!BA35 -> -6.191658166 | BB90: =BB89/Inputs!BB35 -> -0.5461966016 | BC90: =BC89/Inputs!BC35 -> -0.007161091233 | BD90: =BD89/Inputs!BD35 -> -9.192428389e-05 | BE90: =BE89/Inputs!BE35 -> -1.917573916e-06 | BF90: =BF89/Inputs!BF35 -> -3.59612389e-08 | BG90: =BG89/Inputs!BG35 -> -4.686481429e-10 | BH90: =BH89/Inputs!BH35 -> -9.881859251e-12 | BI90: =BI89/Inputs!BI35 -> -4.734530599e-14 | BJ90: =BJ89/Inputs!BJ35 -> 1.671460889e-13 | BK90: =BK89/Inputs!BK35 -> 1.699345798e-13 | BL90: =BL89/Inputs!BL35 -> 1.686654977e-13 | BM90: =BM89/Inputs!BM35 -> 1.686665927e-13 | BN90: =BN89/Inputs!BN35 -> 1.686666068e-13 | BO90: =BO89/Inputs!BO35 -> 1.68666607e-13 | BP90: =BP89/Inputs!BP35 -> 1.68666607e-13 | BQ90: =BQ89/Inputs!BQ35 -> 1.694931517e-13 | BR90: =BR89/Inputs!BR35 -> 1.694931517e-13 | BS90: =BS89/Inputs!BS35 -> 1.694931517e-13 | BT90: =BT89/Inputs!BT35 -> 1.694931517e-13 | BU90: =BU89/Inputs!BU35 -> 1.694931517e-13
A91: Nominal cash flows to assets | B91: =IRR(C91:BU91) -> 0.05017093508 | C91: =C82-C83-C86 -> -6000 | D91: =D82-D83-D86 -> 146.9667799 | E91: 151.8343676 | F91: 154.8665681 | G91: 158.3689023 | H91: 162.711508 | I91: 166.9092754 | J91: 174.1580976 | K91: 178.4031535 | L91: 183.4840256 | M91: 189.1880853 | N91: 196.3135447 | O91: 202.2080841 | P91: 209.0375026 | Q91: 212.6180063 | R91: 216.0973638 | S91: 222.331258 | T91: 227.9134103 | U91: 232.2146848 | V91: 238.4756078 | W91: 244.7686829 | X91: 886.932582 | Y91: 892.7008574 | Z91: 900.0019336 | AA91: 899.6449717 | AB91: 898.9751004 | AC91: 897.8811826 | AD91: 906.6890659 | AE91: 907.3160478 | AF91: 922.0360164 | AG91: 933.4708872 | AH91: 512.9327715 | AI91: 507.9481762 | AJ91: 496.1709623 | AK91: 485.2447372 | AL91: 470.3036688 | AM91: 454.2386216 | AN91: 440.2961992 | AO91: 423.0899294 | AP91: 404.2018283 | AQ91: 384.4949492 | AR91: 358.1392821 | AS91: 331.1154434 | AT91: 303.6968423 | AU91: 272.6276351 | AV91: 312.6263637 | AW91: 206.7257098 | AX91: 169.0549998 | AY91: 128.9518173 | AZ91: 85.11242506 | BA91: 43.8080746 | BB91: 5.95890013e-13 | BC91: 6.020859736e-13 | BD91: 6.099784864e-13 | BE91: 6.229447574e-13 | BF91: 6.347835265e-13 | BG91: 6.533807001e-13 | BH91: 6.676966664e-13 | BI91: 6.823263041e-13 | BJ91: 6.914159086e-13 | BK91: 7.045559394e-13 | BL91: 7.139416757e-13 | BM91: 7.233004617e-13 | BN91: 7.329078682e-13 | BO91: 7.543797784e-13 | BP91: =BP82-BP83-BP86 -> 7.732581513e-13 | BQ91: 7.896952469e-13 | BR91: 8.154101131e-13 | BS91: 8.392112732e-13 | BT91: 8.596571735e-13 | BU91: 8.963861752e-13
A92: Nominal vanilla WACC | B92: =IRR(C92:BU92) -> 0.04840331023 | C92: =C91-C87 -> -6000 | D92: =D91-D87 -> 146.9667799 | E92: 151.8343676 | F92: 154.8665681 | G92: 158.3689023 | H92: 162.711508 | I92: 166.9092754 | J92: 174.1580976 | K92: 178.4031535 | L92: 183.4840256 | M92: 189.1880853 | N92: 192.5347795 | O92: 197.7234311 | P92: 203.7028846 | Q92: 206.3989611 | R92: 208.8906598 | S92: 213.9532635 | T92: 218.2706931 | U92: 221.2491535 | V92: 225.9764062 | W92: 230.6019037 | X92: 870.9699969 | Y92: 871.8834846 | Z92: 874.4457343 | AA92: 869.7278264 | AB92: 864.884585 | AC92: 859.7921208 | AD92: 864.2786566 | AE92: 861.0392922 | AF92: 871.2067968 | AG92: 878.2444506 | AH92: 482.2805161 | AI92: 479.3431827 | AJ92: 466.9982509 | AK92: 455.545227 | AL92: 440.4922074 | AM92: 424.5947022 | AN92: 410.7838741 | AO92: 394.2508905 | AP92: 376.1819824 | AQ92: 357.5551152 | AR92: 333.0068501 | AS92: 307.8765193 | AT92: 282.6524232 | AU92: 254.3487418 | AV92: 228.1051137 | AW92: 194.5943281 | AX92: 160.8707433 | AY92: 125.097243 | AZ92: 85.11242506 | BA92: 43.8080746 | BB92: 5.95890013e-13 | BC92: 6.020859736e-13 | BD92: 6.099784864e-13 | BE92: 6.229447574e-13 | BF92: 6.347835265e-13 | BG92: 6.533807001e-13 | BH92: 6.676966664e-13 | BI92: 6.823263041e-13 | BJ92: 6.914159086e-13 | BK92: 7.045559394e-13 | BL92: 7.139416757e-13 | BM92: 7.233004617e-13 | BN92: 7.329078682e-13 | BO92: 7.543797784e-13 | BP92: =BP91-BP87 -> 7.732581513e-13 | BQ92: 7.896952469e-13 | BR92: 8.154101131e-13 | BS92: 8.392112732e-13 | BT92: 8.596571735e-13 | BU92: 8.963861752e-13
A93: Real WACC (real) | B93: =IRR(C93:BU93) -> 0.02383876931 | C93: =C92/Inputs!C35 -> -6000 | D93: =D92/Inputs!D35 -> 142.7180688 | E93: =E92/Inputs!E35 -> 142.7552133 | F93: =F92/Inputs!F35 -> 142.7012391 | G93: =G92/Inputs!G35 -> 142.5513019 | H93: =H92/Inputs!H35 -> 142.3003602 | I93: =I92/Inputs!I35 -> 142.4318182 | J93: =J92/Inputs!J35 -> 142.5280555 | K93: =K92/Inputs!K35 -> 142.5296545 | L93: =L92/Inputs!L35 -> 142.4314022 | M93: =M92/Inputs!M35 -> 142.2278688 | N93: =N92/Inputs!N35 -> 142.4256277 | O93: =O92/Inputs!O35 -> 142.692984 | P93: =P92/Inputs!P35 -> 142.823939 | Q93: =Q92/Inputs!Q35 -> 142.8172587 | R93: =R92/Inputs!R35 -> 142.6711623 | S93: =S92/Inputs!S35 -> 143.0872957 | T93: =T92/Inputs!T35 -> 143.2522577 | U93: =U92/Inputs!U35 -> 143.2980933 | V93: =V92/Inputs!V35 -> 143.2217531 | W93: =W92/Inputs!W35 -> 143.0197025 | X93: =X92/Inputs!X35 -> 533.0757453 | Y93: =Y92/Inputs!Y35 -> 523.6825067 | Z93: =Z92/Inputs!Z35 -> 514.2892682 | AA93: =AA92/Inputs!AA35 -> 504.8960296 | AB93: =AB92/Inputs!AB35 -> 495.502791 | AC93: =AC92/Inputs!AC35 -> 478.5648037 | AD93: =AD92/Inputs!AD35 -> 469.3173546 | AE93: =AE92/Inputs!AE35 -> 460.0699054 | AF93: =AF92/Inputs!AF35 -> 450.8224562 | AG93: =AG92/Inputs!AG35 -> 441.5750071 | AH93: =AH92/Inputs!AH35 -> 236.7199197 | AI93: =AI92/Inputs!AI35 -> 225.6377626 | AJ93: =AJ92/Inputs!AJ35 -> 214.4960507 | AK93: =AK92/Inputs!AK35 -> 203.2927989 | AL93: =AL92/Inputs!AL35 -> 192.0259559 | AM93: =AM92/Inputs!AM35 -> 181.4029957 | AN93: =AN92/Inputs!AN35 -> 169.9203448 | AO93: =AO92/Inputs!AO35 -> 158.3669158 | AP93: =AP92/Inputs!AP35 -> 146.7403492 | AQ93: =AQ92/Inputs!AQ35 -> 135.0382073 | AR93: =AR92/Inputs!AR35 -> 123.2579707 | AS93: =AS92/Inputs!AS35 -> 111.3190843 | AT93: =AT92/Inputs!AT35 -> 99.29610622 | AU93: =AU92/Inputs!AU35 -> 87.18623344 | AV93: =AV92/Inputs!AV35 -> 74.98656945 | AW93: =AW92/Inputs!AW35 -> 62.44888075 | AX93: =AX92/Inputs!AX35 -> 50.16217217 | AY93: =AY92/Inputs!AY35 -> 37.77725823 | AZ93: =AZ92/Inputs!AZ35 -> 25.29086544 | BA93: =BA92/Inputs!BA35 -> 12.69961116 | BB93: =BB92/Inputs!BB35 -> 1.678269532e-13 | BC93: =BC92/Inputs!BC35 -> 1.673491349e-13 | BD93: =BD92/Inputs!BD35 -> 1.673491349e-13 | BE93: =BE92/Inputs!BE35 -> 1.673491349e-13 | BF93: =BF92/Inputs!BF35 -> 1.673491349e-13 | BG93: =BG92/Inputs!BG35 -> 1.69987455e-13 | BH93: =BH92/Inputs!BH35 -> 1.69987455e-13 | BI93: =BI92/Inputs!BI35 -> 1.69987455e-13 | BJ93: =BJ92/Inputs!BJ35 -> 1.69987455e-13 | BK93: =BK92/Inputs!BK35 -> 1.69987455e-13 | BL93: =BL92/Inputs!BL35 -> 1.68666607e-13 | BM93: =BM92/Inputs!BM35 -> 1.68666607e-13 | BN93: =BN92/Inputs!BN35 -> 1.68666607e-13 | BO93: =BO92/Inputs!BO35 -> 1.68666607e-13 | BP93: =BP92/Inputs!BP35 -> 1.68666607e-13 | BQ93: =BQ92/Inputs!BQ35 -> 1.694931517e-13 | BR93: =BR92/Inputs!BR35 -> 1.694931517e-13 | BS93: =BS92/Inputs!BS35 -> 1.694931517e-13 | BT93: =BT92/Inputs!BT35 -> 1.694931517e-13 | BU93: =BU92/Inputs!BU35 -> 1.694931517e-13
A94: ="Nominal NPV at "&ROUND((GEOMEAN(1+Inputs!$D$15:$W$15)-1)*100,2)&"%" -> Nominal NPV at 4.58% | B94: =NPV((GEOMEAN(1+Inputs!$D$15:$W$15)-1),D92:BU92)+C92 -> 329.0450391
A95: ="Real NPV at "&ROUND((GEOMEAN(1+Inputs!$D$18:$W$18)-1)*100,2)&"%" -> Real NPV at 2.43% | B95: =NPV((GEOMEAN(1+Inputs!$D$18:$W$18)-1),D93:BU93)+C93 -> -57.87171004
A97: =RIGHT(Inputs!A6,LEN(Inputs!A6)-3)&" ("&Inputs!B6&")" -> Approach D (unindexed RAB)
A98: Revenue | C98: 0 | D98: ='Working | Approach D'!D111 -> 491.8645346 | E98: ='Working | Approach D'!E111 -> 503.6065953 | F98: ='Working | Approach D'!F111 -> 509.3909698 | G98: ='Working | Approach D'!G111 -> 516.9256007 | H98: ='Working | Approach D'!H111 -> 527.41151 | I98: ='Working | Approach D'!I247 -> 531.2263146 | J98: ='Working | Approach D'!J247 -> 552.9438298 | K98: ='Working | Approach D'!K247 -> 565.4140247 | L98: ='Working | Approach D'!L247 -> 580.8892913 | M98: ='Working | Approach D'!M247 -> 598.7444734 | N98: ='Working | Approach D'!N383 -> 595.8973971 | O98: ='Working | Approach D'!O383 -> 614.4336192 | P98: ='Working | Approach D'!P383 -> 636.1867771 | Q98: ='Working | Approach D'!Q383 -> 648.4616449 | R98: ='Working | Approach D'!R383 -> 660.8597706 | S98: ='Working | Approach D'!S519 -> 688.8934847 | T98: ='Working | Approach D'!T519 -> 709.5618476 | U98: ='Working | Approach D'!U519 -> 726.7743241 | V98: ='Working | Approach D'!V519 -> 750.7140569 | W98: ='Working | Approach D'!W519 -> 775.4423574 | X98: ='Working | Approach D'!X551 -> 813.6776404 | Y98: ='Working | Approach D'!Y551 -> 791.9703545 | Z98: ='Working | Approach D'!Z551 -> 771.907389 | AA98: ='Working | Approach D'!AA551 -> 745.7102408 | AB98: ='Working | Approach D'!AB551 -> 719.8839475 | AC98: ='Working | Approach D'!AC551 -> 716.8229138 | AD98: ='Working | Approach D'!AD551 -> 698.6860651 | AE98: ='Working | Approach D'!AE551 -> 674.5075933 | AF98: ='Working | Approach D'!AF551 -> 660.8915459 | AG98: ='Working | Approach D'!AG551 -> 644.7041322 | AH98: ='Working | Approach D'!AH551 -> 415.2221891 | AI98: ='Working | Approach D'!AI551 -> 401.1330126 | AJ98: ='Working | Approach D'!AJ551 -> 382.8827446 | AK98: ='Working | Approach D'!AK551 -> 365.9510084 | AL98: ='Working | Approach D'!AL551 -> 346.6647761 | AM98: ='Working | Approach D'!AM551 -> 317.1269868 | AN98: ='Working | Approach D'!AN551 -> 300.3709092 | AO98: ='Working | Approach D'!AO551 -> 281.9961991 | AP98: ='Working | Approach D'!AP551 -> 263.2494615 | AQ98: ='Working | Approach D'!AQ551 -> 244.6756749 | AR98: ='Working | Approach D'!AR551 -> 215.5661981 | AS98: ='Working | Approach D'!AS551 -> 194.3910807 | AT98: ='Working | Approach D'!AT551 -> 173.7703806 | AU98: ='Working | Approach D'!AU551 -> 151.8465948 | AV98: ='Working | Approach D'!AV551 -> 195.4401645 | AW98: ='Working | Approach D'!AW551 -> 105.6374981 | AX98: ='Working | Approach D'!AX551 -> 84.13271468 | AY98: ='Working | Approach D'!AY551 -> 64.01429259 | AZ98: ='Working | Approach D'!AZ551 -> 42.61825431 | BA98: ='Working | Approach D'!BA551 -> 21.466636 | BB98: ='Working | Approach D'!BB551 -> -7.797978513e-14 | BC98: ='Working | Approach D'!BC551 -> -7.840751799e-14 | BD98: ='Working | Approach D'!BD551 -> -7.768834693e-14 | BE98: ='Working | Approach D'!BE551 -> -7.759487965e-14 | BF98: ='Working | Approach D'!BF551 -> -7.733059334e-14 | BG98: ='Working | Approach D'!BG551 -> -7.911974857e-14 | BH98: ='Working | Approach D'!BH551 -> -7.90751402e-14 | BI98: ='Working | Approach D'!BI551 -> -7.903055697e-14 | BJ98: ='Working | Approach D'!BJ551 -> -7.832212511e-14 | BK98: ='Working | Approach D'!BK551 -> -7.805536182e-14 | BL98: ='Working | Approach D'!BL551 -> -7.911974857e-14 | BM98: ='Working | Approach D'!BM551 -> -7.839404477e-14 | BN98: ='Working | Approach D'!BN551 -> -7.768834693e-14 | BO98: ='Working | Approach D'!BO551 -> -7.82057528e-14 | BP98: ='Working | Approach D'!BP551 -> -7.83998687e-14 | BQ98: ='Working | Approach D'!BQ551 -> -7.911974857e-14 | BR98: ='Working | Approach D'!BR551 -> -7.989942134e-14 | BS98: ='Working | Approach D'!BS551 -> -8.04231382e-14 | BT98: ='Working | Approach D'!BT551 -> -8.057070509e-14 | BU98: ='Working | Approach D'!BU551 -> -8.216544064e-14
A99: Capex | C99: ='Working | Approach D'!D121 -> 6000 | D99: ='Working | Approach D'!D122 -> 205.9539919 | E99: ='Working | Approach D'!E122 -> 219.8105548 | F99: ='Working | Approach D'!F122 -> 231.7612389 | G99: ='Working | Approach D'!G122 -> 245.1602366 | H99: ='Working | Approach D'!H122 -> 260.7378155 | I99: ='Working | Approach D'!I258 -> 276.1249466 | J99: ='Working | Approach D'!J258 -> 297.5198472 | K99: ='Working | Approach D'!K258 -> 314.9273392 | L99: ='Working | Approach D'!L258 -> 334.9238066 | M99: ='Working | Approach D'!M258 -> 357.3576036 | N99: ='Working | Approach D'!N394 -> 375.2800144 | O99: ='Working | Approach D'!O394 -> 397.4937864 | P99: ='Working | Approach D'!P394 -> 422.7770826 | Q99: ='Working | Approach D'!Q394 -> 442.6724747 | R99: ='Working | Approach D'!R394 -> 463.424474 | S99: ='Working | Approach D'!S530 -> 489.0513049 | T99: ='Working | Approach D'!T530 -> 514.957009 | U99: ='Working | Approach D'!U530 -> 539.2109048 | V99: ='Working | Approach D'!V530 -> 569.3928532 | W99: ='Working | Approach D'!W530 -> 601.2642148 | X99: 0 | Y99: 0 | Z99: 0 | AA99: 0 | AB99: 0 | AC99: 0 | AD99: 0 | AE99: 0 | AF99: 0 | AG99: 0 | AH99: 0 | AI99: 0 | AJ99: 0 | AK99: 0 | AL99: 0 | AM99: 0 | AN99: 0 | AO99: 0 | AP99: 0 | AQ99: 0 | AR99: 0 | AS99: 0 | AT99: 0 | AU99: 0 | AV99: 0 | AW99: 0 | AX99: 0 | AY99: 0 | AZ99: 0 | BA99: 0 | BB99: 0 | BC99: 0 | BD99: 0 | BE99: 0 | BF99: 0 | BG99: 0 | BH99: 0 | BI99: 0 | BJ99: 0 | BK99: 0 | BL99: 0 | BM99: 0 | BN99: 0 | BO99: 0 | BP99: 0 | BQ99: 0 | BR99: 0 | BS99: 0 | BT99: 0 | BU99: 0
A100: Interest Payments | C100: 0 | D100: =('Working | Approach D'!D121*Inputs!$C$13)*Inputs!D13 -> 154.8 | E100: =('Working | Approach D'!E121*Inputs!$C$13)*Inputs!E13 -> 154.953613 | F100: =('Working | Approach D'!F121*Inputs!$C$13)*Inputs!F13 -> 155.2888575 | G100: =('Working | Approach D'!G121*Inputs!$C$13)*Inputs!G13 -> 155.7466131 | H100: =('Working | Approach D'!H121*Inputs!$C$13)*Inputs!H13 -> 156.3537345 | I100: =('Working | Approach D'!I257*Inputs!$C$13)*Inputs!I13 -> 157.155323 | J100: =('Working | Approach D'!J257*Inputs!$C$13)*Inputs!J13 -> 158.11599 | K100: =('Working | Approach D'!K257*Inputs!$C$13)*Inputs!K13 -> 159.391726 | L100: =('Working | Approach D'!L257*Inputs!$C$13)*Inputs!L13 -> 160.8662533 | M100: =('Working | Approach D'!M257*Inputs!$C$13)*Inputs!M13 -> 162.5922068 | N100: =('Working | Approach D'!N393*Inputs!$C$13)*Inputs!N13 -> 164.6175077 | O100: =('Working | Approach D'!O393*Inputs!$C$13)*Inputs!O13 -> 166.7644828 | P100: =('Working | Approach D'!P393*Inputs!$C$13)*Inputs!P13 -> 169.1598602 | Q100: =('Working | Approach D'!Q393*Inputs!$C$13)*Inputs!Q13 -> 171.8644646 | R100: =('Working | Approach D'!R393*Inputs!$C$13)*Inputs!R13 -> 174.7198799 | S100: =('Working | Approach D'!S529*Inputs!$C$13)*Inputs!S13 -> 177.7277004 | T100: =('Working | Approach D'!T529*Inputs!$C$13)*Inputs!T13 -> 181.0086212 | U100: =('Working | Approach D'!U529*Inputs!$C$13)*Inputs!U13 -> 184.5368184 | V100: =('Working | Approach D'!V529*Inputs!$C$13)*Inputs!V13 -> 188.2458542 | W100: =('Working | Approach D'!W529*Inputs!$C$13)*Inputs!W13 -> 192.2635038 | X100: =('Working | Approach D'!X529*Inputs!$C$13)*Inputs!$W$13 -> 196.6067616 | Y100: =('Working | Approach D'!Y529*Inputs!$C$13)*Inputs!$W$13 -> 184.9545796 | Z100: =('Working | Approach D'!Z529*Inputs!$C$13)*Inputs!$W$13 -> 173.3023977 | AA100: =('Working | Approach D'!AA529*Inputs!$C$13)*Inputs!$W$13 -> 161.6502157 | AB100: =('Working | Approach D'!AB529*Inputs!$C$13)*Inputs!$W$13 -> 149.9980337 | AC100: =('Working | Approach D'!AC529*Inputs!$C$13)*Inputs!$W$13 -> 138.3458517 | AD100: =('Working | Approach D'!AD529*Inputs!$C$13)*Inputs!$W$13 -> 126.6936697 | AE100: =('Working | Approach D'!AE529*Inputs!$C$13)*Inputs!$W$13 -> 115.0414877 | AF100: =('Working | Approach D'!AF529*Inputs!$C$13)*Inputs!$W$13 -> 103.3893057 | AG100: =('Working | Approach D'!AG529*Inputs!$C$13)*Inputs!$W$13 -> 91.73712376 | AH100: =('Working | Approach D'!AH529*Inputs!$C$13)*Inputs!$W$13 -> 80.08494177 | AI100: =('Working | Approach D'!AI529*Inputs!$C$13)*Inputs!$W$13 -> 73.61203841 | AJ100: =('Working | Approach D'!AJ529*Inputs!$C$13)*Inputs!$W$13 -> 67.31565991 | AK100: =('Working | Approach D'!AK529*Inputs!$C$13)*Inputs!$W$13 -> 61.20579226 | AL100: =('Working | Approach D'!AL529*Inputs!$C$13)*Inputs!$W$13 -> 55.2929864 | AM100: =('Working | Approach D'!AM529*Inputs!$C$13)*Inputs!$W$13 -> 49.5883901 | AN100: =('Working | Approach D'!AN529*Inputs!$C$13)*Inputs!$W$13 -> 44.10378177 | AO100: =('Working | Approach D'!AO529*Inputs!$C$13)*Inputs!$W$13 -> 38.85625502 | AP100: =('Working | Approach D'!AP529*Inputs!$C$13)*Inputs!$W$13 -> 33.85922154 | AQ100: =('Working | Approach D'!AQ529*Inputs!$C$13)*Inputs!$W$13 -> 29.12685174 | AR100: =('Working | Approach D'!AR529*Inputs!$C$13)*Inputs!$W$13 -> 24.67411764 | AS100: =('Working | Approach D'!AS529*Inputs!$C$13)*Inputs!$W$13 -> 20.51683824 | AT100: =('Working | Approach D'!AT529*Inputs!$C$13)*Inputs!$W$13 -> 16.68253324 | AU100: =('Working | Approach D'!AU529*Inputs!$C$13)*Inputs!$W$13 -> 13.18947333 | AV100: =('Working | Approach D'!AV529*Inputs!$C$13)*Inputs!$W$13 -> 10.05696273 | AW100: =('Working | Approach D'!AW529*Inputs!$C$13)*Inputs!$W$13 -> 7.305397704 | AX100: =('Working | Approach D'!AX529*Inputs!$C$13)*Inputs!$W$13 -> 4.956328353 | AY100: =('Working | Approach D'!AY529*Inputs!$C$13)*Inputs!$W$13 -> 3.026839294 | AZ100: =('Working | Approach D'!AZ529*Inputs!$C$13)*Inputs!$W$13 -> 1.540666181 | BA100: =('Working | Approach D'!BA529*Inputs!$C$13)*Inputs!$W$13 -> 0.5228873947 | BB100: =('Working | Approach D'!BB529*Inputs!$C$13)*Inputs!$W$13 -> 6.966160981e-14 | BC100: =('Working | Approach D'!BC529*Inputs!$C$13)*Inputs!$W$13 -> 6.966160981e-14 | BD100: =('Working | Approach D'!BD529*Inputs!$C$13)*Inputs!$W$13 -> 6.966160981e-14 | BE100: =('Working | Approach D'!BE529*Inputs!$C$13)*Inputs!$W$13 -> 6.966160981e-14 | BF100: =('Working | Approach D'!BF529*Inputs!$C$13)*Inputs!$W$13 -> 6.966160981e-14 | BG100: =('Working | Approach D'!BG529*Inputs!$C$13)*Inputs!$W$13 -> 6.966160981e-14 | BH100: =('Working | Approach D'!BH529*Inputs!$C$13)*Inputs!$W$13 -> 6.966160981e-14 | BI100: =('Working | Approach D'!BI529*Inputs!$C$13)*Inputs!$W$13 -> 6.966160981e-14 | BJ100: =('Working | Approach D'!BJ529*Inputs!$C$13)*Inputs!$W$13 -> 6.966160981e-14 | BK100: =('Working | Approach D'!BK529*Inputs!$C$13)*Inputs!$W$13 -> 6.966160981e-14 | BL100: =('Working | Approach D'!BL529*Inputs!$C$13)*Inputs!$W$13 -> 6.966160981e-14 | BM100: =('Working | Approach D'!BM529*Inputs!$C$13)*Inputs!$W$13 -> 6.966160981e-14 | BN100: =('Working | Approach D'!BN529*Inputs!$C$13)*Inputs!$W$13 -> 6.966160981e-14 | BO100: =('Working | Approach D'!BO529*Inputs!$C$13)*Inputs!$W$13 -> 6.966160981e-14 | BP100: =('Working | Approach D'!BP529*Inputs!$C$13)*Inputs!$W$13 -> 6.966160981e-14 | BQ100: =('Working | Approach D'!BQ529*Inputs!$C$13)*Inputs!$W$13 -> 6.966160981e-14 | BR100: =('Working | Approach D'!BR529*Inputs!$C$13)*Inputs!$W$13 -> 6.966160981e-14 | BS100: =('Working | Approach D'!BS529*Inputs!$C$13)*Inputs!$W$13 -> 6.966160981e-14 | BT100: =('Working | Approach D'!BT529*Inputs!$C$13)*Inputs!$W$13 -> 6.966160981e-14 | BU100: =('Working | Approach D'!BU529*Inputs!$C$13)*Inputs!$W$13 -> 6.966160981e-14
